{"text_format":"1","workbook":"xlsx","n_sheets":33,"sheets":["LEES MIJ EERST","Startscherm","Navigatiescherm","Algemeen","Balans","(Im)materiële vaste activa","Financiële vaste activa","Grondexploitatie","Vorderingen","Liquide middelen","Eigen vermogen","Voorzieningen","Schulden","Overzicht van baten en lasten","Niet in balans opgenomen verpl.","SiSa","Overzicht taakvelden","Rechtmatigheidsverantwoording","Jaarverslag","Aanbevelingen BBV","Aanbevelingen Deloitte","(H) triggersheet","(H) DATASHEET","PrintSheet","(H) Tickmarks","Validatie","HideSheetRange","Generalfunctions","MoveSheets","TEST","BepaalGrootte","Printen","Controles"],"not_rendered":{"charts":0,"images":3,"macros":1,"external_links":0,"defined_names":224,"comments":0,"pivot_tables":0},"unopened":[{"sheet":"Validatie","index":25,"reason":"part_missing"},{"sheet":"HideSheetRange","index":26,"reason":"part_missing"},{"sheet":"Generalfunctions","index":27,"reason":"part_missing"},{"sheet":"MoveSheets","index":28,"reason":"part_missing"},{"sheet":"TEST","index":29,"reason":"part_missing"},{"sheet":"BepaalGrootte","index":30,"reason":"part_missing"},{"sheet":"Printen","index":31,"reason":"part_missing"},{"sheet":"Controles","index":32,"reason":"part_missing"}],"bounds":{"document_bytes":16777216,"sheet_cells":100000,"rows_first":2000,"rows_last":500,"rows_between":2000,"halvings":0,"cell_chars":16384,"cell_head_chars":4096},"cells_cut":0,"cells_raw":0,"read":"whole","date_system":"1900"}

{"sheet":"LEES MIJ EERST","index":0,"n_rows":21,"n_cols":3,"rows_kept":21,"cut":false,"hidden":false,"merged":[]}
[]
[]
[null,null,"CHECKLIST EXTERNE VERSLAGGEVING BBV 2023"]
[]
[null,null,"Voorwaarden voor gebruik"]
[]
[null,null,"Met het gebruik van dit Excel-bestand (checklist), stemt u in met de hiernavolgende voorwaarden. Als u hier niet mee instemt, dan is het u niet toegestaan om verder gebruik te maken van deze checklist en dient u het bestand af te sluiten en te verwijderen."]
[]
[null,null,"U wordt verondersteld een goede deskundigheid te hebben van het BBV. U wordt verzocht waar nodig de originele bron te raadplegen bij de beoordeling van specifieke zaken in deze checklist."]
[]
[null,null,"Gebruikers zullen onvermijdelijk professionele oordeelsvorming moeten toepassen in specifieke omstandigheden. Deze checklist is slechts een ondersteunend middel dat niet geschikt voor zulke aangelegenheden die oordeelsvorming vereisen. Gebruikers worden geadviseerd om in deze situaties BBV specialisten te raadplegen."]
[]
[null,null,"Disclaimer"]
[]
[null,null,"Dit excel-bestand bevat slechts algemene informatie. Coöperative Deloitte U.A. (Deloitte Nederland) noch het wereldwijde netwerk van landenentiteiten van Deloitte Touche Tohmatsu Limited (“DTTL”), of de aan deze verbonden partijen (gezamenlijk de Deloitte organisatie) levert door middel van deze checklist professionele (advies)diensten. "]
[]
[null,null,"Deze checklist kan worden gebruikt als ondersteuning voor de vaststelling of jaarrekeningen over het verslagjaar 2023 voldoen aan de vereisten van het BBV. Het is geen vervanging voor de professional oordeelsvorming bij de toepassing van het BBV of van de adviezen van een BBV specialist."]
[]
[null,null,"De samenstellers zijn zich volledig bewust van hun taak een zo betrouwbaar mogelijke checklist te verzorgen. Niettemin kunnen zij of de Deloitte organisatie geen aansprakelijkheid aanvaarden voor eventueel in deze checklist voorkomende onvolledigheden en/of onjuistheden."]
[]
[null,null,"© Deloitte, januari 2024"]

{"sheet":"Startscherm","index":1,"n_rows":39,"n_cols":11,"rows_kept":39,"cut":false,"hidden":false,"merged":[[1,2,1,5],[32,1,32,3],[33,1,33,3],[26,1,26,3],[18,1,18,3],[5,1,10,4]]}
[]
[null,"Statutaire naam cliënt:","client naam"]
[null,"Datum einde boekjaar:","2023-12-31"]
[]
[]
[null,"De samenstellers zijn zich volledig bewust van hun taak een zo betrouwbaar mogelijke checklist te verzorgen. Niettemin kunnen zij geen aansprakelijkheid aanvaarden voor eventueel in deze checklist voorkomende onvolledigheden en/of onjuistheden.\n\n© Deloitte, Januari 2024"]
[]
[]
[null,null,null,null,null,{"$f":"NEE","v":"Nee"}]
[null,null,null,null,null,null,null,null,"PD RANGE"]
[null,null,null,null,null,{"$f":"CHK_M","v":"Maak uw keuze"},null,null,1,null,"Volledig"]
[null,null,null,null,null,{"$f":"JA","v":"Ja"},null,null,1,null,{"$f":"SUM(K13:K37)","v":6}]
[null,null,null,null,null,null,null,null,1]
[null,"JAARREKENINGPOSTEN",null,null,null," ",null,null,1]
[null,null,null,null,null,{"$f":"JA","v":"Ja"},null,null,1]
[null,"Geef aan welke jaarrekeningposten in de jaarrekening zijn opgenomen:",null,null,null,{"$f":"NEE","v":"Nee"},null,null,1]
[null,{"$f":"CHECKL_04_01","v":"Immateriële en materiële vaste activa"},null,null,null,"Maak uw keuze",null,null,1,null,{"$f":"IF(AND(I17=1,F17=CHK_M),1,)","v":1}]
[null,null,null,null,null," ",null,null,1]
[null,"Is er sprake van immateriële vaste activa?",null,null,null,"Maak uw keuze",null,null,{"$f":"IF(ANSW_04_01=JA,1,0)","v":0},null,{"$f":"IF(AND(I19=1,F19=CHK_M),1,)","v":0}]
[null,null,null,null,null," ",null,null,{"$f":"I19","v":0},null,{"$f":"K19","v":0}]
[null,{"$f":"CHECKL_04_04","v":"Financiële vaste activa"},null,null,null,"Maak uw keuze",null,null,1,null,{"$f":"IF(AND(I21=1,F21=CHK_M),1,)","v":1}]
[null,null,null,null,null," ",null,null,1]
[null,{"$f":"CHECKL_04_12","v":"Onderhanden werk grondexploitatie"},null,null,null,"Maak uw keuze",null,null,1,null,{"$f":"IF(AND(I23=1,F23=CHK_M),1,)","v":1}]
[null,null,null,null,null," ",null,null,1]
[null,{"$f":"CHECKL_04_09","v":"Eigen vermogen"},null,null,null,null,null,null,1]
[null,null,null,null,null," ",null,null,1,null,{"$f":"IF(AND(I26=1,F26=CHK_M),1,)","v":0}]
[null,"Is sprake van bestemmingsreserves? ",null,null,null,"Maak uw keuze",null,null,1,null,{"$f":"IF(AND(I27=1,F27=CHK_M),1,)","v":1}]
[null,null,null,null,null," ",null,null,1]
[null,{"$f":"CHECKL_04_10","v":"Voorzieningen"},null,null,null,"Maak uw keuze",null,null,1,null,{"$f":"IF(AND(I29=1,F29=CHK_M),1,)","v":1}]
[null,null,null,null,null," ",null,null,1]
[null,{"$f":"CHECKL_04_11","v":"Schulden"},null,null,null,null,null,null,1]
[null,null,null,null,null," ",null,null,1]
[null,"Is sprake van langlopende schulden o.g.?",null,null,null,"Maak uw keuze",null,null,1,null,{"$f":"IF(AND(I33=1,F33=CHK_M),1,)","v":1}]
[null,null,null,null,null," ",null,null,1]
[null,null,null,null,null," ",null,null,1]
[null,null,null,null,null," ",null,null,1]
[null,null,null,null,null," ",null,null,1]
[]
[null,"Ga verder naar het Navigatiescherm ","Æ"]

{"sheet":"Navigatiescherm","index":2,"n_rows":110,"n_cols":13,"rows_kept":110,"cut":false,"hidden":false,"merged":[]}
[null,{"$f":"IF(Startscherm!C2=\"\",\"\",\"Statutaire naam cliënt    \")","v":"Statutaire naam cliënt    "},{"$f":"IF(Startscherm!C2=\"\",\"\",Startscherm!C2)","v":"client naam"}]
[null,{"$f":"IF(Startscherm!C3=\"\",\"\",\"Datum einde boekjaar: \")","v":"Datum einde boekjaar: "},{"$f":"IF(Startscherm!C3=\"\",\"\",Startscherm!C3)","v":"2023-12-31"}]
[]
[null,null,null,null,null,"Verplicht","Afwerking"]
[null,null,null,null,"Ingevuld","Commentaar","Reviewer"]
[null,null,null,null,{"$f":"IF(SUMIF($J23:$J110,\">0\",K23:K110)=0,0,99)","v":99}]
[null,"NAVIGATIESHEET"]
[null,null,null,null,null,null,null,"PD NULL NAVIGATIE"]
[null,null,null,null,null,null,null,null,null,1]
[null,{"$f":"CHECKL_03_02","v":"Algemeen"},null,null,{"$f":"IF(SUMIF($J11:$J15,\">0\",K11:K15)>0,\"û\",\"ü\")","v":"û"},{"$f":"IF(SUMIF($J11:$J15,\">0\",L11:L15)>0,\"û\",\"ü\")","v":"ü"},{"$f":"IF(SUMIF($J11:$J15,\">0\",M11:M15)>0,\"û\",\"ü\")","v":"ü"},{"$f":"CHECKL_03_02","v":"Algemeen"},null,1,{"$f":"CHECKL_03_02","v":"Algemeen"},{"$f":"CHECKL_03_02","v":"Algemeen"},{"$f":"CHECKL_03_02","v":"Algemeen"}]
[null,{"$f":"Algemeen!C10","v":"Algemene bepalingen"},null,null,{"$f":"IF(K11=0,\"ü\",\"û\")","v":"û"},"ü","ü",{"$f":"Algemeen!T10","v":99},null,1,{"$f":"Algemeen!W10","v":6},{"$f":"Algemeen!X10","v":0},{"$f":"Algemeen!Y10","v":0}]
[null,{"$f":"Algemeen!C23","v":"Erfpacht"},null,null,"û","ü","ü",{"$f":"Algemeen!T23","v":99},null,1,{"$f":"Algemeen!W23","v":1},{"$f":"Algemeen!X23","v":0},{"$f":"Algemeen!Y23","v":0}]
[null,{"$f":"Algemeen!C26","v":"Stelsel-/schattingswijzigingen "},null,null,{"$f":"IF(K13=0,\"ü\",\"û\")","v":"û"},{"$f":"IF(L13=0,\"ü\",\"û\")","v":"ü"},{"$f":"IF(M13=0,\"ü\",\"û\")","v":"ü"},{"$f":"Algemeen!T26","v":99},null,1,{"$f":"Algemeen!W26","v":3},{"$f":"Algemeen!X26","v":0},{"$f":"Algemeen!Y26","v":0}]
[null,{"$f":"Algemeen!C33","v":"De jaarrekening"},null,null,"û","ü","ü",{"$f":"Algemeen!T33","v":99},null,1,{"$f":"Algemeen!W33","v":2},{"$f":"Algemeen!X33","v":0},{"$f":"Algemeen!Y33","v":0}]
[null,{"$f":"Algemeen!C38","v":"Verwijzingen"},null,null,{"$f":"IF(K15=0,\"ü\",\"û\")","v":"û"},{"$f":"IF(L15=0,\"ü\",\"û\")","v":"ü"},{"$f":"IF(M15=0,\"ü\",\"û\")","v":"ü"},{"$f":"Algemeen!T38","v":99},null,1,{"$f":"Algemeen!W38","v":1},{"$f":"Algemeen!X38","v":0},{"$f":"Algemeen!Y38","v":0}]
[null,null,null,null,null,null,null,null,null,1]
[null,{"$f":"CHECKL_04_07","v":"Balans"},null,null,{"$f":"IF(SUMIF($J18:$J21,\">0\",K18:K21)>0,\"û\",\"ü\")","v":"û"},{"$f":"IF(SUMIF($J18:$J21,\">0\",L18:L21)>0,\"û\",\"ü\")","v":"ü"},{"$f":"IF(SUMIF($J18:$J21,\">0\",M18:M21)>0,\"û\",\"ü\")","v":"ü"},{"$f":"CHECKL_04_07","v":"Balans"},null,1,{"$f":"CHECKL_04_07","v":"Balans"},{"$f":"CHECKL_04_07","v":"Balans"},{"$f":"CHECKL_04_07","v":"Balans"}]
[null,{"$f":"Balans!C10","v":"De balans en de toelichting"},null,null,{"$f":"IF(K18=0,\"ü\",\"û\")","v":"û"},"ü","ü",{"$f":"Balans!T10","v":99},null,1,{"$f":"Balans!W10","v":4},{"$f":"Balans!X10","v":0},{"$f":"Balans!Y10","v":0}]
[null,{"$f":"Balans!C19","v":"Vaste activa"},null,null,"û","ü","ü",{"$f":"Balans!T19","v":99},null,1,{"$f":"Balans!W19","v":1},{"$f":"Balans!X19","v":0},{"$f":"Balans!Y19","v":0}]
[null,{"$f":"Balans!C22","v":"Vlottende activa"},null,null,"û","ü","ü",{"$f":"Balans!T22","v":99},null,1,{"$f":"Balans!W22","v":4},{"$f":"Balans!X22","v":0},{"$f":"Balans!Y22","v":0}]
[null,{"$f":"Balans!C29","v":"Vaste passiva"},null,null,"û","ü","ü",{"$f":"Balans!T29","v":99},null,1,{"$f":"Balans!W29","v":4},{"$f":"Balans!X29","v":0},{"$f":"Balans!Y29","v":0}]
[null,null,null,null,null,null,null,null,null,1]
[null,{"$f":"CHECKL_04_01","v":"Immateriële en materiële vaste activa"},null,null,{"$f":"IF(SUMIF($J24:$J27,\">0\",K24:K27)>0,\"û\",\"ü\")","v":"û"},{"$f":"IF(SUMIF($J24:$J27,\">0\",L24:L27)>0,\"û\",\"ü\")","v":"ü"},{"$f":"IF(SUMIF($J24:$J27,\">0\",M24:M27)>0,\"û\",\"ü\")","v":"ü"},{"$f":"CHECKL_04_01","v":"Immateriële en materiële vaste activa"},null,{"$f":"IF(ANSW_04_01=NEE,0,1)","v":1},{"$f":"CHECKL_04_01","v":"Immateriële en materiële vaste activa"},{"$f":"CHECKL_04_01","v":"Immateriële en materiële vaste activa"},{"$f":"CHECKL_04_01","v":"Immateriële en materiële vaste activa"}]
[null,{"$f":"'(Im)materiële vaste activa'!C10","v":"Algemene bepalingen"},null,null,{"$f":"IF(K24=0,\"ü\",\"û\")","v":"û"},"ü","ü",{"$f":"'(Im)materiële vaste activa'!T10","v":99},null,{"$f":"J23","v":1},{"$f":"'(Im)materiële vaste activa'!W10","v":1},{"$f":"'(Im)materiële vaste activa'!X10","v":0},{"$f":"'(Im)materiële vaste activa'!Y10","v":0}]
[null,{"$f":"'(Im)materiële vaste activa'!C13","v":"Immateriële vaste activa"},null,null,"û","ü","ü",{"$f":"'(Im)materiële vaste activa'!T13","v":99},null,{"$f":"IF(ANSW_04_01_01=NEE,0,1)*J23","v":1},{"$f":"'(Im)materiële vaste activa'!W13","v":16},{"$f":"'(Im)materiële vaste activa'!X13","v":0},{"$f":"'(Im)materiële vaste activa'!Y13","v":0}]
[null,{"$f":"'(Im)materiële vaste activa'!C51","v":"Materiële vaste activa"},null,null,{"$f":"IF(K26=0,\"ü\",\"û\")","v":"û"},"ü","ü",{"$f":"'(Im)materiële vaste activa'!T51","v":99},null,{"$f":"J23","v":1},{"$f":"'(Im)materiële vaste activa'!W51","v":43},{"$f":"'(Im)materiële vaste activa'!X51","v":0},{"$f":"'(Im)materiële vaste activa'!Y51","v":0}]
[null,{"$f":"'(Im)materiële vaste activa'!C133","v":"Waardering, afschrijving en waardevermindering"},null,null,"û","ü","ü",{"$f":"'(Im)materiële vaste activa'!T133","v":99},null,{"$f":"J23","v":1},{"$f":"'(Im)materiële vaste activa'!W133","v":14},{"$f":"'(Im)materiële vaste activa'!X133","v":0},{"$f":"'(Im)materiële vaste activa'!Y133","v":0}]
[null,null,null,null,null,null,null,null,null,{"$f":"J23","v":1}]
[null,{"$f":"CHECKL_04_04","v":"Financiële vaste activa"},null,null,{"$f":"IF(SUMIF($J30:$J30,\">0\",K30:K30)>0,\"û\",\"ü\")","v":"û"},{"$f":"IF(SUMIF($J30:$J30,\">0\",L30:L30)>0,\"û\",\"ü\")","v":"ü"},{"$f":"IF(SUMIF($J30:$J30,\">0\",M30:M30)>0,\"û\",\"ü\")","v":"ü"},{"$f":"CHECKL_04_04","v":"Financiële vaste activa"},null,{"$f":"IF(ANSW_04_04=NEE,0,1)","v":1},{"$f":"CHECKL_04_04","v":"Financiële vaste activa"},{"$f":"CHECKL_04_04","v":"Financiële vaste activa"},{"$f":"CHECKL_04_04","v":"Financiële vaste activa"}]
[null,{"$f":"'Financiële vaste activa'!C10","v":"Algemene bepalingen"},null,null,{"$f":"IF(K30=0,\"ü\",\"û\")","v":"û"},{"$f":"IF(L30=0,\"ü\",\"û\")","v":"ü"},{"$f":"IF(M30=0,\"ü\",\"û\")","v":"ü"},{"$f":"'Financiële vaste activa'!T10","v":99},null,{"$f":"J29","v":1},{"$f":"'Financiële vaste activa'!W10","v":13},{"$f":"'Financiële vaste activa'!X10","v":0},{"$f":"'Financiële vaste activa'!Y10","v":0}]
[null,null,null,null,null,null,null,null,null,{"$f":"J29","v":1}]
[null,{"$f":"CHECKL_04_12","v":"Onderhanden werk grondexploitatie"},null,null,{"$f":"IF(SUMIF($J33:$J33,\">0\",K33:K33)>0,\"û\",\"ü\")","v":"û"},{"$f":"IF(SUMIF($J33:$J33,\">0\",L33:L33)>0,\"û\",\"ü\")","v":"ü"},{"$f":"IF(SUMIF($J33:$J33,\">0\",M33:M33)>0,\"û\",\"ü\")","v":"ü"},{"$f":"CHECKL_04_12","v":"Onderhanden werk grondexploitatie"},null,{"$f":"IF(ANSW_04_12=NEE,0,1)","v":1},{"$f":"CHECKL_04_12","v":"Onderhanden werk grondexploitatie"},{"$f":"CHECKL_04_12","v":"Onderhanden werk grondexploitatie"},{"$f":"CHECKL_04_12","v":"Onderhanden werk grondexploitatie"}]
[null,{"$f":"Grondexploitatie!C10","v":"Voorraden"},null,null,{"$f":"IF(K33=0,\"ü\",\"û\")","v":"û"},"ü","ü",{"$f":"Grondexploitatie!T10","v":99},null,{"$f":"J32","v":1},{"$f":"Grondexploitatie!W10","v":15},{"$f":"Grondexploitatie!X10","v":0},{"$f":"Grondexploitatie!Y10","v":0}]
[null,{"$f":"Grondexploitatie!C34","v":"Bouwgronden in exploitatie"},null,null,"û","ü","ü",{"$f":"Grondexploitatie!T34","v":99},null,{"$f":"J33","v":1},{"$f":"Grondexploitatie!W34","v":36},{"$f":"Grondexploitatie!X34","v":0},{"$f":"Grondexploitatie!Y34","v":0}]
[null,null,null,null,null,null,null,null,null,{"$f":"J32","v":1}]
[null,{"$f":"CHECKL_04_06","v":"Vorderingen"},null,null,{"$f":"IF(SUMIF($J37:$J40,\">0\",K37:K40)>0,\"û\",\"ü\")","v":"û"},{"$f":"IF(SUMIF($J37:$J40,\">0\",L37:L40)>0,\"û\",\"ü\")","v":"ü"},{"$f":"IF(SUMIF($J37:$J40,\">0\",M37:M40)>0,\"û\",\"ü\")","v":"ü"},{"$f":"CHECKL_04_06","v":"Vorderingen"},null,1,{"$f":"CHECKL_04_06","v":"Vorderingen"},{"$f":"CHECKL_04_06","v":"Vorderingen"},{"$f":"CHECKL_04_06","v":"Vorderingen"}]
[null,{"$f":"Vorderingen!C10","v":"Uitzettingen"},null,null,{"$f":"IF(K37=0,\"ü\",\"û\")","v":"û"},"ü","ü",{"$f":"Vorderingen!T10","v":99},null,1,{"$f":"Vorderingen!W10","v":11},{"$f":"Vorderingen!X10","v":0},{"$f":"Vorderingen!Y10","v":0}]
[null,{"$f":"Vorderingen!C26","v":"Schatkistbankieren"},null,null,"û","ü","ü",{"$f":"Vorderingen!T26","v":99},null,1,{"$f":"Vorderingen!W26","v":2},{"$f":"Vorderingen!X26","v":0},{"$f":"Vorderingen!Y26","v":0}]
[null,{"$f":"Vorderingen!C30","v":"Faciliterend grondbeleid"},null,null,{"$f":"IF(K39=0,\"ü\",\"û\")","v":"û"},{"$f":"IF(L39=0,\"ü\",\"û\")","v":"ü"},{"$f":"IF(M39=0,\"ü\",\"û\")","v":"ü"},{"$f":"Vorderingen!T30","v":99},null,1,{"$f":"Vorderingen!W30","v":9},{"$f":"Vorderingen!X30","v":0},{"$f":"Vorderingen!Y30","v":0}]
[null,{"$f":"Vorderingen!C47","v":"Overlopende activa"},null,null,"û","ü","ü",{"$f":"Vorderingen!T47","v":99},null,1,{"$f":"Vorderingen!W47","v":10},{"$f":"Vorderingen!X47","v":0},{"$f":"Vorderingen!Y47","v":0}]
[null,null,null,null,null,null,null,null,null,1]
[null,{"$f":"CHECKL_04_08","v":"Liquide middelen"},null,null,{"$f":"IF(SUMIF($J43:$J43,\">0\",K43:K43)>0,\"û\",\"ü\")","v":"û"},{"$f":"IF(SUMIF($J43:$J43,\">0\",L43:L43)>0,\"û\",\"ü\")","v":"ü"},{"$f":"IF(SUMIF($J43:$J43,\">0\",M43:M43)>0,\"û\",\"ü\")","v":"ü"},{"$f":"CHECKL_04_08","v":"Liquide middelen"},null,1,{"$f":"CHECKL_04_08","v":"Liquide middelen"},{"$f":"CHECKL_04_08","v":"Liquide middelen"},{"$f":"CHECKL_04_08","v":"Liquide middelen"}]
[null,{"$f":"'Liquide middelen'!C10","v":"Algemene bepalingen"},null,null,{"$f":"IF(K43=0,\"ü\",\"û\")","v":"û"},{"$f":"IF(L43=0,\"ü\",\"û\")","v":"ü"},{"$f":"IF(M43=0,\"ü\",\"û\")","v":"ü"},{"$f":"'Liquide middelen'!T10","v":99},null,1,{"$f":"'Liquide middelen'!W10","v":1},{"$f":"'Liquide middelen'!X10","v":0},{"$f":"'Liquide middelen'!Y10","v":0}]
[null,null,null,null,null,null,null,null,null,1]
[null,{"$f":"CHECKL_04_09","v":"Eigen vermogen"},null,null,{"$f":"IF(SUMIF($J46:$J47,\">0\",K46:K47)>0,\"û\",\"ü\")","v":"û"},{"$f":"IF(SUMIF($J46:$J47,\">0\",L46:L47)>0,\"û\",\"ü\")","v":"ü"},{"$f":"IF(SUMIF($J46:$J47,\">0\",M46:M47)>0,\"û\",\"ü\")","v":"ü"},{"$f":"CHECKL_04_09","v":"Eigen vermogen"},null,1,{"$f":"CHECKL_04_09","v":"Eigen vermogen"},{"$f":"CHECKL_04_09","v":"Eigen vermogen"},{"$f":"CHECKL_04_09","v":"Eigen vermogen"}]
[null,{"$f":"'Eigen vermogen'!C10","v":"Algemene bepalingen"},null,null,{"$f":"IF(K46=0,\"ü\",\"û\")","v":"û"},"ü","ü",{"$f":"'Eigen vermogen'!T10","v":99},null,1,{"$f":"'Eigen vermogen'!W10","v":2},{"$f":"'Eigen vermogen'!X10","v":0},{"$f":"'Eigen vermogen'!Y10","v":0}]
[null,{"$f":"'Eigen vermogen'!C15","v":"Reserves"},null,null,"û","ü","ü",{"$f":"'Eigen vermogen'!T15","v":99},null,1,{"$f":"'Eigen vermogen'!W15","v":13},{"$f":"'Eigen vermogen'!X15","v":0},{"$f":"'Eigen vermogen'!Y15","v":0}]
[null,null,null,null,null,null,null,null,null,1]
[null,{"$f":"CHECKL_04_10","v":"Voorzieningen"},null,null,{"$f":"IF(SUMIF($J50:$J50,\">0\",K50:K50)>0,\"û\",\"ü\")","v":"û"},{"$f":"IF(SUMIF($J50:$J50,\">0\",L50:L50)>0,\"û\",\"ü\")","v":"ü"},{"$f":"IF(SUMIF($J50:$J50,\">0\",M50:M50)>0,\"û\",\"ü\")","v":"ü"},{"$f":"CHECKL_04_10","v":"Voorzieningen"},null,{"$f":"IF(ANSW_04_10=NEE,0,1)","v":1},{"$f":"CHECKL_04_10","v":"Voorzieningen"},{"$f":"CHECKL_04_10","v":"Voorzieningen"},{"$f":"CHECKL_04_10","v":"Voorzieningen"}]
[null,{"$f":"Voorzieningen!C10","v":"Algemene bepalingen"},null,null,{"$f":"IF(K50=0,\"ü\",\"û\")","v":"û"},{"$f":"IF(L50=0,\"ü\",\"û\")","v":"ü"},{"$f":"IF(M50=0,\"ü\",\"û\")","v":"ü"},{"$f":"Voorzieningen!T10","v":99},null,{"$f":"J49","v":1},{"$f":"Voorzieningen!W10","v":37},{"$f":"Voorzieningen!X10","v":0},{"$f":"Voorzieningen!Y10","v":0}]
[null,null,null,null,null,null,null,null,null,{"$f":"J49","v":1}]
[null,{"$f":"CHECKL_04_11","v":"Schulden"},null,null,{"$f":"IF(SUMIF($J53:$J57,\">0\",K53:K57)>0,\"û\",\"ü\")","v":"û"},{"$f":"IF(SUMIF($J53:$J57,\">0\",L53:L57)>0,\"û\",\"ü\")","v":"ü"},{"$f":"IF(SUMIF($J53:$J57,\">0\",M53:M57)>0,\"û\",\"ü\")","v":"ü"},{"$f":"CHECKL_04_11","v":"Schulden"},null,1,{"$f":"CHECKL_04_11","v":"Schulden"},{"$f":"CHECKL_04_11","v":"Schulden"},{"$f":"CHECKL_04_11","v":"Schulden"}]
[null,{"$f":"Schulden!C10","v":"Vaste schulden"},null,null,{"$f":"IF(K53=0,\"ü\",\"û\")","v":"û"},"ü","ü",{"$f":"Schulden!T10","v":99},null,{"$f":"IF(ANSW_04_11_01=NEE,0,1)","v":1},{"$f":"Schulden!W10","v":11},{"$f":"Schulden!X10","v":0},{"$f":"Schulden!Y10","v":0}]
[null,{"$f":"Schulden!C34","v":"Vlottende passiva"},null,null,"û","ü","ü",{"$f":"Schulden!T34","v":99},null,1,{"$f":"Schulden!W34","v":2},{"$f":"Schulden!X34","v":0},{"$f":"Schulden!Y34","v":0}]
[null,{"$f":"Schulden!C39","v":"Vlottende schulden"},null,null,"û","ü","ü",{"$f":"Schulden!T39","v":99},null,1,{"$f":"Schulden!W39","v":4},{"$f":"Schulden!X39","v":0},{"$f":"Schulden!Y39","v":0}]
[null,{"$f":"Schulden!C46","v":"Onderscheid vaste/vlottende schulden"},null,null,"û","ü","ü",{"$f":"Schulden!T46","v":99},null,1,{"$f":"Schulden!W46","v":1},{"$f":"Schulden!X46","v":0},{"$f":"Schulden!Y46","v":0}]
[null,{"$f":"Schulden!C49","v":"Overlopende passiva"},null,null,{"$f":"IF(K57=0,\"ü\",\"û\")","v":"û"},{"$f":"IF(L57=0,\"ü\",\"û\")","v":"ü"},{"$f":"IF(M57=0,\"ü\",\"û\")","v":"ü"},{"$f":"Schulden!T49","v":99},null,1,{"$f":"Schulden!W49","v":13},{"$f":"Schulden!X49","v":0},{"$f":"Schulden!Y49","v":0}]
[null,null,null,null,null,null,null,null,null,1]
[null,{"$f":"CHECKL_05_01","v":"Overzicht van baten en lasten in de jaarrekening"},null,null,{"$f":"IF(SUMIF($J60:$J62,\">0\",K60:K62)>0,\"û\",\"ü\")","v":"û"},{"$f":"IF(SUMIF($J60:$J62,\">0\",L60:L62)>0,\"û\",\"ü\")","v":"ü"},{"$f":"IF(SUMIF($J60:$J62,\">0\",M60:M62)>0,\"û\",\"ü\")","v":"ü"},{"$f":"CHECKL_05_01","v":"Overzicht van baten en lasten in de jaarrekening"},null,1,{"$f":"CHECKL_05_01","v":"Overzicht van baten en lasten in de jaarrekening"},{"$f":"CHECKL_05_01","v":"Overzicht van baten en lasten in de jaarrekening"},{"$f":"CHECKL_05_01","v":"Overzicht van baten en lasten in de jaarrekening"}]
[null,{"$f":"'Overzicht van baten en lasten'!C10","v":"Algemene bepalingen"},null,null,{"$f":"IF(K60=0,\"ü\",\"û\")","v":"û"},"ü","ü",{"$f":"'Overzicht van baten en lasten'!T10","v":99},null,1,{"$f":"'Overzicht van baten en lasten'!W10","v":3},{"$f":"'Overzicht van baten en lasten'!X10","v":0},{"$f":"'Overzicht van baten en lasten'!Y10","v":0}]
[null,{"$f":"'Overzicht van baten en lasten'!C17","v":"Het overzicht van baten en lasten in de jaarrekening met toelichting"},null,null,"û","ü","ü",{"$f":"'Overzicht van baten en lasten'!T17","v":99},null,1,{"$f":"'Overzicht van baten en lasten'!W17","v":7},{"$f":"'Overzicht van baten en lasten'!X17","v":0},{"$f":"'Overzicht van baten en lasten'!Y17","v":0}]
[null,{"$f":"'Overzicht van baten en lasten'!C28","v":"Algemene uitkering"},null,null,{"$f":"IF(K62=0,\"ü\",\"û\")","v":"û"},{"$f":"IF(L62=0,\"ü\",\"û\")","v":"ü"},{"$f":"IF(M62=0,\"ü\",\"û\")","v":"ü"},{"$f":"'Overzicht van baten en lasten'!T28","v":99},null,1,{"$f":"'Overzicht van baten en lasten'!W28","v":16},{"$f":"'Overzicht van baten en lasten'!X28","v":0},{"$f":"'Overzicht van baten en lasten'!Y28","v":0}]
[null,null,null,null,null,null,null,null,null,1]
[null,{"$f":"CHECKL_08_03","v":"Niet in de balans opgenomen rechten en verplichtingen"},null,null,{"$f":"IF(SUMIF($J66:$J68,\">0\",K66:K68)>0,\"û\",\"ü\")","v":"û"},{"$f":"IF(SUMIF($J66:$J68,\">0\",L66:L68)>0,\"û\",\"ü\")","v":"ü"},{"$f":"IF(SUMIF($J66:$J68,\">0\",M66:M68)>0,\"û\",\"ü\")","v":"ü"},{"$f":"CHECKL_08_03","v":"Niet in de balans opgenomen rechten en verplichtingen"},null,1,{"$f":"CHECKL_08_03","v":"Niet in de balans opgenomen rechten en verplichtingen"},{"$f":"CHECKL_08_03","v":"Niet in de balans opgenomen rechten en verplichtingen"},{"$f":"CHECKL_08_03","v":"Niet in de balans opgenomen rechten en verplichtingen"}]
[null,{"$f":"'Niet in balans opgenomen verpl.'!C10","v":"Vennootschapsbelasting"},null,null,{"$f":"IF(K65=0,\"ü\",\"û\")","v":"û"},{"$f":"IF(L65=0,\"ü\",\"û\")","v":"ü"},{"$f":"IF(M65=0,\"ü\",\"û\")","v":"ü"},{"$f":"'Niet in balans opgenomen verpl.'!T10","v":99},null,1,{"$f":"'Niet in balans opgenomen verpl.'!W10","v":1},{"$f":"'Niet in balans opgenomen verpl.'!X10","v":0},{"$f":"'Niet in balans opgenomen verpl.'!Y10","v":0}]
[null,{"$f":"'Niet in balans opgenomen verpl.'!C14","v":"Waarborgen en garanties"},null,null,{"$f":"IF(K66=0,\"ü\",\"û\")","v":"û"},"ü","ü",{"$f":"'Niet in balans opgenomen verpl.'!T14","v":99},null,1,{"$f":"'Niet in balans opgenomen verpl.'!W14","v":8},{"$f":"'Niet in balans opgenomen verpl.'!X14","v":0},{"$f":"'Niet in balans opgenomen verpl.'!Y14","v":0}]
[null,{"$f":"'Niet in balans opgenomen verpl.'!C32","v":"Langlopende financiële verplichtingen"},null,null,"û","ü","ü",{"$f":"'Niet in balans opgenomen verpl.'!T32","v":99},null,1,{"$f":"'Niet in balans opgenomen verpl.'!W32","v":2},{"$f":"'Niet in balans opgenomen verpl.'!X32","v":0},{"$f":"'Niet in balans opgenomen verpl.'!Y32","v":0}]
[null,{"$f":"'Niet in balans opgenomen verpl.'!C37","v":"Financiële derivaten"},null,null,{"$f":"IF(K68=0,\"ü\",\"û\")","v":"û"},{"$f":"IF(L68=0,\"ü\",\"û\")","v":"ü"},{"$f":"IF(M68=0,\"ü\",\"û\")","v":"ü"},{"$f":"'Niet in balans opgenomen verpl.'!T37","v":99},null,1,{"$f":"'Niet in balans opgenomen verpl.'!W37","v":3},{"$f":"'Niet in balans opgenomen verpl.'!X37","v":0},{"$f":"'Niet in balans opgenomen verpl.'!Y37","v":0}]
[null,null,null,null,null,null,null,null,null,1]
[null,{"$f":"CHECKL_08_05","v":"SiSa"},null,null,{"$f":"IF(SUMIF($J71:$J72,\">0\",K71:K72)>0,\"û\",\"ü\")","v":"û"},{"$f":"IF(SUMIF($J71:$J72,\">0\",L71:L72)>0,\"û\",\"ü\")","v":"ü"},{"$f":"IF(SUMIF($J71:$J72,\">0\",M71:M72)>0,\"û\",\"ü\")","v":"ü"},{"$f":"CHECKL_08_05","v":"SiSa"},null,1,{"$f":"CHECKL_08_05","v":"SiSa"},{"$f":"CHECKL_08_05","v":"SiSa"},{"$f":"CHECKL_08_05","v":"SiSa"}]
[null,{"$f":"SiSa!C10","v":"Algemeen"},null,null,{"$f":"IF(K71=0,\"ü\",\"û\")","v":"û"},"ü","ü",{"$f":"SiSa!T10","v":99},null,1,{"$f":"SiSa!W10","v":2},{"$f":"SiSa!X10","v":0},{"$f":"SiSa!Y10","v":0}]
[null,{"$f":"SiSa!C15","v":"Medeoverheden"},null,null,"û","ü","ü",{"$f":"SiSa!T15","v":99},null,1,{"$f":"SiSa!W15","v":1},{"$f":"SiSa!X15","v":0},{"$f":"SiSa!Y15","v":0}]
[null,null,null,null,null,null,null,null,null,1]
[null,{"$f":"CHECKL_08_06","v":"Overzicht Taakvelden"},null,null,{"$f":"IF(SUMIF($J75:$J75,\">0\",K75:K75)>0,\"û\",\"ü\")","v":"û"},{"$f":"IF(SUMIF($J75:$J75,\">0\",L75:L75)>0,\"û\",\"ü\")","v":"ü"},{"$f":"IF(SUMIF($J75:$J75,\">0\",M75:M75)>0,\"û\",\"ü\")","v":"ü"},{"$f":"CHECKL_08_06","v":"Overzicht Taakvelden"},null,1,{"$f":"CHECKL_08_06","v":"Overzicht Taakvelden"},{"$f":"CHECKL_08_06","v":"Overzicht Taakvelden"},{"$f":"CHECKL_08_06","v":"Overzicht Taakvelden"}]
[null,{"$f":"CHECKL_08_06","v":"Overzicht Taakvelden"},null,null,{"$f":"IF(K75=0,\"ü\",\"û\")","v":"û"},{"$f":"IF(L75=0,\"ü\",\"û\")","v":"ü"},{"$f":"IF(M75=0,\"ü\",\"û\")","v":"ü"},{"$f":"'Overzicht taakvelden'!T8","v":99},null,1,{"$f":"'Overzicht taakvelden'!W8","v":11},{"$f":"'Overzicht taakvelden'!X8","v":0},{"$f":"'Overzicht taakvelden'!Y8","v":0}]
[null,null,null,null,null,null,null,null,null,1]
[null,{"$f":"CHECKL_21_01","v":"Rechtmatigheidsverantwoording van het college van B&W"},null,null,{"$f":"IF(SUMIF($J78:$J79,\">0\",K78:K79)>0,\"û\",\"ü\")","v":"û"},{"$f":"IF(SUMIF($J78:$J79,\">0\",L78:L79)>0,\"û\",\"ü\")","v":"ü"},{"$f":"IF(SUMIF($J78:$J79,\">0\",M78:M79)>0,\"û\",\"ü\")","v":"ü"},{"$f":"CHECKL_21_01","v":"Rechtmatigheidsverantwoording van het college van B&W"},null,1,{"$f":"CHECKL_21_01","v":"Rechtmatigheidsverantwoording van het college van B&W"},{"$f":"CHECKL_21_01","v":"Rechtmatigheidsverantwoording van het college van B&W"},{"$f":"CHECKL_21_01","v":"Rechtmatigheidsverantwoording van het college van B&W"}]
[null,{"$f":"CHECKL_21_01","v":"Rechtmatigheidsverantwoording van het college van B&W"},null,null,{"$f":"IF(K78=0,\"ü\",\"û\")","v":"û"},{"$f":"IF(L78=0,\"ü\",\"û\")","v":"ü"},{"$f":"IF(M78=0,\"ü\",\"û\")","v":"ü"},{"$f":"Rechtmatigheidsverantwoording!T8","v":99},null,1,{"$f":"Rechtmatigheidsverantwoording!W8","v":8},{"$f":"Rechtmatigheidsverantwoording!X8","v":0},{"$f":"Rechtmatigheidsverantwoording!Y8","v":0}]
[null,null,null,null,null,null,null,null,null,1]
[null,{"$f":"CHECKL_09_01","v":"Jaarverslag"},null,null,{"$f":"IF(SUMIF($J81:$J90,\">0\",K81:K90)>0,\"û\",\"ü\")","v":"û"},{"$f":"IF(SUMIF($J81:$J90,\">0\",L81:L90)>0,\"û\",\"ü\")","v":"ü"},{"$f":"IF(SUMIF($J81:$J90,\">0\",M81:M90)>0,\"û\",\"ü\")","v":"ü"},{"$f":"CHECKL_09_01","v":"Jaarverslag"},null,1,{"$f":"CHECKL_09_01","v":"Jaarverslag"},{"$f":"CHECKL_09_01","v":"Jaarverslag"},{"$f":"CHECKL_09_01","v":"Jaarverslag"}]
[null,{"$f":"Jaarverslag!C10","v":"Het jaarverslag"},null,null,{"$f":"IF(K81=0,\"ü\",\"û\")","v":"û"},"ü","ü",{"$f":"Jaarverslag!T10","v":99},null,1,{"$f":"Jaarverslag!W10","v":3},{"$f":"Jaarverslag!X10","v":0},{"$f":"Jaarverslag!Y10","v":0}]
[null,{"$f":"Jaarverslag!C17","v":"De programmaverantwoording"},null,null,"û","ü","ü",{"$f":"Jaarverslag!T17","v":99},null,1,{"$f":"Jaarverslag!W17","v":6},{"$f":"Jaarverslag!X17","v":0},{"$f":"Jaarverslag!Y17","v":0}]
[null,{"$f":"Jaarverslag!C29","v":"De paragrafen"},null,null,{"$f":"IF(K83=0,\"ü\",\"û\")","v":"û"},{"$f":"IF(L83=0,\"ü\",\"û\")","v":"ü"},{"$f":"IF(M83=0,\"ü\",\"û\")","v":"ü"},{"$f":"Jaarverslag!T29","v":99},null,"`1",{"$f":"Jaarverslag!W29","v":2},{"$f":"Jaarverslag!X29","v":0},{"$f":"Jaarverslag!Y29","v":0}]
[null,{"$f":"Jaarverslag!C34","v":"Paragraaf Lokale Heffingen"},null,null,"û","ü","ü",{"$f":"Jaarverslag!T34","v":99},null,1,{"$f":"Jaarverslag!W34","v":5},{"$f":"Jaarverslag!X34","v":0},{"$f":"Jaarverslag!Y34","v":0}]
[null,{"$f":"Jaarverslag!C42","v":"Paragraaf Weerstandsvermogen en Risicobeheersing"},null,null,{"$f":"IF(K85=0,\"ü\",\"û\")","v":"û"},{"$f":"IF(L85=0,\"ü\",\"û\")","v":"ü"},{"$f":"IF(M85=0,\"ü\",\"û\")","v":"ü"},{"$f":"Jaarverslag!T42","v":99},null,1,{"$f":"Jaarverslag!W42","v":5},{"$f":"Jaarverslag!X42","v":0},{"$f":"Jaarverslag!Y42","v":0}]
[null,{"$f":"Jaarverslag!C60","v":"Paragraaf Onderhoud Kapitaalgoederen"},null,null,"û","ü","ü",{"$f":"Jaarverslag!T60","v":99},null,1,{"$f":"Jaarverslag!W60","v":8},{"$f":"Jaarverslag!X60","v":0},{"$f":"Jaarverslag!Y60","v":0}]
[null,{"$f":"Jaarverslag!C73","v":"Paragraaf Financiering"},null,null,"û","ü","ü",{"$f":"Jaarverslag!T73","v":99},null,1,{"$f":"Jaarverslag!W73","v":2},{"$f":"Jaarverslag!X73","v":0},{"$f":"Jaarverslag!Y73","v":0}]
[null,{"$f":"Jaarverslag!C77","v":"Paragraaf Bedrijfsvoering"},null,null,"û","ü","ü",{"$f":"Jaarverslag!T77","v":99},null,1,{"$f":"Jaarverslag!W77","v":5},{"$f":"Jaarverslag!X77","v":0},{"$f":"Jaarverslag!Y77","v":0}]
[null,{"$f":"Jaarverslag!C88","v":"Paragraaf Verbonden Partijen"},null,null,"û","ü","ü",{"$f":"Jaarverslag!T88","v":99},null,1,{"$f":"Jaarverslag!W88","v":8},{"$f":"Jaarverslag!X88","v":0},{"$f":"Jaarverslag!Y88","v":0}]
[null,{"$f":"Jaarverslag!C101","v":"Paragraaf Grondbeleid"},null,null,"û","ü","ü",{"$f":"Jaarverslag!T101","v":99},null,1,{"$f":"Jaarverslag!W101","v":7},{"$f":"Jaarverslag!X101","v":0},{"$f":"Jaarverslag!Y101","v":0}]
[null,"Paragraaf Wet open overheid",null,null,"û","ü","ü",{"$f":"Jaarverslag!T112","v":99},null,1,{"$f":"Jaarverslag!W112","v":1},{"$f":"Jaarverslag!X112","v":0},{"$f":"Jaarverslag!Y112","v":0}]
[null,null,null,null,null,null,null,null,null,1]
[null,{"$f":"CHECKL_10_03","v":"Aanbevelingen van de commissie BBV"},null,null,{"$f":"IF(SUMIF($J94:$J99,\">0\",K94:K99)>0,\"û\",\"ü\")","v":"û"},{"$f":"IF(SUMIF($J94:$J99,\">0\",L94:L99)>0,\"û\",\"ü\")","v":"ü"},{"$f":"IF(SUMIF($J94:$J99,\">0\",M94:M99)>0,\"û\",\"ü\")","v":"ü"},{"$f":"CHECKL_10_03","v":"Aanbevelingen van de commissie BBV"},null,1,{"$f":"CHECKL_10_03","v":"Aanbevelingen van de commissie BBV"},{"$f":"CHECKL_10_03","v":"Aanbevelingen van de commissie BBV"},{"$f":"CHECKL_10_03","v":"Aanbevelingen van de commissie BBV"}]
[null,{"$f":"'Aanbevelingen BBV'!C10","v":"Verordeningen"},null,null,{"$f":"IF(K94=0,\"ü\",\"û\")","v":"û"},"ü","ü",{"$f":"'Aanbevelingen BBV'!T10","v":99},null,1,{"$f":"'Aanbevelingen BBV'!W10","v":14},{"$f":"'Aanbevelingen BBV'!X10","v":0},{"$f":"'Aanbevelingen BBV'!Y10","v":0}]
[null,{"$f":"'Aanbevelingen BBV'!C42","v":"Kapitaalgoederen"},null,null,"û","ü","ü",{"$f":"'Aanbevelingen BBV'!T42","v":99},null,1,{"$f":"'Aanbevelingen BBV'!W42","v":1},{"$f":"'Aanbevelingen BBV'!X42","v":0},{"$f":"'Aanbevelingen BBV'!Y42","v":0}]
[null,{"$f":"'Aanbevelingen BBV'!C45","v":"Materiële vaste activa"},null,null,"û","ü","ü",{"$f":"'Aanbevelingen BBV'!T45","v":99},null,1,{"$f":"'Aanbevelingen BBV'!W45","v":2},{"$f":"'Aanbevelingen BBV'!X45","v":0},{"$f":"'Aanbevelingen BBV'!Y45","v":0}]
[null,{"$f":"'Aanbevelingen BBV'!C50","v":"Voorraden"},null,null,"û","ü","ü",{"$f":"'Aanbevelingen BBV'!T50","v":99},null,1,{"$f":"'Aanbevelingen BBV'!W50","v":5},{"$f":"'Aanbevelingen BBV'!X50","v":0},{"$f":"'Aanbevelingen BBV'!Y50","v":0}]
[null,{"$f":"'Aanbevelingen BBV'!C61","v":"Vaste Schulden"},null,null,"û","ü","ü",{"$f":"'Aanbevelingen BBV'!T61","v":99},null,1,{"$f":"'Aanbevelingen BBV'!W61","v":3},{"$f":"'Aanbevelingen BBV'!X61","v":0},{"$f":"'Aanbevelingen BBV'!Y61","v":0}]
[null,{"$f":"'Aanbevelingen BBV'!C68","v":"Voorzieningen"},null,null,"û","ü","ü",{"$f":"'Aanbevelingen BBV'!T68","v":99},null,1,{"$f":"'Aanbevelingen BBV'!W68","v":1},{"$f":"'Aanbevelingen BBV'!X68","v":0},{"$f":"'Aanbevelingen BBV'!Y68","v":0}]
[null,null,null,null,null,null,null,null,null,1]
[null,{"$f":"CHECKL_10_04","v":"Aanbevelingen van Deloitte"},null,null,{"$f":"IF(SUMIF($J102:$J109,\">0\",K102:K109)>0,\"û\",\"ü\")","v":"û"},{"$f":"IF(SUMIF($J102:$J109,\">0\",L102:L109)>0,\"û\",\"ü\")","v":"ü"},{"$f":"IF(SUMIF($J102:$J109,\">0\",M102:M109)>0,\"û\",\"ü\")","v":"ü"},{"$f":"CHECKL_10_04","v":"Aanbevelingen van Deloitte"},null,1,{"$f":"CHECKL_10_04","v":"Aanbevelingen van Deloitte"},{"$f":"CHECKL_10_04","v":"Aanbevelingen van Deloitte"},{"$f":"CHECKL_10_04","v":"Aanbevelingen van Deloitte"}]
[null,{"$f":"'Aanbevelingen Deloitte'!C10","v":"Het overzicht van baten en lasten in de jaarrekening"},null,null,{"$f":"IF(K102=0,\"ü\",\"û\")","v":"û"},{"$f":"IF(L102=0,\"ü\",\"û\")","v":"ü"},{"$f":"IF(M102=0,\"ü\",\"û\")","v":"ü"},{"$f":"'Aanbevelingen Deloitte'!T10","v":99},null,1,{"$f":"'Aanbevelingen Deloitte'!W10","v":5},{"$f":"'Aanbevelingen Deloitte'!X10","v":0},{"$f":"'Aanbevelingen Deloitte'!Y10","v":0}]
[null,{"$f":"'Aanbevelingen Deloitte'!C23","v":"Onderscheid IVA en MVA"},null,null,"û","ü","ü",{"$f":"'Aanbevelingen Deloitte'!T23","v":99},null,1,{"$f":"'Aanbevelingen Deloitte'!W23","v":1},{"$f":"'Aanbevelingen Deloitte'!X23","v":0},{"$f":"'Aanbevelingen Deloitte'!Y23","v":0}]
[null,{"$f":"'Aanbevelingen Deloitte'!C30","v":"Voorraden: inbrengwaarde"},null,null,"û","ü","ü",{"$f":"'Aanbevelingen Deloitte'!T30","v":99},null,1,{"$f":"'Aanbevelingen Deloitte'!W30","v":1},{"$f":"'Aanbevelingen Deloitte'!X30","v":0},{"$f":"'Aanbevelingen Deloitte'!Y30","v":0}]
[null,{"$f":"'Aanbevelingen Deloitte'!C33","v":"Liquide middelen"},null,null,"û","ü","ü",{"$f":"'Aanbevelingen Deloitte'!T33","v":99},null,1,{"$f":"'Aanbevelingen Deloitte'!W33","v":1},{"$f":"'Aanbevelingen Deloitte'!X33","v":0},{"$f":"'Aanbevelingen Deloitte'!Y33","v":0}]
[null,{"$f":"'Aanbevelingen Deloitte'!C36","v":"Wachtgelden"},null,null,"û","ü","ü",{"$f":"'Aanbevelingen Deloitte'!T36","v":99},null,1,{"$f":"'Aanbevelingen Deloitte'!W36","v":1},{"$f":"'Aanbevelingen Deloitte'!X36","v":0},{"$f":"'Aanbevelingen Deloitte'!Y36","v":0}]
[null,{"$f":"'Aanbevelingen Deloitte'!C39","v":"Subsidies"},null,null,"û","ü","ü",{"$f":"'Aanbevelingen Deloitte'!T39","v":99},null,1,{"$f":"'Aanbevelingen Deloitte'!W39","v":1},{"$f":"'Aanbevelingen Deloitte'!X39","v":0},{"$f":"'Aanbevelingen Deloitte'!Y39","v":0}]
[null,{"$f":"'Aanbevelingen Deloitte'!C42","v":"Niet uit de balans blijkende rechten"},null,null,"û","ü","ü",{"$f":"'Aanbevelingen Deloitte'!T42","v":99},null,1,{"$f":"'Aanbevelingen Deloitte'!W42","v":1},{"$f":"'Aanbevelingen Deloitte'!X42","v":0},{"$f":"'Aanbevelingen Deloitte'!Y42","v":0}]
[null,{"$f":"'Aanbevelingen Deloitte'!C45","v":"Niet uit de balans blijkende verplichtingen"},null,null,{"$f":"IF(K109=0,\"ü\",\"û\")","v":"û"},{"$f":"IF(L109=0,\"ü\",\"û\")","v":"ü"},{"$f":"IF(M109=0,\"ü\",\"û\")","v":"ü"},{"$f":"'Aanbevelingen Deloitte'!T45","v":99},null,1,{"$f":"'Aanbevelingen Deloitte'!W45","v":1},{"$f":"'Aanbevelingen Deloitte'!X45","v":0},{"$f":"'Aanbevelingen Deloitte'!Y45","v":0}]
[null,null,null,null,null,null,null,null,null,1]

{"sheet":"Algemeen","index":3,"n_rows":44,"n_cols":29,"rows_kept":44,"cut":false,"hidden":false,"merged":[[1,10,5,10],[1,11,5,11],[3,12,5,12]]}
["BBV",null,null,null,null,null,null,null,null,{"$f":"IF(ISBLANK(D1)=TRUE,\"\",OFFSET(C1,0,CATSRT))","v":""},null,null,null,"PD RANGE"]
[null,null,null,null,null,null,null,null,null,"",{"$f":"VOLDAAN","v":"Is aan de vereisten voor de Jaarverslag-geving voldaan?"},{"$f":"TOEL","v":"Commentaar bij \"Voldoet niet\""},null,null,null,null,null,"Kopje van",null,null,"tbv hiden"]
[null,null,"w = wettelijk vereiste       s = stellige uitspraak van cie Bbv",null,null,null,null,null,null,"",null,null,null,"Vraag","Toelichting","Review","hulprange","hfdstuk of",null,"Info","Som P en Q","info","info","info","info"]
[null,null,"-  = niet vereist                 a = aanbevolen door cie Bbv",null,null,null,null,null,null,"",null,null,{"$f":"COM_REV","v":"Afwerking / Commentaar reviewer"},"(on)beantwoord","opgenomen","opgenomen","Vold. niet","Vold niet","vraagregel?"]
[null,null,null,null,null,null,null,null,null,"",null,null,null,null,null,null,"info"]
[{"$f":"IF(Navigatiescherm!J10=0,TRUE,FALSE)","v":false},null,null,null,null,null,null,null,null,"",null,null,null,"info"]
[null,null,null,null,null,null,null,null,null,"",{"$f":"CHK_M","v":"Maak uw keuze"},null,null,null,null,null,{"$f":"IF(AND(K7=CHK_V,S7=1),1,IF(OR(Q6=1,Q6=2),IF(AND(C7=\"\",J7=\"\"),3,IF(AND(K7<>CHK_M,K7<>CHK_A,K7<>CHK_N,T7=\"\"),2,0)),0))","v":0},{"$f":"IF(OR(T7=4,V7>0),1,0)","v":1},{"$f":"IF(AND(J7<>\"-\",J7<>\"\",OR(Z7=1,Z7=\"\")),1,0)","v":0},4,{"$f":"Q7+R7","v":1},null,null,null,null,null,{"$f":"IF(AND(K7<>CHK_M,S7=1),1,IF(OR(AA6=1,AA6=2),IF(AND(C7=\"\",J7=\"\"),3,IF(AND(K7<>CHK_M,T7=\"\"),2,0)),0))","v":0},{"$f":"IF(OR(T7=4,AC7>0),1,0)+AA7","v":1}]
[null,null,"Algemeen",null,null,null,null,null,null,"",{"$f":"CHK_V","v":"Voldoet niet"},null,null,{"$f":"IF(AND(J8<>\"-\",J8<>\"br\"),IF(AND(K8=CHK_M,OR(Z8=1,Z8=\"\")),1,0),0)","v":0},{"$f":"IF(AND(J8<>\"-\",S8=1,K8=CHK_V,OR(Z8=1,Z8=\"\"),L8=\"\"),1,0)","v":0},{"$f":"IF(AND(J8<>\"-\",S8=1,K8=CHK_V,OR(Z8=1,Z8=\"\"),M8=\"\"),1,0)","v":0},{"$f":"IF(AND(K8=CHK_V,S8=1),1,IF(OR(Q7=1,Q7=2),IF(AND(C8=\"\",J8=\"\"),3,IF(AND(K8<>CHK_M,K8<>CHK_A,K8<>CHK_N,T8=\"\"),2,0)),0))","v":0},{"$f":"IF(OR(T8=4,V8>0),1,0)","v":1},{"$f":"IF(AND(J8<>\"-\",J8<>\"\",OR(Z8=1,Z8=\"\")),1,0)","v":0},4,1,null,null,null,null,null,{"$f":"IF(AND(K8<>CHK_M,S8=1),1,IF(OR(AA7=1,AA7=2),IF(AND(C8=\"\",J8=\"\"),3,IF(AND(K8<>CHK_M,T8=\"\"),2,0)),0))","v":0},{"$f":"IF(OR(T8=4,AC8>0),1,0)+AA8","v":1}]
[null,null,null,null,null,null,null,null,null,"",{"$f":"CHK_A","v":"Akkoord"},null,null,{"$f":"IF(AND(J9<>\"-\",J9<>\"br\"),IF(AND(K9=CHK_M,OR(Z9=1,Z9=\"\")),1,0),0)","v":0},{"$f":"IF(AND(J9<>\"-\",S9=1,K9=CHK_V,OR(Z9=1,Z9=\"\"),L9=\"\"),1,0)","v":0},{"$f":"IF(AND(J9<>\"-\",S9=1,K9=CHK_V,OR(Z9=1,Z9=\"\"),M9=\"\"),1,0)","v":0},{"$f":"IF(AND(K9=CHK_V,S9=1),1,IF(OR(Q8=1,Q8=2),IF(AND(C9=\"\",J9=\"\"),3,IF(AND(K9<>CHK_M,K9<>CHK_A,K9<>CHK_N,T9=\"\"),2,0)),0))","v":0},{"$f":"IF(OR(T9=4,V9>0),1,0)","v":0},{"$f":"IF(AND(J9<>\"-\",J9<>\"\",OR(Z9=1,Z9=\"\")),1,0)","v":0},5,0,null,null,null,null,null,0,0]
[null,null,"Algemene bepalingen",null,null,null,null,null,null,"",{"$f":"CHK_N","v":"Nvt"},null,null,{"$f":"IF(AND(J10<>\"-\",J10<>\"br\"),IF(AND(K10=CHK_M,OR(Z10=1,Z10=\"\")),1,0),0)","v":0},{"$f":"IF(AND(J10<>\"-\",S10=1,K10=CHK_V,OR(Z10=1,Z10=\"\"),L10=\"\"),1,0)","v":0},{"$f":"IF(AND(J10<>\"-\",S10=1,K10=CHK_V,OR(Z10=1,Z10=\"\"),M10=\"\"),1,0)","v":0},{"$f":"IF(AND(K10=CHK_V,S10=1),1,IF(OR(Q9=1,Q9=2),IF(AND(C10=\"\",J10=\"\"),3,IF(AND(K10<>CHK_M,K10<>CHK_A,K10<>CHK_N,T10=\"\"),2,0)),0))","v":0},{"$f":"IF(OR(T10=4,V10>0),1,0)","v":0},0,99,0,{"$f":"SUM($Q$11:$Q$22)","v":0},{"$f":"SUM($N$11:$N$22)","v":6},{"$f":"SUM($O$11:$O$22)","v":0},{"$f":"SUM($P$11:$P$22)","v":0},null,0,0,{"$f":"SUM($AA$11:$AA$22)","v":0}]
["art. 2.1\nart. 2.2",null,"Wordt het BBV-stelsel van baten en lasten gehanteerd? Dit betekent dat de baten en lasten die betrekking hebben op het begrotingsjaar in de jaarstukken opgenomen worden, onverschillig of zij tot inkomsten of uitgaven in dat jaar hebben geleid.","w",null,null,null,null,null,"w","Maak uw keuze",null,null,1,0,0,0,0,1,null,0,null,null,null,null,null,{"$f":"IF(AND(K11<>CHK_M,S11=1),1,IF(OR(AA10=1,AA10=2),IF(AND(C11=\"\",J11=\"\"),3,IF(AND(K11<>CHK_M,T11=\"\"),2,0)),0))","v":0},{"$f":"IF(OR(T11=4,AC11>0),1,0)+AA11","v":0}]
[null,null,null,null,null,null,null,null,null,"","XEmpty",null,null,{"$f":"IF(AND(J12<>\"-\",J12<>\"br\"),IF(AND(K12=CHK_M,OR(Z12=1,Z12=\"\")),1,0),0)","v":0},{"$f":"IF(AND(J12<>\"-\",S12=1,K12=CHK_V,OR(Z12=1,Z12=\"\"),L12=\"\"),1,0)","v":0},{"$f":"IF(AND(J12<>\"-\",S12=1,K12=CHK_V,OR(Z12=1,Z12=\"\"),M12=\"\"),1,0)","v":0},{"$f":"IF(AND(K12=CHK_V,S12=1),1,IF(OR(Q11=1,Q11=2),IF(AND(C12=\"\",J12=\"\"),3,IF(AND(K12<>CHK_M,K12<>CHK_A,K12<>CHK_N,T12=\"\"),2,0)),0))","v":0},{"$f":"IF(OR(T12=4,V12>0),1,0)","v":0},{"$f":"IF(AND(J12<>\"-\",J12<>\"\",OR(Z12=1,Z12=\"\")),1,0)","v":0},null,0,null,null,null,null,null,0,0]
["art. 4.1",null,"Is de indeling van de begroting en jaarstukken identiek?","w",null,null,null,null,null,"w","Maak uw keuze",null,null,1,0,0,0,0,1,null,0,null,null,null,null,null,0,0]
[null,null,null,null,null,null,null,null,null,"","XEmpty",null,null,0,0,0,0,0,0,null,0,null,null,null,null,null,0,0]
["art. 4.2",null,"Indien de indeling van de jaarstukken afwijkt van die van het voorafgaande begrotingsjaar worden in de toelichting de verschillen aangegeven en worden de redenen die tot de afwijking hebben geleid uiteengezet?","w",null,null,null,null,null,"w","Maak uw keuze",null,null,1,0,0,0,0,1,null,0,null,null,null,null,null,0,0]
[null,null,null,null,null,null,null,null,null,"","XEmpty",null,null,0,0,0,0,0,0,null,0,null,null,null,null,null,0,0]
["art. 5",null,"Verbonden partijen worden niet geconsolideerd in de jaarstukken. Is hieraan voldaan?","w",null,null,null,null,null,"w","Maak uw keuze",null,null,1,0,0,0,0,1,null,0,null,null,null,null,null,0,0]
[null,null,null,null,null,null,null,null,null,"","XEmpty",null,null,0,0,0,0,0,0,null,0,null,null,null,null,null,0,0]
[null,null,"Bestuurscommissies oefenen bevoegdheden uit die door raad, college of burgemeester zijn overgedragen. Bestuurscommissies dienen daarom integraal te worden geconsolideerd in de jaarrekening van de gemeente. Is hieraan voldaan?","s",null,null,null,null,null,"s","Maak uw keuze",null,null,1,0,0,0,0,1,null,0,null,null,null,null,null,0,0]
[null,null,null,null,null,null,null,null,null,"","XEmpty",null,null,0,0,0,0,0,0,null,0,null,null,null,null,null,0,0]
["art. 76.1",null,"Worden activa, die op 31 december 1994 tegen actuele waarde zijn gewaardeerd, volgens de op dat moment aanwezige boekwaarde voor de rest van de periode afgeschreven?","w",null,null,null,null,null,"w","Maak uw keuze",null,null,1,0,0,0,0,1,null,0,null,null,null,null,null,0,0]
[null,null,null,null,null,null,null,null,null,"","XEmpty",null,null,0,0,0,0,0,0,null,0,null,null,null,null,null,0,0]
[null,null,"Erfpacht",null,null,null,null,null,null,"","XEmpty",null,null,0,0,0,0,0,0,99,0,{"$f":"SUM($Q$24:$Q$25)","v":0},{"$f":"SUM($N$24:$N$25)","v":1},{"$f":"SUM($O$24:$O$25)","v":0},{"$f":"SUM($P$24:$P$25)","v":0},null,0,0,{"$f":"SUM($AA$24:$AA$25)","v":0}]
["Notitie Erfpacht in het BBV",null,"Bij het aanpassen van de waarderingsgrondslag voor de verwerking van afkoopsommen is sprake van een stelselwijziging. Een stelselwijziging kan niet vanwege louter financiële redenen plaatsvinden, maar alleen op basis van gegronde redenen. De notitie stelsel- en schattingswijzigingen schrijft de boekhoudkundige verwerking van een stelselwijziging voor (de verwerking moet altijd prospectief plaatsvinden).","s",null,null,null,null,null,"s","Maak uw keuze",null,null,1,0,0,0,0,1,null,0,null,null,null,null,null,0,0]
[null,null,null,null,null,null,null,null,null,"","XEmpty",null,null,0,0,0,0,0,0,null,0,null,null,null,null,null,0,0]
[null,null,"Stelsel-/schattingswijzigingen ",null,null,null,null,null,null,"","XEmpty",null,null,0,0,0,0,0,0,99,0,{"$f":"SUM($Q$27:$Q$32)","v":0},{"$f":"SUM($N$27:$N$32)","v":3},{"$f":"SUM($O$27:$O$32)","v":0},{"$f":"SUM($P$27:$P$32)","v":0},null,{"$f":"IF(AND(K26<>CHK_M,S26=1),1,IF(OR(AA25=1,AA25=2),IF(AND(C26=\"\",J26=\"\"),3,IF(AND(K26<>CHK_M,T26=\"\"),2,0)),0))","v":0},{"$f":"IF(OR(T26=4,AC26>0),1,0)+AA26","v":0},{"$f":"SUM($AA$27:$AA$32)","v":0}]
["notitie - Het BBV en stelsel-/schattingswijzigingen ",null,"Is de stelselwijziging en/of schattingswijziging door de gemeenteraad in het boekjaar goedgekeurd (verordening)? Daarbij mag slechts om gegronde redenen worden afgeweken van de grondslagen die in het vorige begrotingsjaar zijn toegepast.","s",null,null,null,null,null,"s","Maak uw keuze",null,null,1,0,0,0,0,1,null,0,null,null,null,null,null,0,0]
[null,null,null,null,null,null,null,null,null,"","XEmpty",null,null,0,0,0,0,0,0,null,0,null,null,null,null,null,0,0]
["notitie - Het BBV en stelsel-/schattingswijzigingen ",null,"Een stelselwijziging betreft een wijziging van de ‘vrij te kiezen’ waarderingsgrondslagen. Bij een stelselwijziging worden bestaande (rest)boekwaarden niet herrekend, maar over de langere, dan wel kortere, dan wel gelijkblijvende verwachte gebruiksperiode afgeschreven.","s",null,null,null,null,null,"s","Maak uw keuze",null,null,1,0,0,0,0,1,null,0,null,null,null,null,null,0,0]
[null,null,null,null,null,null,null,null,null,"","XEmpty",null,null,0,0,0,0,0,0,null,0,null,null,null,null,null,0,0]
["notitie - Het BBV en stelsel-/schattingswijzigingen ",null,"Een schattingswijziging betreft een wijziging van een verwachte toekomstige gebruiksduur c.q. -intensiteit dan wel de “naar verwachting” duurzaam lagere gebruikswaarde. De bestaande (rest)boekwaarde wordt niet herrekend, maar over de langere, kortere dan wel gelijkblijvende verwachte toekomstige gebruiksduur afgeschreven.","s",null,null,null,null,null,"s","Maak uw keuze",null,null,1,0,0,0,0,1,null,0,null,null,null,null,null,0,0]
[null,null,null,null,null,null,null,null,null,"","XEmpty",null,null,0,0,0,0,0,0,null,0,null,null,null,null,null,0,0]
[null,null,"De jaarrekening",null,null,null,null,null,null,"","XEmpty",null,null,0,0,0,0,0,0,99,0,{"$f":"SUM($Q$34:$Q$37)","v":0},{"$f":"SUM($N$34:$N$37)","v":2},{"$f":"SUM($O$34:$O$37)","v":0},{"$f":"SUM($P$34:$P$37)","v":0},null,0,0,{"$f":"SUM($AA$34:$AA$37)","v":0}]
["art. 24.3",null,"Bestaat de jaarrekening uit: ",null,null,null,null,null,null,"","XEmpty",null,null,0,0,0,0,0,0,null,0,null,null,null,null,null,0,0]
[null,null,"a. het overzicht van baten en lasten in de jaarrekening met toelichting?","w",null,null,null,null,null,"w","Maak uw keuze",null,null,1,0,0,0,0,1,null,0,null,null,null,null,null,0,0]
[null,null,"b. de balans met toelichting?","w",null,null,null,null,null,"w","Maak uw keuze",null,null,1,0,0,0,0,1,null,0,null,null,null,null,null,0,0]
[null,null,null,null,null,null,null,null,null,"","XEmpty",null,null,0,0,0,0,0,0,null,0,null,null,null,null,null,0,0]
[null,null,"Verwijzingen",null,null,null,null,null,null,"","XEmpty",null,null,0,0,0,0,0,0,99,0,{"$f":"SUM($Q$39:$Q$44)","v":0},{"$f":"SUM($N$39:$N$44)","v":1},{"$f":"SUM($O$39:$O$44)","v":0},{"$f":"SUM($P$39:$P$44)","v":0},null,0,0,{"$f":"SUM($AA$39:$AA$44)","v":0}]
[null,null,"Strikt formeel behoren de analyse van de afwijkingen tussen de begroting na wijziging en het overzicht van baten en lasten in de jaarrekening tot de jaarrekening en niet tot het jaarverslag. Indien de jaarstukken bestaande uit het jaarverslag en de jaarrekening gezamenlijk in één boekwerk wordt aangeboden, is het toegestaan te volstaan met een verwijzing in het overzicht van baten en lasten in de jaarrekening. Bij deze verwijzing moet dan worden aangegeven dat de analyse is opgenomen in de programmaverantwoording en dat de analyse onderdeel uitmaakt van de jaarstukken.","a",null,null,null,null,null,"a","Maak uw keuze",null,null,1,0,0,0,0,1,null,0,null,null,null,null,null,0,0]
[null,null,"De commissie BBV beveelt aan:",null,null,null,null,null,null,"","XEmpty",null,null,0,0,0,0,0,0,null,0,null,null,null,null,null,0,0]
[null,null,"- om bij het verwijzen duidelijk in het overzicht van baten en lasten in de jaarrekening aan te geven waar in de programmaverantwoording de analyse is opgenomen en ",null,null,null,null,null,null,"","XEmpty",null,null,0,0,0,0,0,0,null,0,null,null,null,null,null,0,0]
[null,null,"- dat de analyse duidelijk identificeerbaar moet zijn. ",null,null,null,null,null,null,"","XEmpty",null,null,0,0,0,0,0,0,null,0,null,null,null,null,null,0,0]
[null,null,null,null,null,null,null,null,null,"","XEmpty",null,null,0,0,0,0,0,0,null,0,null,null,null,null,null,0,0]
[null,null,null,null,null,null,null,null,null,"","XEmpty",null,null,0,0,0,{"$f":"IF(AND(K44=CHK_V,S44=1),1,IF(OR(Q42=1,Q42=2),IF(AND(C44=\"\",J44=\"\"),3,IF(AND(K44<>CHK_M,K44<>CHK_A,K44<>CHK_N,T44=\"\"),2,0)),0))","v":0},0,{"$f":"IF(AND(J44<>\"-\",J44<>\"\",OR(Z44=1,Z44=\"\")),1,0)","v":0},null,0,null,null,null,null,null,{"$f":"IF(AND(K44<>CHK_M,S44=1),1,IF(OR(AA42=1,AA42=2),IF(AND(C44=\"\",J44=\"\"),3,IF(AND(K44<>CHK_M,T44=\"\"),2,0)),0))","v":0},0]

{"sheet":"Balans","index":4,"n_rows":36,"n_cols":29,"rows_kept":36,"cut":false,"hidden":false,"merged":[[3,12,5,12],[1,10,5,10],[1,11,5,11]]}
["BBV",null,null,null,null,null,null,null,null,{"$f":"IF(ISBLANK(D1)=TRUE,\"\",OFFSET(C1,0,CATSRT))","v":""},null,null,null,"PD RANGE"]
[null,null,null,null,null,null,null,null,null,"",{"$f":"VOLDAAN","v":"Is aan de vereisten voor de Jaarverslag-geving voldaan?"},{"$f":"TOEL","v":"Commentaar bij \"Voldoet niet\""},null,null,null,null,null,"Kopje van",null,null,"tbv hiden"]
[null,null,"w = wettelijk vereiste       s = stellige uitspraak van cie Bbv",null,null,null,null,null,null,"",null,null,null,"Vraag","Toelichting","Review","hulprange","hfdstuk of",null,"Info","Som P en Q","info","info","info","info"]
[null,null,"-  = niet vereist                 a = aanbevolen door cie Bbv",null,null,null,null,null,null,"",null,null,{"$f":"COM_REV","v":"Afwerking / Commentaar reviewer"},"(on)beantwoord","opgenomen","opgenomen","Vold. niet","Vold niet","vraagregel?"]
[null,null,null,null,null,null,null,null,null,"",null,null,null,null,null,null,"info"]
[{"$f":"IF(Navigatiescherm!J17=0,TRUE,FALSE)","v":false},null,null,null,null,null,null,null,null,"",null,null,null,"info"]
[null,null,null,null,null,null,null,null,null,"",{"$f":"CHK_M","v":"Maak uw keuze"},null,null,null,null,null,{"$f":"IF(AND(K7=CHK_V,S7=1),1,IF(OR(Q6=1,Q6=2),IF(AND(C7=\"\",J7=\"\"),3,IF(AND(K7<>CHK_M,K7<>CHK_A,K7<>CHK_N,T7=\"\"),2,0)),0))","v":0},{"$f":"IF(OR(T7=4,V7>0),1,0)","v":1},{"$f":"IF(AND(J7<>\"-\",J7<>\"\",OR(Z7=1,Z7=\"\")),1,0)","v":0},4,{"$f":"Q7+R7","v":1},null,null,null,null,null,{"$f":"IF(AND(K7<>CHK_M,S7=1),1,IF(OR(AA6=1,AA6=2),IF(AND(C7=\"\",J7=\"\"),3,IF(AND(K7<>CHK_M,T7=\"\"),2,0)),0))","v":0},{"$f":"IF(OR(T7=4,AC7>0),1,0)+AA7","v":1}]
[null,null,"Balans",null,null,null,null,null,null,"",{"$f":"CHK_V","v":"Voldoet niet"},null,null,{"$f":"IF(AND(J8<>\"-\",J8<>\"br\"),IF(AND(K8=CHK_M,OR(Z8=1,Z8=\"\")),1,0),0)","v":0},{"$f":"IF(AND(J8<>\"-\",S8=1,K8=CHK_V,OR(Z8=1,Z8=\"\"),L8=\"\"),1,0)","v":0},{"$f":"IF(AND(J8<>\"-\",S8=1,K8=CHK_V,OR(Z8=1,Z8=\"\"),M8=\"\"),1,0)","v":0},0,1,0,4,1,null,null,null,null,null,0,1]
[null,null,null,null,null,null,null,null,null,"",{"$f":"CHK_A","v":"Akkoord"},null,null,{"$f":"IF(AND(J9<>\"-\",J9<>\"br\"),IF(AND(K9=CHK_M,OR(Z9=1,Z9=\"\")),1,0),0)","v":0},{"$f":"IF(AND(J9<>\"-\",S9=1,K9=CHK_V,OR(Z9=1,Z9=\"\"),L9=\"\"),1,0)","v":0},{"$f":"IF(AND(J9<>\"-\",S9=1,K9=CHK_V,OR(Z9=1,Z9=\"\"),M9=\"\"),1,0)","v":0},{"$f":"IF(AND(K9=CHK_V,S9=1),1,IF(OR(Q8=1,Q8=2),IF(AND(C9=\"\",J9=\"\"),3,IF(AND(K9<>CHK_M,K9<>CHK_A,K9<>CHK_N,T9=\"\"),2,0)),0))","v":0},{"$f":"IF(OR(T9=4,V9>0),1,0)","v":0},{"$f":"IF(AND(J9<>\"-\",J9<>\"\",OR(Z9=1,Z9=\"\")),1,0)","v":0},5,0,null,null,null,null,null,{"$f":"IF(AND(K9<>CHK_M,S9=1),1,IF(OR(AA8=1,AA8=2),IF(AND(C9=\"\",J9=\"\"),3,IF(AND(K9<>CHK_M,T9=\"\"),2,0)),0))","v":0},{"$f":"IF(OR(T9=4,AC9>0),1,0)+AA9","v":0}]
[null,null,"De balans en de toelichting",null,null,null,null,null,null,"",{"$f":"CHK_N","v":"Nvt"},null,null,0,0,0,0,0,0,99,0,{"$f":"SUM($Q$11:$Q$18)","v":0},{"$f":"SUM($N$11:$N$18)","v":4},{"$f":"SUM($O$11:$O$18)","v":0},{"$f":"SUM($P$11:$P$18)","v":0},null,0,0,{"$f":"SUM($AA$11:$AA$18)","v":0}]
["art. 30",null,"Zijn naast de cijfers per balansdatum tevens de cijfers van de balans van het vorige begrotingsjaar opgenomen?","w",null,null,null,null,null,"w","Maak uw keuze",null,null,1,0,0,0,0,1,null,{"$f":"Q11+R11","v":0},{"$f":"SUM($Q$11:$Q$18)","v":0},null,null,null,null,{"$f":"IF(AND(K11<>CHK_M,S11=1),1,IF(OR(AA10=1,AA10=2),IF(AND(C11=\"\",J11=\"\"),3,IF(AND(K11<>CHK_M,T11=\"\"),2,0)),0))","v":0},{"$f":"IF(OR(T11=4,AC11>0),1,0)+AA11","v":0}]
[null,null,null,null,null,null,null,null,null,"","XEmpty",null,null,0,0,0,0,0,0,null,0,0,null,null,null,null,0,0]
["art. 31",null,"Zijn op de balans de activa onderscheiden in vaste en vlottende activa, al naar gelang zij zijn bestemd om de uitoefening van de werkzaamheid van de gemeente al dan niet duurzaam te dienen?","w",null,null,null,null,null,"w","Maak uw keuze",null,null,1,0,0,0,0,1,null,0,0,null,null,null,null,0,0]
[null,null,null,null,null,null,null,null,null,"","XEmpty",null,null,0,0,0,0,0,0,null,0,0,null,null,null,null,0,0]
["art. 32",null,"Worden de passiva op de balans onderscheiden in vaste en vlottende passiva?","w",null,null,null,null,null,"w","Maak uw keuze",null,null,1,0,0,0,0,1,null,0,0,null,null,null,null,0,0]
[null,null,null,null,null,null,null,null,null,"","XEmpty",null,null,0,0,0,0,0,0,null,0,0,null,null,null,null,0,0]
["indeling van de balans",null,"Voldoet de indeling van de balans aan het balansmodel opgenomen in het Raamwerk BBV: het stelsel van baten en lasten, Bijlage B verplichte indeling van de balans?","w",null,null,null,null,null,"w","Maak uw keuze",null,null,1,0,0,0,0,1,null,0,0,null,null,null,null,0,0]
[null,null,null,null,null,null,null,null,null,"","XEmpty",null,null,0,0,0,0,0,0,null,0,0,null,null,null,null,0,0]
[null,null,"Vaste activa",null,null,null,null,null,null,"","XEmpty",null,null,0,0,0,0,0,0,99,0,0,{"$f":"SUM($N$20:$N$21)","v":1},{"$f":"SUM($O$20:$O$21)","v":0},{"$f":"SUM($P$20:$P$21)","v":0},null,0,0,{"$f":"SUM($AA$20:$AA$21)","v":0}]
["art. 33",null,"Zijn de vaste activa in de balans onderscheiden in immateriële vaste activa, materiële vaste activa en financiële vaste activa en verder gespecificeerd conform Bijlage B van het Raamwerk BBV?","w",null,null,null,null,null,"w","Maak uw keuze",null,null,1,0,0,0,0,1,null,0,0,null,null,null,null,0,0]
[null,null,null,null,null,null,null,null,null,"","XEmpty",null,null,0,0,0,0,0,0,null,0,0,null,null,null,null,0,0]
[null,null,"Vlottende activa",null,null,null,null,null,null,"","XEmpty",null,null,0,0,0,0,0,0,99,0,0,{"$f":"SUM($N$23:$N$28)","v":4},{"$f":"SUM($O$23:$O$28)","v":0},{"$f":"SUM($P$23:$P$28)","v":0},null,0,0,{"$f":"SUM($AA$23:$AA$28)","v":0}]
["art. 37",null,"Zijn onder de vlottende activa afzonderlijk opgenomen en verder gespecificeerd conform Bijlage B van het Raamwerk BBV:",null,null,null,null,null,null,"","XEmpty",null,null,0,0,0,0,0,0,null,0,0,null,null,null,null,0,0]
[null,null,"a. de voorraden,","w",null,null,null,null,null,"w","Maak uw keuze",null,null,1,0,0,0,0,1,null,0,0,null,null,null,null,0,0]
[null,null,"b. de uitzettingen met een rentetypische looptijd korter dan één jaar,","w",null,null,null,null,null,"w","Maak uw keuze",null,null,1,0,0,0,0,1,null,0,0,null,null,null,null,0,0]
[null,null,"c. de liquide middelen, en","w",null,null,null,null,null,"w","Maak uw keuze",null,null,1,0,0,0,0,1,null,0,0,null,null,null,null,0,0]
[null,null,"d. de overlopende activa?","w",null,null,null,null,null,"w","Maak uw keuze",null,null,1,0,0,0,0,1,null,0,0,null,null,null,null,0,0]
[null,null,null,null,null,null,null,null,null,"","XEmpty",null,null,0,0,0,0,0,0,null,0,0,null,null,null,null,0,0]
[null,null,"Vaste passiva",null,null,null,null,null,null,"","XEmpty",null,null,0,0,0,0,0,0,99,0,0,{"$f":"SUM($N$30:$N$36)","v":4},{"$f":"SUM($O$30:$O$36)","v":0},{"$f":"SUM($P$30:$P$36)","v":0},null,0,0,{"$f":"SUM($AA$30:$AA$36)","v":0}]
["art. 41",null,"Zijn onder de vaste passiva afzonderlijk opgenomen en verder gespecificeerd conform Bijlage B van het Raamwerk BBV:",null,null,null,null,null,null,"","XEmpty",null,null,0,0,0,0,0,0,null,0,0,null,null,null,null,0,0]
[null,null,"a. het eigen vermogen,","w",null,null,null,null,null,"w","Maak uw keuze",null,null,1,0,0,0,0,1,null,0,0,null,null,null,null,0,0]
[null,null,"b. de voorzieningen, en","w",null,null,null,null,null,"w","Maak uw keuze",null,null,1,0,0,0,0,1,null,0,0,null,null,null,null,0,0]
[null,null,"c. de vaste schulden met een rentetypische looptijd van één jaar of langer?","w",null,null,null,null,null,"w","Maak uw keuze",null,null,1,0,0,0,0,1,null,0,0,null,null,null,null,0,0]
[null,null,null,null,null,null,null,null,null,"","XEmpty",null,null,0,0,0,0,0,0,null,0,0,null,null,null,null,0,0]
["art. 63.7",null,"Worden vaste passiva gewaardeerd tegen de nominale waarde? (uitgezonderd zijn voorzieningen die tegen contante waarde mogen worden gewaardeerd)","w",null,null,null,null,null,"w","Maak uw keuze",null,null,1,0,0,0,0,1,null,0,0,null,null,null,null,0,0]
[null,null,null,null,null,null,null,null,null,"","XEmpty",null,null,0,0,0,0,0,0,null,0,0,null,null,null,null,0,0]

{"sheet":"(Im)materiële vaste activa","index":5,"n_rows":161,"n_cols":29,"rows_kept":161,"cut":false,"hidden":false,"merged":[[3,12,5,12],[1,10,5,10],[1,11,5,11]]}
["BBV",null,null,null,null,null,null,null,null,{"$f":"IF(ISBLANK(D1)=TRUE,\"\",OFFSET(C1,,CATSRT))","v":""},null,null,null,"PD RANGE"]
[null,null,null,null,null,null,null,null,null,{"$f":"IF(ISBLANK(D2)=TRUE,\"\",OFFSET(C2,,CATSRT))","v":""},{"$f":"VOLDAAN","v":"Is aan de vereisten voor de Jaarverslag-geving voldaan?"},{"$f":"TOEL","v":"Commentaar bij \"Voldoet niet\""},null,null,null,null,null,"Kopje van",null,null,"tbv hiden"]
[null,null,"w = wettelijk vereiste       s = stellige uitspraak van cie Bbv",null,null,null,null,null,null,{"$f":"IF(ISBLANK(D3)=TRUE,\"\",OFFSET(C3,,CATSRT))","v":""},null,null,null,"Vraag","Toelichting","Review","hulprange","hfdstuk of",null,"Info","Som P en Q","info","info","info","info"]
[null,null,"-  = niet vereist                 a = aanbevolen door cie Bbv",null,null,null,null,null,null,{"$f":"IF(ISBLANK(D4)=TRUE,\"\",OFFSET(C4,,CATSRT))","v":""},null,null,{"$f":"COM_REV","v":"Afwerking / Commentaar reviewer"},"(on)beantwoord","opgenomen","opgenomen","Vold. niet","Vold niet","vraagregel?"]
[null,null,null,null,null,null,null,null,null,{"$f":"IF(ISBLANK(D5)=TRUE,\"\",OFFSET(C5,,CATSRT))","v":""},null,null,null,null,null,null,"info"]
[{"$f":"IF(Navigatiescherm!J23=0,TRUE,FALSE)","v":false},null,null,null,null,null,null,null,null,{"$f":"IF(ISBLANK(D6)=TRUE,\"\",OFFSET(C6,0,CATSRT))","v":""},null,null,null,"info"]
[null,null,null,null,null,null,null,null,null,"",{"$f":"CHK_M","v":"Maak uw keuze"},null,null,null,null,null,{"$f":"IF(AND(K7=CHK_V,S7=1),1,IF(OR(Q6=1,Q6=2),IF(AND(C7=\"\",J7=\"\"),3,IF(AND(K7<>CHK_M,K7<>CHK_A,K7<>CHK_N,T7=\"\"),2,0)),0))","v":0},{"$f":"IF(OR(T7=4,V7>0),1,0)","v":1},{"$f":"IF(AND(J7<>\"-\",J7<>\"\",OR(Z7=1,Z7=\"\")),1,0)","v":0},4,{"$f":"Q7+R7","v":1},null,null,null,null,null,{"$f":"IF(AND(K7<>CHK_M,S7=1),1,IF(OR(AA6=1,AA6=2),IF(AND(C7=\"\",J7=\"\"),3,IF(AND(K7<>CHK_M,T7=\"\"),2,0)),0))","v":0},{"$f":"IF(OR(T7=4,AC7>0),1,0)+AA7","v":1}]
[null,null,"Immateriële en materiële vaste activa",null,null,null,null,null,null,"",{"$f":"CHK_V","v":"Voldoet niet"},null,null,{"$f":"IF(AND(J8<>\"-\",J8<>\"br\"),IF(AND(K8=CHK_M,OR(Z8=1,Z8=\"\")),1,0),0)","v":0},{"$f":"IF(AND(J8<>\"-\",S8=1,K8=CHK_V,OR(Z8=1,Z8=\"\"),L8=\"\"),1,0)","v":0},{"$f":"IF(AND(J8<>\"-\",S8=1,K8=CHK_V,OR(Z8=1,Z8=\"\"),M8=\"\"),1,0)","v":0},0,1,0,4,1,null,null,null,null,null,0,1]
[null,null,null,null,null,null,null,null,null,"",{"$f":"CHK_A","v":"Akkoord"},null,null,{"$f":"IF(AND(J9<>\"-\",J9<>\"br\"),IF(AND(K9=CHK_M,OR(Z9=1,Z9=\"\")),1,0),0)","v":0},{"$f":"IF(AND(J9<>\"-\",S9=1,K9=CHK_V,OR(Z9=1,Z9=\"\"),L9=\"\"),1,0)","v":0},{"$f":"IF(AND(J9<>\"-\",S9=1,K9=CHK_V,OR(Z9=1,Z9=\"\"),M9=\"\"),1,0)","v":0},{"$f":"IF(AND(K9=CHK_V,S9=1),1,IF(OR(Q8=1,Q8=2),IF(AND(C9=\"\",J9=\"\"),3,IF(AND(K9<>CHK_M,K9<>CHK_A,K9<>CHK_N,T9=\"\"),2,0)),0))","v":0},{"$f":"IF(OR(T9=4,V9>0),1,0)","v":0},{"$f":"IF(AND(J9<>\"-\",J9<>\"\",OR(Z9=1,Z9=\"\")),1,0)","v":0},5,0,null,null,null,null,null,{"$f":"IF(AND(K9<>CHK_M,S9=1),1,IF(OR(AA8=1,AA8=2),IF(AND(C9=\"\",J9=\"\"),3,IF(AND(K9<>CHK_M,T9=\"\"),2,0)),0))","v":0},{"$f":"IF(OR(T9=4,AC9>0),1,0)+AA9","v":0}]
[null,null,"Algemene bepalingen",null,null,null,null,null,null,"",{"$f":"CHK_N","v":"Nvt"},null,null,{"$f":"IF(AND(J10<>\"-\",J10<>\"br\"),IF(AND(K10=CHK_M,OR(Z10=1,Z10=\"\")),1,0),0)","v":0},{"$f":"IF(AND(J10<>\"-\",S10=1,K10=CHK_V,OR(Z10=1,Z10=\"\"),L10=\"\"),1,0)","v":0},{"$f":"IF(AND(J10<>\"-\",S10=1,K10=CHK_V,OR(Z10=1,Z10=\"\"),M10=\"\"),1,0)","v":0},{"$f":"IF(AND(K10=CHK_V,S10=1),1,IF(OR(Q9=1,Q9=2),IF(AND(C10=\"\",J10=\"\"),3,IF(AND(K10<>CHK_M,K10<>CHK_A,K10<>CHK_N,T10=\"\"),2,0)),0))","v":0},{"$f":"IF(OR(T10=4,V10>0),1,0)","v":0},{"$f":"IF(AND(J10<>\"-\",J10<>\"\",OR(Z10=1,Z10=\"\")),1,0)","v":0},99,0,{"$f":"SUM($Q$11:$Q$12)","v":0},{"$f":"SUM($N$11:$N$12)","v":1},{"$f":"SUM($O$11:$O$12)","v":0},{"$f":"SUM($P$11:$P$12)","v":0},null,{"$f":"IF(AND(K10<>CHK_M,S10=1),1,IF(OR(AA9=1,AA9=2),IF(AND(C10=\"\",J10=\"\"),3,IF(AND(K10<>CHK_M,T10=\"\"),2,0)),0))","v":0},{"$f":"IF(OR(T10=4,AC10>0),1,0)+AA10","v":0},{"$f":"SUM($AA$11:$AA$12)","v":0}]
["art. 76.2",null,"Worden alle activa waarop voor 31 december 2003 reserves in mindering zijn gebracht op de waarde volgens de op 31 december 2003 aanwezige boekwaarde voor de rest van de periode afgeschreven?","w",null,null,null,null,null,"w","Maak uw keuze",null,null,1,0,0,0,0,1,null,0,null,null,null,null,null,{"$f":"IF(AND(K11<>CHK_M,S11=1),1,IF(OR(AA10=1,AA10=2),IF(AND(C11=\"\",J11=\"\"),3,IF(AND(K11<>CHK_M,T11=\"\"),2,0)),0))","v":0},{"$f":"IF(OR(T11=4,AC11>0),1,0)+AA11","v":0}]
[null,null,null,null,null,null,null,null,null,"","XEmpty",null,null,0,0,0,0,0,0,null,0,null,null,null,null,null,0,0]
[null,null,"Immateriële vaste activa",null,null,null,null,null,null,"","XEmpty",null,null,0,0,0,0,0,0,99,0,{"$f":"SUM($Q$14:$Q$50)","v":0},{"$f":"SUM($N$14:$N$50)","v":16},{"$f":"SUM($O$14:$O$50)","v":0},{"$f":"SUM($P$14:$P$50)","v":0},{"$f":"IF(ANSW_04_01_01=\"NEE\",0,1)","v":1},0,0,{"$f":"SUM($AA$14:$AA$50)","v":0}]
["art. 34",null,"Zijn in de balans de immateriële vaste activa onderscheiden in:",null,null,null,null,null,null,"","XEmpty",null,null,0,0,0,0,0,0,null,0,null,null,null,null,{"$f":"Z13","v":1},0,0,{"$f":"SUM($AA$14:$AA$50)","v":0}]
[null,null,"a. kosten verbonden aan het sluiten van geldleningen en het saldo van agio en disagio?","w",null,null,null,null,null,"w","Maak uw keuze",null,null,1,0,0,0,0,1,null,0,null,null,null,null,{"$f":"Z14","v":1},0,0]
[null,null,null,null,null,null,null,null,null,"","XEmpty",null,null,0,0,0,0,0,0,null,0,null,null,null,null,1,0,0,{"$f":"SUM($AA$17:$AA$51)","v":0}]
[null,null,"b. kosten van onderzoek en ontwikkeling voor een bepaald actief?","w",null,null,null,null,null,"w","Maak uw keuze",null,null,1,0,0,0,0,1,null,0,null,null,null,null,1,0,0]
[null,null,null,null,null,null,null,null,null,"","XEmpty",null,null,0,0,0,0,0,0,null,0,null,null,null,null,1,0,0]
[null,null,"c bijdragen aan activa in eigendom van derden?","w",null,null,null,null,null,"w","Maak uw keuze",null,null,1,0,0,0,0,1,null,0,null,null,null,null,{"$f":"Z18","v":1},0,0]
[null,null,null,null,null,null,null,null,null,"","XEmpty",null,null,0,0,0,0,0,0,null,0,null,null,null,null,1,0,0]
[null,null,null,null,null,null,null,null,null,"","XEmpty",null,null,0,0,0,0,0,0,null,0,null,null,null,null,1,0,0]
["art. 60",null,"Voldoen de geactiveerde kosten van onderzoek en ontwikkeling voor een bepaald actief aan alle navolgende criteria:",null,null,null,null,null,null,"","XEmpty",null,null,0,0,0,0,0,0,null,0,null,null,null,null,1,0,0]
[null,null,"a. het voornemen bestaat het actief te gebruiken of te verkopen?","w",null,null,null,null,null,"w","Maak uw keuze",null,null,1,0,0,0,0,1,null,0,null,null,null,null,1,0,0]
[null,null,null,null,null,null,null,null,null,"","XEmpty",null,null,0,0,0,0,0,0,null,0,null,null,null,null,1,0,0]
[null,null,"b. de technische uitvoerbaarheid om het actief te voltooien staat vast?","w",null,null,null,null,null,"w","Maak uw keuze",null,null,1,0,0,0,0,1,null,0,null,null,null,null,1,0,0]
[null,null,null,null,null,null,null,null,null,"","XEmpty",null,null,0,0,0,0,0,0,null,0,null,null,null,null,1,0,0]
[null,null,"c. het actief zal in de toekomst economisch of maatschappelijk nut genereren?","w",null,null,null,null,null,"w","Maak uw keuze",null,null,1,0,0,0,0,1,null,0,null,null,null,null,1,0,0]
[null,null,null,null,null,null,null,null,null,"","XEmpty",null,null,0,0,0,0,0,0,null,0,null,null,null,null,1,0,0]
[null,null,"d. de uitgaven die aan het actief zijn toe te rekenen kunnen betrouwbaar worden vastgesteld?","w",null,null,null,null,null,"w","Maak uw keuze",null,null,1,0,0,0,0,1,null,0,null,null,null,null,1,0,0]
[null,null,null,null,null,null,null,null,null,"","XEmpty",null,null,0,0,0,0,0,0,null,0,null,null,null,null,1,0,0]
["art. 61",null,"Voldoen de geactiveerde bijdragen aan activa in eigendom van derden aan alle volgende criteria:",null,null,null,null,null,null,"","XEmpty",null,null,0,0,0,0,0,0,null,0,null,null,null,null,1,0,0]
[null,null,null,null,null,null,null,null,null,"","XEmpty",null,null,0,0,0,0,0,0,null,0,null,null,null,null,1,0,0]
[null,null,"a. er is sprake van een investering door een derde?","w",null,null,null,null,null,"w","Maak uw keuze",null,null,1,0,0,0,0,1,null,0,null,null,null,null,1,0,0]
[null,null,null,null,null,null,null,null,null,"","XEmpty",null,null,0,0,0,0,0,0,null,0,null,null,null,null,1,0,0]
[null,null,"b. draagt de investering bij aan de publieke taak?","w",null,null,null,null,null,"w","Maak uw keuze",null,null,1,0,0,0,0,1,null,0,null,null,null,null,1,0,0]
[null,null,null,null,null,null,null,null,null,"","XEmpty",null,null,0,0,0,0,0,0,null,0,null,null,null,null,1,0,0]
[null,null,"c. heeft de derde zich verplicht tot het daadwerkelijk investeren, op een wijze zoals overeengekomen?","w",null,null,null,null,null,"w","Maak uw keuze",null,null,1,0,0,0,0,1,null,0,null,null,null,null,1,0,0]
[null,null,null,null,null,null,null,null,null,"","XEmpty",null,null,0,0,0,0,0,0,null,0,null,null,null,null,1,0,0]
[null,null,"d. kan de bijdrage worden teruggevorderd, indien de derde in gebreke blijft of kan de gemeente anderszins recht doen gelden op de activa die samenhangen met de investering?","w",null,null,null,null,null,"w","Maak uw keuze",null,null,1,0,0,0,0,1,null,0,null,null,null,null,1,0,0]
[null,null,null,null,null,null,null,null,null,"","XEmpty",null,null,0,0,0,0,0,0,null,0,null,null,null,null,1,0,0]
["art. 64 lid 6",null,"Voor bijdragen aan de activa in eigendom van derden, bedoeld in artikel 34, onderdeel c, is de afschrijvingsduur maximaal gelijk aan die van de activa waarvoor de bijdrage aan derden wordt verstrekt. Is hieraan voldaan?","w",null,null,null,null,null,"w","Maak uw keuze",null,null,1,0,0,0,0,1,null,0,null,null,null,null,1,0,0]
[null,null,null,null,null,null,null,null,null,"","XEmpty",null,null,0,0,0,0,0,0,null,0,null,null,null,null,1,0,0]
["art. 64 lid 4 en 5",null,"Is de afschrijvingsduur van de kosten van onderzoek en ontwikkeling voor een bepaald actief ten hoogste vijf jaar?","s",null,null,null,null,null,"s","Maak uw keuze",null,null,1,0,0,0,0,1,null,0,null,null,null,null,1,0,0]
[null,null,null,null,null,null,null,null,null,"","XEmpty",null,null,0,0,0,0,0,0,null,0,null,null,null,null,1,0,0]
["Notitie MVA (2020)",null,"Is de afschrijvingsduur voor de kosten verbonden aan het sluiten van geldleningen maximaal gelijk aan de looptijd van de lening?","s",null,null,null,null,null,"s","Maak uw keuze",null,null,1,0,0,0,0,1,null,0,null,null,null,null,1,0,0]
[null,null,null,null,null,null,null,null,null,"","XEmpty",null,null,0,0,0,0,0,0,null,0,null,null,null,null,1,0,0]
["Notitie MVA (2020)",null,"Kosten van vervroegde aflossing mogen niet worden geactiveerd als geen nieuwe lening is aangetrokken. Is hieraan voldaan? ","s",null,null,null,null,null,"s","Maak uw keuze",null,null,1,0,0,0,0,1,null,0,null,null,null,null,1,0,0]
[null,null,null,null,null,null,null,null,null,"","XEmpty",null,null,0,0,0,0,0,0,null,0,null,null,null,null,{"$f":"Z47","v":1},0,0]
["Notitie grondbeleid (2019)\n- SU H",null,"Voldoen geactiveerde kosten van voorbereiding en onderzoek (immateriële vaste activa) aan de volgende voorwaarden:\n- De kosten passen binnen de kostensoortenlijst Wro/Bro (Notitie grondbeleid - SU E); en\n- De kosten mogen maximaal 5 jaar geactiveerd blijven staan onder de immateriële vaste activa. Na maximaal 5 jaar moeten de kosten hebben geleid tot een actieve grondexploitatie en kunnen dan worden overgeboekt naar de desbetreffende BIE, dan wel worden afgeboekt ten laste van het jaarresultaat; en\n- Plannen tot ontwikkeling van de grond waarvoor de voorbereidingskosten worden gemaakt, moeten bestuurlijke instemming hebben, blijkend uit een raadsbesluit.","s",null,null,null,null,null,"s","Maak uw keuze",null,null,1,0,0,0,0,1,null,0,null,null,null,null,{"$f":"Z48","v":1},0,0]
[null,null,null,null,null,null,null,null,null,"","XEmpty",null,null,0,0,0,0,0,0,null,0,null,null,null,null,{"$f":"Z49","v":1},0,0]
[null,null,"Materiële vaste activa",null,null,null,null,null,null,"","XEmpty",null,null,0,0,0,0,0,0,99,0,{"$f":"SUM($Q$52:$Q$132)","v":0},{"$f":"SUM($N$52:$N$132)","v":43},{"$f":"SUM($O$52:$O$132)","v":0},{"$f":"SUM($P$52:$P$132)","v":0},null,0,0,{"$f":"SUM($AA$52:$AA$132)","v":0}]
["art. 35.1",null,"Zijn in de balans onder de materiële vaste activa afzonderlijk opgenomen: \n",null,null,null,null,null,null,"","XEmpty",null,null,0,0,0,0,0,0,null,0,null,null,null,null,null,0,0]
[null,null,"a. investeringen met een economisch nut?","w",null,null,null,null,null,"w","Maak uw keuze",null,null,1,0,0,0,0,1,null,0,null,null,null,null,null,0,0]
[null,null,null,null,null,null,null,null,null,"","XEmpty",null,null,0,0,0,0,0,0,null,0,null,null,null,null,null,0,0]
[null,null,"b. Investeringen met een economisch nut, waarvoor ter bestrijding van de kosten een heffing kan worden geheven.","w",null,null,null,null,null,"w","Maak uw keuze",null,null,1,0,0,0,0,1,null,0,null,null,null,null,null,0,0]
[null,null,null,null,null,null,null,null,null,"","XEmpty",null,null,0,0,0,0,0,0,null,0,null,null,null,null,null,0,0]
[null,null,"c. investeringen in de openbare ruimte met een maatschappelijk nut?","w",null,null,null,null,null,"w","Maak uw keuze",null,null,1,0,0,0,0,1,null,0,null,null,null,null,null,0,0]
[null,null,null,null,null,null,null,null,null,"","XEmpty",null,null,0,0,0,0,0,0,null,0,null,null,null,null,null,0,0]
["art. 62 lid 1 en 2",null,"Zijn investeringen geactiveerd op basis van de brutoinvestering, dat wil zeggen zijn geen bijdragen uit reserves in mindering gebracht?\nNB: bijdragen van derden moeten wel in mindering worden gebracht.","s",null,null,null,null,null,"s","Maak uw keuze",null,null,1,0,0,0,0,1,null,0,null,null,null,null,null,0,0]
[null,null,null,null,null,null,null,null,null,"","XEmpty",null,null,0,0,0,0,0,0,null,0,null,null,null,null,null,0,0]
["SU 35-1",null,"a. Is (het gebruiksrecht voor onbepaalde duur op) software (als afzonderlijk actief) opgenomen onder de materiële vaste activa als investering met economisch nut?","s",null,null,null,null,null,"s","Maak uw keuze",null,null,1,0,0,0,0,1,null,0,null,null,null,null,null,0,0]
[null,null,null,null,null,null,null,null,null,"","XEmpty",null,null,0,0,0,0,0,0,null,0,null,null,null,null,null,0,0]
["Notitie MVA (2020)",null,"b. Zijn de opleidingskosten van eigen medewerkers voor het gebruik van software als last verantwoord en niet geactiveerd?","s",null,null,null,null,null,"s","Maak uw keuze",null,null,1,0,0,0,0,1,null,0,null,null,null,null,null,0,0]
[null,null,null,null,null,null,null,null,null,"","XEmpty",null,null,0,0,0,0,0,0,null,0,null,null,null,null,null,0,0]
["Notitie MVA (2020)",null,"Software als afzonderlijk actief valt onder de materiële vaste activa, als bedoeld in artikel 35 lid 1a BBV (investeringen met een economisch nut). ","s",null,null,null,null,null,"s","Maak uw keuze",null,null,1,0,0,0,0,1,null,0,null,null,null,null,null,0,0]
[null,null,null,null,null,null,null,null,null,"","XEmpty",null,null,0,0,0,0,0,0,null,0,null,null,null,null,null,0,0]
["Notitie MVA (2020)",null,"Gebruiksrechten op software voor onbepaalde duur, die in één keer in rekening worden gebracht vallen onder de materiële vaste activa als bedoeld in artikel 35, lid 1a BBV (investeringen met een economisch nut).","s",null,null,null,null,null,"s","Maak uw keuze",null,null,1,0,0,0,0,1,null,0,null,null,null,null,null,0,0]
[null,null,null,null,null,null,null,null,null,"","XEmpty",null,null,0,0,0,0,0,0,null,0,null,null,null,null,null,0,0]
["Notitie MVA (2020)",null,"Zijn  geen kosten van (klein en groot) onderhoud geactiveerd? ","w",null,null,null,null,null,"w","Maak uw keuze",null,null,1,0,0,0,0,1,null,0,null,null,null,null,null,0,0]
[null,null,null,null,null,null,null,null,null,{"$f":"IF(ISBLANK(D70)=TRUE,\"\",OFFSET(C70,0,CATSRT))","v":""},"XEmpty",null,null,0,0,0,0,0,0,null,0,null,null,null,null,null,0,0]
["art. 35.2",null,"Wordt van de materiële vaste activa in de toelichting aangegeven welke in erfpacht zijn uitgegeven?","s",null,null,null,null,null,"s","Maak uw keuze",null,null,1,0,0,0,0,1,null,{"$f":"Q71+R71","v":0},null,null,null,null,null,0,0]
[null,null,null,null,null,null,null,null,null,"","XEmpty",null,null,0,0,0,0,0,0,null,0,null,null,null,null,null,0,0]
["art. 51",null,"Is in de toelichting op de balans aangegeven volgens welke methode de afschrijvingen worden berekend?","w",null,null,null,null,null,"w","Maak uw keuze",null,null,1,0,0,0,0,1,null,0,null,null,null,null,null,0,0]
[null,null,null,null,null,null,null,null,null,"","XEmpty",null,null,{"$f":"IF(AND(J74<>\"-\",J74<>\"br\"),IF(AND(K74=CHK_M,OR(Z74=1,Z74=\"\")),1,0),0)","v":0},{"$f":"IF(AND(J74<>\"-\",S74=1,K74=CHK_V,OR(Z74=1,Z74=\"\"),L74=\"\"),1,0)","v":0},{"$f":"IF(AND(J74<>\"-\",S74=1,K74=CHK_V,OR(Z74=1,Z74=\"\"),M74=\"\"),1,0)","v":0},{"$f":"IF(AND(K74=CHK_V,S74=1),1,IF(OR(Q73=1,Q73=2),IF(AND(C74=\"\",J74=\"\"),3,IF(AND(K74<>CHK_M,K74<>CHK_A,K74<>CHK_N,T74=\"\"),2,0)),0))","v":0},{"$f":"IF(OR(T74=4,V74>0),1,0)","v":0},{"$f":"IF(AND(J74<>\"-\",J74<>\"\",OR(Z74=1,Z74=\"\")),1,0)","v":0},null,0,null,null,null,null,null,0,0]
["art. 51",null,"a. Wordt in de toelichting op de balans aangegeven welke investeringen in de openbare ruimte met een maatschappelijk nut tot en met 31-12-2016 (oude systematiek) resp. vanaf 1 januari 2017 (nieuwe systematiek) zijn geactiveerd?\n\nNB: Vanaf 1 januari 2017 moeten deze investeringen verplicht worden geactiveerd.","w",null,null,null,null,null,"w","Maak uw keuze",null,null,1,0,0,0,0,1,null,0,null,null,null,null,null,{"$f":"IF(AND(K75<>CHK_M,S75=1),1,IF(OR(AA74=1,AA74=2),IF(AND(C75=\"\",J75=\"\"),3,IF(AND(K75<>CHK_M,T75=\"\"),2,0)),0))","v":0},{"$f":"IF(OR(T75=4,AC75>0),1,0)+AA75","v":0}]
[null,null,null,null,null,null,null,null,null,"","XEmpty",null,null,0,0,0,0,0,0,null,0,null,null,null,null,null,0,0]
[null,null,"b. Wordt in de toelichting op de balans ten aanzien van de tot en met 31-12-2016 (oude systematiek) resp. vanaf 1 januari 2017 (nieuwe systematiek) geactiveerde investeringen in de openbare ruimte aangegeven welke afschrijvingstermijn hiervoor wordt voorzien?\n\nNB: Vanaf 1 januari 2017 moeten deze investeringen verplicht worden geactiveerd.","w",null,null,null,null,null,"w","Maak uw keuze",null,null,1,0,0,0,0,1,null,0,null,null,null,null,null,0,0]
[null,null,null,null,null,null,null,null,null,"","XEmpty",null,null,0,0,0,0,0,0,null,0,null,null,null,null,null,0,0]
[null,null,"c. Wordt in de toelichting op de balans ten aanzien van de investeringen aangegeven welke reserves hiervoor naar verwachting beschikbaar zullen zijn?","w",null,null,null,null,null,"w","Maak uw keuze",null,null,1,0,0,0,0,1,null,0,null,null,null,null,null,0,0]
[null,null,null,null,null,null,null,null,null,"","XEmpty",null,null,0,0,0,0,0,0,null,0,null,null,null,null,null,0,0]
["Notitie riolering",null,"Zijn de investeringen in riolering geactiveerd als actief met economisch nut? \nNB: Deze vraag geldt alleen indien en voor zover de kosten van eerste aanleg van de riolering niet in de grondprijs zijn opgenomen!","s",null,null,null,null,null,"s","Maak uw keuze",null,null,1,0,0,0,0,1,null,0,null,null,null,null,null,0,0]
[null,null,null,null,null,null,null,null,null,"","XEmpty",null,null,0,0,0,0,0,0,null,0,null,null,null,null,null,0,0]
["Notitie grondbeleid (2019)\n\nart. 52.1",null,"Zijn 'warme gronden' geactiveerd en gewaardeerd onder de materiele vaste activa (artikel 52 lid 1 onderdeel a BBV)? In de verslaggeving moeten dergelijke gronden vanaf 2019 worden opgenomen onder materiele vaste activa, gronden en terreinen. In de toelichting worden deze afzonderlijk vermeld als gronden, bestemd voor de gemeentelijke gebiedsontwikkeling en als zodanig toegelicht. Gronden die voor 2019 zijn verworven en die vanaf 2019 worden verantwoord als gronden bestemd voor de gemeentelijke gebiedsontwikkeling, blijven gewaardeerd tegen de bestaande boekwaarde. Toegepaste afwaarderingen tot en met 2018 mogen niet worden teruggedraaid. Ingeval afwaardering heeft plaatsgevonden via een voorziening, dan kan de voorziening en daarmee de waardering worden aangepast.","w",null,null,null,null,null,"w","Maak uw keuze",null,null,1,0,0,0,0,1,null,0,null,null,null,null,null,0,0]
[null,null,"Gemeenten verwerven gronden met het oog op gebiedsontwikkeling, maar waarvoor nog geen operationele grondexploitatie is vastgesteld. Dergelijke gronden worden in de regel aangeduid als ‘warme gronden’. Conform de wijziging van het BBV in 2016 kunnen dergelijke gronden niet onder de voorraden (artikel 38 BBV) worden gerangschikt, maar moeten deze worden verantwoord onder materiele vaste activa (artikel 52 lid 1 onderdeel a BBV) tegen de verwervingskosten. Het toerekenen (activeren) van andere kosten is daarbij niet toegestaan. ",null,null,null,null,null,null,"","XEmpty",null,null,{"$f":"IF(AND(J84<>\"-\",J84<>\"br\"),IF(AND(K84=CHK_M,OR(Z84=1,Z84=\"\")),1,0),0)","v":0},{"$f":"IF(AND(J84<>\"-\",S84=1,K84=CHK_V,OR(Z84=1,Z84=\"\"),L84=\"\"),1,0)","v":0},{"$f":"IF(AND(J84<>\"-\",S84=1,K84=CHK_V,OR(Z84=1,Z84=\"\"),M84=\"\"),1,0)","v":0},{"$f":"IF(AND(K84=CHK_V,S84=1),1,IF(OR(Q83=1,Q83=2),IF(AND(C84=\"\",J84=\"\"),3,IF(AND(K84<>CHK_M,K84<>CHK_A,K84<>CHK_N,T84=\"\"),2,0)),0))","v":0},{"$f":"IF(OR(T84=4,V84>0),1,0)","v":0},{"$f":"IF(AND(J84<>\"-\",J84<>\"\",OR(Z84=1,Z84=\"\")),1,0)","v":0},null,{"$f":"Q84+R84","v":0},null,null,null,null,null,{"$f":"IF(AND(K84<>CHK_M,S84=1),1,IF(OR(AA83=1,AA83=2),IF(AND(C84=\"\",J84=\"\"),3,IF(AND(K84<>CHK_M,T84=\"\"),2,0)),0))","v":0},{"$f":"IF(OR(T84=4,AC84>0),1,0)+AA84","v":0}]
[null,null,null,null,null,null,null,null,null,null,"XEmpty",null,null,0,0,0,0,0,0,null,0,null,null,null,null,null,0,0]
["Cie BBV 19 december 2022",null,"Wijziging in verband met de lopende actualisering van de Notitie grondbeleid in begroting en jaarstukken (2019) in het kader van de Omgevingswet.\n\nIndien aan onderstaande cumulatieve voorwaarden wordt voldaan kan t.a.v. artikel 65 BBV uitgegaan worden van de toekomstige bestemming in plaats van de geldende bestemming en hoeft geen afwaardering naar de geldende bestemming plaats te vinden:",null,null,null,null,null,null,"s","Maak uw keuze",null,null,{"$f":"IF(AND(J86<>\"-\",J86<>\"br\"),IF(AND(K86=CHK_M,OR(Z86=1,Z86=\"\")),1,0),0)","v":1},{"$f":"IF(AND(J86<>\"-\",S86=1,K86=CHK_V,OR(Z86=1,Z86=\"\"),L86=\"\"),1,0)","v":0},{"$f":"IF(AND(J86<>\"-\",S86=1,K86=CHK_V,OR(Z86=1,Z86=\"\"),M86=\"\"),1,0)","v":0},{"$f":"IF(AND(K86=CHK_V,S86=1),1,IF(OR(Q85=1,Q85=2),IF(AND(C86=\"\",J86=\"\"),3,IF(AND(K86<>CHK_M,K86<>CHK_A,K86<>CHK_N,T86=\"\"),2,0)),0))","v":0},{"$f":"IF(OR(T86=4,V86>0),1,0)","v":0},{"$f":"IF(AND(J86<>\"-\",J86<>\"\",OR(Z86=1,Z86=\"\")),1,0)","v":1},null,{"$f":"Q86+R86","v":0},null,null,null,null,null,{"$f":"IF(AND(K86<>CHK_M,S86=1),1,IF(OR(AA85=1,AA85=2),IF(AND(C86=\"\",J86=\"\"),3,IF(AND(K86<>CHK_M,T86=\"\"),2,0)),0))","v":0},{"$f":"IF(OR(T86=4,AC86>0),1,0)+AA86","v":0}]
[null,null,"- de gronden moeten deel uitmaken van een door de gemeenteraad vastgestelde visie of masterplan voor (een) concrete en binnen afzienbare tijd te starten grondexploitatie(s), waarin de gebiedsontwikkeling van totaalplan naar deelgrondexploitaties is vastgelegd;\n- de (toekomstige) bestemming(en)/functies (ontwikkeling) betreffende het plangebied dien(en)t goed onderbouwd te worden;\n- de gebiedsontwikkeling mag niet zodanig conflicteren met de uitkomst van de inventarisatie van bedreigingen die de ontwikkeling in de weg kunnen staan, bijvoorbeeld op het gebied van milieu of bereikbaarheid;\n- de visie/het masterplan mag niet strijdig zijn met beleid van de provincie en/of rijk;\n- periodiek (minimaal eens in de 2 jaar) worden de gronden getaxeerd tegen de waarde volgens de toekomstige bestemming, met inachtneming van de inherente onzekerheden van de ontwikkelmogelijkheden.",null,null,null,null,null,null,null,"XEmpty",null,null,0,0,0,0,0,0,null,0,null,null,null,null,null,0,0]
[null,null,null,null,null,null,null,null,null,"","XEmpty",null,null,0,0,0,0,0,0,null,0,null,null,null,null,null,0,0]
["Notitie grondbeleid (2019) \n- SU A\n\nart. 65.1",null,"Gronden die zijn verworven met het oog op concrete ontwikkeling door de gemeente, maar waarvoor nog geen operationele grondexploitatie is vastgesteld mogen, voor wat betreft de toepassing van artikel 65 lid 1 BBV, worden gewaardeerd tegen de waarde volgens de toekomstige bestemming, mits wordt voldaan aan voorwaarden. Stel vast dat voldaan is aan de volgende voorwaarden:","s",null,null,null,null,null,"s","Maak uw keuze",null,null,1,0,0,0,0,1,null,0,null,null,null,null,null,0,0]
[null,null,"• de gronden moeten deel uitmaken van een door de gemeenteraad vastgestelde visie of masterplan voor (een) concrete en binnen afzienbare tijd te starten grondexploitatie(s), waarin de gebiedsontwikkeling van totaalplan naar deelgrondexploitaties is vastgelegd; \n• de gebiedsontwikkeling mag niet zodanig conflicteren met de uitkomst van de inventarisatie van bedreigingen dat die de ontwikkeling in de weg kunnen staan, bijvoorbeeld op het gebied van milieu of bereikbaarheid; \n• de visie / het masterplan mag niet strijdig zijn met beleid van de provincie en/of het rijk; \n• er is een betrokkenheid bij de gebiedsontwikkeling van provincie of rijksoverheid; \n• het mag alleen gaan om gebiedsontwikkeling voor de bouw van woningen en niet voor bedrijfsterreinen;  \n• periodiek (minimaal eens in de 2 jaar) worden de gronden getaxeerd tegen de waarde volgens de toekomstige woningbouwbestemming, met inachtneming van de inherente onzekerheden van de ontwikkelmogelijkheden. ",null,null,null,null,null,null,"","XEmpty",null,null,0,0,0,0,0,0,null,0,null,null,null,null,null,0,0]
[null,null,null,null,null,null,null,null,null,"","XEmpty",null,null,0,0,0,0,0,0,null,0,null,null,null,null,null,0,0]
["art. 52.1",null,"Zijn in de toelichting op de balans de materiële vaste activa onderscheiden naar de volgende categorieën: ",null,null,null,null,null,null,"","XEmpty",null,null,0,0,0,0,0,0,null,0,null,null,null,null,null,0,0]
[null,null,"a. gronden en terreinen?","w",null,null,null,null,null,"w","Maak uw keuze",null,null,1,0,0,0,0,1,null,0,null,null,null,null,null,0,0]
[null,null,"b. woonruimten?","w",null,null,null,null,null,"w","Maak uw keuze",null,null,1,0,0,0,0,1,null,0,null,null,null,null,null,0,0]
[null,null,"c. gebouwen?","w",null,null,null,null,null,"w","Maak uw keuze",null,null,1,0,0,0,0,1,null,0,null,null,null,null,null,0,0]
[null,null,"d. grond-, weg- en waterbouwkundige werken?","w",null,null,null,null,null,"w","Maak uw keuze",null,null,1,0,0,0,0,1,null,0,null,null,null,null,null,0,0]
[null,null,"e. vervoermiddelen?","w",null,null,null,null,null,"w","Maak uw keuze",null,null,1,0,0,0,0,1,null,0,null,null,null,null,null,0,0]
[null,null,"f. machines, apparaten en installaties?","w",null,null,null,null,null,"w","Maak uw keuze",null,null,1,0,0,0,0,1,null,0,null,null,null,null,null,0,0]
[null,null,"g. overige materiële vaste activa?","w",null,null,null,null,null,"w","Maak uw keuze",null,null,1,0,0,0,0,1,null,0,null,null,null,null,null,0,0]
[null,null,null,null,null,null,null,null,null,"","XEmpty",null,null,0,0,0,0,0,0,null,0,null,null,null,null,null,0,0]
["art. 52.2",null,"Is in de toelichting op de balans het verloop van de vaste activa, gedurende het begrotingsjaar, in een sluitend overzicht weergegeven?","w",null,null,null,null,null,"w","Maak uw keuze",null,null,1,0,0,0,0,1,null,0,null,null,null,null,null,0,0]
[null,null,null,null,null,null,null,null,null,"","XEmpty",null,null,0,0,0,0,0,0,null,0,null,null,null,null,null,0,0]
["art. 52.2",null,"Blijken uit dit overzicht:",null,null,null,null,null,null,"","XEmpty",null,null,0,0,0,0,0,0,null,0,null,null,null,null,null,0,0]
[null,null,"a. de boekwaarde aan het begin van het begrotingsjaar?","w",null,null,null,null,null,"w","Maak uw keuze",null,null,1,0,0,0,0,1,null,0,null,null,null,null,null,0,0]
[null,null,"b. de investeringen of desinvesteringen?","w",null,null,null,null,null,"w","Maak uw keuze",null,null,1,0,0,0,0,1,null,0,null,null,null,null,null,0,0]
[null,null,"c. de afschrijvingen?","w",null,null,null,null,null,"w","Maak uw keuze",null,null,1,0,0,0,0,1,null,0,null,null,null,null,null,0,0]
[null,null,"d. de bijdragen van derden direct gerelateerd aan een actief?","w",null,null,null,null,null,"w","Maak uw keuze",null,null,1,0,0,0,0,1,null,0,null,null,null,null,null,0,0]
[null,null,"e. de afwaarderingen wegens duurzame waardeverminderingen?","w",null,null,null,null,null,"w","Maak uw keuze",null,null,1,0,0,0,0,1,null,0,null,null,null,null,null,0,0]
[null,null,"f. de boekwaarde aan het einde van het begrotingsjaar?","w",null,null,null,null,null,"w","Maak uw keuze",null,null,1,0,0,0,0,1,null,0,null,null,null,null,null,0,0]
[null,null,null,null,null,null,null,null,null,"","XEmpty",null,null,0,0,0,0,0,0,null,0,null,null,null,null,null,0,0]
["Notitie MVA (2020)",null,"Zijn de kosten van bodemsaneringen niet geactiveerd?","s",null,null,null,null,null,"s","Maak uw keuze",null,null,1,0,0,0,0,1,null,0,null,null,null,null,null,0,0]
[null,null,null,null,null,null,null,null,null,"","XEmpty",null,null,0,0,0,0,0,0,null,0,null,null,null,null,null,0,0]
["Notitie MVA (2020)",null,"Zijn kosten voor het baggeren van watergangen niet geactiveerd?","s",null,null,null,null,null,"s","Maak uw keuze",null,null,1,0,0,0,0,1,null,0,null,null,null,null,null,0,0]
[null,null,null,null,null,null,null,null,null,"","XEmpty",null,null,0,0,0,0,0,0,null,0,null,null,null,null,null,0,0]
["art. 63.4",null,"Zijn de na 1-1-2004 in erfpacht uitgegeven gronden gewaardeerd tegen verkrijgingsprijs zijnde de uitgifteprijs van eerste uitgifte?","w",null,null,null,null,null,"w","Maak uw keuze",null,null,1,0,0,0,0,1,null,0,null,null,null,null,null,0,0]
[null,null,null,null,null,null,null,null,null,"","XEmpty",null,null,0,0,0,0,0,0,null,0,null,null,null,null,null,0,0]
["art. 63.4",null,"Zijn de gronden in eeuwigdurende erfpacht gewaardeerd tegen registratiewaarde?","w",null,null,null,null,null,"w","Maak uw keuze",null,null,1,0,0,0,0,1,null,0,null,null,null,null,null,0,0]
[null,null,null,null,null,null,null,null,null,"","XEmpty",null,null,0,0,0,0,0,0,null,0,null,null,null,null,null,0,0]
["Notitie MVA (2020)",null,"Er wordt niet afgeschreven op grond. Dit geldt vanaf 1 januari 2017 ook voor de grond die deel uitmaakt van een nieuwe investering in de openbare ruimte met maatschappelijk nut. Is hieraan voldaan? ","s",null,null,null,null,null,"s","Maak uw keuze",null,null,1,0,0,0,0,1,null,0,null,null,null,null,null,0,0]
[null,null,null,null,null,null,null,null,null,"","XEmpty",null,null,0,0,0,0,0,0,null,0,null,null,null,null,null,0,0]
["art. 65.3",null,"Wordt een actief dat buiten gebruik wordt gesteld afgewaardeerd op het moment van buitengebruikstelling, indien de restwaarde lager is dan de boekwaarde?","w",null,null,null,null,null,"w","Maak uw keuze",null,null,1,0,0,0,0,1,null,0,null,null,null,null,null,0,0]
[null,null,null,null,null,null,null,null,null,"","XEmpty",null,null,0,0,0,0,0,0,null,0,null,null,null,null,null,0,0]
["Notitie MVA (2020)",null,"Wordt een object dat buiten gebruik wordt gesteld en/of wordt afgestoten afgewaardeerd indien de marktwaarde naar verwachting duurzaam lager is dan de boekwaarde?","s",null,null,null,null,null,"s","Maak uw keuze",null,null,1,0,0,0,0,1,null,0,null,null,null,null,null,0,0]
[null,null,null,null,null,null,null,null,null,"","XEmpty",null,null,0,0,0,0,0,0,null,0,null,null,null,null,null,0,0]
["Notitie MVA (2020)",null,"Wordt een actief dat daadwerkelijk wordt bestemd voor verkoop overgeboekt naar de voorraden?\n\nEen eventueel verkregen opbrengst wordt als incidentele bate verantwoord in de jaarrekening. Indien het object nog een boekwaarde heeft, dan dient deze boekwaarde geheel afgeboekt te worden. Dit is een incidentele last in de jaarrekening. De verkoopopbrengst en het afboeken van de boekwaarde worden beiden afzonderlijk verantwoord en mogen niet met elkaar worden verrekend. De verkoopopbrengst mag ook niet worden verrekend met de aanschafwaarde van een eventueel vervangingsobject. ","s",null,null,null,null,null,"s","Maak uw keuze",null,null,1,0,0,0,0,1,null,0,null,null,null,null,null,0,0]
[null,null,null,null,null,null,null,null,null,"","XEmpty",null,null,0,0,0,0,0,0,null,0,null,null,null,null,null,0,0]
["Notitie MVA (2020)",null,"a. Is een eventuele boekwinst bij inruil van een actief niet in mindering gebracht op de boekwaarde van de nieuwe investering?","s",null,null,null,null,null,"s","Maak uw keuze",null,null,1,0,0,0,0,1,null,0,null,null,null,null,null,0,0]
[null,null,null,null,null,null,null,null,null,"","XEmpty",null,null,0,0,0,0,0,0,null,0,null,null,null,null,null,0,0]
["SU 35-2",null,"b. Is de boekwinst die gerealiseerd is bij het afstoten van een kapitaalgoed als incidentele bate in de jaarrekening verwerkt?","s",null,null,null,null,null,"s","Maak uw keuze",null,null,1,0,0,0,0,1,null,0,null,null,null,null,null,0,0]
[null,null,null,null,null,null,null,null,null,"","XEmpty",null,null,0,0,0,0,0,0,null,0,null,null,null,null,null,0,0]
["Notitie grondbeleid (2019)\n- bijlage 2",null,"Stel vast dat voor bestedingen in de openbare ruimte en activering voldaan is aan bijlage 2 van de Notitie grondbeleid (2019).\n\nWanneer een gemeente voornemens is bestedingen die eerder als kosten van de grondexploitatie werden aangemerkt, uit de grondexploitatie te halen en als investeringen te activeren op de gemeentelijke balans onder de materiële vaste activa, dan is dit alleen onder voorwaarden toegestaan. Hierbij maakt de commissie BBV onderscheid in reeds gemaakte en nog te maken kosten van bestedingen in de openbare ruimte. ","s",null,null,null,null,null,"s","Maak uw keuze",null,null,1,0,0,0,0,1,null,0,null,null,null,null,null,0,0]
[null,null,null,null,null,null,null,null,null,"","XEmpty",null,null,0,0,0,0,0,0,null,0,null,null,null,null,null,0,0]
[null,null,"Waardering, afschrijving en waardevermindering",null,null,null,null,null,null,"","XEmpty",null,null,0,0,0,0,0,0,99,0,{"$f":"SUM($Q$134:$Q$161)","v":0},{"$f":"SUM($N$134:$N$161)","v":14},{"$f":"SUM($O$134:$O$161)","v":0},{"$f":"SUM($P$134:$P$161)","v":0},null,0,0,{"$f":"SUM($AA$134:$AA$161)","v":0}]
["art. 63 lid 1",null,"Zijn de activa gewaardeerd tegen (maximaal) de verkrijgings- of vervaardigingsprijs?","w",null,null,null,null,null,"w","Maak uw keuze",null,null,1,0,0,0,0,1,null,0,null,null,null,null,null,0,0]
[null,null,null,null,null,null,null,null,null,"","XEmpty",null,null,0,0,0,0,0,0,null,0,null,null,null,null,null,0,0]
["art. 59",null,"Zijn alle investeringen (uitgezonderd kunstvoorwerpen met een cultuurhistorische waarde) geactiveerd?\n\nNB: Vanaf 1 januari 2017 moeten ook alle investeringen in de openbare ruimte met een maatschappelijk nut verplicht worden geactiveerd.","w",null,null,null,null,null,"w","Maak uw keuze",null,null,1,0,0,0,0,1,null,0,null,null,null,null,null,0,0]
[null,null,null,null,null,null,null,null,null,"","XEmpty",null,null,0,0,0,0,0,0,null,0,null,null,null,null,null,0,0]
["art. 62",null,"Zijn alle vaste activa voor het bedrag van de investering geactiveerd, eventueel verminderd met de bijdragen van derden die in directe relatie staan met een actief?","w",null,null,null,null,null,"w","Maak uw keuze",null,null,1,0,0,0,0,1,null,{"$f":"Q138+R138","v":0},null,null,null,null,null,0,0]
[null,null,null,null,null,null,null,null,null,"","XEmpty",null,null,0,0,0,0,0,0,null,0,null,null,null,null,null,0,0]
["art. 63.5",null,"Is van activa waarvan de bestemming verandert (afstoting) de actuele waarde van de nieuwe bestemming in de toelichting op de balans opgenomen?","w",null,null,null,null,null,"w","Maak uw keuze",null,null,1,0,0,0,0,1,null,0,null,null,null,null,null,0,0]
[null,null,null,null,null,null,null,null,null,{"$f":"IF(ISBLANK(D141)=TRUE,\"\",OFFSET(C141,0,CATSRT))","v":""},"XEmpty",null,null,{"$f":"IF(AND(J141<>\"-\",J141<>\"br\"),IF(AND(K141=CHK_M,OR(Z141=1,Z141=\"\")),1,0),0)","v":0},{"$f":"IF(AND(J141<>\"-\",S141=1,K141=CHK_V,OR(Z141=1,Z141=\"\"),L141=\"\"),1,0)","v":0},{"$f":"IF(AND(J141<>\"-\",S141=1,K141=CHK_V,OR(Z141=1,Z141=\"\"),M141=\"\"),1,0)","v":0},{"$f":"IF(AND(K141=CHK_V,S141=1),1,IF(OR(Q140=1,Q140=2),IF(AND(C141=\"\",J141=\"\"),3,IF(AND(K141<>CHK_M,K141<>CHK_A,K141<>CHK_N,T141=\"\"),2,0)),0))","v":0},{"$f":"IF(OR(T141=4,V141>0),1,0)","v":0},{"$f":"IF(AND(J141<>\"-\",J141<>\"\",OR(Z141=1,Z141=\"\")),1,0)","v":0},null,0,null,null,null,null,null,0,0]
["art. 64.1",null,"Geschieden de afschrijvingen op investeringen - met uitzondering van investeringen in de openbare ruimte met een maatschappelijk nut tot en met 31-12-2016 - onafhankelijk van het resultaat van het boekjaar?\n\nNB: Vanaf 1 januari 2017 moeten ook alle investeringen in de openbare ruimte met een maatschappelijk nut verplicht worden geactiveerd en afgeschreven.\n\n","w",null,null,null,null,null,"w","Maak uw keuze",null,null,1,0,0,0,0,1,null,0,null,null,null,null,null,{"$f":"IF(AND(K142<>CHK_M,S142=1),1,IF(OR(AA141=1,AA141=2),IF(AND(C142=\"\",J142=\"\"),3,IF(AND(K142<>CHK_M,T142=\"\"),2,0)),0))","v":0},{"$f":"IF(OR(T142=4,AC142>0),1,0)+AA142","v":0}]
[null,null,null,null,null,null,null,null,null,"","XEmpty",null,null,0,0,0,0,0,0,null,0,null,null,null,null,null,0,0]
["art. 64.3",null,"Wordt op vaste activa met een beperkte gebruiksduur, waaronder inbegrepen de financiële vaste activa bedoeld in artikel 36 onderdeel e, jaarlijks afgeschreven volgens een stelsel afgestemd op de verwachte toekomstige gebruiksduur?","w",null,null,null,null,null,"w","Maak uw keuze",null,null,1,0,0,0,0,1,null,0,null,null,null,null,null,0,0]
[null,null,null,null,null,null,null,null,null,"","XEmpty",null,null,0,0,0,0,0,0,null,0,null,null,null,null,null,0,0]
["Notitie MVA (2020)",null,"Een wijziging van een verwachte toekomstige gebruiksduur c.q. gebruiksintensiteit is een schattingswijziging. De bestaande (rest)boekwaarde wordt niet herrekend, maar over de langere, dan wel kortere, dan wel gelijkblijvende verwachte toekomstige gebruiksduur afgeschreven. ","s",null,null,null,null,null,"s","Maak uw keuze",null,null,1,0,0,0,0,1,null,0,null,null,null,null,null,0,0]
[null,null,null,null,null,null,null,null,null,"","XEmpty",null,null,0,0,0,0,0,0,null,0,null,null,null,null,null,0,0]
["art. 65.1",null,"Worden naar verwachting duurzame waardeverminderingen van vaste activa onafhankelijk van het resultaat van het boekjaar in aanmerking genomen?","w",null,null,null,null,null,"w","Maak uw keuze",null,null,1,0,0,0,0,1,null,0,null,null,null,null,null,0,0]
[null,null,null,null,null,null,null,null,null,"","XEmpty",null,null,0,0,0,0,0,0,null,0,null,null,null,null,null,0,0]
["Notitie MVA (2020)",null,"Wordt bij de waardering van vastgoed de notitie materiële vaste activa in acht genomen en indien noodzakelijk een duurzame waardevermindering van vaste activa verwerkt in de jaarrekening?","s",null,null,null,null,null,"s","Maak uw keuze",null,null,1,0,0,0,0,1,null,0,null,null,null,null,null,0,0]
[null,null,null,null,null,null,null,null,null,"","XEmpty",null,null,{"$f":"IF(AND(J151<>\"-\",J151<>\"br\"),IF(AND(K151=CHK_M,OR(Z151=1,Z151=\"\")),1,0),0)","v":0},{"$f":"IF(AND(J151<>\"-\",S151=1,K151=CHK_V,OR(Z151=1,Z151=\"\"),L151=\"\"),1,0)","v":0},{"$f":"IF(AND(J151<>\"-\",S151=1,K151=CHK_V,OR(Z151=1,Z151=\"\"),M151=\"\"),1,0)","v":0},{"$f":"IF(AND(K151=CHK_V,S151=1),1,IF(OR(Q150=1,Q150=2),IF(AND(C151=\"\",J151=\"\"),3,IF(AND(K151<>CHK_M,K151<>CHK_A,K151<>CHK_N,T151=\"\"),2,0)),0))","v":0},{"$f":"IF(OR(T151=4,V151>0),1,0)","v":0},{"$f":"IF(AND(J151<>\"-\",J151<>\"\",OR(Z151=1,Z151=\"\")),1,0)","v":0},null,{"$f":"Q151+R151","v":0},null,null,null,null,null,{"$f":"IF(AND(K151<>CHK_M,S151=1),1,IF(OR(AA150=1,AA150=2),IF(AND(C151=\"\",J151=\"\"),3,IF(AND(K151<>CHK_M,T151=\"\"),2,0)),0))","v":0},{"$f":"IF(OR(T151=4,AC151>0),1,0)+AA151","v":0}]
["art. 52b",null,"Zijn de aard en de omvang van de aangebrachte dan wel geraamde waardeverminderingen van de leningen en vorderingen ex art. 63 lid 8 en van de vaste activa ex art 65 lid 1 in de toelichting op de balans opgenomen?","w",null,null,null,null,null,"w","Maak uw keuze",null,null,1,0,0,0,0,1,null,0,null,null,null,null,null,0,0]
[null,null,null,null,null,null,null,null,null,"","XEmpty",null,null,0,0,0,0,0,0,null,0,null,null,null,null,null,0,0]
["Notitie MVA (2020)",null,"Een wijziging van de ‘vrij te kiezen’ waarderingsgrondslagen is een stelselwijziging. Bij een stelselwijziging worden bestaande (rest)boekwaarden niet herrekend, maar over de langere, dan wel kortere, dan wel gelijkblijvende verwachte gebruiksduur afgeschreven. Is hieraan voldaan?","s",null,null,null,null,null,"s","Maak uw keuze",null,null,1,0,0,0,0,1,null,0,null,null,null,null,null,0,0]
[null,null,null,null,null,null,null,null,null,"","XEmpty",null,null,0,0,0,0,0,0,null,0,null,null,null,null,null,0,0]
["Notitie MVA (2020)",null,"Uit hoofde van rechtmatigheid kunnen besluiten tot een stelsel- of schattingswijziging met betrekking tot materiële vaste activa uiterlijk tot het eind (31-12) van het desbetreffende begrotingsjaar worden genomen door de raad. Is hieraan voldaan?","s",null,null,null,null,null,"s","Maak uw keuze",null,null,1,0,0,0,0,1,null,0,null,null,null,null,null,0,0]
["Notitie MVA (2020) en V&A 3 december 2020",null,"Indien restwaarden worden toegepast dan moet dit zijn vastgelegd in de financiële verordening (ex art. 212 Gw) en moet de restwaarde per actief worden geschat op het moment van ingebruikname zonder rekening te houden met waardeveranderingen als gevolg van inflatie, deflatie, marktontwikkelingen, e.d. De restwaarde mag niet zodanig hoog worden geschat, dat feitelijk geen of te weinig afschrijving plaatsvindt. Is aan deze bepalingen voldaan?","s",null,null,null,null,null,"s","Maak uw keuze",null,null,1,0,0,0,0,1,null,0,null,null,null,null,null,0,0]
[null,null,null,null,null,null,null,null,null,"","XEmpty",null,null,0,0,0,0,0,0,null,0,null,null,null,null,null,0,0]
["Notitie MVA (2020) en V&A 3 december 2020",null,"Wanneer de verwachte gebruiksduur korter is dan de verwachte economische levensduur van het actief is er altijd sprake van een restwaarde. Aan het einde van de economische levensduur zal er slechts sprake zijn van een sloopwaarde. Dit moet duidelijk blijken uit de investeringsbeslissing van de raad en/of een ander raadsbesluit waaruit de gebruiksduur van dat specifieke object blijkt, alsmede de intentie tot bijvoorbeeld de verkoop na de gebruiksduur (korter dan de economische levensduur). Het met terugwerkende kracht bepalen van een restwaarde is alleen relevant indien sprake is van een daadwerkelijk kortere gebruiksduur dan eerder was verwacht. De restwaarde mag niet zodanig hoog worden geschat, dat feitelijk geen of te weinig afschrijving plaatsvindt. Is aan deze bepalingen voldaan?","s",null,null,null,null,null,"s","Maak uw keuze",null,null,1,0,0,0,0,1,null,0,null,null,null,null,null,0,0]
[null,null,null,null,null,null,null,null,null,"","XEmpty",null,null,0,0,0,0,0,0,null,0,null,null,null,null,null,0,0]
[null,null,null,null,null,null,null,null,null,"","XEmpty",null,null,{"$f":"IF(AND(J161<>\"-\",J161<>\"br\"),IF(AND(K161=CHK_M,OR(Z161=1,Z161=\"\")),1,0),0)","v":0},{"$f":"IF(AND(J161<>\"-\",S161=1,K161=CHK_V,OR(Z161=1,Z161=\"\"),L161=\"\"),1,0)","v":0},{"$f":"IF(AND(J161<>\"-\",S161=1,K161=CHK_V,OR(Z161=1,Z161=\"\"),M161=\"\"),1,0)","v":0},{"$f":"IF(AND(K161=CHK_V,S161=1),1,IF(OR(Q156=1,Q156=2),IF(AND(C161=\"\",J161=\"\"),3,IF(AND(K161<>CHK_M,K161<>CHK_A,K161<>CHK_N,T161=\"\"),2,0)),0))","v":0},{"$f":"IF(OR(T161=4,V161>0),1,0)","v":0},{"$f":"IF(AND(J161<>\"-\",J161<>\"\",OR(Z161=1,Z161=\"\")),1,0)","v":0},null,{"$f":"Q161+R161","v":0},null,null,null,null,null,{"$f":"IF(AND(K161<>CHK_M,S161=1),1,IF(OR(AA156=1,AA156=2),IF(AND(C161=\"\",J161=\"\"),3,IF(AND(K161<>CHK_M,T161=\"\"),2,0)),0))","v":0},{"$f":"IF(OR(T161=4,AC161>0),1,0)+AA161","v":0}]

{"sheet":"Financiële vaste activa","index":6,"n_rows":40,"n_cols":29,"rows_kept":40,"cut":false,"hidden":false,"merged":[[3,12,5,12],[1,10,5,10],[1,11,5,11]]}
["BBV",null,null,null,null,null,null,null,null,{"$f":"IF(ISBLANK(D1)=TRUE,\"\",OFFSET(C1,0,CATSRT))","v":""},null,null,null,"PD RANGE"]
[null,null,null,null,null,null,null,null,null,"",{"$f":"VOLDAAN","v":"Is aan de vereisten voor de Jaarverslag-geving voldaan?"},{"$f":"TOEL","v":"Commentaar bij \"Voldoet niet\""},null,null,null,null,null,"Kopje van",null,null,"tbv hiden"]
[null,null,"w = wettelijk vereiste       s = stellige uitspraak van cie Bbv",null,null,null,null,null,null,"",null,null,null,"Vraag","Toelichting","Review","hulprange","hfdstuk of",null,"Info","Som P en Q","info","info","info","info"]
[null,null,"-  = niet vereist                 a = aanbevolen door cie Bbv",null,null,null,null,null,null,"",null,null,{"$f":"COM_REV","v":"Afwerking / Commentaar reviewer"},"(on)beantwoord","opgenomen","opgenomen","Vold. niet","Vold niet","vraagregel?"]
[null,null,null,null,null,null,null,null,null,"",null,null,null,null,null,null,"info"]
[{"$f":"IF(Navigatiescherm!J29=0,TRUE,FALSE)","v":false},null,null,null,null,null,null,null,null,"",null,null,null,"info"]
[null,null,null,null,null,null,null,null,null,"",{"$f":"CHK_M","v":"Maak uw keuze"},null,null,null,null,null,{"$f":"IF(AND(K7=CHK_V,S7=1),1,IF(OR(Q6=1,Q6=2),IF(AND(C7=\"\",J7=\"\"),3,IF(AND(K7<>CHK_M,K7<>CHK_A,K7<>CHK_N,T7=\"\"),2,0)),0))","v":0},{"$f":"IF(OR(T7=4,V7>0),1,0)","v":1},{"$f":"IF(AND(J7<>\"-\",J7<>\"\",OR(Z7=1,Z7=\"\")),1,0)","v":0},4,{"$f":"Q7+R7","v":1},null,null,null,null,null,{"$f":"IF(AND(K7<>CHK_M,S7=1),1,IF(OR(AA6=1,AA6=2),IF(AND(C7=\"\",J7=\"\"),3,IF(AND(K7<>CHK_M,T7=\"\"),2,0)),0))","v":0},{"$f":"IF(OR(T7=4,AC7>0),1,0)+AA7","v":1}]
[null,null,"Financiële vaste activa",null,null,null,null,null,null,"",{"$f":"CHK_V","v":"Voldoet niet"},null,null,{"$f":"IF(AND(J8<>\"-\",J8<>\"br\"),IF(AND(K8=CHK_M,OR(Z8=1,Z8=\"\")),1,0),0)","v":0},{"$f":"IF(AND(J8<>\"-\",S8=1,K8=CHK_V,OR(Z8=1,Z8=\"\"),L8=\"\"),1,0)","v":0},{"$f":"IF(AND(J8<>\"-\",S8=1,K8=CHK_V,OR(Z8=1,Z8=\"\"),M8=\"\"),1,0)","v":0},0,1,0,4,1,null,null,null,null,null,{"$f":"IF(AND(K8<>CHK_M,S8=1),1,IF(OR(AA7=1,AA7=2),IF(AND(C8=\"\",J8=\"\"),3,IF(AND(K8<>CHK_M,T8=\"\"),2,0)),0))","v":0},{"$f":"IF(OR(T8=4,AC8>0),1,0)+AA8","v":1}]
[null,null,null,null,null,null,null,null,null,"",{"$f":"CHK_A","v":"Akkoord"},null,null,{"$f":"IF(AND(J9<>\"-\",J9<>\"br\"),IF(AND(K9=CHK_M,OR(Z9=1,Z9=\"\")),1,0),0)","v":0},{"$f":"IF(AND(J9<>\"-\",S9=1,K9=CHK_V,OR(Z9=1,Z9=\"\"),L9=\"\"),1,0)","v":0},{"$f":"IF(AND(J9<>\"-\",S9=1,K9=CHK_V,OR(Z9=1,Z9=\"\"),M9=\"\"),1,0)","v":0},{"$f":"IF(AND(K9=CHK_V,S9=1),1,IF(OR(Q8=1,Q8=2),IF(AND(C9=\"\",J9=\"\"),3,IF(AND(K9<>CHK_M,K9<>CHK_A,K9<>CHK_N,T9=\"\"),2,0)),0))","v":0},{"$f":"IF(OR(T9=4,V9>0),1,0)","v":0},{"$f":"IF(AND(J9<>\"-\",J9<>\"\",OR(Z9=1,Z9=\"\")),1,0)","v":0},5,0,null,null,null,null,null,0,0]
[null,null,"Algemene bepalingen",null,null,null,null,null,null,"",{"$f":"CHK_N","v":"Nvt"},null,null,{"$f":"IF(AND(J10<>\"-\",J10<>\"br\"),IF(AND(K10=CHK_M,OR(Z10=1,Z10=\"\")),1,0),0)","v":0},{"$f":"IF(AND(J10<>\"-\",S10=1,K10=CHK_V,OR(Z10=1,Z10=\"\"),L10=\"\"),1,0)","v":0},{"$f":"IF(AND(J10<>\"-\",S10=1,K10=CHK_V,OR(Z10=1,Z10=\"\"),M10=\"\"),1,0)","v":0},{"$f":"IF(AND(K10=CHK_V,S10=1),1,IF(OR(Q9=1,Q9=2),IF(AND(C10=\"\",J10=\"\"),3,IF(AND(K10<>CHK_M,K10<>CHK_A,K10<>CHK_N,T10=\"\"),2,0)),0))","v":0},{"$f":"IF(OR(T10=4,V10>0),1,0)","v":0},{"$f":"IF(AND(J10<>\"-\",J10<>\"\",OR(Z10=1,Z10=\"\")),1,0)","v":0},99,0,{"$f":"SUM($Q$11:$Q$40)","v":0},{"$f":"SUM($N$11:$N$40)","v":13},{"$f":"SUM($O$11:$O$40)","v":0},{"$f":"SUM($P$11:$P$40)","v":0},null,0,0,{"$f":"SUM($AA$11:$AA$40)","v":0}]
["art. 36",null,"Zijn in de balans de financiële vaste activa onderscheiden naar de volgende categorieën:   ",null,null,null,null,null,null,"","XEmpty",null,null,0,0,0,0,0,0,null,0,null,null,null,null,null,{"$f":"IF(AND(K11<>CHK_M,S11=1),1,IF(OR(AA10=1,AA10=2),IF(AND(C11=\"\",J11=\"\"),3,IF(AND(K11<>CHK_M,T11=\"\"),2,0)),0))","v":0},{"$f":"IF(OR(T11=4,AC11>0),1,0)+AA11","v":0}]
[null,null,null,null,null,null,null,null,null,"","XEmpty",null,null,0,0,0,0,0,0,null,0,null,null,null,null,null,0,0]
[null,null,"a. kapitaalverstrekkingen aan:",null,null,null,null,null,null,"","XEmpty",null,null,0,0,0,0,0,0,null,0,null,null,null,null,null,0,0]
[null,null,null,null,null,null,null,null,null,"","XEmpty",null,null,0,0,0,0,0,0,null,0,null,null,null,null,null,0,0]
[null,null,"1. deelnemingen","w",null,null,null,null,null,"w","Maak uw keuze",null,null,1,0,0,0,0,1,null,0,null,null,null,null,null,0,0]
[null,null,"2. gemeenschappelijke regelingen","w",null,null,null,null,null,"w","Maak uw keuze",null,null,1,0,0,0,0,1,null,0,null,null,null,null,null,0,0]
[null,null,"3. overige verbonden partijen","w",null,null,null,null,null,"w","Maak uw keuze",null,null,1,0,0,0,0,1,null,0,null,null,null,null,null,0,0]
[null,null,null,null,null,null,null,null,null,"","XEmpty",null,null,0,0,0,0,0,0,null,0,null,null,null,null,null,0,0]
[null,null,"b. leningen aan:",null,null,null,null,null,null,"","XEmpty",null,null,0,0,0,0,0,0,null,0,null,null,null,null,null,0,0]
[null,null,null,null,null,null,null,null,null,"","XEmpty",null,null,0,0,0,0,0,0,null,0,null,null,null,null,null,0,0]
[null,null,"1. openbare lichamen als bedoeld in artikel 1, onderdeel a, van de Wet financiering decentrale overheden","w",null,null,null,null,null,"w","Maak uw keuze",null,null,1,0,0,0,0,1,null,0,null,null,null,null,null,0,0]
[null,null,"2. woningbouwcorporaties","w",null,null,null,null,null,"w","Maak uw keuze",null,null,1,0,0,0,0,1,null,0,null,null,null,null,null,0,0]
[null,null,"3. deelnemingen","w",null,null,null,null,null,"w","Maak uw keuze",null,null,1,0,0,0,0,1,null,0,null,null,null,null,null,0,0]
[null,null,"4. overige verbonden partijen","w",null,null,null,null,null,"w","Maak uw keuze",null,null,1,0,0,0,0,1,null,0,null,null,null,null,null,0,0]
[null,null,null,null,null,null,null,null,null,"","XEmpty",null,null,0,0,0,0,0,0,null,0,null,null,null,null,null,0,0]
[null,null,"c. overige langlopende leningen","w",null,null,null,null,null,"w","Maak uw keuze",null,null,1,0,0,0,0,1,null,0,null,null,null,null,null,0,0]
[null,null,null,null,null,null,null,null,null,"","XEmpty",null,null,0,0,0,0,0,0,null,0,null,null,null,null,null,0,0]
[null,null,"d. uitzettingen in ’s Rijks schatkist met een rentetypische looptijd van één jaar of langer","w",null,null,null,null,null,"w","Maak uw keuze",null,null,1,0,0,0,0,1,null,0,null,null,null,null,null,0,0]
[null,null,null,null,null,null,null,null,null,"","XEmpty",null,null,0,0,0,0,0,0,null,0,null,null,null,null,null,0,0]
[null,null,"e. uitzettingen in de vorm van Nederlands schuldpapier met een rentetypische looptijd van één jaar of langer","w",null,null,null,null,null,"w","Maak uw keuze",null,null,1,0,0,0,0,1,null,0,null,null,null,null,null,0,0]
[null,null,null,null,null,null,null,null,null,"","XEmpty",null,null,0,0,0,0,0,0,null,0,null,null,null,null,null,0,0]
[null,null,"f. overige uitzettingen met een rentetypische looptijd van één jaar of langer","w",null,null,null,null,null,"w","Maak uw keuze",null,null,1,0,0,0,0,1,null,0,null,null,null,null,null,0,0]
[null,null,null,null,null,null,null,null,null,"","XEmpty",null,null,0,0,0,0,0,0,null,0,null,null,null,null,null,0,0]
[null,null,null,null,null,null,null,null,null,"","XEmpty",null,null,0,0,0,0,0,0,null,0,null,null,null,null,null,0,0]
["art. 63.8",null,"Worden eventuele voorzieningen wegens oninbaarheid in mindering gebracht op de nominale waarde van leningen?","w",null,null,null,null,null,"w","Maak uw keuze",null,null,1,0,0,0,0,1,null,0,null,null,null,null,null,0,0]
[null,null,null,null,null,null,null,null,null,"","XEmpty",null,null,0,0,0,0,0,0,null,0,null,null,null,null,null,0,0]
["art. 65.2",null,"Worden deelnemingen tegen de marktwaarde gewaardeerd indien de marktwaarde duurzaam lager is dan de verkrijgingsprijs?","w",null,null,null,null,null,"w","Maak uw keuze",null,null,1,0,0,0,0,1,null,0,null,null,null,null,null,0,0]
[null,null,null,null,null,null,null,null,null,"","XEmpty",null,null,0,0,0,0,0,0,null,0,null,null,null,null,null,0,0]
[null,null,null,null,null,null,null,null,null,"","XEmpty",null,null,0,0,0,0,0,0,null,0,null,null,null,null,null,0,0]
[null,null,null,null,null,null,null,null,null,"","XEmpty",null,null,0,0,0,0,0,0,null,0,null,null,null,null,null,0,0]

{"sheet":"Grondexploitatie","index":7,"n_rows":96,"n_cols":29,"rows_kept":96,"cut":false,"hidden":false,"merged":[[3,12,5,12],[1,10,5,10],[1,11,5,11]]}
["BBV",null,null,null,null,null,null,null,null,{"$f":"IF(ISBLANK(D1)=TRUE,\"\",OFFSET(C1,0,CATSRT))","v":""},null,null,null,"PD RANGE"]
[null,null,null,null,null,null,null,null,null,"",{"$f":"VOLDAAN","v":"Is aan de vereisten voor de Jaarverslag-geving voldaan?"},{"$f":"TOEL","v":"Commentaar bij \"Voldoet niet\""},null,null,null,null,null,"Kopje van",null,null,"tbv hiden"]
[null,null,"w = wettelijk vereiste       s = stellige uitspraak van cie Bbv",null,null,null,null,null,null,"",null,null,null,"Vraag","Toelichting","Review","hulprange","hfdstuk of",null,"Info","Som P en Q","info","info","info","info"]
[null,null,"-  = niet vereist                 a = aanbevolen door cie Bbv",null,null,null,null,null,null,"",null,null,{"$f":"COM_REV","v":"Afwerking / Commentaar reviewer"},"(on)beantwoord","opgenomen","opgenomen","Vold. niet","Vold niet","vraagregel?"]
[null,null,null,null,null,null,null,null,null,"",null,null,null,null,null,null,"info"]
[{"$f":"IF(Navigatiescherm!J32=0,TRUE,FALSE)","v":false},null,null,null,null,null,null,null,null,"",null,null,null,"info"]
[null,null,null,null,null,null,null,null,null,"",{"$f":"CHK_M","v":"Maak uw keuze"},null,null,null,null,null,{"$f":"IF(AND(K7=CHK_V,S7=1),1,IF(OR(Q6=1,Q6=2),IF(AND(C7=\"\",J7=\"\"),3,IF(AND(K7<>CHK_M,K7<>CHK_A,K7<>CHK_N,T7=\"\"),2,0)),0))","v":0},{"$f":"IF(OR(T7=4,V7>0),1,0)","v":1},{"$f":"IF(AND(J7<>\"-\",J7<>\"\",OR(Z7=1,Z7=\"\")),1,0)","v":0},4,{"$f":"Q7+R7","v":1},null,null,null,null,null,{"$f":"IF(AND(K7<>CHK_M,S7=1),1,IF(OR(AA6=1,AA6=2),IF(AND(C7=\"\",J7=\"\"),3,IF(AND(K7<>CHK_M,T7=\"\"),2,0)),0))","v":0},{"$f":"IF(OR(T7=4,AC7>0),1,0)+AA7","v":1}]
[null,null,"Onderhanden werk grondexploitatie",null,null,null,null,null,null,"",{"$f":"CHK_V","v":"Voldoet niet"},null,null,{"$f":"IF(AND(J8<>\"-\",J8<>\"br\"),IF(AND(K8=CHK_M,OR(Z8=1,Z8=\"\")),1,0),0)","v":0},{"$f":"IF(AND(J8<>\"-\",S8=1,K8=CHK_V,OR(Z8=1,Z8=\"\"),L8=\"\"),1,0)","v":0},{"$f":"IF(AND(J8<>\"-\",S8=1,K8=CHK_V,OR(Z8=1,Z8=\"\"),M8=\"\"),1,0)","v":0},0,{"$f":"IF(OR(T8=4,V8>0),1,0)","v":1},{"$f":"IF(AND(J8<>\"-\",J8<>\"\",OR(Z8=1,Z8=\"\")),1,0)","v":0},4,1,null,null,null,null,null,{"$f":"IF(AND(K8<>CHK_M,S8=1),1,IF(OR(AA7=1,AA7=2),IF(AND(C8=\"\",J8=\"\"),3,IF(AND(K8<>CHK_M,T8=\"\"),2,0)),0))","v":0},{"$f":"IF(OR(T8=4,AC8>0),1,0)+AA8","v":1}]
[null,null,null,null,null,null,null,null,null,"",{"$f":"CHK_A","v":"Akkoord"},null,null,{"$f":"IF(AND(J9<>\"-\",J9<>\"br\"),IF(AND(K9=CHK_M,OR(Z9=1,Z9=\"\")),1,0),0)","v":0},{"$f":"IF(AND(J9<>\"-\",S9=1,K9=CHK_V,OR(Z9=1,Z9=\"\"),L9=\"\"),1,0)","v":0},{"$f":"IF(AND(J9<>\"-\",S9=1,K9=CHK_V,OR(Z9=1,Z9=\"\"),M9=\"\"),1,0)","v":0},{"$f":"IF(AND(K9=CHK_V,S9=1),1,IF(OR(Q8=1,Q8=2),IF(AND(C9=\"\",J9=\"\"),3,IF(AND(K9<>CHK_M,K9<>CHK_A,K9<>CHK_N,T9=\"\"),2,0)),0))","v":0},{"$f":"IF(OR(T9=4,V9>0),1,0)","v":0},{"$f":"IF(AND(J9<>\"-\",J9<>\"\",OR(Z9=1,Z9=\"\")),1,0)","v":0},5,0,null,null,null,null,null,{"$f":"IF(AND(K9<>CHK_M,S9=1),1,IF(OR(AA8=1,AA8=2),IF(AND(C9=\"\",J9=\"\"),3,IF(AND(K9<>CHK_M,T9=\"\"),2,0)),0))","v":0},{"$f":"IF(OR(T9=4,AC9>0),1,0)+AA9","v":0}]
[null,null,"Voorraden",null,null,null,null,null,null,"",{"$f":"CHK_N","v":"Nvt"},null,null,0,0,0,0,0,0,99,0,{"$f":"SUM($Q$11:$Q$32)","v":0},{"$f":"SUM($N$11:$N$32)","v":15},{"$f":"SUM($O$11:$O$32)","v":0},{"$f":"SUM($P$11:$P$32)","v":0},null,0,0,{"$f":"SUM($AA$11:$AA$96)","v":0}]
["art. 38",null,"Zijn de voorraden in de balans uitgesplitst naar de volgende categorieën:       ",null,null,null,null,null,null,"","XEmpty",null,null,0,0,0,0,0,0,null,0,null,null,null,null,null,0,0]
[null,null,"a. grond- en hulpstoffen; ","w",null,null,null,null,null,"w","Maak uw keuze",null,null,1,0,0,0,0,1,null,0,null,null,null,null,null,0,0]
[null,null,"b. onderhanden werk, waaronder bouwgronden in exploitatie;","w",null,null,null,null,null,"w","Maak uw keuze",null,null,1,0,0,0,0,1,null,0,null,null,null,null,null,0,0]
[null,null,"c. gereed product en handelsgoederen;","w",null,null,null,null,null,"w","Maak uw keuze",null,null,1,0,0,0,0,1,null,0,null,null,null,null,null,0,0]
[null,null,"d. vooruitbetalingen?","w",null,null,null,null,null,"w","Maak uw keuze",null,null,1,0,0,0,0,1,null,0,null,null,null,null,null,0,0]
[null,null,null,null,null,null,null,null,null,"","XEmpty",null,null,0,0,0,0,0,0,null,0,null,null,null,null,null,0,0]
[null,null,"Zijn onder de BIE alleen gronden met een vastgestelde grondexploitatie inclusief grondexploitatiebegroting opgenomen?","w",null,null,null,null,null,"w","Maak uw keuze",null,null,1,0,0,0,0,1,null,0,null,null,null,null,null,0,0]
[null,null,"Zijn gronden zonder vastgestelde grondexploitatie inclusief grondexploitatiebegroting verantwoord onder MVA?","w",null,null,null,null,null,"w","Maak uw keuze",null,null,1,0,0,0,0,1,null,0,null,null,null,null,null,0,0]
["Notitie grondbeleid (2019)\n- SU O",null,"Faciliterend grondbeleid - Zijn kosten die de gemeente heeft gemaakt en die in het kader van faciliterend grondbeleid op basis van een overeenkomst kunnen worden verhaald op derden verantwoord als balanspost overige nog te ontvangen bedragen (artikel 40a lid 1 onderdeel b BBV) (zie tab vorderingen)?\n\nIn de toelichting op deze balansposten moeten deze vorderingen expliciet worden toegelicht en gespecificeerd als zijnde ‘verhaalbare kosten’. ","s",null,null,null,null,null,"s","Maak uw keuze",null,null,1,0,0,0,0,1,null,0,null,null,null,null,null,0,0]
["Notitie grondbeleid (2019)\n- SU O",null,"Faciliterend grondbeleid - Is voor kosten die de gemeente verhaalt op basis van een exploitatieplan waarvoor inmiddels een vergunning is aangevraagd een vordering opgenomen die is verantwoord bij de balanspost overige nog te ontvangen bedragen (artikel 40a lid 1 onderdeel b BBV) (zie tab vorderingen)?\n\nIn de toelichting op deze balansposten moeten deze vorderingen eveneens expliciet worden toegelicht en gespecificeerd als zijnde ‘verhaalbare kosten’.","s",null,null,null,null,null,"s","Maak uw keuze",null,null,1,0,0,0,0,1,null,0,null,null,null,null,null,0,0]
[null,null,null,null,null,null,null,null,null,"","XEmpty",null,null,0,0,0,0,0,0,null,0,null,null,null,null,null,0,0]
[null,null,"Zijn ruilgronden opgenomen als voorraad handelsgoederen indien geen sprake is van gebruik van de gronden of de gronden op korte termijn worden vervreemd?","w",null,null,null,null,null,"w","Maak uw keuze",null,null,1,0,0,0,0,1,null,0,null,null,null,null,null,0,0]
[null,null,null,null,null,null,null,null,null,"","XEmpty",null,null,0,0,0,0,0,0,null,0,null,null,null,null,null,0,0]
[null,null,"Indien deze gronden (tijdelijk) worden gebruikt voor een maatschappelijke of economische functie (bijv. recreatief, parkeervoorziening, agrarisch), dan behoren dergelijke gronden gedurende deze tijd tot de materiële vaste activa. Is hieraan voldaan?","w",null,null,null,null,null,"w","Maak uw keuze",null,null,1,0,0,0,0,1,null,0,null,null,null,null,null,0,0]
[null,null,null,null,null,null,null,null,null,"","XEmpty",null,null,0,0,0,0,0,0,null,0,null,null,null,null,null,0,0]
[null,null,"Zijn grondbanken zonder transformatie verantwoord als onderhanden werk, niet zijnde BIE?","w",null,null,null,null,null,"w","Maak uw keuze",null,null,1,0,0,0,0,1,null,0,null,null,null,null,null,0,0]
[null,null,null,null,null,null,null,null,null,"","XEmpty",null,null,0,0,0,0,0,0,null,0,null,null,null,null,null,0,0]
[null,null,"Zijn grondbanken met transformatie verantwoord als BIE?","w",null,null,null,null,null,"w","Maak uw keuze",null,null,1,0,0,0,0,1,null,0,null,null,null,null,null,0,0]
[null,null,null,null,null,null,null,null,null,"","XEmpty",null,null,0,0,0,0,0,0,null,0,null,null,null,null,null,0,0]
["art. 65.2",null,"Worden voorraden tegen de marktwaarde gewaardeerd indien de marktwaarde lager is dan de verkrijgings- of vervaardigingsprijs? ","w",null,null,null,null,null,"w","Maak uw keuze",null,null,1,0,0,0,0,1,null,0,null,null,null,null,null,0,0]
["Notitie grondbeleid (2019)",null,"Zijn waardeverminderingen verwerkt als waardecorrectie, analoog aan de voorziening voor dubieuze debiteuren? Bij een naar verwachting duurzame waardevermindering is afboeking ook toegestaan.","s",null,null,null,null,null,"s","Maak uw keuze",null,null,1,0,0,0,0,1,null,0,null,null,null,null,null,0,0]
["art. 52b",null,"Zijn de aard en de omvang van de aangebrachte dan wel geraamde waardeverminderingen van de voorraden ex art 65 lid 2 in de toelichting op de balans opgenomen?","w",null,null,null,null,null,"w","Maak uw keuze",null,null,1,0,0,0,0,1,null,0,null,null,null,null,null,0,0]
[null,null,null,null,null,null,null,null,null,"","XEmpty",null,null,0,0,0,0,0,0,null,0,null,null,null,null,null,0,0]
[null,null,"Bouwgronden in exploitatie",null,null,null,null,null,null,"","XEmpty",null,null,0,0,0,0,0,0,99,0,{"$f":"SUM($Q$34:$Q$96)","v":0},{"$f":"SUM($N$34:$N$96)","v":36},{"$f":"SUM($O$34:$O$96)","v":0},{"$f":"SUM($P$34:$P$96)","v":0},null,0,0]
["art. 52d",null,"Is in de toelichting op de balans ten aanzien van de bouwgronden in exploitatie voor het totaal van de in exploitatie zijnde complexen aangegeven:",null,null,null,null,null,null,"","XEmpty",null,null,0,0,0,0,0,0,null,0,null,null,null,null,null,0,0]
[null,null,"a. de boekwaarde aan het begin van het begrotingsjaar","w",null,null,null,null,null,"w","Maak uw keuze",null,null,1,0,0,0,0,1,null,0,null,null,null,null,null,0,0]
[null,null,"b. de vermeerderingen en verminderingen in het begrotingsjaar","w",null,null,null,null,null,"w","Maak uw keuze",null,null,1,0,0,0,0,1,null,0,null,null,null,null,null,0,0]
[null,null,"c. de boekwaarde aan het einde van het begrotingsjaar","w",null,null,null,null,null,"w","Maak uw keuze",null,null,1,0,0,0,0,1,null,0,null,null,null,null,null,0,0]
[null,null,"d. de geraamde nog te maken kosten met een onderbouwing","w",null,null,null,null,null,"w","Maak uw keuze",null,null,1,0,0,0,0,1,null,0,null,null,null,null,null,0,0]
[null,null,"e. de geraamde opbrengsten met een onderbouwing","w",null,null,null,null,null,"w","Maak uw keuze",null,null,1,0,0,0,0,1,null,0,null,null,null,null,null,0,0]
[null,null,"f. het geraamde eindresultaat en de berekeningswijze die hiervoor is gehanteerd met een onderbouwing en de aannames die eraan ten grondslag liggen?","w",null,null,null,null,null,"w","Maak uw keuze",null,null,1,0,0,0,0,1,null,0,null,null,null,null,null,0,0]
[null,null,null,null,null,null,null,null,null,"","XEmpty",null,null,0,0,0,0,0,0,null,0,null,null,null,null,null,0,0]
["Notitie grondbeleid (2019)",null,"Is bij het bepalen van eventuele verliezen op onderhanden werk voor grondexploitatie overwogen om investeringen in riolering en in de openbare ruimte met maatschappelijk nut te activeren? Hierbij geldt wel dat stelselmatigheid betracht moet worden voor de complexen en dat de verwerking niet mag afwijken van de besluitvorming door de raad.","s",null,null,null,null,null,"s","Maak uw keuze",null,null,1,0,0,0,0,1,null,0,null,null,null,null,null,0,0]
["Notitie grondbeleid (2019)",null,"Wanneer bestedingen die eerder als kosten van de grondexploitatie werden aangemerkt, uit de grondexploitatie zijn gehaald en als investeringen zijn geactiveerd onder de materiële vaste activa, voldoen deze aan de voorwaarden zoals opgenomen in bijlage 2 van de notitie grondexploitatie (2016).? Hierbij maakt de Commissie onderscheid in reeds gemaakte en nog te maken kosten van bestedingen in de openbare ruimte.","s",null,null,null,null,null,"s","Maak uw keuze",null,null,1,0,0,0,0,1,null,0,null,null,null,null,null,0,0]
[null,null,null,null,null,null,null,null,null,"","XEmpty",null,null,0,0,0,0,0,0,null,0,null,null,null,null,null,0,0]
["Notitie grondbeleid (2019) \n- SU B",null,"Is voor elke Bouwgrond in exploitatie (BIE) een raadsbesluit met de vaststelling van het grondexploitatiecomplex, inclusief grondexploitatiebegroting aanwezig?\n\nVanaf dat moment wordt de BIE geopend en kunnen kosten worden geactiveerd en bijgeschreven op de voorraadpositie bij onderhanden werk (bouwgronden in exploitatie) op de balans.","s",null,null,null,null,null,"s","Maak uw keuze",null,null,1,0,0,0,0,1,null,0,null,null,null,null,null,0,0]
[null,null,null,null,null,null,null,null,null,"","XEmpty",null,null,0,0,0,0,0,0,null,0,null,null,null,null,null,0,0]
["Notitie grondbeleid (2019)\n- SU C",null,"Is de looptijd van elke BIE maximaal 10 jaar, waarbij de 10 jaar wordt bezien als een richttermijn die voortschrijdend moet worden bezien en waar gemotiveerd van kan worden afgeweken?","s",null,null,null,null,null,"s","Maak uw keuze",null,null,1,0,0,0,0,1,null,0,null,null,null,null,null,0,0]
[null,null,"Indien de looptijd van de BIE langer is dan 10 jaar, stel dan vast of cumulatief aan de volgende voorwaarden is voldaan: ",null,null,null,null,null,null,"","XEmpty",null,null,0,0,0,0,0,0,null,0,null,null,null,null,null,0,0]
[null,null,"- Is de langere looptijd en de motivatie expliciet geautoriseerd door de raad?","s",null,null,null,null,null,"s","Maak uw keuze",null,null,1,0,0,0,0,1,null,0,null,null,null,null,null,0,0]
[null,null,"- Zijn er adequate beheersmaatregelen getroffen om de omzekerheden en risico's die gepaard gaan met de langere looptijd te mitigeren?","s",null,null,null,null,null,"s","Maak uw keuze",null,null,1,0,0,0,0,1,null,0,null,null,null,null,null,0,0]
[null,null,"- Is de motivatie tot afwijking van de 10-jaarstermijn verantwoord in de toelichting op de BIE in de jaarrekening?","s",null,null,null,null,null,"s","Maak uw keuze",null,null,1,0,0,0,0,1,null,0,null,null,null,null,null,0,0]
[null,null,null,null,null,null,null,null,null,"","XEmpty",null,null,0,0,0,0,0,0,null,0,null,null,null,null,null,0,0]
["Notitie grondbeleid (2019)\n- SU D",null,"Is de grondexploitatiebegroting geactualiseerd en is de actualisatie goedgekeurd door de raad indien sprake is van planinhoudelijke wijzigingen, danwel autonome wijzigingen met materiële financiële gevolgen?","s",null,null,null,null,null,"s","Maak uw keuze",null,null,1,0,0,0,0,1,null,0,null,null,null,null,null,0,0]
[null,null,null,null,null,null,null,null,null,"","XEmpty",null,null,0,0,0,0,0,0,null,0,null,null,null,null,null,0,0]
["Notitie grondbeleid (2019)\n- SU E",null,"Zijn alleen kosten toegerekend aan de BIE die voorkomen op de kostensoortenlijst zoals opgenomen artikel 6.2.4 van het Besluit ruimtelijke ordening?","s",null,null,null,null,null,"s","Maak uw keuze",null,null,1,0,0,0,0,1,null,0,null,null,null,null,null,0,0]
[null,null,null,null,null,null,null,null,null,"","XEmpty",null,null,0,0,0,0,0,0,null,0,null,null,null,null,null,0,0]
["Notitie grondbeleid (2019)\n- SU F",null,"Het deel van de kosten van bovenwijkse voorzieningen dat aan een in de toekomst te openen grondexploitatie wordt toegerekend, moet tot het moment dat de betreffende grond feitelijk in exploitatie wordt genomen, worden geactiveerd onder de betreffende categorie materiële vaste activa. Naar de aard van de bovenwijkse voorzieningen zal de betreffende activacategorie veelal de activa met maatschappelijk nut zijn (bijv. ontsluitingswegen, bruggen,, etc.).","s",null,null,null,null,null,"s","Maak uw keuze",null,null,1,0,0,0,0,1,null,0,null,null,null,null,null,0,0]
[null,null,null,null,null,null,null,null,null,"","XEmpty",null,null,0,0,0,0,0,0,null,0,null,null,null,null,null,0,0]
[null,null,"In de periode van activering als maatschappelijk nut tot en met het eventueel openen van de betreffende grondexploitatie, moet conform artikel 64, 3e lid BBV, vanaf de ingebruikname op het actief worden afgeschreven op basis van de verwachte gebruiksduur.","s",null,null,null,null,null,"s","Maak uw keuze",null,null,1,0,0,0,0,1,null,0,null,null,null,null,null,0,0]
[null,null,null,null,null,null,null,null,null,"","XEmpty",null,null,0,0,0,0,0,0,null,0,null,null,null,null,null,0,0]
["Notitie grondbeleid (2019)\n- SU G",null,"Het is vanaf 2016 niet meer toegestaan om toevoegingen te doen aan een voorziening voor bovenwijkse voorzieningen. Bestaande voorzieningen per ultimo 2015 mogen worden gehandhaafd en kunnen volgens planning worden afgewikkeld. Sparen voor bovenwijkse voorzieningen die na het afsluiten van een grondexploitatie zullen worden aangelegd, is nog wel mogelijk via een door de raad in te stellen bestemmingsreserve. Toevoegingen aan deze bestemmingsreserve kunnen alleen plaatsvinden via resultaatsbestemming.","s",null,null,null,null,null,"s","Maak uw keuze",null,null,1,0,0,0,0,1,null,0,null,null,null,null,null,0,0]
[null,null,null,null,null,null,null,null,null,"","XEmpty",null,null,0,0,0,0,0,0,null,0,null,null,null,null,null,0,0]
["Notitie grondbeleid (2019)\n- SU H",null,"Voldoen geactiveerde kosten van voorbereiding en onderzoek (immateriële vaste activa) aan de volgende voorwaarden:\n- De kosten passen binnen de kostensoortenlijst Wro/Bro (Notitie grondbeleid - SU E); en\n- De kosten mogen maximaal 5 jaar geactiveerd blijven staan onder de immateriële vaste activa. Na maximaal 5 jaar moeten de kosten hebben geleid tot een actieve grondexploitatie en kunnen dan worden overgeboekt naar de desbetreffende BIE, dan wel worden afgeboekt ten laste van het jaarresultaat; en\n- Plannen tot ontwikkeling van de grond waarvoor de voorbereidingskosten worden gemaakt, moeten bestuurlijke instemming hebben, blijkend uit een raadsbesluit.","s",null,null,null,null,null,"s","Maak uw keuze",null,null,1,0,0,0,0,1,null,0,null,null,null,null,null,0,0]
[null,null,null,null,null,null,null,null,null,"","XEmpty",null,null,0,0,0,0,0,0,null,0,null,null,null,null,null,0,0]
["Notitie grondbeleid (2019)\n- SU E",null,"De toegestane toe te rekenen rente aan BIE moet worden gebaseerd op de daadwerkelijk te betalen rente over het vreemd vermogen. Het is niet toegestaan om rente over het eigen vermogen toe te rekenen aan de taakvelden 3.2 Fysieke bedrijfsinfrastructuur en 8.2 Grondexploitatie (BIE). Het over het vreemd vermogen te hanteren rentepercentage moet als volgt worden bepaald:","s",null,null,null,null,null,"s","Maak uw keuze",null,null,1,0,0,0,0,1,null,0,null,null,null,null,null,0,0]
[null,null,"- In het geval van projectfinanciering: is de rente van de direct aan de grondexploitatie gerelateerde financiering aan de betreffende grondexploitatie toegerekend?","s",null,null,null,null,null,"s","Maak uw keuze",null,null,1,0,0,0,0,1,null,0,null,null,null,null,null,0,0]
[null,null,"- In het geval van totaalfinanciering: is de toegerekende rente berekend volgens het gewogen gemiddelde rentepercentage van de bestaande leningenportefeuille van de gemeente, naar verhouding vreemd vermogen/totaal vermogen?\n","s",null,null,null,null,null,"s","Maak uw keuze",null,null,1,0,0,0,0,1,null,0,null,null,null,null,null,0,0]
["Notitie grondbeleid (2019)",null,"- Zijn hierbij de werkelijke rentelasten gehanteerd en niet de begrote rentelasten en is het percentage op 2 cijfers achter de komma exact bepaald (geen afronding)?","s",null,null,null,null,null,"s","Maak uw keuze",null,null,1,0,0,0,0,1,null,0,null,null,null,null,null,0,0]
[null,null,"- Indien de gemeente geen externe financiering heeft, dan wordt geen rente toegerekend aan BIE.","s",null,null,null,null,null,"s","Maak uw keuze",null,null,1,0,0,0,0,1,null,0,null,null,null,null,null,0,0]
[null,null,null,null,null,null,null,null,null,"","XEmpty",null,null,0,0,0,0,0,0,null,0,null,null,null,null,null,0,0]
["Notitie grondbeleid (2019)",null,"Is de rente toegerekend over de bruto boekwaarde (zonder aftrek van de voorzieningen) van de BIE per 1 januari van het betreffende boekjaar?","s",null,null,null,null,null,"s","Maak uw keuze",null,null,1,0,0,0,0,1,null,0,null,null,null,null,null,0,0]
[null,null,null,null,null,null,null,null,null,"","XEmpty",null,null,{"$f":"IF(AND(J73<>\"-\",J73<>\"br\"),IF(AND(K73=CHK_M,OR(Z73=1,Z73=\"\")),1,0),0)","v":0},{"$f":"IF(AND(J73<>\"-\",S73=1,K73=CHK_V,OR(Z73=1,Z73=\"\"),L73=\"\"),1,0)","v":0},{"$f":"IF(AND(J73<>\"-\",S73=1,K73=CHK_V,OR(Z73=1,Z73=\"\"),M73=\"\"),1,0)","v":0},{"$f":"IF(AND(K73=CHK_V,S73=1),1,IF(OR(Q72=1,Q72=2),IF(AND(C73=\"\",J73=\"\"),3,IF(AND(K73<>CHK_M,K73<>CHK_A,K73<>CHK_N,T73=\"\"),2,0)),0))","v":0},{"$f":"IF(OR(T73=4,V73>0),1,0)","v":0},{"$f":"IF(AND(J73<>\"-\",J73<>\"\",OR(Z73=1,Z73=\"\")),1,0)","v":0},null,0,null,null,null,null,null,{"$f":"IF(AND(K73<>CHK_M,S73=1),1,IF(OR(AA72=1,AA72=2),IF(AND(C73=\"\",J73=\"\"),3,IF(AND(K73<>CHK_M,T73=\"\"),2,0)),0))","v":0},{"$f":"IF(OR(T73=4,AC73>0),1,0)+AA73","v":0}]
[null,null,null,null,null,null,null,null,null,"","XEmpty",null,null,0,0,0,0,0,0,null,0,null,null,null,null,null,0,0]
["Notitie grondbeleid (2019)\n- SU J",null,"Is de disconteringsvoet waartegen de verliesvoorziening contant is gemaakt gelijk aan de door de commissie BBV voorgeschreven rente van 2%?","s",null,null,null,null,null,"s","Maak uw keuze",null,null,1,0,0,0,0,1,null,0,null,null,null,null,null,0,0]
[null,null,null,null,null,null,null,null,null,"","XEmpty",null,null,0,0,0,0,0,0,null,0,null,null,null,null,null,0,0]
["Notitie grondbeleid (2019)\n- SU L\n- Bijlage 4",null,"Is bij winstgevende BIE tussentijds winst genomen volgens de percentage of completion methode? \nHet voorzichtigheidsbeginsel leidt er immers toe dat realisatie van winst moet worden uitgesteld tot daarover voldoende zekerheid bestaat. Dit betekent echter niet dat pas winst moet worden genomen bij het afsluiten van het grondexploitatiecomplex. Er zijn situaties denkbaar waarbij reeds eerder voldoende zekerheid is voor winst nemen. Volgens het realisatiebeginsel dient in die gevallen de winst dan ook te worden genomen. Hierbij dient de percentage of completion methode te worden gevolgd. Indien aan de volgende voorwaarden is voldaan, bestaat voldoende zekerheid om winst te kunnen nemen:\n1. Het resultaat op de grondexploitatie kan betrouwbaar worden ingeschat; én\n2. De grond (of het deelperceel) moet zijn verkocht; én\n3. De kosten zijn gerealiseerd (winst wordt naar rato van de realisatie gerealiseerd).\nVolgens het realisatiebeginsel dient in die gevallen de winst ook te worden genomen.","s",null,null,null,null,null,"s","Maak uw keuze",null,null,1,0,0,0,0,1,null,0,null,null,null,null,null,0,0]
[null,null,null,null,null,null,null,null,null,"","XEmpty",null,null,0,0,0,0,0,0,null,0,null,null,null,null,null,0,0]
[null,null,"Als de berekening van de tussentijdse winstneming volgens de percentage of completion methode ertoe leidt dat in eerdere jaren teveel winst is genomen, dan dient de gemeente de eerder teveel genomen winst terug te nemen c.q. draaien. Is hieraan voldaan?","s",null,null,null,null,null,"s","Maak uw keuze",null,null,1,0,0,0,0,1,null,0,null,null,null,null,null,0,0]
[null,null,null,null,null,null,null,null,null,"","XEmpty",null,null,0,0,0,0,0,0,null,0,null,null,null,null,null,0,0]
["Notitie grondbeleid (2019)\n- bijlage 4",null,"Stel vast dat subsidiebaten en de daarbij behorende subsidiabele kosten bij grondexploitaties geen onderdeel uitmaken van de tussentijdse winstneming en worden verantwoord op het moment dat de subsidie volgens de subsidievoorwaarden is gerealiseerd.","s",null,null,null,null,null,"s","Maak uw keuze",null,null,1,0,0,0,0,1,null,0,null,null,null,null,null,0,0]
[null,null,null,null,null,null,null,null,null,"","XEmpty",null,null,0,0,0,0,0,0,null,0,null,null,null,null,null,0,0]
["Notitie grondbeleid (2019)\n- bijlage 4",null,"Stel vast dat subsidiebaten en de daarbij behorende subsidiabele kosten bij grondexploitaties geen onderdeel uitmaken van de tussentijdse winstneming en worden verantwoord op het moment dat de subsidie volgens de subsidievoorwaarden is gerealiseerd.","s",null,null,null,null,null,"s","Maak uw keuze",null,null,1,0,0,0,0,1,null,0,null,null,null,null,null,0,0]
[null,null,null,null,null,null,null,null,null,"","XEmpty",null,null,0,0,0,0,0,0,null,0,null,null,null,null,null,0,0]
["Notitie grondbeleid (2019)\n- SU M",null,"Stel vast dat de presentatie van de te verwachten resultaten in de paragraaf grondbeleid en de toelichting op de balans is gedaan op eindwaarde. ","s",null,null,null,null,null,"s","Maak uw keuze",null,null,1,0,0,0,0,1,null,0,null,null,null,null,null,0,0]
[null,null,null,null,null,null,null,null,null,"","XEmpty",null,null,0,0,0,0,0,0,null,0,null,null,null,null,null,0,0]
["Notitie grondbeleid (2019)\n- SU M",null,"Stel vast dat wanneer bij de waardering van de voorziening voor verliesgevende grondexploitaties niet wordt geopteerd voor de nominale waarde maar voor de contante waarde, het effect hiervan op de te verwachten resultaten voor de negatieve grondexploitaties wordt toegelicht in de paragraaf grondbeleid.","s",null,null,null,null,null,"s","Maak uw keuze",null,null,1,0,0,0,0,1,null,0,null,null,null,null,null,0,0]
[null,null,null,null,null,null,null,null,null,"","XEmpty",null,null,0,0,0,0,0,0,null,0,null,null,null,null,null,0,0]
[null,null,null,null,null,null,null,null,null,"","XEmpty",null,null,0,0,0,0,0,0,null,0,null,null,null,null,null,0,0]
["Notitie grondbeleid (2019)\n- SU K",null,"De lasten en baten verband houdende met grondexploitaties worden in de exploitatie verantwoord en via een tegenboeking (onderhanden werk) naar de balans gemuteerd. Is hieraan voldaan?","s",null,null,null,null,null,"s","Maak uw keuze",null,null,1,0,0,0,0,1,null,0,null,null,null,null,null,0,0]
[null,null,"Het is niet toegestaan om gelden uit eigen middelen (reserves) in mindering te brengen op de onderhanden werk positie van de bouwgronden in exploitatie. Is hieraan voldaan?","s",null,null,null,null,null,"s","Maak uw keuze",null,null,1,0,0,0,0,1,null,0,null,null,null,null,null,0,0]
[null,null,null,null,null,null,null,null,null,"","XEmpty",null,null,0,0,0,0,0,0,null,0,null,null,null,null,null,0,0]
["Notitie grondbeleid (2019)\n- SU N",null,"Het treffen van een afboeking of een voorziening gebeurt bij een geprognosticeerd verlies direct ter grootte van dit volledige verlies. Als sprake is van een voorziening ingericht ter bestrijding van de (verwachte) tekorten in grondexploitaties, dan moet die worden gepresenteerd als een waardecorrectie op de post Bouwgrond in exploitatie. Deze wijze van verantwoording is naar analogie van de voorziening voor dubieuze debiteuren.\nNB: indien de voorziening de boekwaarde overstijgt dient de resterend getroffen voorziening aan de creditzijde van de balans (onder de post voorzieningen) gepresenteerd te worden.","s",null,null,null,null,null,"s","Maak uw keuze",null,null,{"$f":"IF(AND(J93<>\"-\",J93<>\"br\"),IF(AND(K93=CHK_M,OR(Z93=1,Z93=\"\")),1,0),0)","v":1},{"$f":"IF(AND(J93<>\"-\",S93=1,K93=CHK_V,OR(Z93=1,Z93=\"\"),L93=\"\"),1,0)","v":0},{"$f":"IF(AND(J93<>\"-\",S93=1,K93=CHK_V,OR(Z93=1,Z93=\"\"),M93=\"\"),1,0)","v":0},{"$f":"IF(AND(K93=CHK_V,S93=1),1,IF(OR(Q92=1,Q92=2),IF(AND(C93=\"\",J93=\"\"),3,IF(AND(K93<>CHK_M,K93<>CHK_A,K93<>CHK_N,T93=\"\"),2,0)),0))","v":0},{"$f":"IF(OR(T93=4,V93>0),1,0)","v":0},{"$f":"IF(AND(J93<>\"-\",J93<>\"\",OR(Z93=1,Z93=\"\")),1,0)","v":1},null,{"$f":"Q93+R93","v":0},null,null,null,null,null,{"$f":"IF(AND(K93<>CHK_M,S93=1),1,IF(OR(AA92=1,AA92=2),IF(AND(C93=\"\",J93=\"\"),3,IF(AND(K93<>CHK_M,T93=\"\"),2,0)),0))","v":0},{"$f":"IF(OR(T93=4,AC93>0),1,0)+AA93","v":0}]
[null,null,null,null,null,null,null,null,null,null,"XEmpty",null,null,0,0,0,0,0,0,null,0,null,null,null,null,null,0,0]
["Actualiteit",null,"Stel vast dat de - als gevolg van het huidige economische klimaat - toegenomen schattingsonzekerheid inzake de uitgangspunten, parameters, en prospecties voor de nog te realiseren kosten/opbrengsten en verwachte resultaten van de grondexploitatie adequaat zijn toegelicht in de jaarrekening.\n\nNB: Dit is geen 'harde' verplichting vanuit het BBV maar wel een belangrijke toelichting die wij als accountants (mogen) verwachten (mede o.b.v. NV COS 540).",null,null,null,null,null,null,"a","Maak uw keuze",null,null,1,0,0,0,0,1,null,0,null,null,null,null,null,0,0]
[null,null,null,null,null,null,null,null,null,"","XEmpty",null,null,0,0,0,0,0,0,null,0,null,null,null,null,null,0,0]

{"sheet":"Vorderingen","index":8,"n_rows":63,"n_cols":29,"rows_kept":63,"cut":false,"hidden":false,"merged":[[3,12,5,12],[1,10,5,10],[1,11,5,11]]}
["BBV",null,null,null,null,null,null,null,null,{"$f":"IF(ISBLANK(D1)=TRUE,\"\",OFFSET(C1,0,CATSRT))","v":""},null,null,null,"PD RANGE"]
[null,null,null,null,null,null,null,null,null,"",{"$f":"VOLDAAN","v":"Is aan de vereisten voor de Jaarverslag-geving voldaan?"},{"$f":"TOEL","v":"Commentaar bij \"Voldoet niet\""},null,null,null,null,null,"Kopje van",null,null,"tbv hiden"]
[null,null,"w = wettelijk vereiste       s = stellige uitspraak van cie Bbv",null,null,null,null,null,null,"",null,null,null,"Vraag","Toelichting","Review","hulprange","hfdstuk of",null,"Info","Som P en Q","info","info","info","info"]
[null,null,"-  = niet vereist                 a = aanbevolen door cie Bbv",null,null,null,null,null,null,"",null,null,{"$f":"COM_REV","v":"Afwerking / Commentaar reviewer"},"(on)beantwoord","opgenomen","opgenomen","Vold. niet","Vold niet","vraagregel?"]
[null,null,null,null,null,null,null,null,null,"",null,null,null,null,null,null,"info"]
[{"$f":"IF(Navigatiescherm!J36=0,TRUE,FALSE)","v":false},null,null,null,null,null,null,null,null,"",null,null,null,"info"]
[null,null,null,null,null,null,null,null,null,"",{"$f":"CHK_M","v":"Maak uw keuze"},null,null,null,null,null,{"$f":"IF(AND(K7=CHK_V,S7=1),1,IF(OR(Q6=1,Q6=2),IF(AND(C7=\"\",J7=\"\"),3,IF(AND(K7<>CHK_M,K7<>CHK_A,K7<>CHK_N,T7=\"\"),2,0)),0))","v":0},{"$f":"IF(OR(T7=4,V7>0),1,0)","v":1},{"$f":"IF(AND(J7<>\"-\",J7<>\"\",OR(Z7=1,Z7=\"\")),1,0)","v":0},4,{"$f":"Q7+R7","v":1},null,null,null,null,null,{"$f":"IF(AND(K7<>CHK_M,S7=1),1,IF(OR(AA6=1,AA6=2),IF(AND(C7=\"\",J7=\"\"),3,IF(AND(K7<>CHK_M,T7=\"\"),2,0)),0))","v":0},{"$f":"IF(OR(T7=4,AC7>0),1,0)+AA7","v":1}]
[null,null,"Vorderingen",null,null,null,null,null,null,"",{"$f":"CHK_V","v":"Voldoet niet"},null,null,{"$f":"IF(AND(J8<>\"-\",J8<>\"br\"),IF(AND(K8=CHK_M,OR(Z8=1,Z8=\"\")),1,0),0)","v":0},{"$f":"IF(AND(J8<>\"-\",S8=1,K8=CHK_V,OR(Z8=1,Z8=\"\"),L8=\"\"),1,0)","v":0},{"$f":"IF(AND(J8<>\"-\",S8=1,K8=CHK_V,OR(Z8=1,Z8=\"\"),M8=\"\"),1,0)","v":0},0,{"$f":"IF(OR(T8=4,V8>0),1,0)","v":1},{"$f":"IF(AND(J8<>\"-\",J8<>\"\",OR(Z8=1,Z8=\"\")),1,0)","v":0},4,{"$f":"Q8+R8","v":1},null,null,null,null,null,0,{"$f":"IF(OR(T8=4,AC8>0),1,0)+AA8","v":1}]
[null,null,null,null,null,null,null,null,null,"",{"$f":"CHK_A","v":"Akkoord"},null,null,{"$f":"IF(AND(J9<>\"-\",J9<>\"br\"),IF(AND(K9=CHK_M,OR(Z9=1,Z9=\"\")),1,0),0)","v":0},{"$f":"IF(AND(J9<>\"-\",S9=1,K9=CHK_V,OR(Z9=1,Z9=\"\"),L9=\"\"),1,0)","v":0},{"$f":"IF(AND(J9<>\"-\",S9=1,K9=CHK_V,OR(Z9=1,Z9=\"\"),M9=\"\"),1,0)","v":0},{"$f":"IF(AND(K9=CHK_V,S9=1),1,IF(OR(Q8=1,Q8=2),IF(AND(C9=\"\",J9=\"\"),3,IF(AND(K9<>CHK_M,K9<>CHK_A,K9<>CHK_N,T9=\"\"),2,0)),0))","v":0},{"$f":"IF(OR(T9=4,V9>0),1,0)","v":0},{"$f":"IF(AND(J9<>\"-\",J9<>\"\",OR(Z9=1,Z9=\"\")),1,0)","v":0},5,0,null,null,null,null,null,{"$f":"IF(AND(K9<>CHK_M,S9=1),1,IF(OR(AA8=1,AA8=2),IF(AND(C9=\"\",J9=\"\"),3,IF(AND(K9<>CHK_M,T9=\"\"),2,0)),0))","v":0},{"$f":"IF(OR(T9=4,AC9>0),1,0)+AA9","v":0}]
[null,null,"Uitzettingen",null,null,null,null,null,null,"",{"$f":"CHK_N","v":"Nvt"},null,null,0,0,0,0,0,0,99,0,{"$f":"SUM($Q$11:$Q$25)","v":0},{"$f":"SUM($N$11:$N$25)","v":11},{"$f":"SUM($O$11:$O$25)","v":0},{"$f":"SUM($P$11:$P$25)","v":0},null,0,0,{"$f":"SUM($AA$11:$AA$25)","v":0}]
["art. 39",null,"Zijn de uitzettingen in de balans gespecificeerd overeenkomstig de volgende categorieën:",null,null,null,null,null,null,"","XEmpty",null,null,0,0,0,0,0,0,null,0,null,null,null,null,null,0,0,{"$f":"SUM($AA$11:$AA$25)","v":0}]
[null,null,"a. vorderingen op openbare lichamen;","w",null,null,null,null,null,"w","Maak uw keuze",null,null,1,0,0,0,0,1,null,0,null,null,null,null,null,0,0]
[null,null,"b. verstrekte kasgeldleningen aan openbare lichamen als bedoeld in artikel 1, onderdeel a, van de Wet financiering decentrale overheden","w",null,null,null,null,null,"w","Maak uw keuze",null,null,1,0,0,0,0,1,null,0,null,null,null,null,null,0,0]
[null,null,"c. Overige verstrekte kasgeldleningen;","w",null,null,null,null,null,"w","Maak uw keuze",null,null,1,0,0,0,0,1,null,0,null,null,null,null,null,0,0]
[null,null,"d. uitzettingen in ’s Rijks schatkist met een rentetypische looptijd korter dan één jaar","w",null,null,null,null,null,"w","Maak uw keuze",null,null,1,0,0,0,0,1,null,0,null,null,null,null,null,0,0]
[null,null,"e. rekening-courantverhouding met het Rijk","w",null,null,null,null,null,"w","Maak uw keuze",null,null,1,0,0,0,0,1,null,0,null,null,null,null,null,0,0]
[null,null,"f. rekening-courantverhoudingen met niet-financiële instellingen;","w",null,null,null,null,null,"w","Maak uw keuze",null,null,1,0,0,0,0,1,null,0,null,null,null,null,null,0,0]
[null,null,"g. uitzettingen in de vorm van Nederlands schuldpapier met een rentetypische looptijd korter dan één jaar","w",null,null,null,null,null,"w","Maak uw keuze",null,null,1,0,0,0,0,1,null,0,null,null,null,null,null,0,0]
[null,null,"h. overige vorderingen;","w",null,null,null,null,null,"w","Maak uw keuze",null,null,1,0,0,0,0,1,null,0,null,null,null,null,null,0,0]
[null,null,"i. overige uitzettingen?","w",null,null,null,null,null,"w","Maak uw keuze",null,null,1,0,0,0,0,1,null,0,null,null,null,null,null,0,0]
[null,null,null,null,null,null,null,null,null,"","XEmpty",null,null,0,0,0,0,0,0,null,0,null,null,null,null,null,0,0]
["art. 63.8",null,"Worden eventuele voorzieningen wegens oninbaarheid in mindering gebracht op de nominale waarde van de vordering?","w",null,null,null,null,null,"w","Maak uw keuze",null,null,1,0,0,0,0,1,null,0,null,null,null,null,null,0,0]
[null,null,null,null,null,null,null,null,null,"","XEmpty",null,null,0,0,0,0,0,0,null,0,null,null,null,null,null,0,0]
["art. 52b",null,"Zijn de aard en de omvang van de aangebrachte dan wel geraamde waardeverminderingen van de leningen en vorderingen ex art. 63 lid 8 in de toelichting op de balans opgenomen?","w",null,null,null,null,null,"w","Maak uw keuze",null,null,1,0,0,0,0,1,null,0,null,null,null,null,null,0,0]
[null,null,null,null,null,null,null,null,null,"","XEmpty",null,null,0,0,0,0,0,0,null,0,null,null,null,null,null,0,0]
[null,null,"Schatkistbankieren",null,null,null,null,null,null,"","XEmpty",null,null,0,0,0,0,0,0,99,0,{"$f":"SUM($Q$27:$Q$29)","v":0},{"$f":"SUM($N$27:$N$29)","v":2},{"$f":"SUM($O$27:$O$29)","v":0},{"$f":"SUM($P$27:$P$29)","v":0},null,0,0,{"$f":"SUM($AA$27:$AA$29)","v":0}]
[null,null,"Is in de jaarrekening de inzake schatkistbankieren verplichte toelichting opgenomen:\na. het drempelbedrag voor het begrotingsjaar waarover verantwoording wordt afgelegd?","w",null,null,null,null,null,"w","Maak uw keuze",null,null,1,0,0,0,0,1,null,0,null,null,null,null,null,0,0]
[null,null,"b. voor ieder kwartaal van dat jaar, het bedrag aan middelen, bedoeld in artikel 2, vierde lid, van de Wet financiering decentrale overheden, dat in het kader van het drempelbedrag door de provincie onderscheidenlijk de gemeente buiten ’s Rijks schatkist is aangehouden?","w",null,null,null,null,null,"w","Maak uw keuze",null,null,1,0,0,0,0,1,null,0,null,null,null,null,null,0,0]
[null,null,null,null,null,null,null,null,null,"","XEmpty",null,null,0,0,0,0,0,0,null,0,null,null,null,null,null,0,0]
[null,null,"Faciliterend grondbeleid",null,null,null,null,null,null,"","XEmpty",null,null,0,0,0,0,0,0,99,0,{"$f":"SUM($Q$31:$Q$47)","v":0},{"$f":"SUM($N$31:$N$47)","v":9},{"$f":"SUM($O$31:$O$47)","v":0},{"$f":"SUM($P$31:$P$47)","v":0},null,0,0]
["Notitie grondbeleid (2019)\n- SU O",null,"Zijn kosten die de gemeente heeft gemaakt in het kader van faciliterend grondbeleid en kan verhalen op derden, opgenomen onder de overige nog te ontvangen bedragen (artikel 40a lid 1 onderdeel b BBV) op de gemeentelijke balans:",null,null,null,null,null,null,"","XEmpty",null,null,0,0,0,0,0,0,null,0,null,null,null,null,null,0,0]
["Notitie grondbeleid (2019)\n- SU O",null,"- onder de post verhaalbare kosten (toelichten en specificeren) - als kosten die gemeenten hebben gemaakt en die in het kader van faciliterend grondbeleid op basis van een overeenkomst kunnen worden verhaald op derden? ","s",null,null,null,null,null,"s","Maak uw keuze",null,null,1,0,0,0,0,1,null,0,null,null,null,null,null,0,0]
["Notitie grondbeleid (2019)\n- SU Q",null,"- onder de post nog te verrekenen kosten (toelichten en specificeren) - als kosten kwalificeren als voorbereidingskosten voor faciliterende exploitatieplannen of nog te sluiten anterieure overeenkomsten mits is voldaan aan de voorwaarden (zie SU - Q in dit tabblad)?","s",null,null,null,null,null,"s","Maak uw keuze",null,null,1,0,0,0,0,1,null,0,null,null,null,null,null,0,0]
[null,null,null,null,null,null,null,null,null,"","XEmpty",null,null,0,0,0,0,0,0,null,0,null,null,null,null,null,0,0]
["Notitie grondbeleid (2019)\n- SU P",null,"Als de gemeente kosten verhaalt op basis van een exploitatieplan, maar verrekening nog niet kan plaatsvinden doordat nog geen omgevingsvergunning is aangevraagd of nog geen posterieure overeenkomst is gesloten, dienen de gerealiseerde nog te verhalen kosten te worden verantwoord als: ",null,null,null,null,null,null,"","XEmpty",null,null,0,0,0,0,0,0,null,0,null,null,null,null,null,0,0]
[null,null,"- nog te verhalen kosten (toelichten en specificeren) onder de overlopende activa (artikel 40a lid 1 onderdeel b BBV), voorzover wordt verwacht dat deze binnen 10 jaar nog verrekend kunnen worden.","s",null,null,null,null,null,"s","Maak uw keuze",null,null,1,0,0,0,0,1,null,0,null,null,null,null,null,0,0]
[null,null,"- niet in de balans opgenomen recht (vermelden) wanneer geen zicht bestaat op een toekomstige verrekening.","s",null,null,null,null,null,"s","Maak uw keuze",null,null,1,0,0,0,0,1,null,0,null,null,null,null,null,0,0]
[null,null,null,null,null,null,null,null,null,"","XEmpty",null,null,0,0,0,0,0,0,null,0,null,null,null,null,null,0,0]
["Notitie grondbeleid (2019)\n- SU Q",null,"Zijn voorbereidingskosten voor faciliterende exploitatieplannen of nog te sluiten anterieure overeenkomsten alleen als ‘nog te verrekenen kosten’ onder de overlopende activa (ex BBV artikel 40a, lid b) opgenomen als is voldaan aan de volgende voorwaarden:",null,null,null,null,null,null,"","XEmpty",null,null,0,0,0,0,0,0,null,0,null,null,null,null,null,0,0]
[null,null,"1. De kosten moeten passen binnen de kostensoortenlijst Wro/Bro; en","s",null,null,null,null,null,"s","Maak uw keuze",null,null,1,0,0,0,0,1,null,0,null,null,null,null,null,0,0]
[null,null,"2. De kosten mogen maximaal 5 jaar als overlopend actief blijven staan. Na maximaal 5 jaar moet het kostenverhaal zijn gerealiseerd danwel dienen de kosten te worden afgeboekt t.l.v. het jaarresultaat; en","s",null,null,null,null,null,"s","Maak uw keuze",null,null,1,0,0,0,0,1,null,0,null,null,null,null,null,0,0]
[null,null,"3. Er is een besluit door de raad of – indien gedelegeerd – het college genomen tot het maken van voorbereidingskosten voor facilitair grondbeleid in een aangewezen gebied voor het ontwikkelen van het exploitatieplan of tot het sluiten van een anterieure overeenkomst?","s",null,null,null,null,null,"s","Maak uw keuze",null,null,1,0,0,0,0,1,null,0,null,null,null,null,null,0,0]
[null,null,"4. In de toelichting op de overige nog te ontvangen bedragen op de balans moeten deze nog te verrekenen kosten expliciet worden toegelicht en gespecificeerd als zijnde voorbereidingskosten van faciliterende grondexploitaties. Is hieraan voldaan?","s",null,null,null,null,null,"s","Maak uw keuze",null,null,1,0,0,0,0,1,null,0,null,null,null,null,null,0,0]
[null,null,null,null,null,null,null,null,null,"","XEmpty",null,null,0,0,0,0,0,0,null,0,null,null,null,null,null,0,0]
["Notitie grondbeleid (2019)\n- bijlage 6",null,"Is voor de andere posten vallend onder faciliterend grondbeleid het schema gevolgd uit bijlage 6 van de notitie grondbeleid (2019)?","s",null,null,null,null,null,"s","Maak uw keuze",null,null,1,0,0,0,0,1,null,0,null,null,null,null,null,0,0]
[null,null,null,null,null,null,null,null,null,"","XEmpty",null,null,0,0,0,0,0,0,null,0,null,null,null,null,null,0,0]
[null,null,"Overlopende activa",null,null,null,null,null,null,"","XEmpty",null,null,0,0,0,0,0,0,99,0,{"$f":"SUM($Q$48:$Q$63)","v":0},{"$f":"SUM($N$48:$N$63)","v":10},{"$f":"SUM($O$48:$O$63)","v":0},{"$f":"SUM($P$48:$P$63)","v":0},null,0,0,{"$f":"SUM($AA$48:$AA$63)","v":0}]
["art. 40a",null,"Zijn in de balans onder de overlopende activa afzonderlijk opgenomen:",null,null,null,null,null,null,"","XEmpty",null,null,0,0,0,0,0,0,null,0,null,null,null,null,null,0,0,{"$f":"SUM($AA$48:$AA$63)","v":0}]
[null,null,"a. de van Europese en Nederlandse overheidslichamen nog te ontvangen voorschotbedragen die ontstaan door voorfinanciering op uitkering met een specifiek bestedingsdoel?","w",null,null,null,null,null,"w","Maak uw keuze",null,null,1,0,0,0,0,1,null,0,null,null,null,null,null,0,0]
[null,null,"b. overige nog te ontvangen bedragen en vooruitbetaalde bedragen die ten laste van volgende begrotingsjaren komen?","w",null,null,null,null,null,"w","Maak uw keuze",null,null,1,0,0,0,0,1,null,0,null,null,null,null,null,0,0]
[null,null,null,null,null,null,null,null,null,"","XEmpty",null,null,0,0,0,0,0,0,null,0,null,null,null,null,null,0,0]
["art. 40a",null,"Zijn de nog te ontvangen voorschotten van Europese en Nederlandse overheidslichamen, bedoeld in BBV art. 40a het eerste lid, onderdeel a, in de balans uitgesplitst naar de nog te ontvangen bedragen van:","w",null,null,null,null,null,"w","Maak uw keuze",null,null,1,0,0,0,0,1,null,0,null,null,null,null,null,0,0]
[null,null,"1°. Europese overheidslichamen;","w",null,null,null,null,null,"w","Maak uw keuze",null,null,1,0,0,0,0,1,null,0,null,null,null,null,null,0,0]
[null,null,"2°. het Rijk, en","w",null,null,null,null,null,"w","Maak uw keuze",null,null,1,0,0,0,0,1,null,0,null,null,null,null,null,0,0]
[null,null,"3°. overige Nederlandse overheidslichamen.?","w",null,null,null,null,null,"w","Maak uw keuze",null,null,1,0,0,0,0,1,null,0,null,null,null,null,null,0,0]
[null,null,null,null,null,null,null,null,null,"","XEmpty",null,null,0,0,0,0,0,0,null,0,null,null,null,null,null,0,0]
[null,null,null,null,null,null,null,null,null,"","XEmpty",null,null,0,0,0,0,0,0,null,0,null,null,null,null,null,0,0]
["art. 52a",null,"Wordt in de toelichting op de balans per uitkering met een specifiek bestedingsdoel het verloop gedurende het jaar van de nog te ontvangen voorschotbedragen (art 40a) in een overzicht weergegeven en blijkt daaruit:",null,null,null,null,null,null,"","XEmpty",null,null,0,0,0,0,0,0,null,0,null,null,null,null,null,0,0]
[null,null,"a. het saldo aan het begin van het begrotingsjaar;","w",null,null,null,null,null,"w","Maak uw keuze",null,null,1,0,0,0,0,1,null,0,null,null,null,null,null,0,0]
[null,null,"b. de toevoegingen;","w",null,null,null,null,null,"w","Maak uw keuze",null,null,1,0,0,0,0,1,null,0,null,null,null,null,null,0,0]
[null,null,"c. de ontvangen bedragen;","w",null,null,null,null,null,"w","Maak uw keuze",null,null,1,0,0,0,0,1,null,0,null,null,null,null,null,0,0]
[null,null,"d. het saldo aan het einde van het begrotingsjaar?","w",null,null,null,null,null,"w","Maak uw keuze",null,null,1,0,0,0,0,1,null,0,null,null,null,null,null,0,0]
[null,null,null,null,null,null,null,null,null,"","XEmpty",null,null,0,0,0,0,0,0,null,0,null,null,null,null,null,0,0]

{"sheet":"Liquide middelen","index":9,"n_rows":12,"n_cols":29,"rows_kept":12,"cut":false,"hidden":false,"merged":[[3,12,5,12],[1,10,5,10],[1,11,5,11]]}
["BBV",null,null,null,null,null,null,null,null,{"$f":"IF(ISBLANK(D1)=TRUE,\"\",OFFSET(C1,0,CATSRT))","v":""},null,null,null,"PD RANGE"]
[null,null,null,null,null,null,null,null,null,"",{"$f":"VOLDAAN","v":"Is aan de vereisten voor de Jaarverslag-geving voldaan?"},{"$f":"TOEL","v":"Commentaar bij \"Voldoet niet\""},null,null,null,null,null,"Kopje van",null,null,"tbv hiden"]
[null,null,"w = wettelijk vereiste       s = stellige uitspraak van cie Bbv",null,null,null,null,null,null,"",null,null,null,"Vraag","Toelichting","Review","hulprange","hfdstuk of",null,"Info","Som P en Q","info","info","info","info"]
[null,null,"-  = niet vereist                 a = aanbevolen door cie Bbv",null,null,null,null,null,null,"",null,null,{"$f":"COM_REV","v":"Afwerking / Commentaar reviewer"},"(on)beantwoord","opgenomen","opgenomen","Vold. niet","Vold niet","vraagregel?"]
[null,null,null,null,null,null,null,null,null,"",null,null,null,null,null,null,"info"]
[{"$f":"IF(Navigatiescherm!J42=0,TRUE,FALSE)","v":false},null,null,null,null,null,null,null,null,"",null,null,null,"info"]
[null,null,null,null,null,null,null,null,null,"",{"$f":"CHK_M","v":"Maak uw keuze"},null,null,null,null,null,{"$f":"IF(AND(K7=CHK_V,S7=1),1,IF(OR(Q6=1,Q6=2),IF(AND(C7=\"\",J7=\"\"),3,IF(AND(K7<>CHK_M,K7<>CHK_A,K7<>CHK_N,T7=\"\"),2,0)),0))","v":0},{"$f":"IF(OR(T7=4,V7>0),1,0)","v":1},{"$f":"IF(AND(J7<>\"-\",J7<>\"\",OR(Z7=1,Z7=\"\")),1,0)","v":0},4,{"$f":"Q7+R7","v":1},null,null,null,null,null,{"$f":"IF(AND(K7<>CHK_M,S7=1),1,IF(OR(AA6=1,AA6=2),IF(AND(C7=\"\",J7=\"\"),3,IF(AND(K7<>CHK_M,T7=\"\"),2,0)),0))","v":0},{"$f":"IF(OR(T7=4,AC7>0),1,0)+AA7","v":1}]
[null,null,"Liquide middelen",null,null,null,null,null,null,"",{"$f":"CHK_V","v":"Voldoet niet"},null,null,{"$f":"IF(AND(J8<>\"-\",J8<>\"br\"),IF(AND(K8=CHK_M,OR(Z8=1,Z8=\"\")),1,0),0)","v":0},{"$f":"IF(AND(J8<>\"-\",S8=1,K8=CHK_V,OR(Z8=1,Z8=\"\"),L8=\"\"),1,0)","v":0},{"$f":"IF(AND(J8<>\"-\",S8=1,K8=CHK_V,OR(Z8=1,Z8=\"\"),M8=\"\"),1,0)","v":0},0,1,0,4,1,null,null,null,null,null,0,1]
[null,null,null,null,null,null,null,null,null,"",{"$f":"CHK_A","v":"Akkoord"},null,null,{"$f":"IF(AND(J9<>\"-\",J9<>\"br\"),IF(AND(K9=CHK_M,OR(Z9=1,Z9=\"\")),1,0),0)","v":0},{"$f":"IF(AND(J9<>\"-\",S9=1,K9=CHK_V,OR(Z9=1,Z9=\"\"),L9=\"\"),1,0)","v":0},{"$f":"IF(AND(J9<>\"-\",S9=1,K9=CHK_V,OR(Z9=1,Z9=\"\"),M9=\"\"),1,0)","v":0},0,0,0,5,0,null,null,null,null,null,0,0]
[null,null,"Algemene bepalingen",null,null,null,null,null,null,"",{"$f":"CHK_N","v":"Nvt"},null,null,{"$f":"IF(AND(J10<>\"-\",J10<>\"br\"),IF(AND(K10=CHK_M,OR(Z10=1,Z10=\"\")),1,0),0)","v":0},{"$f":"IF(AND(J10<>\"-\",S10=1,K10=CHK_V,OR(Z10=1,Z10=\"\"),L10=\"\"),1,0)","v":0},{"$f":"IF(AND(J10<>\"-\",S10=1,K10=CHK_V,OR(Z10=1,Z10=\"\"),M10=\"\"),1,0)","v":0},0,0,0,99,0,{"$f":"SUM($Q$11:$Q$12)","v":0},{"$f":"SUM($N$11:$N$12)","v":1},{"$f":"SUM($O$11:$O$12)","v":0},{"$f":"SUM($P$11:$P$12)","v":0},null,0,0,{"$f":"SUM($AA$11:$AA$12)","v":0}]
["art. 40",null,"Zijn in de liquide middelen uitsluitend kassaldi en de creditsaldi van de bank begrepen?","w",null,null,null,null,null,"w","Maak uw keuze",null,null,{"$f":"IF(AND(J11<>\"-\",J11<>\"br\"),IF(AND(K11=CHK_M,OR(Z11=1,Z11=\"\")),1,0),0)","v":1},{"$f":"IF(AND(J11<>\"-\",S11=1,K11=CHK_V,OR(Z11=1,Z11=\"\"),L11=\"\"),1,0)","v":0},{"$f":"IF(AND(J11<>\"-\",S11=1,K11=CHK_V,OR(Z11=1,Z11=\"\"),M11=\"\"),1,0)","v":0},0,0,1,null,0,null,null,null,null,null,0,0]
[null,null,null,null,null,null,null,null,null,"","XEmpty",null,null,{"$f":"IF(AND(J12<>\"-\",J12<>\"br\"),IF(AND(K12=CHK_M,OR(Z12=1,Z12=\"\")),1,0),0)","v":0},{"$f":"IF(AND(J12<>\"-\",S12=1,K12=CHK_V,OR(Z12=1,Z12=\"\"),L12=\"\"),1,0)","v":0},{"$f":"IF(AND(J12<>\"-\",S12=1,K12=CHK_V,OR(Z12=1,Z12=\"\"),M12=\"\"),1,0)","v":0},0,0,0,null,0,null,null,null,null,null,0,0]

{"sheet":"Eigen vermogen","index":10,"n_rows":43,"n_cols":29,"rows_kept":43,"cut":false,"hidden":false,"merged":[[3,12,5,12],[1,10,5,10],[1,11,5,11]]}
["BBV",null,null,null,null,null,null,null,null,{"$f":"IF(ISBLANK(D1)=TRUE,\"\",OFFSET(C1,0,CATSRT))","v":""},null,null,null,"PD RANGE"]
[null,null,null,null,null,null,null,null,null,"",{"$f":"VOLDAAN","v":"Is aan de vereisten voor de Jaarverslag-geving voldaan?"},{"$f":"TOEL","v":"Commentaar bij \"Voldoet niet\""},null,null,null,null,null,"Kopje van",null,null,"tbv hiden"]
[null,null,"w = wettelijk vereiste       s = stellige uitspraak van cie Bbv",null,null,null,null,null,null,"",null,null,null,"Vraag","Toelichting","Review","hulprange","hfdstuk of",null,"Info","Som P en Q","info","info","info","info"]
[null,null,"-  = niet vereist                 a = aanbevolen door cie Bbv",null,null,null,null,null,null,"",null,null,{"$f":"COM_REV","v":"Afwerking / Commentaar reviewer"},"(on)beantwoord","opgenomen","opgenomen","Vold. niet","Vold niet","vraagregel?"]
[null,null,null,null,null,null,null,null,null,"",null,null,null,null,null,null,"info"]
[{"$f":"IF(Navigatiescherm!J45=0,TRUE,FALSE)","v":false},null,null,null,null,null,null,null,null,"",null,null,null,"info"]
[null,null,null,null,null,null,null,null,null,"",{"$f":"CHK_M","v":"Maak uw keuze"},null,null,null,null,null,{"$f":"IF(AND(K7=CHK_V,S7=1),1,IF(OR(Q6=1,Q6=2),IF(AND(C7=\"\",J7=\"\"),3,IF(AND(K7<>CHK_M,K7<>CHK_A,K7<>CHK_N,T7=\"\"),2,0)),0))","v":0},{"$f":"IF(OR(T7=4,V7>0),1,0)","v":1},{"$f":"IF(AND(J7<>\"-\",J7<>\"\",OR(Z7=1,Z7=\"\")),1,0)","v":0},4,{"$f":"Q7+R7","v":1},null,null,null,null,null,{"$f":"IF(AND(K7<>CHK_M,S7=1),1,IF(OR(AA6=1,AA6=2),IF(AND(C7=\"\",J7=\"\"),3,IF(AND(K7<>CHK_M,T7=\"\"),2,0)),0))","v":0},{"$f":"IF(OR(T7=4,AC7>0),1,0)+AA7","v":1}]
[null,null,"Eigen vermogen",null,null,null,null,null,null,"",{"$f":"CHK_V","v":"Voldoet niet"},null,null,{"$f":"IF(AND(J8<>\"-\",J8<>\"br\"),IF(AND(K8=CHK_M,OR(Z8=1,Z8=\"\")),1,0),0)","v":0},{"$f":"IF(AND(J8<>\"-\",S8=1,K8=CHK_V,OR(Z8=1,Z8=\"\"),L8=\"\"),1,0)","v":0},{"$f":"IF(AND(J8<>\"-\",S8=1,K8=CHK_V,OR(Z8=1,Z8=\"\"),M8=\"\"),1,0)","v":0},0,1,0,4,1,null,null,null,null,null,0,1]
[null,null,null,null,null,null,null,null,null,"",{"$f":"CHK_A","v":"Akkoord"},null,null,{"$f":"IF(AND(J9<>\"-\",J9<>\"br\"),IF(AND(K9=CHK_M,OR(Z9=1,Z9=\"\")),1,0),0)","v":0},{"$f":"IF(AND(J9<>\"-\",S9=1,K9=CHK_V,OR(Z9=1,Z9=\"\"),L9=\"\"),1,0)","v":0},{"$f":"IF(AND(J9<>\"-\",S9=1,K9=CHK_V,OR(Z9=1,Z9=\"\"),M9=\"\"),1,0)","v":0},{"$f":"IF(AND(K9=CHK_V,S9=1),1,IF(OR(Q8=1,Q8=2),IF(AND(C9=\"\",J9=\"\"),3,IF(AND(K9<>CHK_M,K9<>CHK_A,K9<>CHK_N,T9=\"\"),2,0)),0))","v":0},{"$f":"IF(OR(T9=4,V9>0),1,0)","v":0},{"$f":"IF(AND(J9<>\"-\",J9<>\"\",OR(Z9=1,Z9=\"\")),1,0)","v":0},5,0,null,null,null,null,null,0,0]
[null,null,"Algemene bepalingen",null,null,null,null,null,null,"",{"$f":"CHK_N","v":"Nvt"},null,null,0,0,0,0,0,0,99,0,{"$f":"SUM($Q$11:$Q$14)","v":0},{"$f":"SUM($N$11:$N$14)","v":2},{"$f":"SUM($O$11:$O$14)","v":0},{"$f":"SUM($P$11:$P$14)","v":0},null,{"$f":"IF(AND(K10<>CHK_M,S10=1),1,IF(OR(AA9=1,AA9=2),IF(AND(C10=\"\",J10=\"\"),3,IF(AND(K10<>CHK_M,T10=\"\"),2,0)),0))","v":0},{"$f":"IF(OR(T10=4,AC10>0),1,0)+AA10","v":0},{"$f":"SUM($AA$11:$AA$14)","v":0}]
["art. 42.1",null,"Zijn in het eigen vermogen uitsluitend de reserves en het gerealiseerde resultaat begrepen?","w",null,null,null,null,null,"w","Maak uw keuze",null,null,1,0,0,0,0,1,null,0,null,null,null,null,null,0,0]
[null,null,null,null,null,null,null,null,null,"","XEmpty",null,null,0,0,0,0,0,0,null,0,null,null,null,null,null,0,0]
["art. 42.2",null,"Is het gerealiseerde resultaat afzonderlijk in de balans opgenomen?","w",null,null,null,null,null,"w","Maak uw keuze",null,null,1,0,0,0,0,1,null,0,null,null,null,null,null,0,0]
[null,null,null,null,null,null,null,null,null,"","XEmpty",null,null,0,0,0,0,0,0,null,0,null,null,null,null,null,0,0]
[null,null,"Reserves",null,null,null,null,null,null,"","XEmpty",null,null,0,0,0,0,0,0,99,0,{"$f":"SUM($Q$16:$Q$43)","v":0},{"$f":"SUM($N$16:$N$43)","v":13},{"$f":"SUM($O$16:$O$43)","v":0},{"$f":"SUM($P$16:$P$43)","v":0},null,0,0,{"$f":"SUM($AA$16:$AA$43)","v":0}]
["art. 43.1",null,"Zijn in de balans de reserves onderscheiden naar: ",null,null,null,null,null,null,"","XEmpty",null,null,0,0,0,0,0,0,null,0,null,null,null,null,null,0,0]
[null,null,"a. algemene reserve?","w",null,null,null,null,null,"w","Maak uw keuze",null,null,1,0,0,0,0,1,null,0,null,null,null,null,null,0,0]
[null,null,null,null,null,null,null,null,null,"","XEmpty",null,null,0,0,0,0,0,0,null,0,null,null,null,null,null,0,0]
[null,null,"b. de bestemmingsreserves","w",null,null,null,null,null,"w","Maak uw keuze",null,null,1,0,0,0,0,1,null,0,null,null,null,null,{"$f":"IF(ANSW_04_09_01=NEE,0,1)","v":1},0,0]
[null,null,null,null,null,null,null,null,null,"","XEmpty",null,null,0,0,0,0,0,0,null,0,null,null,null,null,{"$f":"Z19","v":1},0,0]
[null,null,"Zijn eventuele negatieve saldi van bestemmingsreserves via de resultaatbestemming aangevuld (desnoods deels vanuit de algemene reserve), zodat per 31 december van het verslagjaar geen negatieve reserves voorkomen?","s",null,null,null,null,null,"s","Maak uw keuze",null,null,1,0,0,0,0,1,null,0,null,null,null,null,{"$f":"Z20","v":1},0,0]
[null,null,null,null,null,null,null,null,null,"","XEmpty",null,null,0,0,0,0,0,0,null,0,null,null,null,null,{"$f":"Z21","v":1},0,0]
["art. 54.1",null,"Wordt in de toelichting op de balans de aard en reden van elke reserve en de toevoegingen en onttrekkingen daaraan toegelicht?","w",null,null,null,null,null,"w","Maak uw keuze",null,null,1,0,0,0,0,1,null,0,null,null,null,null,null,0,0]
[null,null,null,null,null,null,null,null,null,"","XEmpty",null,null,0,0,0,0,0,0,null,0,null,null,null,null,null,0,0]
["art. 54.2",null,"Wordt per reserve het verloop gedurende het jaar in een overzicht weergegeven?","w",null,null,null,null,null,"w","Maak uw keuze",null,null,1,0,0,0,0,1,null,0,null,null,null,null,null,0,0]
[null,null,null,null,null,null,null,null,null,"","XEmpty",null,null,0,0,0,0,0,0,null,0,null,null,null,null,null,0,0]
["art. 54.2",null,"Blijkt daaruit:",null,null,null,null,null,null,"","XEmpty",null,null,0,0,0,0,0,0,null,0,null,null,null,null,null,0,0]
[null,null,"a. het saldo aan het begin van het begrotingsjaar?","w",null,null,null,null,null,"w","Maak uw keuze",null,null,1,0,0,0,0,1,null,0,null,null,null,null,null,0,0]
[null,null,null,null,null,null,null,null,null,"","XEmpty",null,null,0,0,0,0,0,0,null,0,null,null,null,null,null,0,0]
[null,null,"b. de toevoegingen of onttrekkingen via de resultaatbestemming bij het overzicht van baten en lasten in de jaarrekening?","w",null,null,null,null,null,"w","Maak uw keuze",null,null,1,0,0,0,0,1,null,0,null,null,null,null,null,0,0]
[null,null,null,null,null,null,null,null,null,"","XEmpty",null,null,0,0,0,0,0,0,null,0,null,null,null,null,null,0,0]
[null,null,"c. de toevoegingen of onttrekkingen uit hoofde van de bestemming van het resultaat van het voorgaande boekjaar?","w",null,null,null,null,null,"w","Maak uw keuze",null,null,1,0,0,0,0,1,null,0,null,null,null,null,null,0,0]
[null,null,null,null,null,null,null,null,null,"","XEmpty",null,null,0,0,0,0,0,0,null,0,null,null,null,null,null,0,0]
[null,null,"d. de verminderingen in verband met afschrijvingen op activa waarvoor een specifieke bestemmingsreserve is gevormd?","w",null,null,null,null,null,"w","Maak uw keuze",null,null,1,0,0,0,0,1,null,0,null,null,null,null,null,0,0]
[null,null,null,null,null,null,null,null,null,"","XEmpty",null,null,0,0,0,0,0,0,null,0,null,null,null,null,null,0,0]
[null,null,"e. het saldo aan het einde van het begrotingsjaar?","w",null,null,null,null,null,"w","Maak uw keuze",null,null,1,0,0,0,0,1,null,0,null,null,null,null,null,0,0]
[null,null,null,null,null,null,null,null,null,"","XEmpty",null,null,0,0,0,0,0,0,null,0,null,null,null,null,null,0,0]
["art. 54 (toelichting)",null,"Heeft een eventuele toerekening van “rente” aan de reserves plaatsgevonden via de resultaatbestemming?\nNB: Deze vraag geldt niet alleen voor de rentetoevoeging. Alle toevoegingen of onttrekkingen dienen plaats te vinden via de resultaatbestemming","w",null,null,null,null,null,"w","Maak uw keuze",null,null,1,0,0,0,0,1,null,0,null,null,null,null,null,0,0]
[null,null,null,null,null,null,null,null,null,"","XEmpty",null,null,0,0,0,0,0,0,null,0,null,null,null,null,null,0,0]
["Notitie rente paragraaf 2, ad d1 en d2 ",null,"Als er wel een rentevergoeding over het eigen vermogen en/of de voorzieningen wordt berekend, dan is deze vergoeding maximaal het rentepercentage dat is gebaseerd op het gewogen samenstel van de (bruto) externe rentelasten over het totaal van de lang en kort aangetrokken financieringsmiddelen.","s",null,null,null,null,null,"s","Maak uw keuze",null,null,1,0,0,0,0,1,null,0,null,null,null,null,null,0,0]
[null,null,null,null,null,null,null,null,null,"","XEmpty",null,null,0,0,0,0,0,0,null,0,null,null,null,null,null,{"$f":"IF(AND(K41<>CHK_M,S41=1),1,IF(OR(AA40=1,AA40=2),IF(AND(C41=\"\",J41=\"\"),3,IF(AND(K41<>CHK_M,T41=\"\"),2,0)),0))","v":0},{"$f":"IF(OR(T41=4,AC41>0),1,0)+AA41","v":0}]
["Kadernota rechtmatig-heid",null,"Zijn de toevoegingen en onttrekkingen aan elk van de bestemmingsreserves verwerkt overeenkomstig het bedrag dat via de begroting(swijzigingen gedurende het begrotingsjaar) door de raad is goedgekeurd?\n\nNB. Verder kunnen er raadsbesluiten zijn die inhouden dat specifiek benoemde saldi, bijvoorbeeld een overschot of tekort op de uitvoering van de Wmo, ook nog in het lopende begrotingsjaar ten gunste of ten laste van een specifieke bestemmingsreserve mogen worden gebracht.","s",null,null,null,null,null,"s","Maak uw keuze",null,null,1,0,0,0,0,1,null,0,null,null,null,null,{"$f":"IF(ANSW_04_09_01=NEE,0,1)","v":1},0,0]
[null,null,null,null,null,null,null,null,null,"","XEmpty",null,null,0,0,0,0,0,0,null,0,null,null,null,null,null,0,0]

{"sheet":"Voorzieningen","index":11,"n_rows":84,"n_cols":29,"rows_kept":84,"cut":false,"hidden":false,"merged":[[3,12,5,12],[1,10,5,10],[1,11,5,11]]}
["BBV",null,null,null,null,null,null,null,null,{"$f":"IF(ISBLANK(D1)=TRUE,\"\",OFFSET(C1,0,CATSRT))","v":""},null,null,null,"PD RANGE"]
[null,null,null,null,null,null,null,null,null,"",{"$f":"VOLDAAN","v":"Is aan de vereisten voor de Jaarverslag-geving voldaan?"},{"$f":"TOEL","v":"Commentaar bij \"Voldoet niet\""},null,null,null,null,null,"Kopje van",null,null,"tbv hiden"]
[null,null,"w = wettelijk vereiste       s = stellige uitspraak van cie Bbv",null,null,null,null,null,null,"",null,null,null,"Vraag","Toelichting","Review","hulprange","hfdstuk of",null,"Info","Som P en Q","info","info","info","info"]
[null,null,"-  = niet vereist                 a = aanbevolen door cie Bbv",null,null,null,null,null,null,"",null,null,{"$f":"COM_REV","v":"Afwerking / Commentaar reviewer"},"(on)beantwoord","opgenomen","opgenomen","Vold. niet","Vold niet","vraagregel?"]
[null,null,null,null,null,null,null,null,null,"",null,null,null,null,null,null,"info"]
[{"$f":"IF(Navigatiescherm!J49=0,TRUE,FALSE)","v":false},null,null,null,null,null,null,null,null,"",null,null,null,"info"]
[null,null,null,null,null,null,null,null,null,"",{"$f":"CHK_M","v":"Maak uw keuze"},null,null,null,null,null,{"$f":"IF(AND(K7=CHK_V,S7=1),1,IF(OR(Q6=1,Q6=2),IF(AND(C7=\"\",J7=\"\"),3,IF(AND(K7<>CHK_M,K7<>CHK_A,K7<>CHK_N,T7=\"\"),2,0)),0))","v":0},{"$f":"IF(OR(T7=4,V7>0),1,0)","v":1},{"$f":"IF(AND(J7<>\"-\",J7<>\"\",OR(Z7=1,Z7=\"\")),1,0)","v":0},4,{"$f":"Q7+R7","v":1},null,null,null,null,null,{"$f":"IF(AND(K7<>CHK_M,S7=1),1,IF(OR(AA6=1,AA6=2),IF(AND(C7=\"\",J7=\"\"),3,IF(AND(K7<>CHK_M,T7=\"\"),2,0)),0))","v":0},{"$f":"IF(OR(T7=4,AC7>0),1,0)+AA7","v":1}]
[null,null,"Voorzieningen",null,null,null,null,null,null,"",{"$f":"CHK_V","v":"Voldoet niet"},null,null,{"$f":"IF(AND(J8<>\"-\",J8<>\"br\"),IF(AND(K8=CHK_M,OR(Z8=1,Z8=\"\")),1,0),0)","v":0},{"$f":"IF(AND(J8<>\"-\",S8=1,K8=CHK_V,OR(Z8=1,Z8=\"\"),L8=\"\"),1,0)","v":0},{"$f":"IF(AND(J8<>\"-\",S8=1,K8=CHK_V,OR(Z8=1,Z8=\"\"),M8=\"\"),1,0)","v":0},0,{"$f":"IF(OR(T8=4,V8>0),1,0)","v":1},{"$f":"IF(AND(J8<>\"-\",J8<>\"\",OR(Z8=1,Z8=\"\")),1,0)","v":0},4,1,null,null,null,null,null,{"$f":"IF(AND(K8<>CHK_M,S8=1),1,IF(OR(AA7=1,AA7=2),IF(AND(C8=\"\",J8=\"\"),3,IF(AND(K8<>CHK_M,T8=\"\"),2,0)),0))","v":0},{"$f":"IF(OR(T8=4,AC8>0),1,0)+AA8","v":1}]
[null,null,null,null,null,null,null,null,null,"",{"$f":"CHK_A","v":"Akkoord"},null,null,0,0,0,0,{"$f":"IF(OR(T9=4,V9>0),1,0)","v":0},{"$f":"IF(AND(J9<>\"-\",J9<>\"\",OR(Z9=1,Z9=\"\")),1,0)","v":0},5,0,null,null,null,null,null,0,0]
[null,null,"Algemene bepalingen",null,null,null,null,null,null,"",{"$f":"CHK_N","v":"Nvt"},null,null,{"$f":"IF(AND(J10<>\"-\",J10<>\"br\"),IF(AND(K10=CHK_M,OR(Z10=1,Z10=\"\")),1,0),0)","v":0},{"$f":"IF(AND(J10<>\"-\",S10=1,K10=CHK_V,OR(Z10=1,Z10=\"\"),L10=\"\"),1,0)","v":0},{"$f":"IF(AND(J10<>\"-\",S10=1,K10=CHK_V,OR(Z10=1,Z10=\"\"),M10=\"\"),1,0)","v":0},{"$f":"IF(AND(K10=CHK_V,S10=1),1,IF(OR(Q9=1,Q9=2),IF(AND(C10=\"\",J10=\"\"),3,IF(AND(K10<>CHK_M,K10<>CHK_A,K10<>CHK_N,T10=\"\"),2,0)),0))","v":0},{"$f":"IF(OR(T10=4,V10>0),1,0)","v":0},{"$f":"IF(AND(J10<>\"-\",J10<>\"\",OR(Z10=1,Z10=\"\")),1,0)","v":0},99,0,{"$f":"SUM($Q$11:$Q$84)","v":0},{"$f":"SUM($N$11:$N$84)","v":37},{"$f":"SUM($O$11:$O$84)","v":0},{"$f":"SUM($P$11:$P$84)","v":0},null,{"$f":"IF(AND(K10<>CHK_M,S10=1),1,IF(OR(AA9=1,AA9=2),IF(AND(C10=\"\",J10=\"\"),3,IF(AND(K10<>CHK_M,T10=\"\"),2,0)),0))","v":0},{"$f":"IF(OR(T10=4,AC10>0),1,0)+AA10","v":0},{"$f":"SUM($AA$11:$AA$84)","v":0}]
["art. 44.1",null,"Voldoen de voorzieningen aan de volgende criteria:\n",null,null,null,null,null,null,"","XEmpty",null,null,0,0,0,0,0,0,null,0,null,null,null,null,null,{"$f":"IF(AND(K11<>CHK_M,S11=1),1,IF(OR(AA10=1,AA10=2),IF(AND(C11=\"\",J11=\"\"),3,IF(AND(K11<>CHK_M,T11=\"\"),2,0)),0))","v":0},{"$f":"IF(OR(T11=4,AC11>0),1,0)+AA11","v":0}]
[null,null,"a. verplichtingen en verliezen waarvan de omvang op de balansdatum onzeker is, doch redelijkerwijs te schatten?","w",null,null,null,null,null,"w","Maak uw keuze",null,null,1,0,0,0,0,1,null,0,null,null,null,null,null,0,0]
[null,null,null,"",null,null,null,null,null,"","XEmpty",null,null,0,0,0,0,0,0,null,0,null,null,null,null,null,0,0]
[null,null,"b. op de balansdatum bestaande risico’s ter zake van bepaalde te verwachten verplichtingen of verliezen waarvan de omvang redelijkerwijs is te schatten?","w",null,null,null,null,null,"w","Maak uw keuze",null,null,1,0,0,0,0,1,null,0,null,null,null,null,null,0,0]
[null,null,null,"",null,null,null,null,null,"","XEmpty",null,null,0,0,0,0,0,0,null,0,null,null,null,null,null,0,0]
[null,null,"c. kosten die in een volgend begrotingsjaar zullen worden gemaakt, mits het maken van die kosten zijn oorsprong mede vindt in het begrotingsjaar of in een voorafgaand begrotingsjaar en de voorziening strekt tot gelijkmatige verdeling van lasten over een aantal begrotingsjaren?","w",null,null,null,null,null,"w","Maak uw keuze",null,null,1,0,0,0,0,1,null,0,null,null,null,null,null,0,0]
[null,null,null,"",null,null,null,null,null,"","XEmpty",null,null,0,0,0,0,0,0,null,0,null,null,null,null,null,0,0]
[null,null,"d. de bijdragen aan toekomstige vervangingsinvesteringen, waarvoor een heffing wordt geheven als bedoeld in artikel 35, eerste lid, onder b?","w",null,null,null,null,null,"w","Maak uw keuze",null,null,1,0,0,0,0,1,null,0,null,null,null,null,null,0,0]
[null,null,null,"",null,null,null,null,null,"","XEmpty",null,null,0,0,0,0,0,0,null,0,null,null,null,null,null,0,0]
["Notitie MVA (2020)",null,"Voorzieningen kunnen naar hun aard niet negatief zijn. Is hieraan voldaan?\n\n(NB: Dit geldt ook voor de voorziening rioolrechten)","w",null,null,null,null,null,"w","Maak uw keuze",null,null,1,0,0,0,0,1,null,0,null,null,null,null,null,0,0]
[null,null,null,"",null,null,null,null,null,"","XEmpty",null,null,0,0,0,0,0,0,null,0,null,null,null,null,null,0,0]
["art 44.2",null,"a. Zijn van derden verkregen middelen die specifiek besteed moeten worden, met uitzondering van voorschotbedragen (als bedoeld in artikel 49 lid b), verantwoord onder de voorzieningen?\n\nNB: Voor meerjarige specifieke uitkeringen waarvan de uitkeringsperiode voor 1 januari 2007 aanving, mogen “de oude” artikelen 44.2, 49 en 55 BBV  zoals geldend op 9 juli 2007 worden toegepast","w",null,null,null,null,null,"w","Maak uw keuze",null,null,1,0,0,0,0,1,null,0,null,null,null,null,null,0,0]
[null,null,null,"",null,null,null,null,null,"","XEmpty",null,null,0,0,0,0,0,0,null,0,null,null,null,null,null,0,0]
[null,null,"Indien sprake is van een specifieke doeluitkering met terugbetalingsverplichting die in hetzelfde jaar moet worden besteed, zijn de niet bestede middelen dan opgenomen onder de netto vlottende schulden ex art 48, onderdeel d?","w",null,null,null,null,null,"w","Maak uw keuze",null,null,1,0,0,0,0,1,null,0,null,null,null,null,null,0,0]
[null,null,null,"",null,null,null,null,null,"","XEmpty",null,null,0,0,0,0,0,0,null,0,null,null,null,null,null,0,0]
[null,null,"Zijn ook schenkingen en legaten die specifiek besteed moeten worden, opgenomen onder de voorzieningen van derden verkregen middelen die specifiek besteed moeten worden, ondanks het feit dat er geen terugbetalingsverplichting is?","s",null,null,null,null,null,"s","Maak uw keuze",null,null,1,0,0,0,0,1,null,0,null,null,null,null,null,0,0]
[null,null,null,"",null,null,null,null,null,"","XEmpty",null,null,0,0,0,0,0,0,null,0,null,null,null,null,null,0,0]
["art. 44.3",null,"Er mogen geen voorzieningen worden gevormd voor jaarlijks terugkerende arbeidskostengerelateerde verplichtingen van vergelijkbaar volume. Is hieraan voldaan?","w",null,null,null,null,null,"w","Maak uw keuze",null,null,1,0,0,0,0,1,null,0,null,null,null,null,null,0,0]
[null,null,null,"",null,null,null,null,null,"","XEmpty",null,null,0,0,0,0,0,0,null,0,null,null,null,null,null,0,0]
["Notitie Het BBV & Arbeids-kosten gerelateerde verplichtingen",null,"Individueel gevormde pensioenvoorzieningen mogen op pensioendatum niet vrijvallen (ook na datum pensionering is in beginsel geen sprake van jaarlijks terugkerende arbeidskosten van een vergelijkbaar volume).","s",null,null,null,null,null,"s","Maak uw keuze",null,null,1,0,0,0,0,1,null,0,null,null,null,null,null,0,0]
[null,null,null,"",null,null,null,null,null,"","XEmpty",null,null,0,0,0,0,0,0,null,0,null,null,null,null,null,0,0]
[null,null,"De Commissie BBV is daarnaast van mening dat voor in het verleden ten onrechte vrijgevallen individuele pensioenvoorzieningen geen herstel hoeft plaats te vinden en dus geen (nieuwe) voorziening hoeft te worden gevormd.","s",null,null,null,null,null,"s","Maak uw keuze",null,null,1,0,0,0,0,1,null,0,null,null,null,null,null,0,0]
[null,null,null,"",null,null,null,null,null,"","XEmpty",null,null,0,0,0,0,0,0,null,0,null,null,null,null,null,0,0]
[null,null,"Er moeten wel voorzieningen worden gevormd voor arbeidskostengerelateerde verplichtingen waarvan het volume niet jaarlijks vergelijkbaar is (bv. pensioenen / wachtgelden van wethouders of kosten samenhangend met reorganisaties). Is hieraan voldaan?","s",null,null,null,null,null,"s","Maak uw keuze",null,null,{"$f":"IF(AND(J34<>\"-\",J34<>\"br\"),IF(AND(K34=CHK_M,OR(Z34=1,Z34=\"\")),1,0),0)","v":1},{"$f":"IF(AND(J34<>\"-\",S34=1,K34=CHK_V,OR(Z34=1,Z34=\"\"),L34=\"\"),1,0)","v":0},{"$f":"IF(AND(J34<>\"-\",S34=1,K34=CHK_V,OR(Z34=1,Z34=\"\"),M34=\"\"),1,0)","v":0},{"$f":"IF(AND(K34=CHK_V,S34=1),1,IF(OR(Q33=1,Q33=2),IF(AND(C34=\"\",J34=\"\"),3,IF(AND(K34<>CHK_M,K34<>CHK_A,K34<>CHK_N,T34=\"\"),2,0)),0))","v":0},{"$f":"IF(OR(T34=4,V34>0),1,0)","v":0},{"$f":"IF(AND(J34<>\"-\",J34<>\"\",OR(Z34=1,Z34=\"\")),1,0)","v":1},null,{"$f":"Q34+R34","v":0},null,null,null,null,null,{"$f":"IF(AND(K34<>CHK_M,S34=1),1,IF(OR(AA33=1,AA33=2),IF(AND(C34=\"\",J34=\"\"),3,IF(AND(K34<>CHK_M,T34=\"\"),2,0)),0))","v":0},{"$f":"IF(OR(T34=4,AC34>0),1,0)+AA34","v":0}]
[null,null,null,"",null,null,null,null,null,"","XEmpty",null,null,0,0,0,0,0,0,null,0,null,null,null,null,null,0,0]
["V&A cie BBV 9 december 2022",null,"Bij de pensioenverplichting wethouders op de balans wordt rekening gehouden met onder andere actuele indexpercentages om de hoogte van de verplichting zo goed mogelijk te bepalen. \n\nIn artikel 13a van de wet APPA en de brief van pensioenuitvoerder APG is opgenomen dat de verplichting wethouderspensioenen de indexpercentages van het ABP volgt. Stel vast dat deze index is toegepast bij de bepaling van de voorziening voor wethouderspensioenen.  ",null,null,null,null,null,null,"s","Maak uw keuze",null,null,1,0,0,0,0,1,null,0,null,null,null,null,null,0,0]
[null,null,null,null,null,null,null,null,null,null,"XEmpty",null,null,0,0,0,0,0,0,null,0,null,null,null,null,null,0,0]
[null,null,"Is voor het bepalen van het ‘jaarlijks vergelijkbare volume’ een redelijke tijdsperiode van bijvoorbeeld 4 jaar gehanteerd?","s",null,null,null,null,null,"s","Maak uw keuze",null,null,1,0,0,0,0,1,null,0,null,null,null,null,null,0,0]
[null,null,null,null,null,null,null,null,null,"","XEmpty",null,null,0,0,0,0,0,0,null,0,null,null,null,null,null,0,0]
["Art 44.1 / art 44.3 / COVID-19",null,"Stel vast of voor het bovengemiddeld saldo verlofuren ('stuwmeer') een voorziening moet worden getroffen, omdat dit mogelijk niet (meer) kwalificeert als 'jaarlijks vergelijkbaar volume'. Hanteer hierbij de interne regels van de gemeente waaruit blijkt welke omvang aan verlofuren medewerkers jaarlijk mogen meenemen naar een volgend jaar en welk deel kwalificeert als 'stuwmeer' (= voorziening).","w",null,null,null,null,null,"w","Maak uw keuze",null,null,{"$f":"IF(AND(J40<>\"-\",J40<>\"br\"),IF(AND(K40=CHK_M,OR(Z40=1,Z40=\"\")),1,0),0)","v":1},{"$f":"IF(AND(J40<>\"-\",S40=1,K40=CHK_V,OR(Z40=1,Z40=\"\"),L40=\"\"),1,0)","v":0},{"$f":"IF(AND(J40<>\"-\",S40=1,K40=CHK_V,OR(Z40=1,Z40=\"\"),M40=\"\"),1,0)","v":0},{"$f":"IF(AND(K40=CHK_V,S40=1),1,IF(OR(Q39=1,Q39=2),IF(AND(C40=\"\",J40=\"\"),3,IF(AND(K40<>CHK_M,K40<>CHK_A,K40<>CHK_N,T40=\"\"),2,0)),0))","v":0},{"$f":"IF(OR(T40=4,V40>0),1,0)","v":0},{"$f":"IF(AND(J40<>\"-\",J40<>\"\",OR(Z40=1,Z40=\"\")),1,0)","v":1},null,0,null,null,null,null,null,{"$f":"IF(AND(K40<>CHK_M,S40=1),1,IF(OR(AA39=1,AA39=2),IF(AND(C40=\"\",J40=\"\"),3,IF(AND(K40<>CHK_M,T40=\"\"),2,0)),0))","v":0},{"$f":"IF(OR(T40=4,AC40>0),1,0)+AA40","v":0}]
[null,null,null,"",null,null,null,null,null,"","XEmpty",null,null,0,0,0,0,0,0,null,0,null,null,null,null,null,0,0]
["Notitie MVA (2020)",null,"a. Is voor voorzieningen voor egalisatie van groot onderhoudslasten van een kapitaalgoed (art 44 lid 1c) een actueel/recent beheerplan aanwezig?","s",null,null,null,null,null,"s","Maak uw keuze",null,null,1,0,0,0,0,1,null,0,null,null,null,null,null,0,0]
[null,null,null,"",null,null,null,null,null,"","XEmpty",null,null,0,0,0,0,0,0,null,0,null,null,null,null,null,0,0]
["Notitie MVA (2020)",null,"b. Is achterstallig onderhoud ten laste van de exploitatie gebracht en niet ten laste van de voorziening groot onderhoud.","s",null,null,null,null,null,"s","Maak uw keuze",null,null,1,0,0,0,0,1,null,0,null,null,null,null,null,0,0]
[null,null,null,"",null,null,null,null,null,"","XEmpty",null,null,0,0,0,0,0,0,null,0,null,null,null,null,null,0,0]
["Notitie MVA (2020)",null,"Zijn alle voorzieningen positief? Toelichting: Voorzieningen mogen niet negatief zijn, met uitzondering wanneer de gemeente een voorziening heeft gevormd uit bestemmingsheffingen (rioolrechten, afvalstoffenheffing) voor zover het niet een voorziening voor groot onderhoud betreft en voor zover het een beperkt aantal jaren betreft. De gemeente dient met de provinciale toezichthouder overlegd te hebben wat een redelijke termijn is voor het wegwerken van de negatieve stand. Zie ook de notitie riolering.","s",null,null,null,null,null,"s","Maak uw keuze",null,null,1,0,0,0,0,1,null,0,null,null,null,null,null,0,0]
[null,null,null,"",null,null,null,null,null,"","XEmpty",null,null,0,0,0,0,0,0,null,0,null,null,null,null,null,0,0]
["art. 45",null,"Behalve wanneer de voorziening is gewaardeerd tegen contante waarde of wanneer op basis van voorschriften rente moet worden toegevoegd aan van derden verkregen middelen die specifiek besteed moeten worden, is het verboden rente toe te voegen aan de voorziening. Is hieraan voldaan?","w",null,null,null,null,null,"w","Maak uw keuze",null,null,1,0,0,0,0,1,null,0,null,null,null,null,null,0,0]
[null,null,null,"",null,null,null,null,null,"","XEmpty",null,null,0,0,0,0,0,0,null,0,null,null,null,null,null,0,0]
["art. 55.1",null,"Wordt in de toelichting op de balans de aard en reden van elke voorziening en de wijzigingen daarin toegelicht?","w",null,null,null,null,null,"w","Maak uw keuze",null,null,1,0,0,0,0,1,null,0,null,null,null,null,null,0,0]
[null,null,null,"",null,null,null,null,null,"","XEmpty",null,null,0,0,0,0,0,0,null,0,null,null,null,null,null,0,0]
["art. 55.2",null,"Wordt per voorziening het verloop gedurende het jaar in een overzicht weergegeven?","w",null,null,null,null,null,"w","Maak uw keuze",null,null,1,0,0,0,0,1,null,0,null,null,null,null,null,0,0]
[null,null,null,"",null,null,null,null,null,"","XEmpty",null,null,0,0,0,0,0,0,null,0,null,null,null,null,null,0,0]
[null,null,"Blijkt daaruit:","",null,null,null,null,null,"","XEmpty",null,null,0,0,0,0,0,0,null,0,null,null,null,null,null,0,0]
["art. 55.2",null,"a. het saldo aan het begin van het begrotingsjaar?","w",null,null,null,null,null,"w","Maak uw keuze",null,null,1,0,0,0,0,1,null,0,null,null,null,null,null,0,0]
[null,null,"b. de toevoegingen?","w",null,null,null,null,null,"w","Maak uw keuze",null,null,1,0,0,0,0,1,null,0,null,null,null,null,null,0,0]
[null,null,"c. ten gunste van de rekening van baten en lasten vrijgevallen bedragen?","w",null,null,null,null,null,"w","Maak uw keuze",null,null,1,0,0,0,0,1,null,0,null,null,null,null,null,0,0]
[null,null,"d. de aanwendingen?","w",null,null,null,null,null,"w","Maak uw keuze",null,null,1,0,0,0,0,1,null,0,null,null,null,null,null,0,0]
[null,null,"e. het saldo aan het einde van het begrotingsjaar?","w",null,null,null,null,null,"w","Maak uw keuze",null,null,1,0,0,0,0,1,null,0,null,null,null,null,null,0,0]
[null,null,null,"",null,null,null,null,null,"","XEmpty",null,null,0,0,0,0,0,0,null,0,null,null,null,null,null,0,0]
[null,null,"Alle aanwendingen van voorzieningen moeten rechtstreeks ten laste van de voorziening worden gebracht. Is hieraan voldaan?\n","s",null,null,null,null,null,"s","Maak uw keuze",null,null,1,0,0,0,0,1,null,0,null,null,null,null,null,0,0]
[null,null,null,"",null,null,null,null,null,"","XEmpty",null,null,0,0,0,0,0,0,null,0,null,null,null,null,null,0,0]
["Notitie Riolering",null,"Zijn geen voorzieningen gevormd voor de vervanging van activa, met uitzondering van een voorziening vervanging riolering?","s",null,null,null,null,null,"s","Maak uw keuze",null,null,1,0,0,0,0,1,null,0,null,null,null,null,null,0,0]
[null,null,null,"",null,null,null,null,null,"","XEmpty",null,null,0,0,0,0,0,0,null,0,null,null,null,null,null,0,0]
["Notitie riolering",null,"Is de toelichting op de voorziening riolering zodanig dat een relatie is te leggen met het GRP en inzicht wordt geboden in het onderscheid tussen de component voor onderhoud en de spaarcomponent voor vervangingsinvesteringen?","s",null,null,null,null,null,"s","Maak uw keuze",null,null,1,0,0,0,0,1,null,0,null,null,null,null,null,0,0]
[null,null,null,"",null,null,null,null,null,"","XEmpty",null,null,0,0,0,0,0,0,null,0,null,null,null,null,null,0,0]
["Notitie riolering",null,"Uit oogpunt van transparantie en ten behoeve van de periodieke bijstelling van het gemeentelijk rioleringsplan (GRP) is van belang dat de voorziening onderhoud (artikel 44, lid 1c BBV) resp. vervanging (artikel 44, lid 1d BBV) in de begroting en in de jaarrekening zodanig wordt toegelicht dat de relatie is te leggen met het GRP en inzicht kan worden geboden in het onderscheid onderhoud c.q. spaarcomponent vervangingsinvesteringen. ","w",null,null,null,null,null,"w","Maak uw keuze",null,null,1,0,0,0,0,1,null,0,null,null,null,null,null,0,0]
[null,null,null,"",null,null,null,null,null,"","XEmpty",null,null,0,0,0,0,0,0,null,0,null,null,null,null,null,0,0]
[null,null,"De gemeente brengt in mindering op de boekwaarde van de vervangingsinvesteringen de spaarbedragen voor toekomstige vervangingsinvesteringen bijeen gespaard in de voorziening 44, lid 1d BBV.","w",null,null,null,null,null,"w","Maak uw keuze",null,null,1,0,0,0,0,1,null,0,null,null,null,null,null,{"$f":"IF(AND(K69<>CHK_M,S69=1),1,IF(OR(AA68=1,AA68=2),IF(AND(C69=\"\",J69=\"\"),3,IF(AND(K69<>CHK_M,T69=\"\"),2,0)),0))","v":0},{"$f":"IF(OR(T69=4,AC69>0),1,0)+AA69","v":0}]
[null,null,null,"",null,null,null,null,null,"","XEmpty",null,null,{"$f":"IF(AND(J70<>\"-\",J70<>\"br\"),IF(AND(K70=CHK_M,OR(Z70=1,Z70=\"\")),1,0),0)","v":0},{"$f":"IF(AND(J70<>\"-\",S70=1,K70=CHK_V,OR(Z70=1,Z70=\"\"),L70=\"\"),1,0)","v":0},{"$f":"IF(AND(J70<>\"-\",S70=1,K70=CHK_V,OR(Z70=1,Z70=\"\"),M70=\"\"),1,0)","v":0},{"$f":"IF(AND(K70=CHK_V,S70=1),1,IF(OR(Q69=1,Q69=2),IF(AND(C70=\"\",J70=\"\"),3,IF(AND(K70<>CHK_M,K70<>CHK_A,K70<>CHK_N,T70=\"\"),2,0)),0))","v":0},{"$f":"IF(OR(T70=4,V70>0),1,0)","v":0},{"$f":"IF(AND(J70<>\"-\",J70<>\"\",OR(Z70=1,Z70=\"\")),1,0)","v":0},null,0,null,null,null,null,null,0,0]
[null,null,"Indien de voorziening onderhoud (artikel 44, lid 1c BBV) onvoldoende is onderbouwd in het GRP, komen deze gelden niet in een reserve maar in de voorziening riolering ex. artikel 44, lid 2 BBV. Dit geldt ook voor opgehaalde gelden die per balansdatum nog niet zijn besteed door later investeren en uitvoeren dan voorzien. Deze voorziening ex. artikel 44, lid 2 BBV kan uit praktisch oogpunt worden samengevoegd met die van artikel 44, lid 1d, want beide betreffen specifiek voor riolering geheven bedragen. Maar administratief moet het onderscheid wel worden bijgehouden omdat de afwikkeling verschillend is namelijk een directe balansmutatie voor de vervangingsinvesteringen en een afboeking op de onderhoudsvoorziening voor het onderhoud.\nDe voorziening 44, lid 1c BBV kan niet met de resterende voorzieningen riolering worden samengevoegd maar moet apart zichtbaar worden gemaakt.","w",null,null,null,null,null,"w","Maak uw keuze",null,null,1,0,0,0,0,1,null,0,null,null,null,null,null,0,0]
[null,null,null,null,null,null,null,null,null,"","XEmpty",null,null,0,0,0,0,0,0,null,0,null,null,null,null,null,0,0]
["Notitie MVA (2020)",null,"Voorzieningen die vooraf worden gevormd om lasten van groot onderhoud gelijkmatig te verdelen over meerdere begrotingsjaren, kunnen alleen met instemming van de raad ingesteld en gevoed worden op basis van een recent beheerplan.","s",null,null,null,null,null,"s","Maak uw keuze",null,null,1,0,0,0,0,1,null,0,null,null,null,null,null,0,0]
[null,null,null,null,null,null,null,null,null,"","XEmpty",null,null,0,0,0,0,0,0,null,0,null,null,null,null,null,0,0]
["Notitie MVA (2020)",null,"Onder recent beheerplan wordt een beheerplan verstaan van maximaal vijf jaar oud ten opzichte van het verslagleggingsjaar. Deze vijf jaar dient te worden gehanteerd als richttermijn waar gemotiveerd van kan worden afgeweken. Een gemotiveerde afwijking houdt in dat deze motivatie is geautoriseerd door de raad en verantwoord is in de paragraaf ‘Onderhoud kapitaalgoederen’ van de begroting en de jaarstukken.","s",null,null,null,null,null,"s","Maak uw keuze",null,null,1,0,0,0,0,1,null,{"$f":"Q75+R75","v":0},null,null,null,null,null,0,0]
[null,null,null,null,null,null,null,null,null,"","XEmpty",null,null,0,0,0,0,0,0,null,0,null,null,null,null,null,0,0]
["Notitie MVA (2020)",null,"Tussentijdse bijstelling van het beheerplan binnen de vijf jaar is verplicht, indien een belangrijke afwijking is opgetreden in de staat van het onderhoud. ","s",null,null,null,null,null,"s","Maak uw keuze",null,null,1,0,0,0,0,1,null,0,null,null,null,null,null,0,0]
[null,null,null,null,null,null,null,null,null,"","XEmpty",null,null,0,0,0,0,0,0,null,0,null,null,null,null,null,0,0]
["Notitie MVA (2020)",null,"In geval van achterstallig onderhoud, waarbij sprake is van kapitaalvernietiging en/of onveilige situaties, wordt er op basis van artikel 44 lid 1a BBV een voorziening gevormd. \n\nHet is niet langer toegestaan om bij onvoldoende financiële middelen een termijn van vier jaar te hanteren voor het vormen van de voorziening. De reden hiervoor is het effect op de financiële kengetallen. Er kan in geen van de voorkomende gevallen sprake zijn van een negatieve voorziening.  Een onverwacht bij de jaarrekening gesignaleerde negatieve stand moet via een eenmalige last worden gedekt. Een tijdig bij de begroting gesignaleerde verwachte negatieve stand moet via aanpassing van de toekomstige stortingen worden gedekt.","s",null,null,null,null,null,"s","Maak uw keuze",null,null,{"$f":"IF(AND(J79<>\"-\",J79<>\"br\"),IF(AND(K79=CHK_M,OR(Z79=1,Z79=\"\")),1,0),0)","v":1},{"$f":"IF(AND(J79<>\"-\",S79=1,K79=CHK_V,OR(Z79=1,Z79=\"\"),L79=\"\"),1,0)","v":0},{"$f":"IF(AND(J79<>\"-\",S79=1,K79=CHK_V,OR(Z79=1,Z79=\"\"),M79=\"\"),1,0)","v":0},{"$f":"IF(AND(K79=CHK_V,S79=1),1,IF(OR(Q78=1,Q78=2),IF(AND(C79=\"\",J79=\"\"),3,IF(AND(K79<>CHK_M,K79<>CHK_A,K79<>CHK_N,T79=\"\"),2,0)),0))","v":0},{"$f":"IF(OR(T79=4,V79>0),1,0)","v":0},{"$f":"IF(AND(J79<>\"-\",J79<>\"\",OR(Z79=1,Z79=\"\")),1,0)","v":1},null,{"$f":"Q79+R79","v":0},null,null,null,null,null,{"$f":"IF(AND(K79<>CHK_M,S79=1),1,IF(OR(AA78=1,AA78=2),IF(AND(C79=\"\",J79=\"\"),3,IF(AND(K79<>CHK_M,T79=\"\"),2,0)),0))","v":0},{"$f":"IF(OR(T79=4,AC79>0),1,0)+AA79","v":0}]
[null,null,null,null,null,null,null,null,null,null,"XEmpty",null,null,0,0,0,0,0,0,null,0,null,null,null,null,null,0,0]
["V&A cie BBV 25 januari 2023",null,"Als gevolg van artikel 6.3 van de cao gemeenten 2021-2022 kunnen ambtenaren met ingang van 1 januari 2022 verlofsparen. De gemeente moet een voorziening verlofsparen vormen, als sprake is van een niet-jaarlijks gelijkblijvende arbeidskostengerelateerde verplichting. Hierbij gelden de volgende voorwaarden:\n1.\tVoor het wettelijke verlof saldo per 31 december wordt geen voorziening getroffen. Doordat dit verlof binnen 2 jaar moet worden opgenomen, zal dit saldo niet bovenmatig zijn en geen spaarsaldo betreffen. Hier is sprake van een verplichting van gelijke omvang.\n2.\tVoor de verlofuren, zoals deze zijn gespecificeerd in art. 6.3 van de cao, die door medewerkers als spaarverlof uren zijn aangewezen, zoals dit vanaf 2022 van toepassing is, moet voor de verplichting een voorziening worden opgenomen omdat hier sprake is van een spaarsaldo dat in de tijd, naar verwachting, niet van gelijke omvang zal zijn wat betreft toevoegingen en opnamen van spaarverlof. In de opbouwjaren zal naar verwachting vooral sprake zijn van toevoegingen en groei van de omvang van het spaarsaldo. Dit betreft de uren die door medewerkers zijn aangewezen als spaarverlof.",null,null,null,null,null,null,"s","Maak uw keuze",null,null,{"$f":"IF(AND(J81<>\"-\",J81<>\"br\"),IF(AND(K81=CHK_M,OR(Z81=1,Z81=\"\")),1,0),0)","v":1},{"$f":"IF(AND(J81<>\"-\",S81=1,K81=CHK_V,OR(Z81=1,Z81=\"\"),L81=\"\"),1,0)","v":0},{"$f":"IF(AND(J81<>\"-\",S81=1,K81=CHK_V,OR(Z81=1,Z81=\"\"),M81=\"\"),1,0)","v":0},{"$f":"IF(AND(K81=CHK_V,S81=1),1,IF(OR(Q80=1,Q80=2),IF(AND(C81=\"\",J81=\"\"),3,IF(AND(K81<>CHK_M,K81<>CHK_A,K81<>CHK_N,T81=\"\"),2,0)),0))","v":0},{"$f":"IF(OR(T81=4,V81>0),1,0)","v":0},{"$f":"IF(AND(J81<>\"-\",J81<>\"\",OR(Z81=1,Z81=\"\")),1,0)","v":1},null,0,null,null,null,null,null,{"$f":"IF(AND(K81<>CHK_M,S81=1),1,IF(OR(AA80=1,AA80=2),IF(AND(C81=\"\",J81=\"\"),3,IF(AND(K81<>CHK_M,T81=\"\"),2,0)),0))","v":0},{"$f":"IF(OR(T81=4,AC81>0),1,0)+AA81","v":0}]
[null,null,"3.\tVoor het bovenwettelijke verlof waarvan aangetoond kan worden dat dit een gelijke omvang kent en voor zover dat niet het karakter heeft van overmatige verlofsaldi of spaarsaldi mag geen voorziening te worden opgenomen. Voor het bovenwettelijke verlof dat geen gelijke omvang kent en/of bestaat uit overmatige verlofsaldi of spaarsaldi moet een voorziening worden opgenomen. Feitelijk zijn deze voorwaarden niet anders dan voorheen en sluiten deze aan met de notitie ‘Het BBV & Arbeidskostengerelateerde verplichtingen’ van de commissie BBV van januari 2013.",null,null,null,null,null,null,null,"XEmpty",null,null,0,0,0,0,0,0,null,null,null,null,null,null,null,0,0]
[null,null,"Als sprake is van het vormen van een voorziening dan gelden de volgende vereisten:\n1. de dotatie is de opbouw van het spaarverlof;\n2. de uren worden vermenigvuldigd met het uurtarief per persoon of een gemiddeld uurtarief per functielaag;\n3. de onttrekking is de daadwerkelijke opname van het verlof;\n4. de voorziening wordt niet contant gemaakt; en\n5. het is niet toegestaan dat de gemeente alleen een voorziening vormt voor medewerkers waarvan het aantal verlof(spaar)uren boven een bepaalde door een gemeente te bepalen grens ligt.\n\nHet is voor het inzicht gewenst dat gemeenten de gehanteerde uitgangspunten toelicht in de jaarrekening.",null,null,null,null,null,null,null,"XEmpty",null,null,0,0,0,0,0,0,null,null,null,null,null,null,null,0,0]
[null,null,null,null,null,null,null,null,null,"","XEmpty",null,null,0,0,0,0,0,0,null,0,null,null,null,null,null,0,0]

{"sheet":"Schulden","index":12,"n_rows":68,"n_cols":29,"rows_kept":68,"cut":false,"hidden":false,"merged":[[3,12,5,12],[1,10,5,10],[1,11,5,11]]}
["BBV",null,null,null,null,null,null,null,null,{"$f":"IF(ISBLANK(D1)=TRUE,\"\",OFFSET(C1,0,CATSRT))","v":""},null,null,null,"PD RANGE"]
[null,null,null,null,null,null,null,null,null,"",{"$f":"VOLDAAN","v":"Is aan de vereisten voor de Jaarverslag-geving voldaan?"},{"$f":"TOEL","v":"Commentaar bij \"Voldoet niet\""},null,null,null,null,null,"Kopje van",null,null,"tbv hiden"]
[null,null,"w = wettelijk vereiste       s = stellige uitspraak van cie Bbv",null,null,null,null,null,null,"",null,null,null,"Vraag","Toelichting","Review","hulprange","hfdstuk of",null,"Info","Som P en Q","info","info","info","info"]
[null,null,"-  = niet vereist                 a = aanbevolen door cie Bbv",null,null,null,null,null,null,"",null,null,{"$f":"COM_REV","v":"Afwerking / Commentaar reviewer"},"(on)beantwoord","opgenomen","opgenomen","Vold. niet","Vold niet","vraagregel?"]
[null,null,null,null,null,null,null,null,null,"",null,null,null,null,null,null,"info"]
[{"$f":"IF(Navigatiescherm!J52=0,TRUE,FALSE)","v":false},null,null,null,null,null,null,null,null,"",null,null,null,"info"]
[null,null,null,null,null,null,null,null,null,"",{"$f":"CHK_M","v":"Maak uw keuze"},null,null,null,null,null,{"$f":"IF(AND(K7=CHK_V,S7=1),1,IF(OR(Q6=1,Q6=2),IF(AND(C7=\"\",J7=\"\"),3,IF(AND(K7<>CHK_M,K7<>CHK_A,K7<>CHK_N,T7=\"\"),2,0)),0))","v":0},{"$f":"IF(OR(T7=4,V7>0),1,0)","v":1},{"$f":"IF(AND(J7<>\"-\",J7<>\"\",OR(Z7=1,Z7=\"\")),1,0)","v":0},4,{"$f":"Q7+R7","v":1},null,null,null,null,null,{"$f":"IF(AND(K7<>CHK_M,S7=1),1,IF(OR(AA6=1,AA6=2),IF(AND(C7=\"\",J7=\"\"),3,IF(AND(K7<>CHK_M,T7=\"\"),2,0)),0))","v":0},{"$f":"IF(OR(T7=4,AC7>0),1,0)+AA7","v":1}]
[null,null,"Schulden",null,null,null,null,null,null,"",{"$f":"CHK_V","v":"Voldoet niet"},null,null,{"$f":"IF(AND(J8<>\"-\",J8<>\"br\"),IF(AND(K8=CHK_M,OR(Z8=1,Z8=\"\")),1,0),0)","v":0},{"$f":"IF(AND(J8<>\"-\",S8=1,K8=CHK_V,OR(Z8=1,Z8=\"\"),L8=\"\"),1,0)","v":0},{"$f":"IF(AND(J8<>\"-\",S8=1,K8=CHK_V,OR(Z8=1,Z8=\"\"),M8=\"\"),1,0)","v":0},0,{"$f":"IF(OR(T8=4,V8>0),1,0)","v":1},{"$f":"IF(AND(J8<>\"-\",J8<>\"\",OR(Z8=1,Z8=\"\")),1,0)","v":0},4,1,null,null,null,null,null,{"$f":"IF(AND(K8<>CHK_M,S8=1),1,IF(OR(AA7=1,AA7=2),IF(AND(C8=\"\",J8=\"\"),3,IF(AND(K8<>CHK_M,T8=\"\"),2,0)),0))","v":0},{"$f":"IF(OR(T8=4,AC8>0),1,0)+AA8","v":1}]
[null,null,null,null,null,null,null,null,null,"",{"$f":"CHK_A","v":"Akkoord"},null,null,0,0,0,0,{"$f":"IF(OR(T9=4,V9>0),1,0)","v":0},{"$f":"IF(AND(J9<>\"-\",J9<>\"\",OR(Z9=1,Z9=\"\")),1,0)","v":0},5,0,null,null,null,null,null,0,0]
[null,null,"Vaste schulden",null,null,null,null,null,null,"",{"$f":"CHK_N","v":"Nvt"},null,null,{"$f":"IF(AND(J10<>\"-\",J10<>\"br\"),IF(AND(K10=CHK_M,OR(Z10=1,Z10=\"\")),1,0),0)","v":0},{"$f":"IF(AND(J10<>\"-\",S10=1,K10=CHK_V,OR(Z10=1,Z10=\"\"),L10=\"\"),1,0)","v":0},{"$f":"IF(AND(J10<>\"-\",S10=1,K10=CHK_V,OR(Z10=1,Z10=\"\"),M10=\"\"),1,0)","v":0},{"$f":"IF(AND(K10=CHK_V,S10=1),1,IF(OR(Q9=1,Q9=2),IF(AND(C10=\"\",J10=\"\"),3,IF(AND(K10<>CHK_M,K10<>CHK_A,K10<>CHK_N,T10=\"\"),2,0)),0))","v":0},{"$f":"IF(OR(T10=4,V10>0),1,0)","v":0},{"$f":"IF(AND(J10<>\"-\",J10<>\"\",OR(Z10=1,Z10=\"\")),1,0)","v":0},99,0,{"$f":"SUM($Q$11:$Q$33)","v":0},{"$f":"SUM($N$11:$N$33)","v":11},{"$f":"SUM($O$11:$O$33)","v":0},{"$f":"SUM($P$11:$P$33)","v":0},{"$f":"IF(ANSW_04_11_01=NEE,0,1)","v":1},{"$f":"IF(AND(K10<>CHK_M,S10=1),1,IF(OR(AA9=1,AA9=2),IF(AND(C10=\"\",J10=\"\"),3,IF(AND(K10<>CHK_M,T10=\"\"),2,0)),0))","v":0},{"$f":"IF(OR(T10=4,AC10>0),1,0)+AA10","v":0},{"$f":"SUM($AA$11:$AA$33)","v":0}]
["art. 46",null,"Zijn op de balans onder de langlopende schulden de volgende categorieën afzonderlijk vermeld?",null,null,null,null,null,null,"","XEmpty",null,null,0,0,0,0,0,0,null,0,null,null,null,null,{"$f":"Z10","v":1},0,0]
[null,null,"a. obligatieleningen;","w",null,null,null,null,null,"w","Maak uw keuze",null,null,1,0,0,0,0,1,null,0,null,null,null,null,{"$f":"Z11","v":1},0,0]
[null,null,null,"",null,null,null,null,null,"","XEmpty",null,null,0,0,0,0,0,0,null,0,null,null,null,null,{"$f":"Z12","v":1},0,0]
[null,null,"b. onderhandse leningen van:","w",null,null,null,null,null,"w","Maak uw keuze",null,null,1,0,0,0,0,1,null,0,null,null,null,null,{"$f":"Z13","v":1},0,0]
[null,null,null,"",null,null,null,null,null,"","XEmpty",null,null,0,0,0,0,0,0,null,0,null,null,null,null,1,0,0]
[null,null,"1. binnenlandse pensioenfondsen en verzekeringsinstellingen?","w",null,null,null,null,null,"w","Maak uw keuze",null,null,1,0,0,0,0,1,null,0,null,null,null,null,1,0,0]
[null,null,null,"",null,null,null,null,null,"","XEmpty",null,null,0,0,0,0,0,0,null,0,null,null,null,null,1,0,0]
[null,null,"2. binnenlandse banken en overige financiële instellingen?","w",null,null,null,null,null,"w","Maak uw keuze",null,null,1,0,0,0,0,1,null,0,null,null,null,null,1,0,0]
[null,null,null,"",null,null,null,null,null,"","XEmpty",null,null,0,0,0,0,0,0,null,0,null,null,null,null,1,0,0]
[null,null,"3. binnenlandse bedrijven?","w",null,null,null,null,null,"w","Maak uw keuze",null,null,1,0,0,0,0,1,null,0,null,null,null,null,1,0,0]
[null,null,null,"",null,null,null,null,null,"","XEmpty",null,null,0,0,0,0,0,0,null,0,null,null,null,null,1,0,0]
[null,null,"4. openbare lichamen als bedoeld in artikel 1, onderdeel a, van de Wet financiering decentrale overheden","w",null,null,null,null,null,"w","Maak uw keuze",null,null,1,0,0,0,0,1,null,0,null,null,null,null,1,0,0]
[null,null,null,"",null,null,null,null,null,"","XEmpty",null,null,0,0,0,0,0,0,null,0,null,null,null,null,1,0,0]
[null,null,"5. overige binnenlandse sectoren?","w",null,null,null,null,null,"w","Maak uw keuze",null,null,1,0,0,0,0,1,null,0,null,null,null,null,1,0,0]
[null,null,null,"",null,null,null,null,null,"","XEmpty",null,null,0,0,0,0,0,0,null,0,null,null,null,null,1,0,0]
[null,null,"6. buitenlandse instellingen, fondsen, banken, bedrijven en overige sectoren?","w",null,null,null,null,null,"w","Maak uw keuze",null,null,1,0,0,0,0,1,null,0,null,null,null,null,1,0,0]
[null,null,null,"",null,null,null,null,null,"","XEmpty",null,null,0,0,0,0,0,0,null,0,null,null,null,null,1,0,0]
[null,null,"c. door derden belegde gelden;","w",null,null,null,null,null,"w","Maak uw keuze",null,null,1,0,0,0,0,1,null,0,null,null,null,null,1,0,0]
[null,null,null,"",null,null,null,null,null,"","XEmpty",null,null,0,0,0,0,0,0,null,0,null,null,null,null,{"$f":"Z28","v":1},0,0]
[null,null,"d. waarborgsommen.","w",null,null,null,null,null,"w","Maak uw keuze",null,null,1,0,0,0,0,1,null,0,null,null,null,null,1,0,0]
[null,null,null,"",null,null,null,null,null,"","XEmpty",null,null,0,0,0,0,0,0,null,0,null,null,null,null,{"$f":"Z30","v":1},0,0]
["art. 56",null,"Wordt in de toelichting op de balans de rentelast voor het begrotingsjaar vermeld van alle vaste schulden?","w",null,null,null,null,null,"w","Maak uw keuze",null,null,1,0,0,0,0,1,null,0,null,null,null,null,1,0,0]
[null,null,null,"",null,null,null,null,null,"","XEmpty",null,null,0,0,0,0,0,0,null,0,null,null,null,null,{"$f":"Z32","v":1},0,0]
[null,null,"Vlottende passiva","",null,null,null,null,null,"","XEmpty",null,null,0,0,0,0,0,0,99,0,{"$f":"SUM($Q$35:$Q$38)","v":0},{"$f":"SUM($N$35:$N$38)","v":2},{"$f":"SUM($O$35:$O$38)","v":0},{"$f":"SUM($P$35:$P$38)","v":0},null,0,0,{"$f":"SUM($AA$35:$AA$38)","v":0}]
["art. 47",null,"Zijn onder de vlottende passiva afzonderlijk opgenomen (1) de netto-vlottende schulden, met een rentetypische looptijd korter dan één jaar en (2) de overlopende passiva?","w",null,null,null,null,null,"w","Maak uw keuze",null,null,1,0,0,0,0,1,null,0,null,null,null,null,null,0,0]
[null,null,null,"",null,null,null,null,null,"","XEmpty",null,null,0,0,0,0,0,0,null,0,null,null,null,null,null,0,0]
["art. 63.7",null,"Worden de vaste schulden, netto-vlottende schulden en overlopende passiva gewaardeerd tegen de nominale waarde?","w",null,null,null,null,null,"w","Maak uw keuze",null,null,1,0,0,0,0,1,null,0,null,null,null,null,null,0,0]
[null,null,null,"",null,null,null,null,null,"","XEmpty",null,null,0,0,0,0,0,0,null,0,null,null,null,null,null,0,0]
[null,null,"Vlottende schulden","",null,null,null,null,null,"","XEmpty",null,null,0,0,0,0,0,0,99,0,{"$f":"SUM($Q$40:$Q$45)","v":0},{"$f":"SUM($N$40:$N$45)","v":4},{"$f":"SUM($O$40:$O$45)","v":0},{"$f":"SUM($P$40:$P$45)","v":0},null,0,0,{"$f":"SUM($AA$40:$AA$45)","v":0}]
["art. 48",null,"Zijn op de balans de netto-vlottende schulden gespecificeerd naar:\n","",null,null,null,null,null,"","XEmpty",null,null,0,0,0,0,0,0,null,0,null,null,null,null,null,0,0]
[null,null,"a. kasgeldleningen aangegaan bij openbare lichamen als bedoeld in artikel 1, onderdeel a, van de Wet financiering decentrale overheden?","w",null,null,null,null,null,"w","Maak uw keuze",null,null,1,0,0,0,0,1,null,0,null,null,null,null,null,0,0]
[null,null,"b. overige kasgeldleningen?","w",null,null,null,null,null,"w","Maak uw keuze",null,null,1,0,0,0,0,1,null,0,null,null,null,null,null,0,0]
[null,null,"c. debetsaldi bank?\n","w",null,null,null,null,null,"w","Maak uw keuze",null,null,1,0,0,0,0,1,null,0,null,null,null,null,null,0,0]
[null,null,"d. overige schulden?","w",null,null,null,null,null,"w","Maak uw keuze",null,null,1,0,0,0,0,1,null,0,null,null,null,null,null,0,0]
[null,null,null,"",null,null,null,null,null,"","XEmpty",null,null,0,0,0,0,0,0,null,0,null,null,null,null,null,0,0]
[null,null,"Onderscheid vaste/vlottende schulden","",null,null,null,null,null,"","XEmpty",null,null,0,0,0,0,0,0,99,0,{"$f":"SUM($Q$47:$Q$48)","v":0},{"$f":"SUM($N$47:$N$48)","v":1},{"$f":"SUM($O$47:$O$48)","v":0},{"$f":"SUM($P$47:$P$48)","v":0},null,0,0,{"$f":"SUM($AA$47:$AA$48)","v":0}]
[null,null,"Zijn de schulden met een oorspronkelijke rentetypische looptijd van één jaar of langer in de balans opgenomen onder de vaste schulden? ","w",null,null,null,null,null,"w","Maak uw keuze",null,null,1,0,0,0,0,1,null,0,null,null,null,null,null,0,0]
[null,null,null,"",null,null,null,null,null,"","XEmpty",null,null,0,0,0,0,0,0,null,0,null,null,null,null,null,0,0]
[null,null,"Overlopende passiva","",null,null,null,null,null,"","XEmpty",null,null,0,0,0,0,0,0,99,0,{"$f":"SUM($Q$50:$Q$68)","v":0},{"$f":"SUM($N$50:$N$68)","v":13},{"$f":"SUM($O$50:$O$68)","v":0},{"$f":"SUM($P$50:$P$68)","v":0},null,0,0,{"$f":"SUM($AA$50:$AA$68)","v":0}]
["art. 49a",null,"a. Zijn er onder de overlopende passiva verplichtingen opgenomen die in het begrotingsjaar zijn opgebouwd en die in een volgende begrotingsjaar tot betaling komen, met uitzondering van jaarlijks terugkerende arbeidskostengerelateerde verplichtingen van vergelijkbaar volume?","w",null,null,null,null,null,"w","Maak uw keuze",null,null,1,0,0,0,0,1,null,0,null,null,null,null,null,0,0]
[null,null,null,"",null,null,null,null,null,"","XEmpty",null,null,0,0,0,0,0,0,null,0,null,null,null,null,null,0,0]
["art. 49b",null,"b. Zijn onder de overlopende passiva opgenomen de van Europese en/of Nederlandse overheidlichamen (vooruit)ontvangen voorschotbedragen voor uitkeringen met een specifiek bestedingsdoel die dienen ter dekking van lasten van volgende begrotingsjaren?\n","w",null,null,null,null,null,"w","Maak uw keuze",null,null,1,0,0,0,0,1,null,0,null,null,null,null,null,0,0]
["art. 49",null,"Zijn de vooruitontvangen voorschotten van Europese en Nederlandse overheidslichamen, bedoeld in BBV art. 49b, in de balans uitgesplitst naar de vooruitontvangen bedragen van:","w",null,null,null,null,null,"w","Maak uw keuze",null,null,1,0,0,0,0,1,null,0,null,null,null,null,null,0,0]
[null,null,"1°. Europese overheidslichamen;","w",null,null,null,null,null,"w","Maak uw keuze",null,null,1,0,0,0,0,1,null,0,null,null,null,null,null,0,0]
[null,null,"2°. het Rijk; en","w",null,null,null,null,null,"w","Maak uw keuze",null,null,1,0,0,0,0,1,null,0,null,null,null,null,null,0,0]
[null,null,"3°. overige Nederlandse overheidslichamen?","w",null,null,null,null,null,"w","Maak uw keuze",null,null,1,0,0,0,0,1,null,0,null,null,null,null,null,0,0]
[null,null,null,null,null,null,null,null,null,"","XEmpty",null,null,0,0,0,0,0,0,null,0,null,null,null,null,null,0,0]
["art. 48c",null,"Indien er sprake is van een specifieke doeluitkering met terugbetalingsverplichting die in hetzelfde jaar moet worden besteed, zijn de niet bestede middelen dan opgenomen onder de netto vlottende schulden ex art 48, onderdeel d?","w",null,null,null,null,null,"w","Maak uw keuze",null,null,1,0,0,0,0,1,null,0,null,null,null,null,null,0,0]
[null,null,null,"",null,null,null,null,null,"","XEmpty",null,null,0,0,0,0,0,0,null,0,null,null,null,null,null,0,0]
["art. 49c volgens BBV 10-7-2007",null,"\nc. Zijn onder de overlopende passiva opgenomen de overige vooruitontvangen bedragen die ten bate van volgende begrotingsjaren komen?","w",null,null,null,null,null,"w","Maak uw keuze",null,null,1,0,0,0,0,1,null,0,null,null,null,null,null,0,0]
[null,null,null,"",null,null,null,null,null,"","XEmpty",null,null,0,0,0,0,0,0,null,0,null,null,null,null,null,0,0]
["art. 52a",null,"Wordt in de toelichting op de balans per uitkering met een specifiek bestedingsdoel het verloop gedurende het jaar van de vooruitontvangen voorschotbedragen in een overzicht weergegeven?","w",null,null,null,null,null,"w","Maak uw keuze",null,null,1,0,0,0,0,1,null,0,null,null,null,null,null,0,0]
[null,null,"Blijkt daaruit:","",null,null,null,null,null,"","XEmpty",null,null,0,0,0,0,0,0,null,0,null,null,null,null,null,0,0]
[null,null,"a. het saldo aan het begin van het begrotingsjaar;","w",null,null,null,null,null,"w","Maak uw keuze",null,null,1,0,0,0,0,1,null,0,null,null,null,null,null,0,0]
[null,null,"b. ontvangen bedragen;","w",null,null,null,null,null,"w","Maak uw keuze",null,null,1,0,0,0,0,1,null,0,null,null,null,null,null,0,0]
[null,null,"c. vrijgevallen bedragen of de terugbetaling;","w",null,null,null,null,null,"w","Maak uw keuze",null,null,1,0,0,0,0,1,null,0,null,null,null,null,null,0,0]
[null,null,"d. het saldo aan het einde van het begrotingsjaar?","w",null,null,null,null,null,"w","Maak uw keuze",null,null,1,0,0,0,0,1,null,0,null,null,null,null,null,0,0]
[null,null,null,null,null,null,null,null,null,"","XEmpty",null,null,0,0,0,0,0,0,null,0,null,null,null,null,null,0,0]

{"sheet":"Overzicht van baten en lasten","index":13,"n_rows":58,"n_cols":29,"rows_kept":58,"cut":false,"hidden":false,"merged":[[3,12,5,12],[1,10,5,10],[1,11,5,11]]}
["BBV",null,null,null,null,null,null,null,null,{"$f":"IF(ISBLANK(D1)=TRUE,\"\",OFFSET(C1,0,CATSRT))","v":""},null,null,null,"PD RANGE"]
[null,null,null,null,null,null,null,null,null,"",{"$f":"VOLDAAN","v":"Is aan de vereisten voor de Jaarverslag-geving voldaan?"},{"$f":"TOEL","v":"Commentaar bij \"Voldoet niet\""},null,null,null,null,null,"Kopje van",null,null,"tbv hiden"]
[null,null,"w = wettelijk vereiste       s = stellige uitspraak van cie Bbv",null,null,null,null,null,null,"",null,null,null,"Vraag","Toelichting","Review","hulprange","hfdstuk of",null,"Info","Som P en Q","info","info","info","info"]
[null,null,"-  = niet vereist                 a = aanbevolen door cie Bbv",null,null,null,null,null,null,"",null,null,{"$f":"COM_REV","v":"Afwerking / Commentaar reviewer"},"(on)beantwoord","opgenomen","opgenomen","Vold. niet","Vold niet","vraagregel?"]
[null,null,null,null,null,null,null,null,null,"",null,null,null,null,null,null,"info"]
[{"$f":"IF(Navigatiescherm!J59=0,TRUE,FALSE)","v":false},null,null,null,null,null,null,null,null,"",null,null,null,"info"]
[null,null,null,null,null,null,null,null,null,"",{"$f":"CHK_M","v":"Maak uw keuze"},null,null,null,null,null,{"$f":"IF(AND(K7=CHK_V,S7=1),1,IF(OR(Q6=1,Q6=2),IF(AND(C7=\"\",J7=\"\"),3,IF(AND(K7<>CHK_M,K7<>CHK_A,K7<>CHK_N,T7=\"\"),2,0)),0))","v":0},{"$f":"IF(OR(T7=4,V7>0),1,0)","v":1},{"$f":"IF(AND(J7<>\"-\",J7<>\"\",OR(Z7=1,Z7=\"\")),1,0)","v":0},4,{"$f":"Q7+R7","v":1},null,null,null,null,null,{"$f":"IF(AND(K7<>CHK_M,S7=1),1,IF(OR(AA6=1,AA6=2),IF(AND(C7=\"\",J7=\"\"),3,IF(AND(K7<>CHK_M,T7=\"\"),2,0)),0))","v":0},{"$f":"IF(OR(T7=4,AC7>0),1,0)+AA7","v":1}]
[null,null,"Overzicht van baten en lasten in de jaarrekening",null,null,null,null,null,null,"",{"$f":"CHK_V","v":"Voldoet niet"},null,null,{"$f":"IF(AND(J8<>\"-\",J8<>\"br\"),IF(AND(K8=CHK_M,OR(Z8=1,Z8=\"\")),1,0),0)","v":0},{"$f":"IF(AND(J8<>\"-\",S8=1,K8=CHK_V,OR(Z8=1,Z8=\"\"),L8=\"\"),1,0)","v":0},{"$f":"IF(AND(J8<>\"-\",S8=1,K8=CHK_V,OR(Z8=1,Z8=\"\"),M8=\"\"),1,0)","v":0},0,{"$f":"IF(OR(T8=4,V8>0),1,0)","v":1},{"$f":"IF(AND(J8<>\"-\",J8<>\"\",OR(Z8=1,Z8=\"\")),1,0)","v":0},4,1,null,null,null,null,null,0,{"$f":"IF(OR(T8=4,AC8>0),1,0)+AA8","v":1}]
[null,null,null,null,null,null,null,null,null,"",{"$f":"CHK_A","v":"Akkoord"},null,null,{"$f":"IF(AND(J9<>\"-\",J9<>\"br\"),IF(AND(K9=CHK_M,OR(Z9=1,Z9=\"\")),1,0),0)","v":0},{"$f":"IF(AND(J9<>\"-\",S9=1,K9=CHK_V,OR(Z9=1,Z9=\"\"),L9=\"\"),1,0)","v":0},{"$f":"IF(AND(J9<>\"-\",S9=1,K9=CHK_V,OR(Z9=1,Z9=\"\"),M9=\"\"),1,0)","v":0},{"$f":"IF(AND(K9=CHK_V,S9=1),1,IF(OR(Q8=1,Q8=2),IF(AND(C9=\"\",J9=\"\"),3,IF(AND(K9<>CHK_M,K9<>CHK_A,K9<>CHK_N,T9=\"\"),2,0)),0))","v":0},{"$f":"IF(OR(T9=4,V9>0),1,0)","v":0},{"$f":"IF(AND(J9<>\"-\",J9<>\"\",OR(Z9=1,Z9=\"\")),1,0)","v":0},5,0,null,null,null,null,null,{"$f":"IF(AND(K9<>CHK_M,S9=1),1,IF(OR(AA8=1,AA8=2),IF(AND(C9=\"\",J9=\"\"),3,IF(AND(K9<>CHK_M,T9=\"\"),2,0)),0))","v":0},{"$f":"IF(OR(T9=4,AC9>0),1,0)+AA9","v":0}]
[null,null,"Algemene bepalingen",null,null,null,null,null,null,"",{"$f":"CHK_N","v":"Nvt"},null,null,{"$f":"IF(AND(J10<>\"-\",J10<>\"br\"),IF(AND(K10=CHK_M,OR(Z10=1,Z10=\"\")),1,0),0)","v":0},{"$f":"IF(AND(J10<>\"-\",S10=1,K10=CHK_V,OR(Z10=1,Z10=\"\"),L10=\"\"),1,0)","v":0},{"$f":"IF(AND(J10<>\"-\",S10=1,K10=CHK_V,OR(Z10=1,Z10=\"\"),M10=\"\"),1,0)","v":0},{"$f":"IF(AND(K10=CHK_V,S10=1),1,IF(OR(Q9=1,Q9=2),IF(AND(C10=\"\",J10=\"\"),3,IF(AND(K10<>CHK_M,K10<>CHK_A,K10<>CHK_N,T10=\"\"),2,0)),0))","v":0},{"$f":"IF(OR(T10=4,V10>0),1,0)","v":0},{"$f":"IF(AND(J10<>\"-\",J10<>\"\",OR(Z10=1,Z10=\"\")),1,0)","v":0},99,0,{"$f":"SUM($Q$11:$Q$16)","v":0},{"$f":"SUM($N$11:$N$16)","v":3},{"$f":"SUM($O$11:$O$16)","v":0},{"$f":"SUM($P$11:$P$16)","v":0},null,0,0,{"$f":"SUM($AA$11:$AA$16)","v":0}]
["art. 2.1",null,"Is de compensabele BTW niet als last verwerkt?","w",null,null,null,null,null,"w","Maak uw keuze",null,null,1,0,0,0,0,1,null,0,null,null,null,null,null,0,0]
[null,null,null,null,null,null,null,null,null,"","XEmpty",null,null,0,0,0,0,0,0,null,0,null,null,null,null,null,0,0]
["art. 2.3",null,"Zijn de baten en lasten geraamd dan wel verantwoord tot hun brutobedrag?","w",null,null,null,null,null,"w","Maak uw keuze",null,null,1,0,0,0,0,1,null,0,null,null,null,null,null,0,0]
[null,null,null,null,null,null,null,null,null,"","XEmpty",null,null,0,0,0,0,0,0,null,0,null,null,null,null,null,0,0]
["art. 2.4",null,"Wordt de over het eigen vermogen berekende bespaarde rente tot de baten c.q. lasten gerekend?","w",null,null,null,null,null,"w","Maak uw keuze",null,null,1,0,0,0,0,1,null,0,null,null,null,null,null,0,0]
[null,null,null,null,null,null,null,null,null,"","XEmpty",null,null,0,0,0,0,0,0,null,0,null,null,null,null,null,0,0]
[null,null,"Het overzicht van baten en lasten in de jaarrekening met toelichting",null,null,null,null,null,null,"","XEmpty",null,null,0,0,0,0,0,0,99,0,{"$f":"SUM($Q$18:$Q$27)","v":0},{"$f":"SUM($N$18:$N$27)","v":7},{"$f":"SUM($O$18:$O$27)","v":0},{"$f":"SUM($P$18:$P$27)","v":0},null,0,0,{"$f":"SUM($AA$18:$AA$52)","v":0}]
["art. 27.1",null,"Zijn in het overzicht van baten en lasten in de jaarrekening opgenomen:",null,null,null,null,null,null,"","XEmpty",null,null,0,0,0,0,0,0,null,0,null,null,null,null,null,0,0]
[null,null,"a. de gerealiseerde baten en lasten per programma?","w",null,null,null,null,null,"w","Maak uw keuze",null,null,1,0,0,0,0,1,null,0,null,null,null,null,null,0,0]
[null,null,"b. het overzicht van de gerealiseerde algemene dekkingsmiddelen, de gerealiseerde kosten van de overhead en het bedrag van de heffing voor de vennootschapsbelasting;","w",null,null,null,null,null,"w","Maak uw keuze",null,null,1,0,0,0,0,1,null,0,null,null,null,null,null,0,0]
[null,null,"c. het gerealiseerde totaal saldo van baten en lasten, volgend uit de onderdelen a en b?","w",null,null,null,null,null,"w","Maak uw keuze",null,null,1,0,0,0,0,1,null,0,null,null,null,null,null,0,0]
[null,null,"d. de werkelijke toevoegingen en onttrekkingen aan reserves?","w",null,null,null,null,null,"w","Maak uw keuze",null,null,1,0,0,0,0,1,null,0,null,null,null,null,null,0,0]
[null,null,"e. het gerealiseerde resultaat, volgend uit de onderdelen c en d?","w",null,null,null,null,null,"w","Maak uw keuze",null,null,1,0,0,0,0,1,null,0,null,null,null,null,null,0,0]
[null,null,null,null,null,null,null,null,null,"","XEmpty",null,null,0,0,0,0,0,0,null,0,null,null,null,null,null,0,0]
["art. 27.2",null,"Bevat het overzicht van baten en lasten in de jaarrekening voor de hiervoor genoemde onderdelen ook de ramingen uit de begroting voor en na wijziging?","w",null,null,null,null,null,"w","Maak uw keuze",null,null,1,0,0,0,0,1,null,0,null,null,null,null,null,0,0]
[null,null,null,null,null,null,null,null,null,"","XEmpty",null,null,0,0,0,0,0,0,null,0,null,null,null,null,null,0,0]
["art. 27.1 en art. 8.5",null,"Zijn onder de algemene dekkingsmiddelen afzonderlijk opgenomen:\n- lokale heffingen, waarvan de besteding niet gebonden is;\n- algemene uitkeringen;\n- dividend;\n- saldo van de financieringsfunctie;\n- overige algemene dekkingsmiddelen.\n","w",null,null,null,null,null,"w","Maak uw keuze",null,null,1,0,0,0,0,1,null,0,null,null,null,null,null,0,0]
[null,null,"Algemene uitkering",null,null,null,null,null,null,"","XEmpty",null,null,0,0,0,0,0,0,99,0,{"$f":"SUM($Q$29:$Q$58)","v":0},{"$f":"SUM($N$29:$N$58)","v":16},{"$f":"SUM($O$29:$O$58)","v":0},{"$f":"SUM($P$29:$P$58)","v":0},null,0,0]
[null,null,"Met betrekking tot de verwerking van de algemene uitkering heeft de commissie BBV een stellige uitspraak gedaan. Deze uitspraak houdt in dat in de jaarrekening de algemene uitkering wordt opgenomen conform de in het jaar laatst gepubliceerde accresmededeling, die doorgaans is opgenomen in de september circulaire van het boekjaar. Indien de gemeente afwijkt van deze stellige uitspraak dan voornoemde tekst opnemen en aanvullend toelichten welke circulaire en/of aanvullende informatie in de jaarrekening is verwerkt.","s",null,null,null,null,null,"s","Maak uw keuze",null,null,1,0,0,0,0,1,null,0,null,null,null,null,null,0,0]
[null,null,null,null,null,null,null,null,null,"","XEmpty",null,null,0,0,0,0,0,0,null,0,null,null,null,null,null,0,0]
[null,null,null,null,null,null,null,null,null,{"$f":"IF(ISBLANK(D31)=TRUE,\"\",OFFSET(C31,0,CATSRT))","v":""},"XEmpty",null,null,0,0,0,0,0,0,null,0,null,null,null,null,null,0,0]
[null,null,"Bestaat het saldo van de financieringsfunctie uit:\n- de betaalde rentelast over de aangegane leningen en over de aangetrokken middelen in rekening-courant\n- de ontvangen rentebaten over de uitzettingen\n","s",null,null,null,null,null,"s","Maak uw keuze",null,null,1,0,0,0,0,1,null,0,null,null,null,null,null,0,0]
[null,null,"Is de (eventueel) berekende rente over het eigen vermogen opgenomen onder de overige algemene dekkingsmiddelen?","s",null,null,null,null,null,"s","Maak uw keuze",null,null,1,0,0,0,0,1,null,0,null,null,null,null,null,0,0]
[null,null,null,null,null,null,null,null,null,"","XEmpty",null,null,0,0,0,0,0,0,null,0,null,null,null,null,null,0,0]
["art. 28",null,"Bevat de toelichting op het overzicht van baten en lasten in de jaarrekening ten minste:",null,null,null,null,null,null,"","XEmpty",null,null,0,0,0,0,0,0,null,0,null,null,null,null,null,0,0]
[null,null,"a. voor alle onderdelen van artikel 27, eerste lid, een analyse van de afwijkingen tussen de begroting na wijziging en het overzicht van baten en lasten in de jaarrekening;","w",null,null,null,null,null,"w","Maak uw keuze",null,null,1,0,0,0,0,1,null,0,null,null,null,null,null,0,0]
[null,null,"b. een overzicht van de aanwending van het bedrag voor onvoorzien;","w",null,null,null,null,null,"w","Maak uw keuze",null,null,1,0,0,0,0,1,null,0,null,null,null,null,null,0,0]
[null,null,"c. een overzicht van de incidentele baten en lasten.","w",null,null,null,null,null,"w","Maak uw keuze",null,null,1,0,0,0,0,1,null,0,null,null,null,null,null,0,0]
[null,null,"Incidentele baten en lasten zijn baten en lasten die zich maximaal 3 jaar achtereen voordoen (toelichting art. 28).",null,null,null,null,null,null,"","XEmpty",null,null,0,0,0,0,0,0,null,0,null,null,null,null,null,0,0]
[null,null,"d. een overzicht van de structurele toevoegingen en onttrekkingen aan de reserves","w",null,null,null,null,null,"w","Maak uw keuze",null,null,1,0,0,0,0,1,null,0,null,null,null,null,null,0,0]
[null,null,"e. de informatie, bedoeld in de artikelen 4.1, eerste en tweede lid, en 4.2, eerste tot en met derde lid van de Wet normering bezoldiging topfunctionarissen publieke en semipublieke sector","w",null,null,null,null,null,"w","Maak uw keuze",null,null,1,0,0,0,0,1,null,0,null,null,null,null,null,0,0]
[null,null,null,null,null,null,null,null,null,"","XEmpty",null,null,0,0,0,0,0,0,null,0,null,null,null,null,null,0,0]
["Notitie structurele en incidentele baten en lasten (2018)",null,"Stel vast dat de in het overzicht van incidentele baten en lasten opgenomen posten zijn toegelicht.\n\nOf een post terecht als incidenteel opgenomen is in het overzicht van incidentele baten en lasten, kan veelal alleen inzichtelijk worden gemaakt door het geven van een goede toelichting. Het BBV geeft immers geen scherpe definitie wat incidenteel of structureel is. Dit wordt mede ingegeven door het ‘principle based’ zijn van het BBV. Gemeenten verschillen in aard, takenpakket, (politieke) keuzes en omvang van elkaar. Bij de toepassing van het BBV voor een specifieke gemeente bestaat daarom ruimte om de verslaggeving zodanig in te vullen dat daarmee voor die specifieke gemeente het inzicht geoptimaliseerd wordt. Er zijn echter wel een aantal voorbeelden die in vrijwel alle gemeenten toepasbaar zijn. Een toelichting op het overzicht van incidentele baten en lasten is daarom onontbeerlijk. ","s",null,null,null,null,null,"s","Maak uw keuze",null,null,1,0,0,0,0,1,null,0,null,null,null,null,null,0,0]
[null,null,null,null,null,null,null,null,null,"","XEmpty",null,null,0,0,0,0,0,0,null,0,null,null,null,null,null,0,0]
["Notitie structurele en incidentele baten en lasten (2018)",null,"Stel vast of een grensbedrag is opgenomen in de financiële verordening voor incidentele lasten en baten en dat op basis hiervan is verantwoord in de jaarrekening.\n\nDe Commissie BBV adviseert in de financiële verordening (artikel 212 Gemeentewet) een grensbedrag op te nemen vanaf welke omvang incidentele lasten en baten afzonderlijk gespecificeerd worden in het overzicht incidentele lasten en baten. ","a",null,null,null,null,null,"a","Maak uw keuze",null,null,1,0,0,0,0,1,null,0,null,null,null,null,null,0,0]
[null,null,null,null,null,null,null,null,null,"","XEmpty",null,null,0,0,0,0,0,0,null,0,null,null,null,null,null,0,0]
["Notitie structurele en incidentele baten en lasten (2018)",null,"Stel vast dat het structureel begrotingssaldo is gepresenteerd conform het voorbeeld in hoofdstuk 4 van de Notitie structurele en incidentele baten en lasten.","a",null,null,null,null,null,"a","Maak uw keuze",null,null,1,0,0,0,0,1,null,0,null,null,null,null,null,0,0]
[null,null,null,null,null,null,null,null,null,"","XEmpty",null,null,0,0,0,0,0,0,null,0,null,null,null,null,null,0,0]
["art. 29",null,"Is het overzicht van baten en lasten in de jaarrekening vastgesteld met inachtneming van hetgeen omtrent de financiële positie op de balansdatum is gebleken tussen het moment van opmaken van het overzicht van baten en lasten in de jaarrekening en het tijdstip van vaststelling daarvan, voor zover deze aanvullende informatie onontbeerlijk is voor het in artikel 3 bedoelde inzicht.","w",null,null,null,null,null,"w","Maak uw keuze",null,null,1,0,0,0,0,1,null,0,null,null,null,null,null,0,0]
[null,null,null,null,null,null,null,null,null,"","XEmpty",null,null,0,0,0,0,0,0,null,0,null,null,null,null,null,0,0]
[null,null,"Zijn dividenden verantwoord in het jaar waarin het besluit tot toekenning van het dividend door de Algemene Vergadering is genomen?","s",null,null,null,null,null,"s","Maak uw keuze",null,null,1,0,0,0,0,1,null,0,null,null,null,null,null,0,0]
[null,null,null,null,null,null,null,null,null,"","XEmpty",null,null,0,0,0,0,0,0,null,0,null,null,null,null,null,0,0]
["V&A cie BBV 19 januari 2021",null,"Dividend moet verantwoord worden in het jaar waarin het dividend wordt vastgesteld. Indien het dividend na het boekjaar wordt betaald, wordt er per 31 december boekjaar een vordering op de balans opgenomen. Is hieraan voldaan?","s",null,null,null,null,null,"s","Maak uw keuze",null,null,1,0,0,0,0,1,null,0,null,null,null,null,null,0,0]
[null,null,null,null,null,null,null,null,null,"","XEmpty",null,null,0,0,0,0,0,0,null,0,null,null,null,null,null,0,0]
["V&A cie BBV 15 mei 2019",null,"Voor de lastneming van verstrekte subsidies tussen mede-overheden gelden de volgende regels:\n1) De last wordt verantwoord in het jaar waarin de subsidieontvanger start met de uitvoering van de activiteiten op basis van de startdatum van de projectperiode in de subsidieverleningsbeschikking, tenzij:\na. De verstrekte subsidie een boekjaar/exploitatiesubsidie betreft: uit de subsidiebeschikking blijkt onomstotelijk dat de activiteiten waarvoor de subsidie wordt verleend in één of meerdere volgende jaren zal plaatsvinden.\nb. De verstrekte subsidie een projectsubsidie betreft, het individuele subsidiebedrag het hierna gedefinieerde grensbedrag overschrijdt en die boekjaar overschrijdend is.\n","s",null,null,null,null,null,"s","Maak uw keuze",null,null,1,0,0,0,0,1,null,0,null,null,null,null,null,0,0]
[null,null,"2) Provinciale Staten of de gemeenteraad stellen het in lid 1 sub b genoemde grensbedrag vast.\n3) Bij afgifte van de subsidieverleningsbeschikking wordt voor zover de verstrekte projectsubsidie nog niet als last in het boekjaar is verantwoord bij voorkeur het resterende bedrag aan een specifieke bestemmingsreserve \"verstrekte subsidies\" toegevoegd of dit dient te worden toegelicht onder de niet uit de balans blijkende verplichtingen.\n4) Een verstrekte projectsubsidies, vallende onder lid 1 sub b, wordt bij afgifte van de subsidieverleningsbeschikking op basis van het bestedingsritme van de begrote jaarlijkse kosten zoals opgenomen in de subsidieverleningsbeschikking, toegerekend aan de betreffende boekjaren. \n\nIs hieraan voldaan?",null,null,null,null,null,null,"","XEmpty",null,null,0,0,0,0,0,0,null,0,null,null,null,null,null,0,0]
["Afspraak SDO-NBA en IPO d.d. 2 december 2020",null,"Ligt het hiervoor genoemde grensbedrag tussen de 0,00% en 0,25% van de totale lasten inclusief toevoegingen aan de reserves over het boekjaar (o.b.v. de primitieve begroting)?","w",null,null,null,null,null,"w","Maak uw keuze",null,null,1,0,0,0,0,1,null,0,null,null,null,null,null,0,0]
[null,null,null,null,null,null,null,null,null,"","XEmpty",null,null,0,0,0,0,0,0,null,0,null,null,null,null,null,0,0]

{"sheet":"Niet in balans opgenomen verpl.","index":14,"n_rows":42,"n_cols":29,"rows_kept":42,"cut":false,"hidden":false,"merged":[[3,12,5,12],[1,10,5,10],[1,11,5,11]]}
["BBV",null,null,null,null,null,null,null,null,{"$f":"IF(ISBLANK(D1)=TRUE,\"\",OFFSET(C1,0,CATSRT))","v":""},null,null,null,"PD RANGE"]
[null,null,null,null,null,null,null,null,null,"",{"$f":"VOLDAAN","v":"Is aan de vereisten voor de Jaarverslag-geving voldaan?"},{"$f":"TOEL","v":"Commentaar bij \"Voldoet niet\""},null,null,null,null,null,"Kopje van",null,null,"tbv hiden"]
[null,null,"w = wettelijk vereiste       s = stellige uitspraak van cie Bbv",null,null,null,null,null,null,"",null,null,null,"Vraag","Toelichting","Review","hulprange","hfdstuk of",null,"Info","Som P en Q","info","info","info","info"]
[null,null,"-  = niet vereist                 a = aanbevolen door cie Bbv",null,null,null,null,null,null,"",null,null,{"$f":"COM_REV","v":"Afwerking / Commentaar reviewer"},"(on)beantwoord","opgenomen","opgenomen","Vold. niet","Vold niet","vraagregel?"]
[null,null,null,null,null,null,null,null,null,"",null,null,null,null,null,null,"info"]
[{"$f":"IF(Navigatiescherm!J64=0,TRUE,FALSE)","v":false},null,null,null,null,null,null,null,null,"",null,null,null,"info"]
[null,null,null,null,null,null,null,null,null,"",{"$f":"CHK_M","v":"Maak uw keuze"},null,null,null,null,null,{"$f":"IF(AND(K7=CHK_V,S7=1),1,IF(OR(Q6=1,Q6=2),IF(AND(C7=\"\",J7=\"\"),3,IF(AND(K7<>CHK_M,K7<>CHK_A,K7<>CHK_N,T7=\"\"),2,0)),0))","v":0},{"$f":"IF(OR(T7=4,V7>0),1,0)","v":1},{"$f":"IF(AND(J7<>\"-\",J7<>\"\",OR(Z7=1,Z7=\"\")),1,0)","v":0},4,{"$f":"Q7+R7","v":1},null,null,null,null,null,{"$f":"IF(AND(K7<>CHK_M,S7=1),1,IF(OR(AA6=1,AA6=2),IF(AND(C7=\"\",J7=\"\"),3,IF(AND(K7<>CHK_M,T7=\"\"),2,0)),0))","v":0},{"$f":"IF(OR(T7=4,AC7>0),1,0)+AA7","v":1}]
[null,null,"Niet in de balans opgenomen rechten en verplichtingen",null,null,null,null,null,null,{"$f":"IF(ISBLANK(D8)=TRUE,\"\",OFFSET(C8,0,CATSRT))","v":""},{"$f":"CHK_V","v":"Voldoet niet"},null,null,{"$f":"IF(AND(J8<>\"-\",J8<>\"br\"),IF(AND(K8=CHK_M,OR(Z8=1,Z8=\"\")),1,0),0)","v":0},{"$f":"IF(AND(J8<>\"-\",S8=1,K8=CHK_V,OR(Z8=1,Z8=\"\"),L8=\"\"),1,0)","v":0},{"$f":"IF(AND(J8<>\"-\",S8=1,K8=CHK_V,OR(Z8=1,Z8=\"\"),M8=\"\"),1,0)","v":0},{"$f":"IF(AND(K8=CHK_V,S8=1),1,IF(OR(Q3=1,Q3=2),IF(AND(C8=\"\",J8=\"\"),3,IF(AND(K8<>CHK_M,K8<>CHK_A,K8<>CHK_N,T8=\"\"),2,0)),0))","v":0},{"$f":"IF(OR(T8=4,V8>0),1,0)","v":1},{"$f":"IF(AND(J8<>\"-\",J8<>\"\",OR(Z8=1,Z8=\"\")),1,0)","v":0},4,1,null,null,null,null,null,0,{"$f":"IF(OR(T8=4,AC8>0),1,0)+AA8","v":1}]
[null,null,null,null,null,null,null,null,null,"",{"$f":"CHK_A","v":"Akkoord"},null,null,{"$f":"IF(AND(J9<>\"-\",J9<>\"br\"),IF(AND(K9=CHK_M,OR(Z9=1,Z9=\"\")),1,0),0)","v":0},{"$f":"IF(AND(J9<>\"-\",S9=1,K9=CHK_V,OR(Z9=1,Z9=\"\"),L9=\"\"),1,0)","v":0},{"$f":"IF(AND(J9<>\"-\",S9=1,K9=CHK_V,OR(Z9=1,Z9=\"\"),M9=\"\"),1,0)","v":0},{"$f":"IF(AND(K9=CHK_V,S9=1),1,IF(OR(Q4=1,Q4=2),IF(AND(C9=\"\",J9=\"\"),3,IF(AND(K9<>CHK_M,K9<>CHK_A,K9<>CHK_N,T9=\"\"),2,0)),0))","v":0},{"$f":"IF(OR(T9=4,V9>0),1,0)","v":0},{"$f":"IF(AND(J9<>\"-\",J9<>\"\",OR(Z9=1,Z9=\"\")),1,0)","v":0},5,0,null,null,null,null,null,{"$f":"IF(AND(K9<>CHK_M,S9=1),1,IF(OR(AA8=1,AA8=2),IF(AND(C9=\"\",J9=\"\"),3,IF(AND(K9<>CHK_M,T9=\"\"),2,0)),0))","v":0},{"$f":"IF(OR(T9=4,AC9>0),1,0)+AA9","v":0}]
[null,null,"Vennootschapsbelasting",null,null,null,null,null,null,"",{"$f":"CHK_N","v":"Nvt"},null,null,0,0,0,0,0,0,99,0,{"$f":"SUM($Q$11:$Q$13)","v":0},{"$f":"SUM($N$11:$N$13)","v":1},{"$f":"SUM($O$11:$O$13)","v":0},{"$f":"SUM($P$11:$P$13)","v":0},null,0,0,{"$f":"SUM($AA$15:$AA$31)","v":0}]
["art. 40b",null,"Is aan de actiefzijde van de balans buiten de balanstelling het bedrag opgenomen waarvan het recht bestaat op verliescompensatie krachtens de Wet op de vennootschapsbelasting 1969?","w",null,null,null,null,null,"w","Maak uw keuze",null,null,{"$f":"IF(AND(J11<>\"-\",J11<>\"br\"),IF(AND(K11=CHK_M,OR(Z11=1,Z11=\"\")),1,0),0)","v":1},{"$f":"IF(AND(J11<>\"-\",S11=1,K11=CHK_V,OR(Z11=1,Z11=\"\"),L11=\"\"),1,0)","v":0},{"$f":"IF(AND(J11<>\"-\",S11=1,K11=CHK_V,OR(Z11=1,Z11=\"\"),M11=\"\"),1,0)","v":0},{"$f":"IF(AND(K11=CHK_V,S11=1),1,IF(OR(Q6=1,Q6=2),IF(AND(C11=\"\",J11=\"\"),3,IF(AND(K11<>CHK_M,K11<>CHK_A,K11<>CHK_N,T11=\"\"),2,0)),0))","v":0},{"$f":"IF(OR(T11=4,V11>0),1,0)","v":0},{"$f":"IF(AND(J11<>\"-\",J11<>\"\",OR(Z11=1,Z11=\"\")),1,0)","v":1},null,0,{"$f":"SUM(U13:U15)","v":0},null,null,null,null,{"$f":"IF(AND(K11<>CHK_M,S11=1),1,IF(OR(AA10=1,AA10=2),IF(AND(C11=\"\",J11=\"\"),3,IF(AND(K11<>CHK_M,T11=\"\"),2,0)),0))","v":0},{"$f":"IF(OR(T11=4,AC11>0),1,0)+AA11","v":0},{"$f":"SUM(AB13:AB15)","v":0}]
[null,null,null,null,null,null,null,null,null,"","XEmpty",null,null,0,0,0,0,0,0,null,0,null,null,null,null,null,0,0]
[null,null,null,"",null,null,null,null,null,"",{"$f":"CHK_A","v":"Akkoord"},null,null,0,0,0,0,0,0,5,0,null,null,null,null,null,0,0]
[null,null,"Waarborgen en garanties","",null,null,null,null,null,"",{"$f":"CHK_N","v":"Nvt"},null,null,0,0,0,0,0,0,99,0,{"$f":"SUM($Q$15:$Q$31)","v":0},{"$f":"SUM($N$15:$N$31)","v":8},{"$f":"SUM($O$15:$O$31)","v":0},{"$f":"SUM($P$15:$P$31)","v":0},null,0,0,{"$f":"SUM($AA$15:$AA$31)","v":0}]
["art. 50",null,"Is aan de passiefzijde van de balans buiten de balanstelling het bedrag opgenomen waartoe waarborgen of garantstellingen zijn verstrekt aan natuurlijke personen en rechtspersonen?","w",null,null,null,null,null,"w","Maak uw keuze",null,null,1,0,0,0,0,1,null,0,{"$f":"SUM(U16:U19)","v":0},null,null,null,null,0,0,{"$f":"SUM(AB16:AB19)","v":0}]
[null,null,null,"",null,null,null,null,null,"","XEmpty",null,null,0,0,0,0,0,0,null,0,null,null,null,null,null,0,0]
["art. 57.1",null,"Is in de toelichting op de balans de borgstellingen, bedoeld in artikel 50, gespecificeerd naar de aard van de geldleningen? ","w",null,null,null,null,null,"w","Maak uw keuze",null,null,1,0,0,0,0,1,null,0,null,null,null,null,null,0,0]
[null,null,null,"",null,null,null,null,null,"","XEmpty",null,null,0,0,0,0,0,0,null,0,null,null,null,null,null,0,0]
["art. 57.2",null,"Wordt per categorie van leningen vermeld:\n","",null,null,null,null,null,"","XEmpty",null,null,0,0,0,0,0,0,null,0,null,null,null,null,null,0,0]
[null,null,"a. het oorspronkelijke bedrag van de gewaarborgde geldlening?","w",null,null,null,null,null,"w","Maak uw keuze",null,null,1,0,0,0,0,1,null,0,null,null,null,null,null,0,0]
[null,null,null,"",null,null,null,null,null,"","XEmpty",null,null,0,0,0,0,0,0,null,0,null,null,null,null,null,0,0]
[null,null,"b. het percentage van het leningbedrag waarvoor borgstelling is verleend?","w",null,null,null,null,null,"w","Maak uw keuze",null,null,1,0,0,0,0,1,null,0,null,null,null,null,null,0,0]
[null,null,null,"",null,null,null,null,null,"","XEmpty",null,null,0,0,0,0,0,0,null,0,null,null,null,null,null,0,0]
[null,null,"c. het restantbedrag van de lening bij aanvang van het begrotingsjaar?","w",null,null,null,null,null,"w","Maak uw keuze",null,null,1,0,0,0,0,1,null,0,null,null,null,null,null,0,0]
[null,null,null,"",null,null,null,null,null,"","XEmpty",null,null,0,0,0,0,0,0,null,0,null,null,null,null,null,0,0]
[null,null,"d. het restantbedrag van de lening aan het eind van het begrotingsjaar?","w",null,null,null,null,null,"w","Maak uw keuze",null,null,1,0,0,0,0,1,null,0,null,null,null,null,null,0,0]
[null,null,null,"",null,null,null,null,null,"","XEmpty",null,null,0,0,0,0,0,0,null,0,null,null,null,null,null,0,0]
["art. 57.3",null,"Is in de toelichting op de balans een specificatie opgenomen van garantstellingen?","w",null,null,null,null,null,"w","Maak uw keuze",null,null,1,0,0,0,0,1,null,0,null,null,null,null,null,0,0]
[null,null,null,"",null,null,null,null,null,"","XEmpty",null,null,0,0,0,0,0,0,null,0,null,null,null,null,null,0,0]
["art. 57.4",null,"Is in de toelichting het totaalbedrag opgenomen van de betalingen die inzake de borg- en garantstelling zijn gedaan tot en met het eind van het begrotingsjaar?","w",null,null,null,null,null,"w","Maak uw keuze",null,null,1,0,0,0,0,1,null,0,null,null,null,null,null,0,0]
[null,null,null,null,null,null,null,null,null,"","XEmpty",null,null,0,0,0,0,0,0,null,0,null,null,null,null,null,0,0]
[null,null,"Langlopende financiële verplichtingen","",null,null,null,null,null,"","XEmpty",null,null,0,0,0,0,0,0,99,0,{"$f":"SUM($Q$33:$Q$42)","v":0},{"$f":"SUM($N$33:$N$36)","v":2},{"$f":"SUM($O$33:$O$42)","v":0},{"$f":"SUM($P$33:$P$42)","v":0},null,0,0,{"$f":"SUM($AA$33:$AA$42)","v":0}]
["art. 53",null,"Is in de toelichting op de balans vermeld tot welke belangrijke, niet in de balans opgenomen, financiële verplichtingen de provincie/gemeente voor een aantal toekomstige jaren is verbonden?","w",null,null,null,null,null,"w","Maak uw keuze",null,null,1,0,0,0,0,1,null,0,null,null,null,null,null,0,0]
[null,null,null,null,null,null,null,null,null,{"$f":"IF(ISBLANK(D34)=TRUE,\"\",OFFSET(C34,0,CATSRT))","v":""},"XEmpty",null,null,0,0,0,0,0,0,null,null,null,null,null,null,null,0,0]
["Kadernota rechtmatig-heid",null,"De commissie BBV doet de aanbeveling om meerjarige inkoopcontracten, die zouden moeten voldoen aan Europese aanbestedingsregels maar dat niet doen, in de toelichting op de jaarrekening op te nemen bij de ‘niet uit de balans blijkende verplichtingen’ voor het volle bedrag waarover het contract is afgesloten. Is hieraan voldaan?","a",null,null,null,null,null,"a","Maak uw keuze",null,null,{"$f":"IF(AND(J35<>\"-\",J35<>\"br\"),IF(AND(K35=CHK_M,OR(Z35=1,Z35=\"\")),1,0),0)","v":1},{"$f":"IF(AND(J35<>\"-\",S35=1,K35=CHK_V,OR(Z35=1,Z35=\"\"),L35=\"\"),1,0)","v":0},{"$f":"IF(AND(J35<>\"-\",S35=1,K35=CHK_V,OR(Z35=1,Z35=\"\"),M35=\"\"),1,0)","v":0},{"$f":"IF(AND(K35=CHK_V,S35=1),1,IF(OR(Q30=1,Q30=2),IF(AND(C35=\"\",J35=\"\"),3,IF(AND(K35<>CHK_M,K35<>CHK_A,K35<>CHK_N,T35=\"\"),2,0)),0))","v":0},{"$f":"IF(OR(T35=4,V35>0),1,0)","v":0},{"$f":"IF(AND(J35<>\"-\",J35<>\"\",OR(Z35=1,Z35=\"\")),1,0)","v":1},null,null,null,null,null,null,null,{"$f":"IF(AND(K35<>CHK_M,S35=1),1,IF(OR(AA34=1,AA34=2),IF(AND(C35=\"\",J35=\"\"),3,IF(AND(K35<>CHK_M,T35=\"\"),2,0)),0))","v":0},{"$f":"IF(OR(T35=4,AC35>0),1,0)+AA35","v":0}]
[null,null,null,null,null,null,null,null,null,"","XEmpty",null,null,0,0,0,0,0,0,null,0,null,null,null,null,null,0,0]
[null,null,"Financiële derivaten",null,null,null,null,null,null,"","XEmpty",null,null,0,0,0,0,0,0,99,0,{"$f":"SUM($Q$33:$Q$42)","v":0},{"$f":"SUM($N$38:$N$42)","v":3},{"$f":"SUM($O$33:$O$42)","v":0},{"$f":"SUM($P$33:$P$42)","v":0},null,0,0,{"$f":"SUM($AA$33:$AA$42)","v":0}]
[null,null,"Indien de provincie of de gemeente financiële derivaten hanteert, per derivaat:",null,null,null,null,null,null,"","XEmpty",null,null,0,0,0,0,0,0,null,0,null,null,null,null,null,0,0]
[null,null,"1. de naam en rating van de financiële onderneming waarbij het derivaat is afgesloten;","w",null,null,null,null,null,"w","Maak uw keuze",null,null,1,0,0,0,0,1,null,0,null,null,null,null,null,0,0]
[null,null,"2. het type en de belangrijkste kenmerken van het derivaat en de hoogte en de looptijd van de financieringsbehoefte waaraan het derivaat kan worden toegerekend, en","w",null,null,null,null,null,"w","Maak uw keuze",null,null,1,0,0,0,0,1,null,0,null,null,null,null,null,0,0]
[null,null,"3. in het geval van een niet-effectieve positie, als bedoeld in artikel 1, eerste lid, onderdeel k, in welk opzicht daarvan sprake is, de maatregelen die zijn genomen om die positie ongedaan te maken en de termijn die daarvoor naar verwachting nodig is.","w",null,null,null,null,null,"w","Maak uw keuze",null,null,1,0,0,0,0,1,null,0,null,null,null,null,null,0,0]
[null,null,null,null,null,null,null,null,null,"","XEmpty",null,null,0,0,0,0,0,0,null,0,null,null,null,null,null,0,0]

{"sheet":"SiSa","index":15,"n_rows":17,"n_cols":29,"rows_kept":17,"cut":false,"hidden":false,"merged":[[3,12,5,12],[1,10,5,10],[1,11,5,11]]}
["BBV",null,null,null,null,null,null,null,null,{"$f":"IF(ISBLANK(D1)=TRUE,\"\",OFFSET(C1,0,CATSRT))","v":""},null,null,null,"PD RANGE"]
[null,null,null,null,null,null,null,null,null,"",{"$f":"VOLDAAN","v":"Is aan de vereisten voor de Jaarverslag-geving voldaan?"},{"$f":"TOEL","v":"Commentaar bij \"Voldoet niet\""},null,null,null,null,null,"Kopje van",null,null,"tbv hiden"]
[null,null,"w = wettelijk vereiste       s = stellige uitspraak van cie Bbv",null,null,null,null,null,null,"",null,null,null,"Vraag","Toelichting","Review","hulprange","hfdstuk of",null,"Info","Som P en Q","info","info","info","info"]
[null,null,"-  = niet vereist                 a = aanbevolen door cie Bbv",null,null,null,null,null,null,"",null,null,{"$f":"COM_REV","v":"Afwerking / Commentaar reviewer"},"(on)beantwoord","opgenomen","opgenomen","Vold. niet","Vold niet","vraagregel?"]
[null,null,null,null,null,null,null,null,null,"",null,null,null,null,null,null,"info"]
[{"$f":"IF(Navigatiescherm!J70=0,TRUE,FALSE)","v":false},null,null,null,null,null,null,null,null,"",null,null,null,"info"]
[null,null,null,null,null,null,null,null,null,"",{"$f":"CHK_M","v":"Maak uw keuze"},null,null,null,null,null,{"$f":"IF(AND(K7=CHK_V,S7=1),1,IF(OR(Q6=1,Q6=2),IF(AND(C7=\"\",J7=\"\"),3,IF(AND(K7<>CHK_M,K7<>CHK_A,K7<>CHK_N,T7=\"\"),2,0)),0))","v":0},{"$f":"IF(OR(T7=4,V7>0),1,0)","v":1},{"$f":"IF(AND(J7<>\"-\",J7<>\"\",OR(Z7=1,Z7=\"\")),1,0)","v":0},4,{"$f":"Q7+R7","v":1},null,null,null,null,null,{"$f":"IF(AND(K7<>CHK_M,S7=1),1,IF(OR(AA6=1,AA6=2),IF(AND(C7=\"\",J7=\"\"),3,IF(AND(K7<>CHK_M,T7=\"\"),2,0)),0))","v":0},{"$f":"IF(OR(T7=4,AC7>0),1,0)+AA7","v":1}]
[null,null,"SiSa",null,null,null,null,null,null,"",{"$f":"CHK_V","v":"Voldoet niet"},null,null,{"$f":"IF(AND(J8<>\"-\",J8<>\"br\"),IF(AND(K8=CHK_M,OR(Z8=1,Z8=\"\")),1,0),0)","v":0},{"$f":"IF(AND(J8<>\"-\",S8=1,K8=CHK_V,OR(Z8=1,Z8=\"\"),L8=\"\"),1,0)","v":0},{"$f":"IF(AND(J8<>\"-\",S8=1,K8=CHK_V,OR(Z8=1,Z8=\"\"),M8=\"\"),1,0)","v":0},{"$f":"IF(AND(K8=CHK_V,S8=1),1,IF(OR(Q7=1,Q7=2),IF(AND(C8=\"\",J8=\"\"),3,IF(AND(K8<>CHK_M,K8<>CHK_A,K8<>CHK_N,T8=\"\"),2,0)),0))","v":0},{"$f":"IF(OR(T8=4,V8>0),1,0)","v":1},{"$f":"IF(AND(J8<>\"-\",J8<>\"\",OR(Z8=1,Z8=\"\")),1,0)","v":0},4,1,null,null,null,null,null,{"$f":"IF(AND(K8<>CHK_M,S8=1),1,IF(OR(AA7=1,AA7=2),IF(AND(C8=\"\",J8=\"\"),3,IF(AND(K8<>CHK_M,T8=\"\"),2,0)),0))","v":0},{"$f":"IF(OR(T8=4,AC8>0),1,0)+AA8","v":1}]
[null,null,null,null,null,null,null,null,null,"",{"$f":"CHK_A","v":"Akkoord"},null,null,0,0,0,{"$f":"IF(AND(K9=CHK_V,S9=1),1,IF(OR(Q8=1,Q8=2),IF(AND(C9=\"\",J9=\"\"),3,IF(AND(K9<>CHK_M,K9<>CHK_A,K9<>CHK_N,T9=\"\"),2,0)),0))","v":0},{"$f":"IF(OR(T9=4,V9>0),1,0)","v":0},{"$f":"IF(AND(J9<>\"-\",J9<>\"\",OR(Z9=1,Z9=\"\")),1,0)","v":0},5,0,null,null,null,null,null,{"$f":"IF(AND(K9<>CHK_M,S9=1),1,IF(OR(AA8=1,AA8=2),IF(AND(C9=\"\",J9=\"\"),3,IF(AND(K9<>CHK_M,T9=\"\"),2,0)),0))","v":0},{"$f":"IF(OR(T9=4,AC9>0),1,0)+AA9","v":0}]
[null,null,"Algemeen",null,null,null,null,null,null,"",{"$f":"CHK_N","v":"Nvt"},null,null,0,0,0,{"$f":"IF(AND(K10=CHK_V,S10=1),1,IF(OR(Q9=1,Q9=2),IF(AND(C10=\"\",J10=\"\"),3,IF(AND(K10<>CHK_M,K10<>CHK_A,K10<>CHK_N,T10=\"\"),2,0)),0))","v":0},{"$f":"IF(OR(T10=4,V10>0),1,0)","v":0},{"$f":"IF(AND(J10<>\"-\",J10<>\"\",OR(Z10=1,Z10=\"\")),1,0)","v":0},99,0,{"$f":"SUM($Q$11:$Q$14)","v":0},{"$f":"SUM($N$11:$N$14)","v":2},{"$f":"SUM($O$11:$O$14)","v":0},{"$f":"SUM($P$11:$P$14)","v":0},null,{"$f":"IF(AND(K10<>CHK_M,S10=1),1,IF(OR(AA9=1,AA9=2),IF(AND(C10=\"\",J10=\"\"),3,IF(AND(K10<>CHK_M,T10=\"\"),2,0)),0))","v":0},{"$f":"IF(OR(T10=4,AC10>0),1,0)+AA10","v":0},{"$f":"SUM($AA$11:$AA$14)","v":0}]
[null,null,"Voldoet de informatie die is opgenomen in de SiSa-bijlage bij de jaarrekening aan de eisen die het Ministerie van BZK daaraan stelt?","w",null,null,null,null,null,"w","Maak uw keuze",null,null,1,0,0,0,0,1,null,0,null,null,null,null,null,0,0]
[null,null,null,null,null,null,null,null,null,"","XEmpty",null,null,0,0,0,0,0,0,null,0,null,null,null,null,null,0,0]
[null,null,"Sluiten de opgenomen regelingen in de SiSa bijlage aan bij de definitieve verantwoordingslijst (overzicht te verantwoorden regelingen,  beschikbaar via rijksoverheid.nl\\sisa)?","w",null,null,null,null,null,"w","Maak uw keuze",null,null,1,0,0,0,0,1,null,0,null,null,null,null,null,0,0]
[null,null,null,null,null,null,null,null,null,"","XEmpty",null,null,0,0,0,0,0,0,null,0,null,null,null,null,null,0,0]
[null,null,"Medeoverheden",null,null,null,null,null,null,{"$f":"IF(ISBLANK(D15)=TRUE,\"\",OFFSET(C15,0,CATSRT))","v":""},"XEmpty",null,null,0,0,0,0,0,0,99,0,{"$f":"SUM($Q$16:$Q$17)","v":0},{"$f":"SUM($N$16:$N$17)","v":1},{"$f":"SUM($O$16:$O$17)","v":0},{"$f":"SUM($P$16:$P$17)","v":0},null,0,0,{"$f":"SUM($AA$16:$AA$17)","v":0}]
[null,null,"Voldoet de informatie die is opgenomen in de afzonderlijke bijlage voor medeoverheden bij de jaarrekening aan de eisen die de medeoverheid daaraan stelt?","w",null,null,null,null,null,{"$f":"IF(ISBLANK(D16)=TRUE,\"\",OFFSET(C16,0,CATSRT))","v":"w"},"Maak uw keuze",null,null,1,0,0,0,0,1,null,0,null,null,null,null,null,0,0]
[null,null,null,null,null,null,null,null,null,{"$f":"IF(ISBLANK(D17)=TRUE,\"\",OFFSET(C17,0,CATSRT))","v":""},"XEmpty",null,null,0,0,0,0,0,0,null,0,null,null,null,null,null,0,0]

{"sheet":"Overzicht taakvelden","index":16,"n_rows":30,"n_cols":29,"rows_kept":30,"cut":false,"hidden":false,"merged":[[1,10,5,10],[1,11,5,11],[3,12,5,12]]}
["BBV",null,null,null,null,null,null,null,null,{"$f":"IF(ISBLANK(D1)=TRUE,\"\",OFFSET(C1,0,CATSRT))","v":""},null,null,null,"PD RANGE"]
[null,null,null,null,null,null,null,null,null,"",{"$f":"VOLDAAN","v":"Is aan de vereisten voor de Jaarverslag-geving voldaan?"},{"$f":"TOEL","v":"Commentaar bij \"Voldoet niet\""},null,null,null,null,null,"Kopje van",null,null,"tbv hiden"]
[null,null,"w = wettelijk vereiste       s = stellige uitspraak van cie Bbv",null,null,null,null,null,null,"",null,null,null,"Vraag","Toelichting","Review","hulprange","hfdstuk of",null,"Info","Som P en Q","info","info","info","info"]
[null,null,"-  = niet vereist                 a = aanbevolen door cie Bbv",null,null,null,null,null,null,"",null,null,{"$f":"COM_REV","v":"Afwerking / Commentaar reviewer"},"(on)beantwoord","opgenomen","opgenomen","Vold. niet","Vold niet","vraagregel?"]
[null,null,null,null,null,null,null,null,null,"",null,null,null,null,null,null,"info"]
[{"$f":"IF(Navigatiescherm!J70=0,TRUE,FALSE)","v":false},null,null,null,null,null,null,null,null,"",null,null,null,"info"]
[null,null,null,null,null,null,null,null,null,"",{"$f":"CHK_M","v":"Maak uw keuze"},null,null,null,null,null,{"$f":"IF(AND(K7=CHK_V,S7=1),1,IF(OR(Q6=1,Q6=2),IF(AND(C7=\"\",J7=\"\"),3,IF(AND(K7<>CHK_M,K7<>CHK_A,K7<>CHK_N,T7=\"\"),2,0)),0))","v":0},{"$f":"IF(OR(T7=4,V7>0),1,0)","v":1},{"$f":"IF(AND(J7<>\"-\",J7<>\"\",OR(Z7=1,Z7=\"\")),1,0)","v":0},4,{"$f":"Q7+R7","v":1},null,null,null,null,null,{"$f":"IF(AND(K7<>CHK_M,S7=1),1,IF(OR(AA6=1,AA6=2),IF(AND(C7=\"\",J7=\"\"),3,IF(AND(K7<>CHK_M,T7=\"\"),2,0)),0))","v":0},{"$f":"IF(OR(T7=4,AC7>0),1,0)+AA7","v":1}]
[null,null,"Overzicht Taakvelden",null,null,null,null,null,null,"",{"$f":"CHK_V","v":"Voldoet niet"},null,null,{"$f":"IF(AND(J8<>\"-\",J8<>\"br\"),IF(AND(K8=CHK_M,OR(Z8=1,Z8=\"\")),1,0),0)","v":0},{"$f":"IF(AND(J8<>\"-\",S8=1,K8=CHK_V,OR(Z8=1,Z8=\"\"),L8=\"\"),1,0)","v":0},{"$f":"IF(AND(J8<>\"-\",S8=1,K8=CHK_V,OR(Z8=1,Z8=\"\"),M8=\"\"),1,0)","v":0},0,{"$f":"IF(OR(T8=4,V8>0),1,0)","v":0},{"$f":"IF(AND(J8<>\"-\",J8<>\"\",OR(Z8=1,Z8=\"\")),1,0)","v":0},99,0,{"$f":"SUM($Q$9:$Q$30)","v":0},{"$f":"SUM($N$9:$N$30)","v":11},{"$f":"SUM($O$9:$O$30)","v":0},{"$f":"SUM($P$9:$P$30)","v":0},null,{"$f":"IF(AND(K8<>CHK_M,S8=1),1,IF(OR(AA7=1,AA7=2),IF(AND(C8=\"\",J8=\"\"),3,IF(AND(K8<>CHK_M,T8=\"\"),2,0)),0))","v":0},{"$f":"IF(OR(T8=4,AC8>0),1,0)+AA8","v":0},{"$f":"SUM($AA$9:$AA$30)","v":0}]
[null,null,null,null,null,null,null,null,null,"","XEmpty",null,null,{"$f":"IF(AND(J9<>\"-\",J9<>\"br\"),IF(AND(K9=CHK_M,OR(Z9=1,Z9=\"\")),1,0),0)","v":0},{"$f":"IF(AND(J9<>\"-\",S9=1,K9=CHK_V,OR(Z9=1,Z9=\"\"),L9=\"\"),1,0)","v":0},{"$f":"IF(AND(J9<>\"-\",S9=1,K9=CHK_V,OR(Z9=1,Z9=\"\"),M9=\"\"),1,0)","v":0},{"$f":"IF(AND(K9=CHK_V,S9=1),1,IF(OR(Q8=1,Q8=2),IF(AND(C9=\"\",J9=\"\"),3,IF(AND(K9<>CHK_M,K9<>CHK_A,K9<>CHK_N,T9=\"\"),2,0)),0))","v":0},{"$f":"IF(OR(T9=4,V9>0),1,0)","v":0},{"$f":"IF(AND(J9<>\"-\",J9<>\"\",OR(Z9=1,Z9=\"\")),1,0)","v":0},null,0,null,null,null,null,null,{"$f":"IF(AND(K9<>CHK_M,S9=1),1,IF(OR(AA8=1,AA8=2),IF(AND(C9=\"\",J9=\"\"),3,IF(AND(K9<>CHK_M,T9=\"\"),2,0)),0))","v":0},{"$f":"IF(OR(T9=4,AC9>0),1,0)+AA9","v":0}]
["art. 24 lid 3d",null,"Is als onderdeel van de jaarrekening een bijlage met het overzicht van gerealiseerde baten en lasten per taakveld opgenomen?","w",null,null,null,null,null,"w","Maak uw keuze",null,null,1,0,0,0,0,1,null,0,null,null,null,null,null,0,0]
[null,null,null,null,null,null,null,null,null,"","XEmpty",null,null,0,0,0,0,0,0,null,0,null,null,null,null,null,0,0]
["art. 66 lid 1c",null,"Is het verdelingsprincipe waarmee de taakvelden over de programma's zijn verdeeld toegelicht?","a",null,null,null,null,null,"a","Maak uw keuze",null,null,1,0,0,0,0,1,null,0,null,null,null,null,null,0,0]
[null,null,null,null,null,null,null,null,null,"","XEmpty",null,null,0,0,0,0,0,0,null,0,null,null,null,null,null,0,0]
["art 66 lid 2",null,"Is het totaaloverzicht van gerealiseerde baten en lasten per taakveld integraal en omvat het dezelfde totaalbedragen als de staat van baten en lasten in de jaarrekening?","a",null,null,null,null,null,"a","Maak uw keuze",null,null,1,0,0,0,0,1,null,0,null,null,null,null,null,0,0]
[null,null,null,null,null,null,null,null,null,"","XEmpty",null,null,0,0,0,0,0,0,null,0,null,null,null,null,null,0,0]
["art. 66 lid 3",null,"Is het verdelingsprincipe voor het overzicht met de gerealiseerde baten en lasten hetzelfde en wordt dezelfde indeling gebruikt als voor het overzicht met de ramingen?","a",null,null,null,null,null,"a","Maak uw keuze",null,null,1,0,0,0,0,1,null,0,null,null,null,null,null,0,0]
[null,null,null,null,null,null,null,null,null,"","XEmpty",null,null,0,0,0,0,0,0,null,0,null,null,null,null,null,0,0]
["art. 66 lid 4",null,"Zijn de taakvelden conform de taakvelden die bij ministeriële regeling zijn opgesteld?","a",null,null,null,null,null,"a","Maak uw keuze",null,null,1,0,0,0,0,1,null,0,null,null,null,null,null,0,0]
[null,null,null,null,null,null,null,null,null,"","XEmpty",null,null,0,0,0,0,0,0,null,0,null,null,null,null,null,0,0]
["Notitie overhead",null,"Is bij de verantwoording op het taakveld Overhead de notitie Overhead gevolgd?","a",null,null,null,null,null,"a","Maak uw keuze",null,null,1,0,0,0,0,1,null,0,null,null,null,null,null,0,0]
[null,null,null,null,null,null,null,null,null,"","XEmpty",null,null,0,0,0,0,0,0,null,0,null,null,null,null,null,0,0]
["Notitie overhead en art. 27 lid 1",null,"Zijn de bedragen opgenomen in de volgende taakvelden niet toegerekend aan de programma's, maar afzonderlijk opgenomen in het overzicht van baten en lasten:",null,null,null,null,null,null,"","XEmpty",null,null,0,0,0,0,0,0,null,0,null,null,null,null,null,0,0]
[null,null,"- taakveld 0.4 Overhead","w",null,null,null,null,null,"w","Maak uw keuze",null,null,1,0,0,0,0,1,null,0,null,null,null,null,null,0,0]
[null,null,"- taakvelden 0.5, 061, 061, 064, 0.7 behorende bij de Algemene dekkingsmiddelen","w",null,null,null,null,null,"w","Maak uw keuze",null,null,1,0,0,0,0,1,null,0,null,null,null,null,null,0,0]
[null,null,"- taakveld 0.9 Vennootschapsbelasting","w",null,null,null,null,null,"w","Maak uw keuze",null,null,1,0,0,0,0,1,null,0,null,null,null,null,null,0,0]
[null,null,null,null,null,null,null,null,null,"","XEmpty",null,null,0,0,0,0,0,0,null,0,null,null,null,null,null,0,0]
["Notitie rente paragraaf 2, ad e ",null,"De omslagrente wordt berekend door de aan de taakvelden toe te rekenen rente (in Euro’s) te delen door de boekwaarde per 1 januari van de vaste activa die integraal zijn gefinancierd. De omslagrente moet vervolgens op consistente en eenduidige wijze worden toegerekend aan de individuele activa. Het is niet toegestaan om per investering of taakveld te differentiëren in het toe te rekenen rentepercentage. Het bij de begroting (voor)gecalculeerde omslagrentepercentage mag binnen een marge van 0,5% worden afgerond. \n\nIndien de werkelijke rentelasten in Euro’s die over een jaar aan taakvelden hadden moeten worden doorbelast afwijken van de rentelasten in Euro’s die op basis van de voorgecalculeerde renteomslag aan de taakvelden zijn toegerekend, dan kan de gemeente besluiten tot correctie. Correctie wordt verplicht gesteld indien deze afwijking groter is dan 25%.\n\nHet toerekenen van rente aan de taakvelden vindt plaats via het taakveld Treasury. Hiertoe worden alle rentelasten en rentebaten in eerste instantie op het taakveld Treasury geboekt. Dit geldt ook voor de rentelasten en –baten van projectfinanciering.\n","s",null,null,null,null,null,"s","Maak uw keuze",null,null,1,0,0,0,0,1,null,0,null,null,null,null,null,0,0]
[null,null,null,null,null,null,null,null,null,"","XEmpty",null,null,0,0,0,0,0,0,null,0,null,null,null,null,null,0,0]
["Notitie rente paragraaf 2, ad c2 en c3 ",null,"Het aantrekken en verstrekken van een lening betreft een treasury activiteit. De met deze activiteit gepaarde rentelasten en rentebaten behoren op het taakveld Treasury. Indien een lening specifiek is aangetrokken voor een project of (door)verstrekking (één op één doorlening), is sprake van projectfinanciering.\n","s",null,null,null,null,null,"s","Maak uw keuze",null,null,1,0,0,0,0,1,null,0,null,null,null,null,null,0,0]
[null,null,null,null,null,null,null,null,null,null,"XEmpty",null,null,0,0,0,0,0,0,null,0,null,null,null,null,null,{"$f":"IF(AND(K30<>CHK_M,S30=1),1,IF(OR(AA29=1,AA29=2),IF(AND(C30=\"\",J30=\"\"),3,IF(AND(K30<>CHK_M,T30=\"\"),2,0)),0))","v":0},{"$f":"IF(OR(T30=4,AC30>0),1,0)+AA30","v":0}]

{"sheet":"Rechtmatigheidsverantwoording","index":17,"n_rows":25,"n_cols":29,"rows_kept":25,"cut":false,"hidden":false,"merged":[[1,10,5,10],[1,11,5,11],[3,12,5,12]]}
["BBV",null,null,null,null,null,null,null,null,{"$f":"IF(ISBLANK(D1)=TRUE,\"\",OFFSET(C1,0,CATSRT))","v":""},null,null,null,"PD RANGE"]
[null,null,null,null,null,null,null,null,null,"",{"$f":"VOLDAAN","v":"Is aan de vereisten voor de Jaarverslag-geving voldaan?"},{"$f":"TOEL","v":"Commentaar bij \"Voldoet niet\""},null,null,null,null,null,"Kopje van",null,null,"tbv hiden"]
[null,null,"w = wettelijk vereiste       s = stellige uitspraak van cie Bbv",null,null,null,null,null,null,"",null,null,null,"Vraag","Toelichting","Review","hulprange","hfdstuk of",null,"Info","Som P en Q","info","info","info","info"]
[null,null,"-  = niet vereist                 a = aanbevolen door cie Bbv",null,null,null,null,null,null,"",null,null,{"$f":"COM_REV","v":"Afwerking / Commentaar reviewer"},"(on)beantwoord","opgenomen","opgenomen","Vold. niet","Vold niet","vraagregel?"]
[null,null,null,null,null,null,null,null,null,"",null,null,null,null,null,null,"info"]
[{"$f":"IF(Navigatiescherm!J70=0,TRUE,FALSE)","v":false},null,null,null,null,null,null,null,null,"",null,null,null,"info"]
[null,null,null,null,null,null,null,null,null,{"$f":"IF(ISBLANK(D7)=TRUE,\"\",OFFSET(C7,0,CATSRT))","v":""},{"$f":"CHK_M","v":"Maak uw keuze"},null,null,null,null,null,{"$f":"IF(AND(K7=CHK_V,S7=1),1,IF(OR(Q6=1,Q6=2),IF(AND(C7=\"\",J7=\"\"),3,IF(AND(K7<>CHK_M,K7<>CHK_A,K7<>CHK_N,T7=\"\"),2,0)),0))","v":0},{"$f":"IF(OR(T7=4,V7>0),1,0)","v":1},{"$f":"IF(AND(J7<>\"-\",J7<>\"\",OR(Z7=1,Z7=\"\")),1,0)","v":0},4,{"$f":"Q7+R7","v":1},null,null,null,null,null,{"$f":"IF(AND(K7<>CHK_M,S7=1),1,IF(OR(AA6=1,AA6=2),IF(AND(C7=\"\",J7=\"\"),3,IF(AND(K7<>CHK_M,T7=\"\"),2,0)),0))","v":0},{"$f":"IF(OR(T7=4,AC7>0),1,0)+AA7","v":1}]
[null,null,"Rechtmatigheidsverantwoording van het college van B&W",null,null,null,null,null,null,"",{"$f":"CHK_V","v":"Voldoet niet"},null,null,{"$f":"IF(AND(J8<>\"-\",J8<>\"br\"),IF(AND(K8=CHK_M,OR(Z8=1,Z8=\"\")),1,0),0)","v":0},{"$f":"IF(AND(J8<>\"-\",S8=1,K8=CHK_V,OR(Z8=1,Z8=\"\"),L8=\"\"),1,0)","v":0},{"$f":"IF(AND(J8<>\"-\",S8=1,K8=CHK_V,OR(Z8=1,Z8=\"\"),M8=\"\"),1,0)","v":0},0,{"$f":"IF(OR(T8=4,V8>0),1,0)","v":0},{"$f":"IF(AND(J8<>\"-\",J8<>\"\",OR(Z8=1,Z8=\"\")),1,0)","v":0},99,0,{"$f":"SUM($Q$9:$Q$30)","v":0},{"$f":"SUM($N$9:$N$25)","v":8},{"$f":"SUM($O$9:$O$25)","v":0},{"$f":"SUM($P$9:$P$25)","v":0},null,{"$f":"IF(AND(K8<>CHK_M,S8=1),1,IF(OR(AA7=1,AA7=2),IF(AND(C8=\"\",J8=\"\"),3,IF(AND(K8<>CHK_M,T8=\"\"),2,0)),0))","v":0},{"$f":"IF(OR(T8=4,AC8>0),1,0)+AA8","v":0},{"$f":"SUM($AA$9:$AA$30)","v":0}]
[null,null,null,null,null,null,null,null,null,"","XEmpty",null,null,{"$f":"IF(AND(J9<>\"-\",J9<>\"br\"),IF(AND(K9=CHK_M,OR(Z9=1,Z9=\"\")),1,0),0)","v":0},{"$f":"IF(AND(J9<>\"-\",S9=1,K9=CHK_V,OR(Z9=1,Z9=\"\"),L9=\"\"),1,0)","v":0},{"$f":"IF(AND(J9<>\"-\",S9=1,K9=CHK_V,OR(Z9=1,Z9=\"\"),M9=\"\"),1,0)","v":0},{"$f":"IF(AND(K9=CHK_V,S9=1),1,IF(OR(Q8=1,Q8=2),IF(AND(C9=\"\",J9=\"\"),3,IF(AND(K9<>CHK_M,K9<>CHK_A,K9<>CHK_N,T9=\"\"),2,0)),0))","v":0},{"$f":"IF(OR(T9=4,V9>0),1,0)","v":0},{"$f":"IF(AND(J9<>\"-\",J9<>\"\",OR(Z9=1,Z9=\"\")),1,0)","v":0},null,{"$f":"Q9+R9","v":0},{"$f":"SUM($Q$9:$Q$30)","v":0},null,null,null,null,{"$f":"IF(AND(K9<>CHK_M,S9=1),1,IF(OR(AA8=1,AA8=2),IF(AND(C9=\"\",J9=\"\"),3,IF(AND(K9<>CHK_M,T9=\"\"),2,0)),0))","v":0},{"$f":"IF(OR(T9=4,AC9>0),1,0)+AA9","v":0}]
["Kadernota rechtmatig-heid",null,"Is als onderdeel van de jaarrekening de rechtmatigheidsverantwoording van het college van B&W opgenomen? \n\nStel vast dat het verplichte model is gehanteerd volgens bijlage 1 van de actuele Kadernota rechtmatigheid van de commissie BBV.","w",null,null,null,null,null,"w","Maak uw keuze",null,null,1,0,0,0,0,1,null,0,0,null,null,null,null,0,0]
[null,null,null,null,null,null,null,null,null,"","XEmpty",null,null,0,0,0,0,0,0,null,0,0,null,null,null,null,0,0]
["Kadernota rechtmatig-heid",null,"Stel vast dat bij onduidelijkheden over de interpretatie in de verordeningen over financiële consequenties de raad aangeeft welke uitleg hieraan moet worden gegeven. Deze interpretatie van de raad moet vervolgens vastgelegd worden in een raadsbesluit, waarna dit besluit wordt verwerkt in de desbetreffende verordeningen.","s",null,null,null,null,null,"s","Maak uw keuze",null,null,1,0,0,0,0,1,null,0,0,null,null,null,null,0,0]
[null,null,null,null,null,null,null,null,null,{"$f":"IF(ISBLANK(D13)=TRUE,\"\",OFFSET(C13,0,CATSRT))","v":""},"XEmpty",null,null,0,0,0,0,0,0,null,0,0,null,null,null,null,0,0]
["Kadernota rechtmatig-heid",null,"Stel vast dat de totale lasten (inclusief de toevoegingen aan de reserves) de te hanteren omvangbasis vormen voor het berekenen van de verantwoordingsgrens.\n\nDe verantwoordingsgrens is een door de raad vastgesteld bedrag, waarboven het college de afwijkingen moet opnemen in de rechtmatigheidsverantwoording. De verantwoordingsgrens valt binnen de bandbreedte van 0% tot 3% van de totale lasten van de gemeente, inclusief toevoegingen aan de reserves. Voor zowel fouten als voor onduidelijkheden afzonderlijk geldt hetzelfde percentage. Fouten en onduidelijkheden worden niet bij elkaar opgeteld.","s",null,null,null,null,null,"s","Maak uw keuze",null,null,1,0,0,0,0,1,null,0,0,null,null,null,null,0,0]
[null,null,null,null,null,null,null,null,null,"","XEmpty",null,null,0,0,0,0,0,0,null,0,0,null,null,null,null,0,0]
["Kadernota rechtmatig-heid",null,"Stel vast dat de voorwaarden die direct van invloed zijn op de verslaggeving c.q. het getrouwe beeld van de jaarrekening niet worden opgenomen in de rechtmatigheidsverantwoording. \n\nIn de rechtmatigheidsverantwoording komen de drie specifieke rechtmatigheidscriteria tot uitdrukking, namelijk:\n- begrotingscriterium;\n- voorwaardencriterium; en\n- misbruik en oneigenlijk gebruik criterium.","s",null,null,null,null,null,"s","Maak uw keuze",null,null,1,0,0,0,0,1,null,0,0,null,null,null,null,0,0]
[null,null,null,null,null,null,null,null,null,"","XEmpty",null,null,0,0,0,0,0,0,null,0,0,null,null,null,null,0,0]
["Kadernota rechtmatig-heid",null,"Stel vast dat ontbrekende afrekeningen waarvoor het college een deugdelijke onderbouwing voor wat betreft de rechtmatigheid kan verstrekken, niet leiden tot een fout of onduidelijkheid voor de rechtmatigheidsverantwoording.","s",null,null,null,null,null,"s","Maak uw keuze",null,null,1,0,0,0,0,1,null,0,0,null,null,null,null,0,0]
[null,null,null,null,null,null,null,null,null,"","XEmpty",null,null,0,0,0,0,0,0,null,0,0,null,null,null,null,0,0]
["Kadernota rechtmatig-heid",null,"Stel vast dat het college en de raad in de financiële verordening hebben vastgelegd op welke wijze om wordt gegaan met begrotingsonrechtmatigheden en dat dit een correcte weerslag heeft gekregen in de rechtmatigheidsverantwoording. Uit de financiële verordening moet blijken hoe afwijkingen geïnterpreteerd worden in het kader van het uitoefenen van het budgetrecht door de raad.","s",null,null,null,null,null,"s","Maak uw keuze",null,null,1,0,0,0,0,1,null,0,0,null,null,null,null,0,0]
[null,null,null,null,null,null,null,null,null,"","XEmpty",null,null,0,0,0,0,0,0,null,0,0,null,null,null,null,0,0]
["Kadernota rechtmatig-heid",null,"Stel vast dat begrotingsonrechtmatigheden die binnen de beleidskaders van de raad passen, zijn opgenomen in de rechtmatigheidsverantwoording (voor zover de verantwoordingsgrens voor afzonderlijk fouten of onduidelijkheden is overschreden). Deze onrechtmatigheden worden niet nader toegelicht in de rechtmatigheidsverantwoording.","s",null,null,null,null,null,"s","Maak uw keuze",null,null,1,0,0,0,0,1,null,0,0,null,null,null,null,0,0]
[null,null,null,null,null,null,null,null,null,{"$f":"IF(ISBLANK(D23)=TRUE,\"\",OFFSET(C23,0,CATSRT))","v":""},"XEmpty",null,null,0,0,0,0,0,0,null,0,0,null,null,null,null,0,0]
["Kadernota rechtmatig-heid",null,"Stel vast dat bij het opstellen van de rechtmatigheidsverantwoording onduidelijkheden zijn opgenomen voor zover deze de verantwoordingsgrens overschrijden. \n\nVan onduidelijkheden is sprake indien bij complexe situaties verschillende onderbouwde standpunten bestaan en specialisten niet tot een eenduidig oordeel komen.","s",null,null,null,null,null,"s","Maak uw keuze",null,null,1,0,0,0,0,1,null,0,0,null,null,null,null,0,0]
[null,null,null,null,null,null,null,null,null,"","XEmpty",null,null,0,0,0,0,0,0,null,0,0,null,null,null,null,0,0]

{"sheet":"Jaarverslag","index":18,"n_rows":113,"n_cols":29,"rows_kept":113,"cut":false,"hidden":false,"merged":[[3,12,5,12],[1,10,5,10],[1,11,5,11]]}
["BBV",null,null,null,null,null,null,null,null,{"$f":"IF(ISBLANK(D1)=TRUE,\"\",OFFSET(C1,,CATSRT))","v":""},null,null,null,"PD RANGE"]
[null,null,null,null,null,null,null,null,null,"",{"$f":"VOLDAAN","v":"Is aan de vereisten voor de Jaarverslag-geving voldaan?"},{"$f":"TOEL","v":"Commentaar bij \"Voldoet niet\""},null,null,null,null,null,"Kopje van",null,null,"tbv hiden"]
[null,null,"w = wettelijk vereiste       s = stellige uitspraak van cie Bbv",null,null,null,null,null,null,"",null,null,null,"Vraag","Toelichting","Review","hulprange","hfdstuk of",null,"Info","Som P en Q","info","info","info","info"]
[null,null,"-  = niet vereist                 a = aanbevolen door cie Bbv",null,null,null,null,null,null,"",null,null,{"$f":"COM_REV","v":"Afwerking / Commentaar reviewer"},"(on)beantwoord","opgenomen","opgenomen","Vold. niet","Vold niet","vraagregel?"]
[null,null,null,null,null,null,null,null,null,"",null,null,null,null,null,null,"info"]
[{"$f":"IF(Navigatiescherm!J80=0,TRUE,FALSE)","v":false},null,null,null,null,null,null,null,null,"",null,null,null,"info"]
[null,null,null,null,null,null,null,null,null,"",{"$f":"CHK_M","v":"Maak uw keuze"},null,null,null,null,null,{"$f":"IF(AND(K7=CHK_V,S7=1),1,IF(OR(Q6=1,Q6=2),IF(AND(C7=\"\",J7=\"\"),3,IF(AND(K7<>CHK_M,K7<>CHK_A,K7<>CHK_N,T7=\"\"),2,0)),0))","v":0},{"$f":"IF(OR(T7=4,V7>0),1,0)","v":1},{"$f":"IF(AND(J7<>\"-\",J7<>\"\",OR(Z7=1,Z7=\"\")),1,0)","v":0},4,{"$f":"Q7+R7","v":1},null,null,null,null,null,{"$f":"IF(AND(K7<>CHK_M,S7=1),1,IF(OR(AA6=1,AA6=2),IF(AND(C7=\"\",J7=\"\"),3,IF(AND(K7<>CHK_M,T7=\"\"),2,0)),0))","v":0},{"$f":"IF(OR(T7=4,AC7>0),1,0)+AA7","v":1}]
[null,null,"Jaarverslag",null,null,null,null,null,null,"",{"$f":"CHK_V","v":"Voldoet niet"},null,null,{"$f":"IF(AND(J8<>\"-\",J8<>\"br\"),IF(AND(K8=CHK_M,OR(Z8=1,Z8=\"\")),1,0),0)","v":0},{"$f":"IF(AND(J8<>\"-\",S8=1,K8=CHK_V,OR(Z8=1,Z8=\"\"),L8=\"\"),1,0)","v":0},{"$f":"IF(AND(J8<>\"-\",S8=1,K8=CHK_V,OR(Z8=1,Z8=\"\"),M8=\"\"),1,0)","v":0},0,{"$f":"IF(OR(T8=4,V8>0),1,0)","v":1},{"$f":"IF(AND(J8<>\"-\",J8<>\"\",OR(Z8=1,Z8=\"\")),1,0)","v":0},4,1,null,null,null,null,null,{"$f":"IF(AND(K8<>CHK_M,S8=1),1,IF(OR(AA7=1,AA7=2),IF(AND(C8=\"\",J8=\"\"),3,IF(AND(K8<>CHK_M,T8=\"\"),2,0)),0))","v":0},{"$f":"IF(OR(T8=4,AC8>0),1,0)+AA8","v":1}]
[null,null,null,null,null,null,null,null,null,"",{"$f":"CHK_A","v":"Akkoord"},null,null,{"$f":"IF(AND(J9<>\"-\",J9<>\"br\"),IF(AND(K9=CHK_M,OR(Z9=1,Z9=\"\")),1,0),0)","v":0},{"$f":"IF(AND(J9<>\"-\",S9=1,K9=CHK_V,OR(Z9=1,Z9=\"\"),L9=\"\"),1,0)","v":0},{"$f":"IF(AND(J9<>\"-\",S9=1,K9=CHK_V,OR(Z9=1,Z9=\"\"),M9=\"\"),1,0)","v":0},{"$f":"IF(AND(K9=CHK_V,S9=1),1,IF(OR(Q8=1,Q8=2),IF(AND(C9=\"\",J9=\"\"),3,IF(AND(K9<>CHK_M,K9<>CHK_A,K9<>CHK_N,T9=\"\"),2,0)),0))","v":0},{"$f":"IF(OR(T9=4,V9>0),1,0)","v":0},{"$f":"IF(AND(J9<>\"-\",J9<>\"\",OR(Z9=1,Z9=\"\")),1,0)","v":0},5,0,null,null,null,null,null,{"$f":"IF(AND(K9<>CHK_M,S9=1),1,IF(OR(AA8=1,AA8=2),IF(AND(C9=\"\",J9=\"\"),3,IF(AND(K9<>CHK_M,T9=\"\"),2,0)),0))","v":0},{"$f":"IF(OR(T9=4,AC9>0),1,0)+AA9","v":0}]
[null,null,"Het jaarverslag",null,null,null,null,null,null,"",{"$f":"CHK_N","v":"Nvt"},null,null,0,0,0,0,0,0,99,0,{"$f":"SUM($Q$11:$Q$16)","v":0},{"$f":"SUM($N$11:$N$16)","v":3},{"$f":"SUM($O$11:$O$16)","v":0},{"$f":"SUM($P$11:$P$16)","v":0},null,0,0,{"$f":"SUM($AA$11:$AA$16)","v":0}]
["art. 24.2",null,"Bestaat het jaarverslag uit:",null,null,null,null,null,null,"","XEmpty",null,null,0,0,0,0,0,0,null,0,null,null,null,null,null,0,0]
[null,null,"a. de programmaverantwoording?","w",null,null,null,null,null,"w","Maak uw keuze",null,null,1,0,0,0,0,1,null,0,null,null,null,null,null,0,0]
[null,null,"b. de paragrafen?","w",null,null,null,null,null,"w","Maak uw keuze",null,null,1,0,0,0,0,1,null,0,null,null,null,null,null,0,0]
[null,null,null,"",null,null,null,null,null,"","XEmpty",null,null,0,0,0,0,0,0,null,0,null,null,null,null,null,0,0]
["BADO, GW 213",null,"Is het jaarverslag verenigbaar met de jaarrekening?","w",null,null,null,null,null,"w","Maak uw keuze",null,null,1,0,0,0,0,1,null,0,null,null,null,null,null,0,0]
[null,null,null,"",null,null,null,null,null,"","XEmpty",null,null,0,0,0,0,0,0,null,0,null,null,null,null,null,0,0]
[null,null,"De programmaverantwoording","",null,null,null,null,null,"","XEmpty",null,null,0,0,0,0,0,0,99,0,{"$f":"SUM($Q$18:$Q$28)","v":0},{"$f":"SUM($N$18:$N$28)","v":6},{"$f":"SUM($O$18:$O$28)","v":0},{"$f":"SUM($P$18:$P$28)","v":0},null,0,0,{"$f":"SUM($AA$18:$AA$28)","v":0}]
["art. 25.1",null,"Bestaat de programmaverantwoording ten minste uit de verantwoording over de realisatie van de programma’s en de overzichten van de algemene dekkingsmiddelen en de kosten van overhead? ","w",null,null,null,null,null,"w","Maak uw keuze",null,null,1,0,0,0,0,1,null,0,null,null,null,null,null,0,0]
[null,null,null,"",null,null,null,null,null,"","XEmpty",null,null,0,0,0,0,0,0,null,0,null,null,null,null,null,0,0]
["art. 25.1",null,"Is na de programma's ook het bedrag voor de heffing voor de vennootschapsbelasting weergegeven?","w",null,null,null,null,null,"w","Maak uw keuze",null,null,1,0,0,0,0,1,null,0,null,null,null,null,null,0,0]
[null,null,null,null,null,null,null,null,null,"","XEmpty",null,null,0,0,0,0,0,0,null,0,null,null,null,null,null,0,0]
["art. 25.1",null,"Wordt daarnaast inzicht gegeven in het gebruik van het geraamde bedrag voor onvoorzien?","w",null,null,null,null,null,"w","Maak uw keuze",null,null,1,0,0,0,0,1,null,0,null,null,null,null,null,0,0]
[null,null,null,"",null,null,null,null,null,"","XEmpty",null,null,0,0,0,0,0,0,null,0,null,null,null,null,null,0,0]
["art. 25.2",null,"Biedt de programmaverantwoording per programma inzicht in:\n","",null,null,null,null,null,"","XEmpty",null,null,0,0,0,0,0,0,null,0,null,null,null,null,null,0,0]
[null,null,"a. de mate waarin de doelstellingen zijn gerealiseerd ten minste toegelicht aan de hand van de bij ministeriële regeling vast te stellen beleidsindicatoren?","w",null,null,null,null,null,"w","Maak uw keuze",null,null,1,0,0,0,0,1,null,0,null,null,null,null,null,0,0]
[null,null,"b. de wijze waarop getracht is de beoogde maatschappelijke effecten te bereiken?","w",null,null,null,null,null,"w","Maak uw keuze",null,null,1,0,0,0,0,1,null,0,null,null,null,null,null,0,0]
[null,null,"c. de gerealiseerde baten en lasten?","w",null,null,null,null,null,"w","Maak uw keuze",null,null,1,0,0,0,0,1,null,0,null,null,null,null,null,0,0]
[null,null,null,"",null,null,null,null,null,"","XEmpty",null,null,0,0,0,0,0,0,null,0,null,null,null,null,null,0,0]
[null,null,"De paragrafen","",null,null,null,null,null,"","XEmpty",null,null,0,0,0,0,0,0,99,0,{"$f":"SUM($Q$30:$Q$32)","v":0},{"$f":"SUM($N$30:$N$32)","v":2},{"$f":"SUM($O$30:$O$32)","v":0},{"$f":"SUM($P$30:$P$32)","v":0},null,0,0,{"$f":"SUM($AA$30:$AA$32)","v":0}]
["art. 26",null,"Bevat het jaarverslag de paragrafen die ingevolge artikel 9 in de begroting zijn opgenomen?","w",null,null,null,null,null,"w","Maak uw keuze",null,null,1,0,0,0,0,1,null,0,null,null,null,null,null,0,0]
[null,null,null,"",null,null,null,null,null,"","XEmpty",null,null,0,0,0,0,0,0,null,0,null,null,null,null,null,0,0]
["art. 26",null,"Bevatten de paragrafen de verantwoording van hetgeen in de overeenkomstige paragrafen in de begroting is opgenomen?","w",null,null,null,null,null,"w","Maak uw keuze",null,null,1,0,0,0,0,1,null,0,null,null,null,null,null,0,0]
[null,null,null,null,null,null,null,null,null,null,"XEmpty",null,null,0,0,0,0,{"$f":"IF(OR(T33=4,V33>0),1,0)","v":0},{"$f":"IF(AND(J33<>\"-\",J33<>\"\",OR(Z33=1,Z33=\"\")),1,0)","v":0},null,0,null,null,null,null,null,0,0]
[null,null,"Paragraaf Lokale Heffingen",null,null,null,null,null,null,"","XEmpty",null,null,0,0,0,0,{"$f":"IF(OR(T34=4,V34>0),1,0)","v":0},{"$f":"IF(AND(J34<>\"-\",J34<>\"\",OR(Z34=1,Z34=\"\")),1,0)","v":0},99,0,{"$f":"SUM($Q$34:$Q$41)","v":0},{"$f":"SUM($N$34:$N$41)","v":5},{"$f":"SUM($O$34:$O$41)","v":0},{"$f":"SUM($P$34:$P$41)","v":0},null,0,0,{"$f":"SUM($AA$34:$AA$41)","v":0}]
["art. 10",null,"De paragraaf betreffende de lokale heffingen bevat ten minste de verantwoording over het boekjaar van hetgeen in de begrotingsparagraaf is opgenomen en bestaat minimaal uit:",null,null,null,null,null,null,"","XEmpty",null,null,{"$f":"IF(AND(J35<>\"-\",J35<>\"br\"),IF(AND(K35=CHK_M,OR(Z35=1,Z35=\"\")),1,0),0)","v":0},{"$f":"IF(AND(J35<>\"-\",S35=1,K35=CHK_V,OR(Z35=1,Z35=\"\"),L35=\"\"),1,0)","v":0},{"$f":"IF(AND(J35<>\"-\",S35=1,K35=CHK_V,OR(Z35=1,Z35=\"\"),M35=\"\"),1,0)","v":0},{"$f":"IF(AND(K35=CHK_V,S35=1),1,IF(OR(Q34=1,Q34=2),IF(AND(C35=\"\",J35=\"\"),3,IF(AND(K35<>CHK_M,K35<>CHK_A,K35<>CHK_N,T35=\"\"),2,0)),0))","v":0},0,0,null,0,null,null,null,null,null,{"$f":"IF(AND(K35<>CHK_M,S35=1),1,IF(OR(AA34=1,AA34=2),IF(AND(C35=\"\",J35=\"\"),3,IF(AND(K35<>CHK_M,T35=\"\"),2,0)),0))","v":0},{"$f":"IF(OR(T35=4,AC35>0),1,0)+AA35","v":0}]
[null,null,"a. de werkelijke inkomsten;","w",null,null,null,null,null,"w","Maak uw keuze",null,null,1,0,0,0,0,1,null,0,null,null,null,null,null,0,0]
[null,null,"b. het gerealiseerde beleid ten aanzien van de lokale heffingen;","w",null,null,null,null,null,"w","Maak uw keuze",null,null,1,0,0,0,0,1,null,0,null,null,null,null,null,0,0]
[null,null,"c. een overzicht op hoofdlijnen van de diverse heffingen;","w",null,null,null,null,null,"w","Maak uw keuze",null,null,1,0,0,0,0,1,null,0,null,null,null,null,null,0,0]
[null,null,"d. een aanduiding van de lokale lastendruk;","w",null,null,null,null,null,"w","Maak uw keuze",null,null,1,0,0,0,0,1,null,0,null,null,null,null,null,0,0]
[null,null,"e. een beschrijving van het gerealiseerde kwijtscheldingsbeleid.","w",null,null,null,null,null,"w","Maak uw keuze",null,null,1,0,0,0,0,1,null,0,null,null,null,null,null,0,0]
[null,null,null,null,null,null,null,null,null,"","XEmpty",null,null,0,0,0,0,0,0,null,0,null,null,null,null,null,0,0]
[null,null,"Paragraaf Weerstandsvermogen en Risicobeheersing",null,null,null,null,null,null,"","XEmpty",null,null,0,0,0,0,0,0,99,0,{"$f":"SUM($Q$43:$Q$59)","v":0},{"$f":"SUM($N$43:$N$59)","v":5},{"$f":"SUM($O$43:$O$59)","v":0},{"$f":"SUM($P$43:$P$59)","v":0},null,0,0,{"$f":"SUM($AA$43:$AA$59)","v":0}]
["art. 11 lid 1",null,"Het weerstandsvermogen bestaat uit de relatie tussen:",null,null,null,null,null,null,"","XEmpty",null,null,0,0,0,0,0,0,null,0,null,null,null,null,null,0,0]
[null,null,"a. de weerstandscapaciteit, zijnde de middelen en mogelijkheden waarover de provincie onderscheidenlijk gemeente beschikt of kan beschikken om niet begrote kosten te dekken;",null,null,null,null,null,null,"","XEmpty",null,null,0,0,0,0,0,0,null,0,null,null,null,null,null,0,0]
[null,null,"b. alle risico's waarvoor geen maatregelen zijn getroffen en die van materiële betekenis kunnen zijn in relatie tot de financiële positie.",null,null,null,null,null,null,"","XEmpty",null,null,0,0,0,0,0,0,null,0,null,null,null,null,null,0,0]
[null,null,null,null,null,null,null,null,null,"","XEmpty",null,null,0,0,0,0,0,0,null,0,null,null,null,null,null,0,0]
["art. 11 lid 2",null,"De paragraaf betreffende het weerstandsvermogen en risicobeheersing bevat ten minste:",null,null,null,null,null,null,"","XEmpty",null,null,0,0,0,0,0,0,null,0,null,null,null,null,null,0,0]
[null,null,"a. een inventarisatie van de weerstandscapaciteit;","w",null,null,null,null,null,"w","Maak uw keuze",null,null,1,0,0,0,0,1,null,0,null,null,null,null,null,0,0]
[null,null,"b. een inventarisatie van de risico's;","w",null,null,null,null,null,"w","Maak uw keuze",null,null,1,0,0,0,0,1,null,0,null,null,null,null,null,0,0]
[null,null,"c. het gerealiseerde beleid omtrent de weerstandscapaciteit en de risico's;","w",null,null,null,null,null,"w","Maak uw keuze",null,null,1,0,0,0,0,1,null,0,null,null,null,null,null,0,0]
[null,null,"d. een kengetal voor de:","w",null,null,null,null,null,"w","Maak uw keuze",null,null,1,0,0,0,0,1,null,0,null,null,null,null,null,0,0]
[null,null,"- netto schuldquote;",null,null,null,null,null,null,"","XEmpty",null,null,0,0,0,0,0,0,null,0,null,null,null,null,null,0,0]
[null,null,"- netto schuldquote gecorrigeerd voor alle verstrekte leningen;",null,null,null,null,null,null,"","XEmpty",null,null,0,0,0,0,0,0,null,0,null,null,null,null,null,0,0]
[null,null,"- solvabiliteitsratio;",null,null,null,null,null,null,"","XEmpty",null,null,0,0,0,0,0,0,null,0,null,null,null,null,null,0,0]
[null,null,"- grondexploitatie;",null,null,null,null,null,null,"","XEmpty",null,null,0,0,0,0,0,0,null,0,null,null,null,null,null,0,0]
[null,null,"- structurele exploitatieruimte; en",null,null,null,null,null,null,"","XEmpty",null,null,0,0,0,0,0,0,null,0,null,null,null,null,null,0,0]
[null,null,"- belastingcapaciteit.",null,null,null,null,null,null,"","XEmpty",null,null,0,0,0,0,0,0,null,0,null,null,null,null,null,0,0]
[null,null,"e. een beoordeling van de onderlinge verhouding tussen de kengetallen in relatie tot de financiële positie.","w",null,null,null,null,null,"w","Maak uw keuze",null,null,1,0,0,0,0,1,null,0,null,null,null,null,null,0,0]
[null,null,null,null,null,null,null,null,null,"","XEmpty",null,null,0,0,0,0,0,0,null,0,null,null,null,null,null,0,0]
[null,null,"Paragraaf Onderhoud Kapitaalgoederen",null,null,null,null,null,null,"","XEmpty",null,null,0,0,0,0,0,0,99,0,{"$f":"SUM($Q$61:$Q$72)","v":0},{"$f":"SUM($N$61:$N$72)","v":8},{"$f":"SUM($O$61:$O$72)","v":0},{"$f":"SUM($P$61:$P$72)","v":0},null,0,0,{"$f":"SUM($AA$61:$AA$72)","v":0}]
["art. 12 lid 1",null,"De paragraaf betreffende het onderhoud van kapitaalgoederen bevat ten minste de volgende kapitaalgoederen:",null,null,null,null,null,null,"","XEmpty",null,null,0,0,0,0,0,0,null,0,null,null,null,null,null,0,0]
[null,null,"a. wegen;","w",null,null,null,null,null,"w","Maak uw keuze",null,null,1,0,0,0,0,1,null,0,null,null,null,null,null,0,0]
[null,null,"b. riolering;","w",null,null,null,null,null,"w","Maak uw keuze",null,null,1,0,0,0,0,1,null,0,null,null,null,null,null,0,0]
[null,null,"c. water;","w",null,null,null,null,null,"w","Maak uw keuze",null,null,1,0,0,0,0,1,null,0,null,null,null,null,null,0,0]
[null,null,"d. groen;","w",null,null,null,null,null,"w","Maak uw keuze",null,null,1,0,0,0,0,1,null,0,null,null,null,null,null,0,0]
[null,null,"e. gebouwen.","w",null,null,null,null,null,{"$f":"IF(ISBLANK(D66)=TRUE,\"\",OFFSET(C66,,CATSRT))","v":"w"},"Maak uw keuze",null,null,1,0,0,0,0,1,null,0,null,null,null,null,null,0,0]
[null,null,null,null,null,null,null,null,null,"","XEmpty",null,null,0,0,0,0,0,0,null,0,null,null,null,null,null,0,0]
["art. 12 lid 2",null,"Van de kapitaalgoederen, bedoeld in het eerste lid, wordt aangegeven:",null,null,null,null,null,null,"","XEmpty",null,null,0,0,0,0,0,0,null,0,null,null,null,null,null,0,0]
[null,null,"a. het gerealiseerde beleid;","w",null,null,null,null,null,"w","Maak uw keuze",null,null,1,0,0,0,0,1,null,0,null,null,null,null,null,0,0]
[null,null,"b. de uit het gerealiseerde beleid voortvloeiende financiële consequenties;","w",null,null,null,null,null,"w","Maak uw keuze",null,null,1,0,0,0,0,1,null,0,null,null,null,null,null,0,0]
[null,null,"c. de vertaling van de financiële consequenties in de jaarrekening.","w",null,null,null,null,null,"w","Maak uw keuze",null,null,1,0,0,0,0,1,null,0,null,null,null,null,null,0,0]
[null,null,null,null,null,null,null,null,null,"","XEmpty",null,null,0,0,0,0,0,0,null,0,null,null,null,null,null,0,0]
[null,null,"Paragraaf Financiering",null,null,null,null,null,null,"","XEmpty",null,null,0,0,0,0,0,0,99,0,{"$f":"SUM($Q$30:$Q$111)","v":0},{"$f":"SUM($N$74:$N$76)","v":2},{"$f":"SUM($O$74:$O$76)","v":0},{"$f":"SUM($P$74:$P$76)","v":0},null,0,0,{"$f":"SUM($AA$74:$AA$76)","v":0}]
["art. 13",null,"De paragraaf betreffende de financiering bevat de realisatie van de beleidsvoornemens ten aanzien van het risicobeheer van de financieringsportefeuille. \n\n","w",null,null,null,null,null,"w","Maak uw keuze",null,null,1,0,0,0,0,1,null,0,null,null,null,null,null,0,0]
["art. 13",null,"Daarnaast geeft de paragraaf inzicht in de rentelasten, renteresultaat, de wijze waarop rente aan investeringen, grondexploitatie en taakvelden wordt toegerekend en de financieringsbehoefte.","w",null,null,null,null,null,"w","Maak uw keuze",null,null,1,0,0,0,0,1,null,0,null,null,null,null,null,0,0]
[null,null,null,null,null,null,null,null,null,"","XEmpty",null,null,0,0,0,0,0,0,null,0,null,null,null,null,null,0,0]
[null,null,"Paragraaf Bedrijfsvoering",null,null,null,null,null,null,"","XEmpty",null,null,0,0,0,0,0,0,99,0,{"$f":"SUM($Q$78:$Q$87)","v":0},{"$f":"SUM($N$78:$N$87)","v":5},{"$f":"SUM($O$78:$O$87)","v":0},{"$f":"SUM($P$78:$P$87)","v":0},null,{"$f":"IF(AND(K77<>CHK_M,S77=1),1,IF(OR(AA76=1,AA76=2),IF(AND(C77=\"\",J77=\"\"),3,IF(AND(K77<>CHK_M,T77=\"\"),2,0)),0))","v":0},{"$f":"IF(OR(T77=4,AC77>0),1,0)+AA77","v":0},{"$f":"SUM($AA$78:$AA$87)","v":0}]
["art. 14",null,"De paragraaf betreffende de bedrijfsvoering geeft ten minste inzicht in de stand van zaken en de verantwoording over het gerealiseerde beleid ten aanzien van de bedrijfsvoering.\n\nIn de notitie Overhead 2016 van de commissie BBV staat beschreven dat, in tegenstelling tot hetgeen bij de voorbereiding van de Vernieuwing BBV is medegedeeld, de paragraaf bedrijfsvoering blijft bestaan. Deze paragraaf kan gebruikt blijven worden voor beleidsmatige ontwikkelingen op het terrein van bedrijfsvoering zoals bijvoorbeeld human resource management, informatiebeveiliging en duurzame inkoop.","w",null,null,null,null,null,"w","Maak uw keuze",null,null,{"$f":"IF(AND(J78<>\"-\",J78<>\"br\"),IF(AND(K78=CHK_M,OR(Z78=1,Z78=\"\")),1,0),0)","v":1},{"$f":"IF(AND(J78<>\"-\",S78=1,K78=CHK_V,OR(Z78=1,Z78=\"\"),L78=\"\"),1,0)","v":0},{"$f":"IF(AND(J78<>\"-\",S78=1,K78=CHK_V,OR(Z78=1,Z78=\"\"),M78=\"\"),1,0)","v":0},{"$f":"IF(AND(K78=CHK_V,S78=1),1,IF(OR(Q77=1,Q77=2),IF(AND(C78=\"\",J78=\"\"),3,IF(AND(K78<>CHK_M,K78<>CHK_A,K78<>CHK_N,T78=\"\"),2,0)),0))","v":0},{"$f":"IF(OR(T78=4,V78>0),1,0)","v":0},{"$f":"IF(AND(J78<>\"-\",J78<>\"\",OR(Z78=1,Z78=\"\")),1,0)","v":1},null,0,null,null,null,null,null,0,0]
[null,null,null,null,null,null,null,null,null,"","XEmpty",null,null,0,0,0,0,0,0,null,0,null,null,null,null,null,0,0]
["Kadernota rechtmatig-heid",null,"Rechtmatigheidsverantwoording\nStel vast dat het college in de paragraaf bedrijfsvoering een toelichting geeft op alle afwijkingen, die in de rechtmatigheidsverantwoording zijn opgenomen en welke maatregelen worden genomen om deze afwijkingen in de toekomst te voorkomen.\n\nOptioneel: Als de raad een rapportagegrens heeft vastgesteld, stel dan vast dat het college de afwijkingen boven de rapportagegrens heeft toegelicht.\n\nLet op: de rapportagegrens is een andere grens c.q. ander begrip dan de verantwoordingsgrens.\n\n","s",null,null,null,null,null,"s","Maak uw keuze",null,null,{"$f":"IF(AND(J80<>\"-\",J80<>\"br\"),IF(AND(K80=CHK_M,OR(Z80=1,Z80=\"\")),1,0),0)","v":1},{"$f":"IF(AND(J80<>\"-\",S80=1,K80=CHK_V,OR(Z80=1,Z80=\"\"),L80=\"\"),1,0)","v":0},{"$f":"IF(AND(J80<>\"-\",S80=1,K80=CHK_V,OR(Z80=1,Z80=\"\"),M80=\"\"),1,0)","v":0},{"$f":"IF(AND(K80=CHK_V,S80=1),1,IF(OR(Q79=1,Q79=2),IF(AND(C80=\"\",J80=\"\"),3,IF(AND(K80<>CHK_M,K80<>CHK_A,K80<>CHK_N,T80=\"\"),2,0)),0))","v":0},{"$f":"IF(OR(T80=4,V80>0),1,0)","v":0},{"$f":"IF(AND(J80<>\"-\",J80<>\"\",OR(Z80=1,Z80=\"\")),1,0)","v":1},null,{"$f":"Q80+R80","v":0},null,null,null,null,null,{"$f":"IF(AND(K80<>CHK_M,S80=1),1,IF(OR(AA79=1,AA79=2),IF(AND(C80=\"\",J80=\"\"),3,IF(AND(K80<>CHK_M,T80=\"\"),2,0)),0))","v":0},{"$f":"IF(OR(T80=4,AC80>0),1,0)+AA80","v":0}]
[null,null,null,null,null,null,null,null,null,"","XEmpty",null,null,0,0,0,0,0,0,null,0,null,null,null,null,null,0,0]
["Kadernota rechtmatig-heid",null,"Fraude door eigen medewerkers\nDe commissie BBV adviseert om geconstateerde fraude door eigen medewerkers toe te lichten in de paragraaf bedrijfsvoering (zie paragraaf 2.3 van de Kadernota). Stel vast of hieraan is voldaan.","a",null,null,null,null,null,"a","Maak uw keuze",null,null,1,0,0,0,0,1,null,0,null,null,null,null,null,0,0]
[null,null,null,null,null,null,null,null,null,"","XEmpty",null,null,0,0,0,0,0,0,null,0,null,null,null,null,null,0,0]
["Kadernota rechtmatig-heid",null,"Aanbestedingen\nStel vast dat indien de normen uit de gids proportionaliteit veelvuldig niet nageleefd worden of slecht gedocumenteerd en/of gemotiveerd zijn, het college hierover rapporteert via de paragraaf bedrijfsvoering.","s",null,null,null,null,null,"s","Maak uw keuze",null,null,1,0,0,0,0,1,null,0,null,null,null,null,null,0,0]
[null,null,null,null,null,null,null,null,null,"","XEmpty",null,null,0,0,0,0,0,0,null,0,null,null,null,null,null,0,0]
["Kadernota rechtmatig-heid",null,"Treasury\nStel vast dat niet-financiële onrechtmatigheden in verband met het niet naleven van bepalingen in de wet Fido en bijbehorende Regelingen zijn opgenomen en toegelicht in de paragraaf bedrijfsvoering.","s",null,null,null,null,null,"s","Maak uw keuze",null,null,1,0,0,0,0,1,null,0,null,null,null,null,null,0,0]
[null,null,null,null,null,null,null,null,null,"","XEmpty",null,null,0,0,0,0,0,0,null,0,null,null,null,null,null,0,0]
[null,null,"Paragraaf Verbonden Partijen",null,null,null,null,null,null,"","XEmpty",null,null,0,0,0,0,0,0,99,0,{"$f":"SUM($Q$89:$Q$100)","v":0},{"$f":"SUM($N$89:$N$100)","v":8},{"$f":"SUM($O$89:$O$100)","v":0},{"$f":"SUM($P$89:$P$100)","v":0},null,0,0,{"$f":"SUM($AA$89:$AA$100)","v":0}]
["art. 15 lid 1",null,"De paragraaf betreffende de verbonden partijen bevat ten minste:",null,null,null,null,null,null,"","XEmpty",null,null,0,0,0,0,0,0,null,0,null,null,null,null,null,0,0]
[null,null,"a. de visie op verbonden partijen in relatie tot de realisatie van de doelstellingen die zijn opgenomen in de begroting;","w",null,null,null,null,null,"w","Maak uw keuze",null,null,{"$f":"IF(AND(J90<>\"-\",J90<>\"br\"),IF(AND(K90=CHK_M,OR(Z90=1,Z90=\"\")),1,0),0)","v":1},{"$f":"IF(AND(J90<>\"-\",S90=1,K90=CHK_V,OR(Z90=1,Z90=\"\"),L90=\"\"),1,0)","v":0},{"$f":"IF(AND(J90<>\"-\",S90=1,K90=CHK_V,OR(Z90=1,Z90=\"\"),M90=\"\"),1,0)","v":0},{"$f":"IF(AND(K90=CHK_V,S90=1),1,IF(OR(Q89=1,Q89=2),IF(AND(C90=\"\",J90=\"\"),3,IF(AND(K90<>CHK_M,K90<>CHK_A,K90<>CHK_N,T90=\"\"),2,0)),0))","v":0},{"$f":"IF(OR(T90=4,V90>0),1,0)","v":0},{"$f":"IF(AND(J90<>\"-\",J90<>\"\",OR(Z90=1,Z90=\"\")),1,0)","v":1},null,0,null,null,null,null,null,0,0]
[null,null,"b. het gerealiseerde beleid omtrent verbonden partijen;","w",null,null,null,null,null,"w","Maak uw keuze",null,null,1,0,0,0,0,1,null,0,null,null,null,null,null,0,0]
[null,null,"c. de lijst van verbonden partijen, die wordt onderverdeeld in:\n1°. gemeenschappelijke regelingen;\n2°. vennootschappen en coöperaties;\n3°. stichtingen en verenigingen, en,\n4°. overige verbonden partijen;","w",null,null,null,null,null,"w","Maak uw keuze",null,null,1,0,0,0,0,1,null,0,null,null,null,null,null,0,0]
[null,null,null,null,null,null,null,null,null,"","XEmpty",null,null,0,0,0,0,0,0,null,0,null,null,null,null,null,0,0]
["art. 15 lid 2",null,"In de lijst van verbonden partijen wordt ten minste de volgende informatie opgenomen:",null,null,null,null,null,null,"","XEmpty",null,null,0,0,0,0,0,0,null,0,null,null,null,null,null,0,0]
[null,null,"a. de wijze waarop de provincie onderscheidenlijk de gemeente een belang heeft in de verbonden partij en het openbaar belang dat ermee gediend wordt;","w",null,null,null,null,null,"w","Maak uw keuze",null,null,1,0,0,0,0,1,null,0,null,null,null,null,null,0,0]
[null,null,"b. het belang dat de provincie onderscheidenlijk de gemeente in de verbonden partij heeft aan het begin en de omvang aan het einde van het begrotingsjaar;","w",null,null,null,null,null,"w","Maak uw keuze",null,null,1,0,0,0,0,1,null,0,null,null,null,null,null,0,0]
[null,null,"c. de omvang van het eigen vermogen en het vreemd vermogen van de verbonden partij aan het begin en aan het einde van het begrotingsjaar;","w",null,null,null,null,null,"w","Maak uw keuze",null,null,1,0,0,0,0,1,null,0,null,null,null,null,null,0,0]
[null,null,"d. de omvang van het financiële resultaat van de verbonden partij in het begrotingsjaar;","w",null,null,null,null,null,"w","Maak uw keuze",null,null,1,0,0,0,0,1,null,0,null,null,null,null,null,0,0]
[null,null,"e. de eventuele risico’s, als bedoeld in artikel 11, eerste lid, onderdeel b, van de verbonden partij voor de financiële positie van de provincie onderscheidenlijk gemeente.","w",null,null,null,null,null,"w","Maak uw keuze",null,null,1,0,0,0,0,1,null,0,null,null,null,null,null,0,0]
[null,null,null,null,null,null,null,null,null,"","XEmpty",null,null,0,0,0,0,0,0,null,0,null,null,null,null,null,0,0]
[null,null,"Paragraaf Grondbeleid",null,null,null,null,null,null,"","XEmpty",null,null,0,0,0,0,0,0,99,0,{"$f":"SUM($Q$102:$Q$111)","v":0},{"$f":"SUM($N$102:$N$111)","v":7},{"$f":"SUM($O$102:$O$111)","v":0},{"$f":"SUM($P$102:$P$111)","v":0},null,0,0,{"$f":"SUM($AA$102:$AA$111)","v":0}]
["art. 16",null,"De paragraaf betreffende het grondbeleid bevat ten minste:",null,null,null,null,null,null,"","XEmpty",null,null,0,0,0,0,0,0,null,0,null,null,null,null,null,0,0]
[null,null,"a. een visie op het grondbeleid in relatie tot de realisatie van de doelstellingen van de programma's die zijn opgenomen in de begroting;","w",null,null,null,null,null,"w","Maak uw keuze",null,null,1,0,0,0,0,1,null,0,null,null,null,null,null,0,0]
[null,null,"b. een aanduiding van de wijze waarop de provincie onderscheidenlijk gemeente het grondbeleid uitvoert;","w",null,null,null,null,null,"w","Maak uw keuze",null,null,1,0,0,0,0,1,null,0,null,null,null,null,null,0,0]
[null,null,"c. een actuele prognose van de te verwachten resultaten van de totale grondexploitatie;","w",null,null,null,null,null,"w","Maak uw keuze",null,null,1,0,0,0,0,1,null,0,null,null,null,null,null,0,0]
[null,null,"d. een onderbouwing van de gerealiseerde winstneming;","w",null,null,null,null,null,"w","Maak uw keuze",null,null,1,0,0,0,0,1,null,0,null,null,null,null,null,0,0]
[null,null,"e. de beleidsuitgangspunten omtrent de reserves voor grondzaken in relatie tot de risico's van de grondzaken en de realisatie hiervan.","w",null,null,null,null,null,"w","Maak uw keuze",null,null,1,0,0,0,0,1,null,0,null,null,null,null,null,0,0]
[null,null,null,"s",null,null,null,null,null,"s","Maak uw keuze",null,null,1,0,0,0,0,1,null,0,null,null,null,null,null,0,0]
["Notitie grond-exploitatie \nNotitie grondbeleid (2019)",null,"De presentatie van de te verwachten resultaten in de paragraaf grondbeleid dient te gebeuren tegen nominale waarde. ",null,null,null,null,null,null,"","XEmpty",null,null,0,0,0,0,0,0,null,0,null,null,null,null,null,0,0]
[null,null,null,null,null,null,null,null,null,"","XEmpty",null,null,0,0,0,0,0,0,null,0,null,null,null,null,null,0,0]
["Notitie grond-exploitatie \nNotitie grondbeleid (2019)",null,"Wanneer bij de berekening van de voorziening voor de verliesgevende grondexploitaties een andere waarderingsgrondslag wordt gehanteerd (de contante waarde), dan moet het effect hiervan op de te verwachten resultaten voor zowel de negatieve als de positieve grondexploitaties worden toegelicht in de paragraaf grondbeleid.","s",null,null,null,null,null,"s","Maak uw keuze",null,null,1,0,0,0,0,1,null,0,null,null,null,null,null,0,0]
[null,null,"Paragraaf Wet open overheid (Woo)",null,null,null,null,null,null,null,"XEmpty",null,null,0,0,0,0,0,0,99,0,{"$f":"SUM($Q$112:$Q$113)","v":0},{"$f":"SUM($N$112:$N$113)","v":1},{"$f":"SUM($O$112:$O$113)","v":0},{"$f":"SUM($P$112:$P$113)","v":0},null,0,0,{"$f":"SUM($AA$112:$AA$113)","v":0}]
["Wet open overheid (Woo) art. 3.5 Openbaar-heids-paragraaf",null,"De paragraaf betreffende de Wet open overheid (Woo) bevat een verslag van de uitvoering van de wet, mede in relatie tot de beleidsvoornemens.\n\nHet opnemen van deze nieuwe, afzonderlijke paragraaf is verplicht m.i.v. de jaarrekening 2022, waarbij gemeenten eventueel vanuit deze paragraaf (ook) kunnen verwijzen naar de toelichting(en) in een andere paragraaf/in andere paragrafen.\n\nHet BBV is hierop ten tijde van het opstellen van deze checklist nog aangepast.",null,null,null,null,null,null,"w","Maak uw keuze",null,null,1,0,0,0,0,1,null,0,null,null,null,null,null,0,0]

{"sheet":"Aanbevelingen BBV","index":19,"n_rows":70,"n_cols":29,"rows_kept":70,"cut":false,"hidden":false,"merged":[[3,12,5,12],[1,10,5,10],[1,11,5,11]]}
["BBV",null,null,null,null,null,null,null,null,{"$f":"IF(ISBLANK(D1)=TRUE,\"\",OFFSET(C1,0,CATSRT))","v":""},null,null,null,"PD RANGE"]
[null,null,null,null,null,null,null,null,null,"",{"$f":"VOLDAAN","v":"Is aan de vereisten voor de Jaarverslag-geving voldaan?"},{"$f":"TOEL","v":"Commentaar bij \"Voldoet niet\""},null,null,null,null,null,"Kopje van",null,null,"tbv hiden"]
[null,null,"w = wettelijk vereiste       s = stellige uitspraak van cie Bbv",null,null,null,null,null,null,"",null,null,null,"Vraag","Toelichting","Review","hulprange","hfdstuk of",null,"Info","Som P en Q","info","info","info","info"]
[null,null,"-  = niet vereist                 a = aanbevolen door cie Bbv",null,null,null,null,null,null,"",null,null,{"$f":"COM_REV","v":"Afwerking / Commentaar reviewer"},"(on)beantwoord","opgenomen","opgenomen","Vold. niet","Vold niet","vraagregel?"]
[null,null,null,null,null,null,null,null,null,"",null,null,null,null,null,null,"info"]
[{"$f":"IF(Navigatiescherm!J93=0,TRUE,FALSE)","v":false},null,null,null,null,null,null,null,null,"",null,null,null,"info"]
[null,null,null,null,null,null,null,null,null,"",{"$f":"CHK_M","v":"Maak uw keuze"},null,null,null,null,null,{"$f":"IF(AND(K7=CHK_V,S7=1),1,IF(OR(Q6=1,Q6=2),IF(AND(C7=\"\",J7=\"\"),3,IF(AND(K7<>CHK_M,K7<>CHK_A,K7<>CHK_N,T7=\"\"),2,0)),0))","v":0},{"$f":"IF(OR(T7=4,V7>0),1,0)","v":1},{"$f":"IF(AND(J7<>\"-\",J7<>\"\",OR(Z7=1,Z7=\"\")),1,0)","v":0},4,{"$f":"Q7+R7","v":1},null,null,null,null,null,{"$f":"IF(AND(K7<>CHK_M,S7=1),1,IF(OR(AA6=1,AA6=2),IF(AND(C7=\"\",J7=\"\"),3,IF(AND(K7<>CHK_M,T7=\"\"),2,0)),0))","v":0},{"$f":"IF(OR(T7=4,AC7>0),1,0)+AA7","v":1}]
[null,null,"Aanbevelingen van de commissie BBV",null,null,null,null,null,null,"",{"$f":"CHK_V","v":"Voldoet niet"},null,null,{"$f":"IF(AND(J8<>\"-\",J8<>\"br\"),IF(AND(K8=CHK_M,OR(Z8=1,Z8=\"\")),1,0),0)","v":0},{"$f":"IF(AND(J8<>\"-\",S8=1,K8=CHK_V,OR(Z8=1,Z8=\"\"),L8=\"\"),1,0)","v":0},{"$f":"IF(AND(J8<>\"-\",S8=1,K8=CHK_V,OR(Z8=1,Z8=\"\"),M8=\"\"),1,0)","v":0},0,{"$f":"IF(OR(T8=4,V8>0),1,0)","v":1},{"$f":"IF(AND(J8<>\"-\",J8<>\"\",OR(Z8=1,Z8=\"\")),1,0)","v":0},4,1,null,null,null,null,null,0,{"$f":"IF(OR(T8=4,AC8>0),1,0)+AA8","v":1}]
[null,null,null,null,null,null,null,null,null,"",{"$f":"CHK_A","v":"Akkoord"},null,null,{"$f":"IF(AND(J9<>\"-\",J9<>\"br\"),IF(AND(K9=CHK_M,OR(Z9=1,Z9=\"\")),1,0),0)","v":0},{"$f":"IF(AND(J9<>\"-\",S9=1,K9=CHK_V,OR(Z9=1,Z9=\"\"),L9=\"\"),1,0)","v":0},{"$f":"IF(AND(J9<>\"-\",S9=1,K9=CHK_V,OR(Z9=1,Z9=\"\"),M9=\"\"),1,0)","v":0},{"$f":"IF(AND(K9=CHK_V,S9=1),1,IF(OR(Q8=1,Q8=2),IF(AND(C9=\"\",J9=\"\"),3,IF(AND(K9<>CHK_M,K9<>CHK_A,K9<>CHK_N,T9=\"\"),2,0)),0))","v":0},{"$f":"IF(OR(T9=4,V9>0),1,0)","v":0},{"$f":"IF(AND(J9<>\"-\",J9<>\"\",OR(Z9=1,Z9=\"\")),1,0)","v":0},5,0,null,null,null,null,null,0,0]
[null,null,"Verordeningen",null,null,null,null,null,null,"",{"$f":"CHK_N","v":"Nvt"},null,null,0,0,0,0,0,{"$f":"IF(AND(J10<>\"-\",J10<>\"\",OR(Z10=1,Z10=\"\")),1,0)","v":0},99,0,{"$f":"SUM($Q$11:$Q$41)","v":0},{"$f":"SUM($N$11:$N$41)","v":14},{"$f":"SUM($O$11:$O$41)","v":0},{"$f":"SUM($P$11:$P$41)","v":0},null,{"$f":"IF(AND(K10<>CHK_M,S10=1),1,IF(OR(AA9=1,AA9=2),IF(AND(C10=\"\",J10=\"\"),3,IF(AND(K10<>CHK_M,T10=\"\"),2,0)),0))","v":0},{"$f":"IF(OR(T10=4,AC10>0),1,0)+AA10","v":0},{"$f":"SUM($AA$11:$AA$41)","v":0}]
["art. 212 GW",null,"Zijn door de raad bij verordening de uitgangspunten voor het financiële beleid, alsmede de regels voor het financiële beheer en voor de inrichting van de financiële organisatie vastgesteld?","a",null,null,null,null,null,"a","Maak uw keuze",null,null,1,0,0,0,0,1,null,0,null,null,null,null,null,0,0]
[null,null,null,"",null,null,null,null,null,"","XEmpty",null,null,0,0,0,0,0,0,null,0,null,null,null,null,null,0,0]
["art. 212 GW",null,"Bevat de verordening in ieder geval:","",null,null,null,null,null,"","XEmpty",null,null,0,0,0,0,0,0,null,0,null,null,null,null,null,0,0]
[null,null,"a. regels voor waardering en afschrijving van activa?","a",null,null,null,null,null,"a","Maak uw keuze",null,null,1,0,0,0,0,1,null,0,null,null,null,null,null,0,0]
[null,null,null,"",null,null,null,null,null,"","XEmpty",null,null,0,0,0,0,0,0,null,0,null,null,null,null,null,0,0]
["Notitie MVA (2020)",null,"b. criteria voor het activeren van investeringen, bestaande uit:\n","",null,null,null,null,null,"","XEmpty",null,null,0,0,0,0,0,0,null,0,null,null,null,null,null,0,0]
[null,null,"- een minimumbedrag en/of","a",null,null,null,null,null,"a","Maak uw keuze",null,null,1,0,0,0,0,1,null,0,null,null,null,null,null,0,0]
[null,null,"- een minimale gebruiksduur?","a",null,null,null,null,null,"a","Maak uw keuze",null,null,1,0,0,0,0,1,null,0,null,null,null,null,null,0,0]
[null,null,null,"",null,null,null,null,null,"","XEmpty",null,null,0,0,0,0,0,0,null,0,null,null,null,null,null,0,0]
["Notitie MVA (2020)",null,"c. regels voor het moment waarop met afschrijven van een nieuw kapitaalgoed wordt begonnen. Mogelijke keuzes hierbij:","a",null,null,null,null,null,"a","Maak uw keuze",null,null,1,0,0,0,0,1,null,0,null,null,null,null,null,0,0]
[null,null,"óf medio het begrotingsjaar waarin het gereed komt/verworven wordt,","a",null,null,null,null,null,"a","Maak uw keuze",null,null,1,0,0,0,0,1,null,0,null,null,null,null,null,0,0]
[null,null,"óf in het begrotingsjaar dat volgt op het jaar waarin het gereed komt/verworven wordt.","a",null,null,null,null,null,"a","Maak uw keuze",null,null,1,0,0,0,0,1,null,0,null,null,null,null,null,0,0]
[null,null,"óf in het jaar waarin het kapitaalgoed gereed komt/verworven wordt en vanaf het moment dat het door de gemeente in gebruik kan worden genomen?","a",null,null,null,null,null,"a","Maak uw keuze",null,null,1,0,0,0,0,1,null,0,null,null,null,null,null,0,0]
[null,null,null,"",null,null,null,null,null,"","XEmpty",null,null,0,0,0,0,0,0,null,0,null,null,null,null,null,0,0]
["Notitie MVA (2020)",null,"d. uitgangspunten over de handelswijze betreffende restwaarde van activa?","a",null,null,null,null,null,"a","Maak uw keuze",null,null,1,0,0,0,0,1,null,0,null,null,null,null,null,0,0]
[null,null,null,"",null,null,null,null,null,"","XEmpty",null,null,0,0,0,0,0,0,null,0,null,null,null,null,null,0,0]
[null,null,"e. grondslagen voor de berekening van de door het gemeentebestuur in rekening te brengen prijzen en van tarieven voor rechten als bedoeld in artikel 229b, alsmede, voor zover deze wordt geheven, voor de heffing bedoeld in artikel 15.33 van de Wet milieubeheer?\n\n(NB: met ingang van 1-1-2008 treedt de Wet verankering en bekostiging van gemeentelijke watertaken in werking, gemeenten moeten o.g.v. deze wet overgaan van rioolrecht naar rioolheffing)","a",null,null,null,null,null,"a","Maak uw keuze",null,null,1,0,0,0,0,1,null,0,null,null,null,null,null,0,0]
[null,null,null,"",null,null,null,null,null,"","XEmpty",null,null,0,0,0,0,0,0,null,0,null,null,null,null,null,0,0]
["A 43-2",null,"f. kaders voor het muteren van gerealiseerde resultaten riolering (positief en negatief) in een bestemmingsreserve riolering?","a",null,null,null,null,null,"a","Maak uw keuze",null,null,1,0,0,0,0,1,null,0,null,null,null,null,null,0,0]
[null,null,null,"",null,null,null,null,null,"","XEmpty",null,null,0,0,0,0,0,0,null,0,null,null,null,null,null,0,0]
[null,null,"g. regels inzake de algemene doelstellingen en de te hanteren richtlijnen en limieten van de financieringsfunctie, alsmede inzake de administratieve organisatie van de financieringsfunctie, daaronder begrepen taken en bevoegdheden, de verantwoordingsrelaties en de bijbehorende informatievoorziening?","a",null,null,null,null,null,"a","Maak uw keuze",null,null,1,0,0,0,0,1,null,0,null,null,null,null,null,0,0]
[null,null,null,"",null,null,null,null,null,"","XEmpty",null,null,0,0,0,0,0,0,null,0,null,null,null,null,null,0,0]
["Notitie resultaat-bestemmen",null,"h. kaders voor het ten gunste of laste brengen van specifiek benoemde saldi aan een specifiek benoemde bestemmingsreserve?","a",null,null,null,null,null,"a","Maak uw keuze",null,null,1,0,0,0,0,1,null,0,null,null,null,null,null,0,0]
[null,null,null,"",null,null,null,null,null,"","XEmpty",null,null,0,0,0,0,0,0,null,0,null,null,null,null,null,0,0]
["Notitie grond-exploitatie",null,"i. regels ten aanzien van de volgende onderwerpen:","a",null,null,null,null,null,"a","Maak uw keuze",null,null,1,0,0,0,0,1,null,0,null,null,null,null,null,0,0]
[null,null,"- de autorisatie van kredieten door de gemeenteraad","",null,null,null,null,null,"","XEmpty",null,null,0,0,0,0,0,0,null,0,null,null,null,null,null,0,0]
[null,null,"- vervaardigingskosten van niet in exploitatie genomen gronden","",null,null,null,null,null,"","XEmpty",null,null,0,0,0,0,0,0,null,0,null,null,null,null,null,0,0]
[null,null,"- hoogte van de in acht te nemen marktwaarde","",null,null,null,null,null,"","XEmpty",null,null,0,0,0,0,0,0,null,0,null,null,null,null,null,0,0]
[null,null,"- tussentijdse winstneming","",null,null,null,null,null,"","XEmpty",null,null,0,0,0,0,0,0,null,0,null,null,null,null,null,0,0]
[null,null,"- de wijze van activering van kosten","",null,null,null,null,null,"","XEmpty",null,null,0,0,0,0,0,0,null,0,null,null,null,null,null,0,0]
[null,null,null,"",null,null,null,null,null,"","XEmpty",null,null,0,0,0,0,0,0,null,0,null,null,null,null,null,0,0]
[null,null,"Kapitaalgoederen","",null,null,null,null,null,"","XEmpty",null,null,0,0,0,0,0,0,99,0,{"$f":"SUM($Q$43:$Q$44)","v":0},{"$f":"SUM($N$43:$N$44)","v":1},{"$f":"SUM($O$43:$O$44)","v":0},{"$f":"SUM($P$43:$P$44)","v":0},null,0,0,{"$f":"SUM($AA$43:$AA$44)","v":0}]
["Notitie MVA (2020)",null,"De commissie doet de aanbeveling om tenminste éénmaal in de vier jaar een integrale beleidsnota over het beleidskader onderhoud kapitaalgoederen door de raad te laten vaststellen en de hoofdlijnen daarvan jaarlijks op te nemen in de paragraaf kapitaalgoederen. Is hier aan voldaan?","a",null,null,null,null,null,"a","Maak uw keuze",null,null,1,0,0,0,0,1,null,0,null,null,null,null,null,0,0]
[null,null,null,"",null,null,null,null,null,"","XEmpty",null,null,0,0,0,0,0,0,null,0,null,null,null,null,null,0,0]
[null,null,"Materiële vaste activa","",null,null,null,null,null,"","XEmpty",null,null,0,0,0,0,0,0,99,0,{"$f":"SUM($Q$46:$Q$49)","v":0},{"$f":"SUM($N$46:$N$49)","v":2},{"$f":"SUM($O$46:$O$49)","v":0},{"$f":"SUM($P$46:$P$49)","v":0},null,0,0,{"$f":"SUM($AA$46:$AA$49)","v":0}]
["Notitie MVA (2020)",null,"Wordt de componentenbenadering alleen toegepast bij investeringen met economisch nut? \n\nNB: Indien de componentenbenadering wordt toegepast is er geen sprake meer van onderhoud maar van vervangingsinvesteringen en kan er geen voorziening voor onderhoud worden gevormd.","a",null,null,null,null,null,"a","Maak uw keuze",null,null,1,0,0,0,0,1,null,0,null,null,null,null,null,0,0]
[null,null,null,"",null,null,null,null,null,"","XEmpty",null,null,0,0,0,0,0,0,null,0,null,null,null,null,null,0,0]
["Notitie MVA (2020)",null,"Indien voor de dekking van kapitaallasten van een investering een reserve is opgebouwd, valt deze bestemmingsreserve dan conform de afschrijvingsparameters van het bijbehorende actief vrij?","a",null,null,null,null,null,"a","Maak uw keuze",null,null,1,0,0,0,0,1,null,0,null,null,null,null,null,0,0]
[null,null,null,"",null,null,null,null,null,"","XEmpty",null,null,0,0,0,0,0,0,null,0,null,null,null,null,null,0,0]
[null,null,"Voorraden","",null,null,null,null,null,"","XEmpty",null,null,0,0,0,0,0,0,99,0,{"$f":"SUM($Q$51:$Q$60)","v":0},{"$f":"SUM($N$51:$N$60)","v":5},{"$f":"SUM($O$51:$O$60)","v":0},{"$f":"SUM($P$51:$P$60)","v":0},null,0,0,{"$f":"SUM($AA$60:$AA$60)","v":0}]
["Notitie grondbeleid (2019)",null,"Is de wijze waarop met de toerekening van bovenwijkse voorzieningen wordt omgegaan vastgeleg in de financiële verordening?","a",null,null,null,null,null,"a","Maak uw keuze",null,null,1,0,0,0,0,1,null,0,null,null,null,null,null,0,0]
[null,null,null,null,null,null,null,null,null,"","XEmpty",null,null,0,0,0,0,0,0,null,0,null,null,null,null,null,0,0]
["Notitie grondbeleid (2019)",null,"Heeft de gemeente een grondprijzenbrief opgesteld met een vastgestelde uitgifteprijs voor zowel maatschappelijke grond als intern door te leveren grond, waar bij interne levering alleen fiscaal gezien eventuele resultaten worden gerealiseerd? Herwaardering van gronden is binnen het BBV niet toegestaan.","a",null,null,null,null,null,"a","Maak uw keuze",null,null,1,0,0,0,0,1,null,0,null,null,null,null,null,0,0]
[null,null,null,null,null,null,null,null,null,null,"XEmpty",null,null,0,0,0,0,0,{"$f":"IF(AND(J54<>\"-\",J54<>\"\",OR(Z54=1,Z54=\"\")),1,0)","v":0},null,0,null,null,null,null,null,0,0]
["Notitie grondbeleid (2019)",null,"Heeft de gemeente de wijze waarop met conjuncturele risico’s en de omvang van het weerstandsvermogen wordt omgegaan uitgewerkt in bijvoorbeeld de paragraaf grondbeleid of weerstandsvermogen en risico’s, een van beide gelijknamige nota’s of de financiële verordening?","a",null,null,null,null,null,"a","Maak uw keuze",null,null,1,0,0,0,0,1,null,0,null,null,null,null,null,0,0]
[null,null,null,null,null,null,null,null,null,null,"XEmpty",null,null,0,0,0,0,0,{"$f":"IF(AND(J56<>\"-\",J56<>\"\",OR(Z56=1,Z56=\"\")),1,0)","v":0},null,0,null,null,null,null,null,0,0]
["Notitie grondbeleid (2019)",null,"Heeft de gemeente de wijze waarop met projectspecifieke risico’s wordt omgegaan bij het bepalen van de tussentijdse winstneming en de omvang van het weerstandsvermogen uitgewerkt in bijvoorbeeld de paragraaf grondbeleid of weerstandsvermogen en risico’s, een van beide gelijknamige nota’s of de financiële verordening?","a",null,null,null,null,null,"a","Maak uw keuze",null,null,1,0,0,0,0,1,null,0,null,null,null,null,null,0,0]
[null,null,null,null,null,null,null,null,null,null,"XEmpty",null,null,0,0,0,0,0,{"$f":"IF(AND(J58<>\"-\",J58<>\"\",OR(Z58=1,Z58=\"\")),1,0)","v":0},null,0,null,null,null,null,null,0,0]
["Notitie grondbeleid (2019)",null,"Heeft de gemeente de keuze om de voorziening voor verliesgevende grondexploitaties of tegen nominale waarde of tegen contante waarde te waarderen, vastgelegd in de financiële verordening?","a",null,null,null,null,null,"a","Maak uw keuze",null,null,1,0,0,0,0,1,null,0,null,null,null,null,null,0,0]
[null,null,null,"",null,null,null,null,null,"","XEmpty",null,null,0,0,0,0,0,0,null,0,null,null,null,null,null,0,0]
[null,null,"Vaste Schulden","",null,null,null,null,null,"","XEmpty",null,null,0,0,0,0,0,0,99,0,{"$f":"SUM($Q$62:$Q$67)","v":0},{"$f":"SUM($N$62:$N$67)","v":3},{"$f":"SUM($O$62:$O$67)","v":0},{"$f":"SUM($P$62:$P$67)","v":0},null,0,0,{"$f":"SUM($AA$62:$AA$67)","v":0}]
["Notitie Erfpacht in het BBV",null,"Bedragen die worden ontvangen in verband met de afkoop van voortdurend erfpacht worden Vanuit het matchingbeginsel op de balans onder de vaste schulden opgenomen.","a",null,null,null,null,null,"a","Maak uw keuze",null,null,1,0,0,0,0,1,null,0,null,null,null,null,null,0,0]
[null,null,null,null,null,null,null,null,null,"","XEmpty",null,null,0,0,0,0,0,0,null,0,null,null,null,null,null,0,0]
["Notitie rente paragraaf 2",null,"De commissie BBV adviseert het renteschema uit deze notitie in de paragraaf financiering van de begroting en jaarstukken op te nemen. Hiermee wordt inzicht gegeven in de rentelasten externe financiering, het renteresultaat en de wijze van rentetoerekening.","a",null,null,null,null,null,"a","Maak uw keuze",null,null,1,0,0,0,0,{"$f":"IF(AND(J64<>\"-\",J64<>\"\",OR(Z64=1,Z64=\"\")),1,0)","v":1},null,0,null,null,null,null,null,0,0]
[null,null,null,null,null,null,null,null,null,"","XEmpty",null,null,0,0,0,0,0,0,null,0,null,null,null,null,null,0,0]
["Notitie rente paragraaf 2, ad d1 en d2",null,"Alhoewel in het BBV de mogelijkheid vooralsnog blijft bestaan om een rentevergoeding (of een vergoeding voor de inflatie) over het eigen vermogen en de voorzieningen te berekenen en deze door te belasten aan de taakvelden, adviseert de Commissie BBV vanwege het verlangde inzicht, de eenvoud en transparantie deze systematiek niet (meer) toe te passen.","a",null,null,null,null,null,"a","Maak uw keuze",null,null,1,0,0,0,0,1,null,0,null,null,null,null,null,0,0]
[null,null,null,null,null,null,null,null,null,"","XEmpty",null,null,0,0,0,0,0,0,null,0,null,null,null,null,null,0,0]
[null,null,"Voorzieningen",null,null,null,null,null,null,{"$f":"IF(ISBLANK(D68)=TRUE,\"\",OFFSET(C68,0,CATSRT))","v":""},"XEmpty",null,null,0,0,0,0,0,0,99,0,{"$f":"SUM($Q$69:$Q$70)","v":0},{"$f":"SUM($N$69:$N$70)","v":1},{"$f":"SUM($O$69:$O$70)","v":0},{"$f":"SUM($P$69:$P$70)","v":0},null,0,0,{"$f":"SUM($AA$69:$AA$70)","v":0}]
["Notitie riolering",null,"Als een gemeente een riooltarief hanteert, de gerealiseerde efficiencyresultaten riolering muteren op een bestemmingsreserve ‘riolering’. De kaders ervoor liggen vast  in de verordening ex artikel 212 van de Gemeentewet.","a",null,null,null,null,null,"a","Maak uw keuze",null,null,1,0,0,0,0,1,null,0,null,null,null,null,null,0,0]
[null,null,null,null,null,null,null,null,null,{"$f":"IF(ISBLANK(D70)=TRUE,\"\",OFFSET(C70,0,CATSRT))","v":""},"XEmpty",null,null,0,0,0,0,0,{"$f":"IF(AND(J70<>\"-\",J70<>\"\",OR(Z70=1,Z70=\"\")),1,0)","v":0},null,0,null,null,null,null,null,0,0]

{"sheet":"Aanbevelingen Deloitte","index":20,"n_rows":47,"n_cols":29,"rows_kept":47,"cut":false,"hidden":false,"merged":[[1,10,5,10],[1,11,5,11],[3,12,5,12]]}
["BBV",null,null,null,null,null,null,null,null,{"$f":"IF(ISBLANK(D1)=TRUE,\"\",OFFSET(C1,0,CATSRT))","v":""},null,null,null,"PD RANGE"]
[null,null,null,null,null,null,null,null,null,"",{"$f":"VOLDAAN","v":"Is aan de vereisten voor de Jaarverslag-geving voldaan?"},{"$f":"TOEL","v":"Commentaar bij \"Voldoet niet\""},null,null,null,null,null,"Kopje van",null,null,"tbv hiden"]
[null,null,"w = wettelijk vereiste       s = stellige uitspraak van cie Bbv",null,null,null,null,null,null,"",null,null,null,"Vraag","Toelichting","Review","hulprange","hfdstuk of",null,"Info","Som P en Q","info","info","info","info"]
[null,null,"-  = niet vereist                 a = aanbevolen door cie Bbv",null,null,null,null,null,null,"",null,null,{"$f":"COM_REV","v":"Afwerking / Commentaar reviewer"},"(on)beantwoord","opgenomen","opgenomen","Vold. niet","Vold niet","vraagregel?"]
[null,null,null,null,null,null,null,null,null,"",null,null,null,null,null,null,"info"]
[{"$f":"IF(Navigatiescherm!J93=0,TRUE,FALSE)","v":false},null,null,null,null,null,null,null,null,"",null,null,null,"info"]
[null,null,null,null,null,null,null,null,null,"",{"$f":"CHK_M","v":"Maak uw keuze"},null,null,null,null,null,{"$f":"IF(AND(K7=CHK_V,S7=1),1,IF(OR(Q6=1,Q6=2),IF(AND(C7=\"\",J7=\"\"),3,IF(AND(K7<>CHK_M,K7<>CHK_A,K7<>CHK_N,T7=\"\"),2,0)),0))","v":0},{"$f":"IF(OR(T7=4,V7>0),1,0)","v":1},{"$f":"IF(AND(J7<>\"-\",J7<>\"\",OR(Z7=1,Z7=\"\")),1,0)","v":0},4,{"$f":"Q7+R7","v":1},null,null,null,null,null,{"$f":"IF(AND(K7<>CHK_M,S7=1),1,IF(OR(AA6=1,AA6=2),IF(AND(C7=\"\",J7=\"\"),3,IF(AND(K7<>CHK_M,T7=\"\"),2,0)),0))","v":0},{"$f":"IF(OR(T7=4,AC7>0),1,0)+AA7","v":1}]
[null,null,"Aanbevelingen van Deloitte",null,null,null,null,null,null,"",{"$f":"CHK_V","v":"Voldoet niet"},null,null,{"$f":"IF(AND(J8<>\"-\",J8<>\"br\"),IF(AND(K8=CHK_M,OR(Z8=1,Z8=\"\")),1,0),0)","v":0},{"$f":"IF(AND(J8<>\"-\",S8=1,K8=CHK_V,OR(Z8=1,Z8=\"\"),L8=\"\"),1,0)","v":0},{"$f":"IF(AND(J8<>\"-\",S8=1,K8=CHK_V,OR(Z8=1,Z8=\"\"),M8=\"\"),1,0)","v":0},0,{"$f":"IF(OR(T8=4,V8>0),1,0)","v":1},{"$f":"IF(AND(J8<>\"-\",J8<>\"\",OR(Z8=1,Z8=\"\")),1,0)","v":0},4,1,null,null,null,null,null,0,{"$f":"IF(OR(T8=4,AC8>0),1,0)+AA8","v":1}]
[null,null,null,null,null,null,null,null,null,"",{"$f":"CHK_A","v":"Akkoord"},null,null,0,0,0,0,{"$f":"IF(OR(T9=4,V9>0),1,0)","v":0},{"$f":"IF(AND(J9<>\"-\",J9<>\"\",OR(Z9=1,Z9=\"\")),1,0)","v":0},5,0,null,null,null,null,null,0,0]
[null,null,"Het overzicht van baten en lasten in de jaarrekening",null,null,null,null,null,null,"",{"$f":"CHK_N","v":"Nvt"},null,null,0,0,0,0,0,0,99,0,{"$f":"SUM($Q$11:$Q$22)","v":0},{"$f":"SUM($N$11:$N$22)","v":5},{"$f":"SUM($O$11:$O$22)","v":0},{"$f":"SUM($P$11:$P$22)","v":0},null,0,0,{"$f":"SUM($AA$11:$AA$22)","v":0}]
[null,null,"Indien gekozen wordt voor een verwijzing vanuit het overzicht van baten en lasten in de jaarrekening naar de programmaverantwoording is sprake van een kwalitatieve afwijking van het BBV. Bij het bepalen van het eventuele effect van deze afwijking op de formulering c.q. strekking van de verklaring dienen te volgende aspecten te worden betrokken:",null,null,null,null,null,null,"","XEmpty",null,null,0,0,0,0,0,0,null,0,null,null,null,null,null,0,0]
[null,null,null,null,null,null,null,null,null,"","XEmpty",null,null,0,0,0,0,0,0,null,0,null,null,null,null,null,0,0]
[null,null,"a. Worden de programmaverantwoording en het overzicht van baten en lasten in de jaarrekening tegelijkertijd openbaar gemaakt en zijn zij onlosmakelijk met elkaar verbonden?","--",null,null,null,null,null,"--","Maak uw keuze",null,null,1,0,0,0,0,1,null,0,null,null,null,null,null,0,0]
[null,null,null,null,null,null,null,null,null,"","XEmpty",null,null,0,0,0,0,0,0,null,0,null,null,null,null,null,0,0]
[null,null,"b. Zijn de gecontroleerde baten en lasten nadrukkelijk geïdentificeerd door het opnemen van een overzicht van de staat van baten en lasten op programmaniveau, inclusief de mutaties in de reserves, in het overzicht van baten en lasten in de jaarrekening?","--",null,null,null,null,null,"--","Maak uw keuze",null,null,1,0,0,0,0,1,null,0,null,null,null,null,null,0,0]
[null,null,null,null,null,null,null,null,null,"","XEmpty",null,null,0,0,0,0,0,0,null,0,null,null,null,null,null,0,0]
[null,null,"c. Is de analyse op de financiële afwijkingen identificeerbaar?","--",null,null,null,null,null,"--","Maak uw keuze",null,null,1,0,0,0,0,1,null,0,null,null,null,null,null,0,0]
[null,null,null,null,null,null,null,null,null,"","XEmpty",null,null,0,0,0,0,0,0,null,0,null,null,null,null,null,0,0]
[null,null,"d. Zijn het controlerend orgaan (raad) en de toezichthouder (provincie) volledig en compleet geïnformeerd?","--",null,null,null,null,null,"--","Maak uw keuze",null,null,1,0,0,0,0,1,null,0,null,null,null,null,null,0,0]
[null,null,null,null,null,null,null,null,null,"","XEmpty",null,null,0,0,0,0,0,0,null,0,null,null,null,null,null,0,0]
[null,null,"e. Is er sprake is van een bestendige gedragslijn die door beide partijen in meerdere casussen en langjarig geaccepteerd is?","--",null,null,null,null,null,"--","Maak uw keuze",null,null,1,0,0,0,0,1,null,0,null,null,null,null,null,0,0]
[null,null,null,null,null,null,null,null,null,"","XEmpty",null,null,0,0,0,0,0,0,null,0,null,null,null,null,null,0,0]
[null,null,"Onderscheid IVA en MVA",null,null,null,null,null,null,"","XEmpty",null,null,0,0,0,0,0,0,99,0,{"$f":"SUM($Q$24:$Q$29)","v":0},{"$f":"SUM($N$24:$N$29)","v":1},{"$f":"SUM($O$24:$O$29)","v":0},{"$f":"SUM($P$24:$P$29)","v":0},null,0,0,{"$f":"SUM($AA$24:$AA$29)","v":0}]
[null,null,"Een vraagstuk schuilt in de afbakening van enerzijds de kosten van onderzoek en ontwikkeling en anderzijds de kosten van de voorbereiding van een investering zelf. Naar de mening van Deloitte ligt de scheidslijn gewoonlijk bij het besteksgereed maken en aanbesteden. Alles wat daarvoor ligt, is doorgaans als kosten van onderzoek en ontwikkeling aan te merken.","--",null,null,null,null,null,"--","Maak uw keuze",null,null,1,0,0,0,0,1,null,0,null,null,null,null,null,0,0]
[null,null,null,null,null,null,null,null,null,"","XEmpty",null,null,0,0,0,0,0,0,null,0,null,null,null,null,null,0,0]
[null,null,"Een uitzondering hierop zijn vervangingsinvesteringen, waarbij alle activiteiten vanaf het begin zijn gericht op de realisatie van het actief. Naar de mening van Deloitte ligt het voor de hand de uitgaven van voorbereiding voor een vervangingsinvestering (inclusief eventuele uitgaven voor onderzoek en ontwikkeling) te activeren als onderdeel van het materieel vaste actief. Een adequate afbakening is niet alleen van betekenis voor een correcte balansrubricering maar vooral ook omdat artikel 64, lid 6 BBV de afschrijvingsduur van geactiveerde voorbereidingskosten op maximaal vijf jaar stelt. ",null,null,null,null,null,null,"","XEmpty",null,null,0,0,0,0,0,0,null,0,null,null,null,null,null,0,0]
[null,null,null,null,null,null,null,null,null,"","XEmpty",null,null,0,0,0,0,0,0,null,0,null,null,null,null,null,0,0]
[null,null,"Een dergelijke inperking geldt niet voor de investering zelf. Als het gaat om de voorbereiding van een investering met economisch nut (in de zin van het BBV) gaat in de sfeerovergang bovendien ook het facultatieve aspect van de activering verloren. Economisch nuttige investeringen moeten immers verplicht worden geactiveerd; dat geldt echter niet voor de voorbereidingskosten van dergelijke investeringen.",null,null,null,null,null,null,"","XEmpty",null,null,0,0,0,0,0,0,null,0,null,null,null,null,null,0,0]
[null,null,null,null,null,null,null,null,null,"","XEmpty",null,null,0,0,0,0,0,0,null,0,null,null,null,null,null,0,0]
[null,null,"Voorraden: inbrengwaarde",null,null,null,null,null,null,"","XEmpty",null,null,0,0,0,0,0,0,99,0,{"$f":"SUM($Q$31:$Q$32)","v":0},{"$f":"SUM($N$31:$N$32)","v":1},{"$f":"SUM($O$31:$O$32)","v":0},{"$f":"SUM($P$31:$P$32)","v":0},null,0,0,{"$f":"SUM($AA$31:$AA$32)","v":0}]
[null,null,"Een bijzonder aandachtspunt betreft nog het gebruik van een kavel grond voor eigen gebruik voor bijvoorbeeld een nieuw gemeentehuis, een werkplaats voor gemeentewerken, scholen etc. Bij de inbreng om een actief te realiseren dient de grond tegen de vervaardigingsprijs te worden opgenomen. Het is derhalve volgens Deloitte niet toegestaan de kavel grond tegen de (fictieve) marktwaarde in te brengen. Hierdoor zou immers de vervaardigingsprijs van het nieuw te realiseren actief te hoog zijn en zou er ten onrechte een winst worden verantwoord op de inbreng van een kavel grond voor eigen gebruik.","--",null,null,null,null,null,"--","Maak uw keuze",null,null,1,0,0,0,0,1,null,0,null,null,null,null,null,0,0]
[null,null,null,null,null,null,null,null,null,"","XEmpty",null,null,0,0,0,0,0,0,null,0,null,null,null,null,null,0,0]
[null,null,"Liquide middelen",null,null,null,null,null,null,"","XEmpty",null,null,0,0,0,0,0,0,99,0,{"$f":"SUM($Q$34:$Q$35)","v":0},{"$f":"SUM($N$34:$N$35)","v":1},{"$f":"SUM($O$34:$O$35)","v":0},{"$f":"SUM($P$34:$P$35)","v":0},null,0,0,{"$f":"SUM($AA$34:$AA$35)","v":0}]
[null,null,"In de praktijk komt het voor dat positieve en negatieve banksaldi onderling worden verrekend of gesaldeerd. Dit tegen elkaar laten wegvallen van posten kan naar de mening van Deloitte echter alleen indien zij daadwerkelijk onderling verrekenbaar zijn. Een tweetal rekeningen bij eenzelfde bank, die onderling gecompenseerd kunnen worden en die respectievelijk een positief en een negatief saldo vertonen, kunnen worden gesaldeerd. Voor rekeningen bij verschillende bank-instellingen geldt dit niet. Wanneer rekeningen bij verschillende instellingen toch worden gesaldeerd, zal – mede op basis van de omvang van de saldi in relatie tot het balanstotaal – moeten worden afgewogen in hoeverre sprake is van een fout in de jaarrekening.","--",null,null,null,null,null,"--","Maak uw keuze",null,null,1,0,0,0,0,1,null,0,null,null,null,null,null,0,0]
[null,null,null,null,null,null,null,null,null,"","XEmpty",null,null,0,0,0,0,0,0,null,0,null,null,null,null,null,0,0]
[null,null,"Wachtgelden",null,null,null,null,null,null,"","XEmpty",null,null,0,0,0,0,0,0,99,0,{"$f":"SUM($Q$37:$Q$38)","v":0},{"$f":"SUM($N$37:$N$38)","v":1},{"$f":"SUM($O$37:$O$38)","v":0},{"$f":"SUM($P$37:$P$38)","v":0},null,0,0,{"$f":"SUM($AA$37:$AA$38)","v":0}]
[null,null,"Deloitte is van mening dat in de praktijk veelal sprake zal moeten zijn van de vorming van een voorziening voor wachtgeldaanspraken. De lasten van een ontslag drukken dan op de periode waarin ontslagbesluiten genomen zijn.\nOverigens speelt altijd de vraag of een wachtgeldverplichting wel voldoende betrouwbaar geraamd kan worden. Indien dat niet mogelijk is (dat mag niet te snel worden aangenomen), dan mag geen voorziening opgenomen worden. Wij verwijzen naar het hoofdstuk voorzieningen in het handboek jaarrekening gemeenten  'Een handleiding voor de praktijk'.\n","--",null,null,null,null,null,"--","Maak uw keuze",null,null,1,0,0,0,0,1,null,0,null,null,null,null,null,0,0]
[null,null,null,null,null,null,null,null,null,"","XEmpty",null,null,0,0,0,0,0,0,null,0,null,null,null,null,null,0,0]
[null,null,"Subsidies",null,null,null,null,null,null,"","XEmpty",null,null,0,0,0,0,0,0,99,0,{"$f":"SUM($Q$40:$Q$41)","v":0},{"$f":"SUM($N$40:$N$41)","v":1},{"$f":"SUM($O$40:$O$41)","v":0},{"$f":"SUM($P$40:$P$41)","v":0},null,0,0,{"$f":"SUM($AA$40:$AA$41)","v":0}]
[null,null,"Wanneer de gemeente een (voorwaardelijke) subsidietoezegging heeft ontvangen voor toekomstige jaren, ligt het niet voor de hand een vordering in de balans op te nemen en de subsidiebate reeds te verantwoorden. Doordat de subsidiabele prestatie nog niet is geleverd, is de vordering niet onvoorwaardelijk en bovendien is de verantwoording van een bate in strijd met het realisatiebeginsel (juiste periodetoerekening). Voor (voorwaardelijke) subsidietoezeggingen in toekomstige jaren die de gemeente aan andere partijen doet, is het eveneens niet juist de last te verantwoorden en een schuld in de balans op te nemen. De contraprestatie is immers nog niet geleverd.","--",null,null,null,null,null,"--","Maak uw keuze",null,null,1,0,0,0,0,1,null,0,null,null,null,null,null,0,0]
[null,null,null,null,null,null,null,null,null,"","XEmpty",null,null,0,0,0,0,0,0,null,0,null,null,null,null,null,0,0]
[null,null,"Niet uit de balans blijkende rechten",null,null,null,null,null,null,"","XEmpty",null,null,0,0,0,0,0,0,99,0,{"$f":"SUM($Q$43:$Q$44)","v":0},{"$f":"SUM($N$43:$N$44)","v":1},{"$f":"SUM($O$43:$O$44)","v":0},{"$f":"SUM($P$43:$P$44)","v":0},null,0,0,{"$f":"SUM($AA$43:$AA$44)","v":0}]
[null,null,"Is aan de actiefzijde van de balans buiten de balanstelling het bedrag opgenomen waartoe rechten zijn verworven van natuurlijke personen en rechtspersonen?","--",null,null,null,null,null,"--","Maak uw keuze",null,null,1,0,0,0,0,1,null,0,null,null,null,null,null,0,0]
[null,null,null,null,null,null,null,null,null,"","XEmpty",null,null,0,0,0,0,0,0,null,0,null,null,null,null,null,0,0]
[null,null,"Niet uit de balans blijkende verplichtingen",null,null,null,null,null,null,"","XEmpty",null,null,0,0,0,0,0,0,99,0,{"$f":"SUM($Q$46:$Q$47)","v":0},{"$f":"SUM($N$46:$N$47)","v":1},{"$f":"SUM($O$46:$O$47)","v":0},{"$f":"SUM($P$46:$P$47)","v":0},null,0,0,{"$f":"SUM($AA$46:$AA$47)","v":0}]
[null,null,"Is aan de passiefzijde van de balans een niet uit de balans blijkende verplichting opgenomen voor wethouderspensioenen? Naar verwachting zullen gemeenten op termijn de verplichtingen inzake wethouderspensioenen overdragen aan een verzekeraar. Indien de gemeente niet voor alle zittende en gewezen wethouders een voorziening heeft getroffen, is sprake van een niet uit de balans blijkende verplichting ter grootte van het bedrag dat de gemeente t.z.t. zal moeten overdragen aan de verzekeraar minus het bedrag aan voorzieningen. De omvang van de verplichting is nog niet te bepalen; dit is mede afhankelijk van het moment van overdracht, de afspraken terzake (zoals rente-%), etc.","--",null,null,null,null,null,"--","Maak uw keuze",null,null,1,0,0,0,0,1,null,0,null,null,null,null,null,0,0]
[null,null,null,null,null,null,null,null,null,{"$f":"IF(ISBLANK(D47)=TRUE,\"\",OFFSET(C47,0,CATSRT))","v":""},"XEmpty",null,null,0,0,0,0,0,0,null,0,null,null,null,null,null,0,0]

{"sheet":"(H) triggersheet","index":21,"n_rows":14,"n_cols":5,"rows_kept":14,"cut":false,"hidden":true,"merged":[]}
[{"$f":"B1","v":0}]
[{"$f":"B9","v":"INR"}]
[]
[]
[]
[]
["Tabel bepalen CATSRT"]
[null,null,"Code"]
["Stuk","INR",2,null,">>>Plat gemaakt zorg is altijd groot"]
["Classificatie","Groot",-1]
[null,null,1,"STOND 1+1"]
[]
[]
[null,"PivotCode",2,"= Deze cel wordt door de macro gewijzigd en controleert dus of er een wijziging in het model is."]

{"sheet":"(H) DATASHEET","index":22,"n_rows":78,"n_cols":12,"rows_kept":78,"cut":false,"hidden":true,"merged":[]}
["Analyses"]
[]
[]
["Grenswaarden groottecategorie Rechtspersoon",null,null,null,"Categorie",null,null,"Classificatie per jaar","jaar x","jaar x-1","jaar x-2"]
["Balanstotaal",35,14,null,"Klein"]
["Omzet",7,28,null,"Middelgroot",null,null,"Balanstotaal"]
["Aantal werknemers",49.999999989999999,249.99999990000001,null,"Groot",null,null,"Omzet"]
[null,null,null,null,null,null,null,"Aantal werknemers"]
[]
[null,null,null,null,null,null,null,"Aantal criteria dat voldoet aan:"]
[null,null,null,null,null,null,null,"Klein",{"$f":"COUNTIF(I6:I8,\"klein\")","v":0},{"$f":"COUNTIF(J6:J8,\"klein\")","v":0},{"$f":"COUNTIF(K6:K8,\"klein\")","v":0}]
[null,null,null,null,null,null,null,"Middelgroot",{"$f":"COUNTIF(I6:I8,\"middelgroot\")","v":0},{"$f":"COUNTIF(J6:J8,\"middelgroot\")","v":0},{"$f":"COUNTIF(K6:K8,\"middelgroot\")","v":0}]
[null,null,null,null,null,null,null,"Groot",{"$f":"COUNTIF(I6:I8,\"groot\")","v":0},{"$f":"COUNTIF(J6:J8,\"groot\")","v":0},{"$f":"COUNTIF(K6:K8,\"groot\")","v":0}]
[]
[null,null,null,null,null,null,null,"Classificatie betreffende jaar:",{"$f":"IF(I11>=2,$H$11,IF(I12>=2,$H$12,IF(I13=1,$H$12,$H$13)))","v":"Groot"},{"$f":"IF(J11>=2,$H$11,IF(J12>=2,$H$12,IF(J13=1,$H$12,$H$13)))","v":"Groot"},{"$f":"IF(K11>=2,$H$11,IF(K12>=2,$H$12,IF(K13=1,$H$12,$H$13)))","v":"Groot"}]
[]
[null,null,null,null,null,null,null,"Tabel:"]
[null,null,null,null,null,null,null,{"$f":"IF(AND($I$15=I18,$J$15=J18,$K$15=K18),L18,)","v":0},"Klein","Klein","Klein",1]
[null,null,null,null,null,null,null,{"$f":"IF(AND($I$15=I19,$J$15=J19,$K$15=K19),L19,)","v":0},"Klein","Klein","Middelgroot",1]
[null,null,null,null,null,null,null,{"$f":"IF(AND($I$15=I2,$J$15=J2,$K$15=K2),L2,)","v":0},"Klein","Klein","Groot",1]
[null,null,null,null,null,null,null,{"$f":"IF(AND($I$15=I21,$J$15=J21,$K$15=K21),L21,)","v":0},"Klein","Middelgroot","Klein",1]
[null,null,null,null,null,null,null,0,"Klein","Middelgroot","Middelgroot",2]
[null,null,null,null,null,null,null,0,"Klein","Middelgroot","Groot",2]
[null,null,null,null,null,null,null,0,"Klein","Groot","Klein",1]
[null,null,null,null,null,null,null,0,"Klein","Groot","Middelgroot",2]
[null,null,null,null,null,null,null,0,"Klein","Groot","Groot",3]
[null,null,null,null,null,null,null,0,"Middelgroot","Middelgroot","Klein",2]
[null,null,null,null,null,null,null,0,"Middelgroot","Middelgroot","Middelgroot",2]
[null,null,null,null,null,null,null,0,"Middelgroot","Middelgroot","Groot",2]
[null,null,null,null,null,null,null,{"$f":"IF(AND($I$15=I3,$J$15=J3,$K$15=K3),L3,)","v":0},"Middelgroot","Klein","Klein",1]
[null,null,null,null,null,null,null,{"$f":"IF(AND($I$15=I31,$J$15=J31,$K$15=K31),L31,)","v":0},"Middelgroot","Klein","Middelgroot",2]
[null,null,null,null,null,null,null,0,"Middelgroot","Klein","Groot",2]
[null,null,null,null,null,null,null,0,"Middelgroot","Groot","Klein",2]
[null,null,null,null,null,null,null,0,"Middelgroot","Groot","Middelgroot",2]
[null,null,null,null,null,null,null,0,"Middelgroot","Groot","Groot",3]
[null,null,null,null,null,null,null,0,"Groot","Klein","Klein",1]
[null,null,null,null,null,null,null,0,"Groot","Klein","Middelgroot",2]
[null,null,null,null,null,null,null,0,"Groot","Klein","Groot",3]
[null,null,null,null,null,null,null,0,"Groot","Middelgroot","Klein",2]
[null,null,null,null,null,null,null,{"$f":"IF(AND($I$15=I4,$J$15=J4,$K$15=K4),L4,)","v":0},"Groot","Middelgroot","Middelgroot",2]
[null,null,null,null,null,null,null,{"$f":"IF(AND($I$15=I41,$J$15=J41,$K$15=K41),L41,)","v":0},"Groot","Middelgroot","Groot",3]
[null,null,null,null,null,null,null,{"$f":"IF(AND($I$15=I42,$J$15=J42,$K$15=K42),L42,)","v":0},"Groot","Groot","Klein",3]
[null,null,null,null,null,null,null,{"$f":"IF(AND($I$15=I43,$J$15=J43,$K$15=K43),L43,)","v":0},"Groot","Groot","Middelgroot",3]
[null,null,null,null,null,null,null,{"$f":"IF(AND($I$15=I44,$J$15=J44,$K$15=K44),L44,)","v":3},"Groot","Groot","Groot",3]
[null,null,null,null,null,null,null,3,"Aanpassing zorg is altijd GROOT"]
[]
[null,null,null,null,null,null,null,"Overall classificatie tbv te controleren stuk:",null,"Groot"]
[null,null,null,null,null,null,null,"Aantal lege cellen Huidig en Vorig boekjaar"]
[]
[]
[]
[]
[]
[]
[]
["Jaarrekeningposten"]
["Maak uw keuze"]
["Ja"]
["Nee"]
[]
[]
[]
[]
[]
[]
[]
[]
[]
[]
[]
["Checklistvragen"]
["Maak uw keuze"]
["Akkoord"]
["Voldoet niet"]
["Nvt"]
[]
["Toelichtingen"]
["Is aan de vereisten voor de Jaarverslag-geving voldaan?","Commentaar bij \"Voldoet niet\"","Afwerking / Commentaar reviewer"]

{"sheet":"PrintSheet","index":23,"n_rows":6,"n_cols":16,"rows_kept":6,"cut":false,"hidden":false,"merged":[[1,10,5,10],[1,11,5,11],[3,12,5,12],[0,11,0,12]]}
["BBV","V&A",null,null,null,null,null,null,null,{"$f":"IF(ISBLANK(D1)=TRUE,\"\",OFFSET(C1,,CATSRT))","v":""},null,{"$f":"IF(CLIENTNAME<>\"\",CLIENTNAME,\"\")","v":"client naam"},null,"PD RANGE"]
[null,null,null,null,null,null,null,null,null,{"$f":"IF(ISBLANK(D2)=TRUE,\"\",OFFSET(C2,,CATSRT))","v":""},{"$f":"VOLDAAN","v":"Is aan de vereisten voor de Jaarverslag-geving voldaan?"},{"$f":"TOEL","v":"Commentaar bij \"Voldoet niet\""},{"$f":"IF(YEAREND<>\"\",YEAREND,\"\")","v":"2023-12-31"}]
[null,null,"w = wettelijk vereiste       s = stellige uitspraak van cie Bbv",null,null,null,null,null,null,{"$f":"IF(ISBLANK(D3)=TRUE,\"\",OFFSET(C3,,CATSRT))","v":""},null,null,null,"Vraag","Toelichting","Review"]
[null,null,"-   = niet vereist                 a = aanbevolen door cie Bbv",null,null,null,null,null,null,{"$f":"IF(ISBLANK(D4)=TRUE,\"\",OFFSET(C4,,CATSRT))","v":""},null,null,{"$f":"COM_REV","v":"Afwerking / Commentaar reviewer"},"beantwoord","opgenomen","opgenomen"]
[null,null,null,null,null,null,null,null,null,{"$f":"IF(ISBLANK(D5)=TRUE,\"\",OFFSET(C5,,CATSRT))","v":""}]
[{"$f":"IF(Navigatiescherm!J93=0,TRUE,FALSE)","v":false},null,null,null,null,null,null,null,null,{"$f":"IF(ISBLANK(D6)=TRUE,\"\",OFFSET(C6,0,CATSRT))","v":""}]

{"sheet":"(H) Tickmarks","index":24,"n_rows":189,"n_cols":3,"rows_kept":189,"cut":false,"hidden":true,"merged":[]}
[]
[]
[]
[]
[]
[null,"Naam","LOC"]
[null,"ZZKMO_SHEET","='(H) DATASHEET'!$A$1"]
[null,"TITEL","='(H) DATASHEET'!$A$101"]
[null,"POSTENVRAAG","='(H) DATASHEET'!$A$57:$A$59"]
[null,"JA","='(H) DATASHEET'!$A$58"]
[null,"NEE","='(H) DATASHEET'!$A$59"]
[null,"CHK_M","='(H) DATASHEET'!$A$72"]
[null,"CHECKLIST","='(H) DATASHEET'!$A$72:$A$75"]
[null,"CHK_A","='(H) DATASHEET'!$A$73"]
[null,"CHK_V","='(H) DATASHEET'!$A$74"]
[null,"CHK_N","='(H) DATASHEET'!$A$75"]
[null,"VOLDAAN","='(H) DATASHEET'!$A$78"]
[null,"RICHT","='(H) DATASHEET'!$B$101"]
[null,"TOEL","='(H) DATASHEET'!$B$78"]
[null,"COM_REV","='(H) DATASHEET'!$C$78"]
[null,"Print_Titles","='(H) Tickmarks'!$1:$6"]
[null,"Print_Area","='(H) Tickmarks'!$A$1:$Y$212"]
[null,"CATSRT","='(H) triggersheet'!$C$11"]
[null,"PIVOTCODE","='(H) triggersheet'!$C$14"]
[null,"HID_04_01","='(Im)materiële vaste activa'!$A$6"]
[null,"PRINTOVZ_02_04_01","='(Im)materiële vaste activa'!$A$7:$AB$161"]
[null,"CHECKL_04_01","='(Im)materiële vaste activa'!$C$8"]
[null,"PD_COL04_01","='(Im)materiële vaste activa'!$E$1:$I$1"]
[null,"ENDLIST_04_01","='(Im)materiële vaste activa'!$I$161"]
[null,"LCKEND_04_01","='(Im)materiële vaste activa'!$J$161"]
[null,"LOCK_04_01","='(Im)materiële vaste activa'!$J$7:$J$161"]
[null,"PD_04_01","='(Im)materiële vaste activa'!$N$1:$AC$1"]
[null,"ONTNULL_1_04_01_01","='(Im)materiële vaste activa'!$Z$13:$Z$50"]
[null,"HID_10_03","='Aanbevelingen BBV'!$A$6"]
[null,"PRINTOVZ_25_10_03","='Aanbevelingen BBV'!$A$7:$AB$70"]
[null,"CHECKL_10_03","='Aanbevelingen BBV'!$C$8"]
[null,"PD_COL10_03","='Aanbevelingen BBV'!$E$1:$I$1"]
[null,"ENDLIST_10_03","='Aanbevelingen BBV'!$I$70"]
[null,"LOCK_10_03","='Aanbevelingen BBV'!$J$7:$J$70"]
[null,"LCKEND_10_03","='Aanbevelingen BBV'!$J$70"]
[null,"PD_10_03","='Aanbevelingen BBV'!$N$1:$AC$1"]
[null,"HID_10_04","='Aanbevelingen Deloitte'!$A$6"]
[null,"PRINTOVZ_25_10_04","='Aanbevelingen Deloitte'!$A$7:$AB$47"]
[null,"CHECKL_10_04","='Aanbevelingen Deloitte'!$C$8"]
[null,"PD_COL10_04","='Aanbevelingen Deloitte'!$E$1:$I$1"]
[null,"ENDLIST_10_04","='Aanbevelingen Deloitte'!$I$47"]
[null,"LCKEND_10_04","='Aanbevelingen Deloitte'!$J$47"]
[null,"LOCK_10_04","='Aanbevelingen Deloitte'!$J$7:$J$47"]
[null,"PD_10_04","='Aanbevelingen Deloitte'!$N$1:$AC$1"]
[null,"HID_03_02","=Algemeen!$A$6"]
[null,"PRINTOVZ_01_03_02","=Algemeen!$A$7:$AB$44"]
[null,"CHECKL_03_02","=Algemeen!$C$8"]
[null,"PD_COL03_02","=Algemeen!$E$1:$I$1"]
[null,"ENDLIST_03_02","=Algemeen!$I$44"]
[null,"LCKEND_03_02","=Algemeen!$J$44"]
[null,"LOCK_03_02","=Algemeen!$J$7:$J$44"]
[null,"PD_03_02","=Algemeen!$N$1:$AC$1"]
[null,"HID_04_07","=Balans!$A$6"]
[null,"PRINTOVZ_08_04_07","=Balans!$A$7:$AB$36"]
[null,"CHECKL_04_07","=Balans!$C$8"]
[null,"PD_COL04_07","=Balans!$E$1:$I$1"]
[null,"ENDLIST_04_07","=Balans!$I$36"]
[null,"LCKEND_04_07","=Balans!$J$36"]
[null,"LOCK_04_07","=Balans!$J$7:$J$36"]
[null,"PD_04_07","=Balans!$N$1:$AC$1"]
[null,"HID_04_09","='Eigen vermogen'!$A$6"]
[null,"PRINTOVZ_10_04_09","='Eigen vermogen'!$A$7:$AB$43"]
[null,"CHECKL_04_09","='Eigen vermogen'!$C$8"]
[null,"PD_COL04_09","='Eigen vermogen'!$E$1:$I$1"]
[null,"ENDLIST_04_09","='Eigen vermogen'!$I$43"]
[null,"LCKEND_04_09","='Eigen vermogen'!$J$43"]
[null,"LOCK_04_09","='Eigen vermogen'!$J$7:$J$43"]
[null,"PD_04_09","='Eigen vermogen'!$N$1:$AC$1"]
[null,"ONTNULL_1_04_09_01A","='Eigen vermogen'!$Z$19:$Z$22"]
[null,"ONTNULL_1_04_09_01B","='Eigen vermogen'!$Z$42"]
[null,"HID_04_04","='Financiële vaste activa'!$A$6"]
[null,"PRINTOVZ_03_04_04","='Financiële vaste activa'!$A$7:$AB$40"]
[null,"CHECKL_04_04","='Financiële vaste activa'!$C$8"]
[null,"PD_COL04_04","='Financiële vaste activa'!$E$1:$I$1"]
[null,"ENDLIST_04_04","='Financiële vaste activa'!$I$40"]
[null,"LCKEND_04_04","='Financiële vaste activa'!$J$40"]
[null,"LOCK_04_04","='Financiële vaste activa'!$J$7:$J$40"]
[null,"PD_04_04","='Financiële vaste activa'!$N$1:$AC$1"]
[null,"HID_04_12","=Grondexploitatie!$A$6"]
[null,"PRINTOVZ_05_04_12","=Grondexploitatie!$A$7:$AB$96"]
[null,"CHECKL_04_12","=Grondexploitatie!$C$8"]
[null,"PD_COL04_12","=Grondexploitatie!$E$1:$I$1"]
[null,"ENDLIST_04_12","=Grondexploitatie!$I$96"]
[null,"LOCK_04_12","=Grondexploitatie!$J$7:$J$96"]
[null,"LCKEND_04_12","=Grondexploitatie!$J$96"]
[null,"PD_04_12","=Grondexploitatie!$N$1:$AC$1"]
[null,"HID_09_01","=Jaarverslag!$A$6"]
[null,"PRINTOVZ_22_09_01","=Jaarverslag!$A$7:$AB$111"]
[null,"CHECKL_09_01","=Jaarverslag!$C$8"]
[null,"PD_COL09_01","=Jaarverslag!$E$1:$I$1"]
[null,"ENDLIST_09_01","=Jaarverslag!$I$111"]
[null,"LCKEND_09_01","=Jaarverslag!$J$111"]
[null,"LOCK_09_01","=Jaarverslag!$J$7:$J$111"]
[null,"PD_09_01","=Jaarverslag!$N$1:$AC$1"]
[null,"HID_04_08","='Liquide middelen'!$A$6"]
[null,"PRINTOVZ_09_04_08","='Liquide middelen'!$A$7:$AB$12"]
[null,"CHECKL_04_08","='Liquide middelen'!$C$8"]
[null,"PD_COL04_08","='Liquide middelen'!$E$1:$I$1"]
[null,"ENDLIST_04_08","='Liquide middelen'!$I$12"]
[null,"LCKEND_04_08","='Liquide middelen'!$J$12"]
[null,"LOCK_04_08","='Liquide middelen'!$J$7:$J$12"]
[null,"PD_04_08","='Liquide middelen'!$N$1:$AC$1"]
[null,"NAVVOLLEDIG","=Navigatiescherm!$E$6"]
[null,"PD_NAVIGATIE","=Navigatiescherm!$H$8:$M$8"]
[null,"NULL_NAVIGATIE","=Navigatiescherm!$J$9:$J$110"]
[null,"HID_08_03","='Niet in balans opgenomen verpl.'!$A$6"]
[null,"PRINTOVZ_20_08_03","='Niet in balans opgenomen verpl.'!$A$7:$AB$42"]
[null,"CHECKL_08_03","='Niet in balans opgenomen verpl.'!$C$8"]
[null,"PD_COL08_03","='Niet in balans opgenomen verpl.'!$E$1:$I$1"]
[null,"ENDLIST_08_03","='Niet in balans opgenomen verpl.'!$I$42"]
[null,"LCKEND_08_03","='Niet in balans opgenomen verpl.'!$J$42"]
[null,"LOCK_08_03","='Niet in balans opgenomen verpl.'!$J$7:$J$42"]
[null,"PD_08_03","='Niet in balans opgenomen verpl.'!$N$1:$AC$1"]
[null,"HID_08_06","='Overzicht taakvelden'!$A$6"]
[null,"PRINTOVZ_21_08_06","='Overzicht taakvelden'!$A$7:$AB$30"]
[null,"CHECKL_08_06","='Overzicht taakvelden'!$C$8"]
[null,"PD_COL08_06","='Overzicht taakvelden'!$E$1:$I$1"]
[null,"ENDLIST_08_06","='Overzicht taakvelden'!$I$30"]
[null,"LCKEND_08_06","='Overzicht taakvelden'!$J$30"]
[null,"LOCK_08_06","='Overzicht taakvelden'!$J$7:$J$30"]
[null,"PD_08_06","='Overzicht taakvelden'!$N$1:$AC$1"]
[null,"HID_05_01","='Overzicht van baten en lasten'!$A$6"]
[null,"PRINTOVZ_14_05_01","='Overzicht van baten en lasten'!$A$7:$AB$58"]
[null,"CHECKL_05_01","='Overzicht van baten en lasten'!$C$8"]
[null,"PD_COL05_01","='Overzicht van baten en lasten'!$E$1:$I$1"]
[null,"ENDLIST_05_01","='Overzicht van baten en lasten'!$I$58"]
[null,"LCKEND_05_01","='Overzicht van baten en lasten'!$J$58"]
[null,"LOCK_05_01","='Overzicht van baten en lasten'!$J$7:$J$58"]
[null,"PD_05_01","='Overzicht van baten en lasten'!$N$1:$AC$1"]
[null,"PD_PRINT","=PrintSheet!$E$1:$I$1"]
[null,"PD_PRINT2","=PrintSheet!$N$1:$AC$1"]
[null,"HID_21_01","=Rechtmatigheidsverantwoording!$A$6"]
[null,"PRINTOVZ_21_01_01","=Rechtmatigheidsverantwoording!$A$7:$AB$25"]
[null,"CHECKL_21_01","=Rechtmatigheidsverantwoording!$C$8"]
[null,"PD_COL21_01","=Rechtmatigheidsverantwoording!$E$1:$I$1"]
[null,"ENDLIST_21_01","=Rechtmatigheidsverantwoording!$I$25"]
[null,"LCKEND_21_01","=Rechtmatigheidsverantwoording!$J$25"]
[null,"LOCK_21_01","=Rechtmatigheidsverantwoording!$J$7:$J$25"]
[null,"PD_21_01","=Rechtmatigheidsverantwoording!$N$1:$AC$1"]
[null,"HID_04_11","=Schulden!$A$6"]
[null,"PRINTOVZ_13_04_11","=Schulden!$A$7:$AB$68"]
[null,"CHECKL_04_11","=Schulden!$C$8"]
[null,"PD_COL04_11","=Schulden!$E$1:$I$1"]
[null,"ENDLIST_04_11","=Schulden!$I$68"]
[null,"LCKEND_04_11","=Schulden!$J$68"]
[null,"LOCK_04_11","=Schulden!$J$7:$J$68"]
[null,"PD_04_11","=Schulden!$N$1:$AC$1"]
[null,"ONTNULL_1_04_11_01","=Schulden!$Z$10:$Z$33"]
[null,"HID_08_05","=SiSa!$A$6"]
[null,"PRINTOVZ_21_08_05","=SiSa!$A$7:$AB$17"]
[null,"CHECKL_08_05","=SiSa!$C$8"]
[null,"PD_COL08_05","=SiSa!$E$1:$I$1"]
[null,"ENDLIST_08_05","=SiSa!$I$17"]
[null,"LCKEND_08_05","=SiSa!$J$17"]
[null,"LOCK_08_05","=SiSa!$J$7:$J$17"]
[null,"PD_08_05","=SiSa!$N$1:$AC$1"]
[null,"CLIENTNAME","=Startscherm!$C$2"]
[null,"YEAREND","=Startscherm!$C$3"]
[null,"ANSW_04_01","=Startscherm!$F$17"]
[null,"ANSW_04_01_01","=Startscherm!$F$19"]
[null,"ANSW_04_04","=Startscherm!$F$21"]
[null,"ANSW_04_12","=Startscherm!$F$23"]
[null,"ANSW_04_09_01","=Startscherm!$F$27"]
[null,"ANSW_04_10","=Startscherm!$F$29"]
[null,"ANSW_04_11_01","=Startscherm!$F$33"]
[null,"PD_START","=Startscherm!$I$10:$K$10"]
[null,"QUESTHIDE","=Startscherm!$I$11:$I$37"]
[null,"STARTVOLLEDIG","=Startscherm!$K$12"]
[null,"HID_04_10","=Voorzieningen!$A$6"]
[null,"PRINTOVZ_12_04_10","=Voorzieningen!$A$7:$AB$84"]
[null,"CHECKL_04_10","=Voorzieningen!$C$8"]
[null,"PD_COL04_10","=Voorzieningen!$E$1:$I$1"]
[null,"ENDLIST_04_10","=Voorzieningen!$I$84"]
[null,"LOCK_04_10","=Voorzieningen!$J$7:$J$84"]
[null,"LCKEND_04_10","=Voorzieningen!$J$84"]
[null,"PD_04_10","=Voorzieningen!$N$1:$AC$1"]
[null,"HID_04_06","=Vorderingen!$A$6"]
[null,"PRINTOVZ_06_04_06","=Vorderingen!$A$7:$AB$63"]
[null,"CHECKL_04_06","=Vorderingen!$C$8"]
[null,"PD_COL04_06","=Vorderingen!$E$1:$I$1"]
[null,"ENDLIST_04_06","=Vorderingen!$I$63"]
[null,"LCKEND_04_06","=Vorderingen!$J$63"]
[null,"LOCK_04_06","=Vorderingen!$J$7:$J$63"]
[null,"PD_04_06","=Vorderingen!$N$1:$AC$1"]